Workbook

Sheet Info
A1: Calibration_Quant_8.15.xlsm | J1: Author: Bo Svensmark, svensmark@plen.ku.dk, Analytical Chemistry, PLEN, University of Copenhagen, 2017 - 2025
B3: Write any information you like in the white area | G3: Text in the white area can be edited anytime
B5: Created: | D5: 25-05-20 14:37:34 | P5: Output file: Filename after saving results
B6: Input file:
B7: Calibration file: | P7: If you want to save the output under a new name,
B8: X-values: | P8: delete the filename in D10 and
B9: Include custom samples: | P9: you can change the filename when saving
B10: Output file:
B11: Input multiplier: | P11: If Output file is created, it will be updated
P12: with all results when the workbook is closed
B30: Go to sheet "Experimental data" to start calibrations:

Sheet Experimental data
A1: =Info!$A$1 -> Calibration_Quant_8.15.xlsm | J1: =Info!$J$1 -> Author: Bo Svensmark, svensmark@plen.ku.dk, Analytical Chemistry, PLEN, University of Copenhagen, 2017 - 2025
J3: Execution key:
D5: 24-03-02 15:32:24 | J5: Table 0 | K5: Weighted?
K6: Degree?
B7: Save copies of graphs to sheet Plots? | F7: Yes | G7: Yes/No | H7: Yes = big file | K7: Subtract blank
K8: IS factor
A9: 0) Go to sheet "Input" and enter parameters in Table 1, Table 5 and Table 6 | K9: Multiplier (not used)
B10: These parameters in sheet "Input" will be used for all analyts (until changed)
J11: Table 1 | K11: n(DL)
J12: Data for | K12: s(DL)
A13: 1) Copy-paste or enter experimental data for all analyts in the tables: | J13: detection | K13: n(Blank)
J14: limits | K14: Mean(Bl)
B15: Table 1 Row 12 - 16: | D15: n(DL) | E15: * No of measurements for DL; may be blank | K15: s(Blank)
D16: s(DL) | E16: * Standard deviation for DL; may be blank
D17: n(Blank) | E17: * No of measurements of blank samples; may be blank | M17: 1 | N17: 2 | O17: 3 | P17: 4 | Q17: 5 | R17: 6 | S17: 7 | T17: 8 | U17: 9 | V17: 10 | W17: 11 | X17: 12 | Y17: 13 | Z17: 14 | AA17: 15 | AB17: 16 | AC17: 17 | AD17: 18 | AE17: 19 | AF17: 20 | AG17: 21 | AH17: 22 | AI17: 23 | AJ17: 24 | AK17: 25 | AL17: 26 | AM17: 27 | AN17: 28 | AO17: 29 | AP17: 30 | AQ17: 31 | AR17: 32 | AS17: 33 | AT17: 34 | AU17: 35 | AV17: 36 | AW17: 37 | AX17: 38 | AY17: 39 | AZ17: 40 | BA17: 41 | BB17: 42 | BC17: 43 | BD17: 44 | BE17: 45 | BF17: 46 | BG17: 47 | BH17: 48 | BI17: 49 | BJ17: 50 | BK17: 51 | BL17: 52 | BM17: 53 | BN17: 54 | BO17: 55 | BP17: 56 | BQ17: 57 | BR17: 58 | BS17: 59 | BT17: 60 | BU17: 61 | BV17: 62 | BW17: 63 | BX17: 64 | BY17: 65 | BZ17: 66 | CA17: 67 | CB17: 68 | CC17: 69 | CD17: 70 | CE17: 71 | CF17: 72 | CG17: 73 | CH17: 74 | CI17: 75
D18: Mean(Bl) | E18: * Mean of blank samples; may be blank | J18: Table 2 | K18: No
D19: s(Blank) | E19: * Standard deviation of blank samples; may be blank | J19: Analyte | K19: 1
J20: Calibration | K20: 2
B21: Table 2 Row 18: | E21: * Analyte names | J21: Conc. X | K21: 3
K22: 4
B23: Table 2 starting in cell L19: | E23: * Up to 30 rows with calibration concentrations X | K23: 5
E24: Concentrations must be in ascending order | K24: 6
K25: 7
B26: Table 3 starting in cell L51: | E26: * Up to 30 rows with calibration responses Y | K26: 8
K27: 9
B28: Table 4 starting in cell J85: | E28: * Up to 100 rows with responses Yo for unknown samples | K28: 10
E29: * Sample names in column L | K29: 11
E30: * V/m = Vol(IS blank, ml)/mass(sample, g) in column J | K30: 12
E31: * V/m = Vol(IS sample, ml)/mass(sample, g) in column K | K31: 13
E32: For liquid samples replace mass with volume | K32: 14
E33: Column J&K must either both be blank or have values | K33: 15
A34: 2) Fill in execution keys in Row 3: | K34: 16
K35: 17
E36: 0: Skip this analyte | K36: 18
E37: 1: To be analyzed | K37: 19
K38: 20
B39: After analysis key is: | E39: 2: analysed normally | K39: 21
E40: 3: calibration responses Y are blank cells or all equal (0) | K40: 22
E41: 4: analyte was skipped | K41: 23
K42: 24
E43: To reanalyze change key to 1 and run again | K43: 25
A44: 3a) | K44: 26
B45: Automatic analysis of analytes one-by-one: | K45: 27
K46: 28
C47: Enter parameters in Table 0: | K47: 29
C48: · Weighted? | E48: Blank: the statistically best method is used | K48: 30
E49: 0 = Not weighted; 1 = Weighted | M49: 1 | N49: 2 | O49: 3 | P49: 4 | Q49: 5 | R49: 6 | S49: 7 | T49: 8 | U49: 9 | V49: 10 | W49: 11 | X49: 12 | Y49: 13 | Z49: 14 | AA49: 15 | AB49: 16 | AC49: 17 | AD49: 18 | AE49: 19 | AF49: 20 | AG49: 21 | AH49: 22 | AI49: 23 | AJ49: 24 | AK49: 25 | AL49: 26 | AM49: 27 | AN49: 28 | AO49: 29 | AP49: 30 | AQ49: 31 | AR49: 32 | AS49: 33 | AT49: 34 | AU49: 35 | AV49: 36 | AW49: 37 | AX49: 38 | AY49: 39 | AZ49: 40 | BA49: 41 | BB49: 42 | BC49: 43 | BD49: 44 | BE49: 45 | BF49: 46 | BG49: 47 | BH49: 48 | BI49: 49 | BJ49: 50 | BK49: 51 | BL49: 52 | BM49: 53 | BN49: 54 | BO49: 55 | BP49: 56 | BQ49: 57 | BR49: 58 | BS49: 59 | BT49: 60 | BU49: 61 | BV49: 62 | BW49: 63 | BX49: 64 | BY49: 65 | BZ49: 66 | CA49: 67 | CB49: 68 | CC49: 69 | CD49: 70 | CE49: 71 | CF49: 72 | CG49: 73 | CH49: 74 | CI49: 75
C50: · Degree? | E50: Blank: The statistically best degree | J50: Table 2 | K50: No | L50: Sample | M50: =M$18 -> 0 | N50: 0 | O50: 0 | P50: 0 | Q50: 0 | R50: 0 | S50: 0 | T50: 0 | U50: 0 | V50: 0 | W50: 0 | X50: 0 | Y50: 0 | Z50: 0 | AA50: 0 | AB50: 0 | AC50: 0 | AD50: 0 | AE50: 0 | AF50: 0 | AG50: 0 | AH50: 0 | AI50: 0 | AJ50: 0 | AK50: 0 | AL50: 0 | AM50: 0 | AN50: 0 | AO50: 0 | AP50: 0 | AQ50: 0 | AR50: 0 | AS50: 0 | AT50: 0 | AU50: 0 | AV50: 0 | AW50: 0 | AX50: 0 | AY50: 0 | AZ50: 0 | BA50: 0 | BB50: 0 | BC50: 0 | BD50: 0 | BE50: 0 | BF50: 0 | BG50: 0 | BH50: 0 | BI50: 0 | BJ50: 0 | BK50: 0 | BL50: 0 | BM50: 0 | BN50: 0 | BO50: 0 | BP50: 0 | BQ50: 0 | BR50: 0 | BS50: 0 | BT50: 0 | BU50: 0 | BV50: 0 | BW50: 0 | BX50: =BX$18 -> 0 | BY50: 0 | BZ50: 0 | CA50: 0 | CB50: 0 | CC50: 0 | CD50: 0 | CE50: 0 | CF50: 0 | CG50: 0 | CH50: 0 | CI50: 0
F51: up to degree 3 | J51: Calibration | K51: 1
E52: 1, 2 or 3: The statistically best degree | J52: Response Y | K52: 2
F53: up to degree 1, 2 or 3 | K53: 3
C54: · Subtract blank | E54: 0 = No; 1 = Yes | K54: 4
C55: · IS factor | E55: Conc. of IS stock solution for X = ratios | K55: 5
E56: V(cal)/V(IS,cal) for X = concentrations | K56: 6
C57: · Multiplier | E57: Not used | K57: 7
K58: 8
K59: 9
C60: OBS: Statistics may not always be ok, CHECK the results! | K60: 10
K61: 11
C62: Press the button "Run next analyte" | K62: 12
K63: 13
C64: You will see the results in the sheet Test of calibrafion function | K64: 14
K65: 15
C66: Examine the results and go to the sheet with the best | K66: 16
C67: calibration function, and either: | K67: 17
C68: · Press: "Save Results and run next analyte" | K68: 18
C69: · Press "Save Results" and do something else like | K69: 19
C70: testing another degree or weightening | K70: 20
K71: 21
A72: 3b) | K72: 22
B73: Automatic analysis of all analytes: | K73: 23
C74: Enter parameters in Table 0: | K74: 24
K75: 25
C76: Press the button "Run all analytes" | K76: 26
K77: 27
C78: You will see all results in sheet "Output" | K78: 28
C79: · Only data for the last analyte will be seen in the other sheets. | K79: 29
K80: 30
B81: It is highly recommended to analyse analytes one by one 3a) | M81: 1 | N81: 2 | O81: 3 | P81: 4 | Q81: 5 | R81: 6 | S81: 7 | T81: 8 | U81: 9 | V81: 10 | W81: 11 | X81: 12 | Y81: 13 | Z81: 14 | AA81: 15 | AB81: 16 | AC81: 17 | AD81: 18 | AE81: 19 | AF81: 20 | AG81: 21 | AH81: 22 | AI81: 23 | AJ81: 24 | AK81: 25 | AL81: 26 | AM81: 27 | AN81: 28 | AO81: 29 | AP81: 30 | AQ81: 31 | AR81: 32 | AS81: 33 | AT81: 34 | AU81: 35 | AV81: 36 | AW81: 37 | AX81: 38 | AY81: 39 | AZ81: 40 | BA81: 41 | BB81: 42 | BC81: 43 | BD81: 44 | BE81: 45 | BF81: 46 | BG81: 47 | BH81: 48 | BI81: 49 | BJ81: 50 | BK81: 51 | BL81: 52 | BM81: 53 | BN81: 54 | BO81: 55 | BP81: 56 | BQ81: 57 | BR81: 58 | BS81: 59 | BT81: 60 | BU81: 61 | BV81: 62 | BW81: 63 | BX81: 64 | BY81: 65 | BZ81: 66 | CA81: 67 | CB81: 68 | CC81: 69 | CD81: 70 | CE81: 71 | CF81: 72 | CG81: 73 | CH81: 74 | CI81: 75
H82: Table 5 | J82: V/m blank | K82: V/m sample | L82: Sample | M82: =M$18 -> 0 | N82: 0 | O82: 0 | P82: 0 | Q82: 0 | R82: 0 | S82: 0 | T82: 0 | U82: 0 | V82: 0 | W82: 0 | X82: 0 | Y82: 0 | Z82: 0 | AA82: 0 | AB82: 0 | AC82: 0 | AD82: 0 | AE82: 0 | AF82: 0 | AG82: 0 | AH82: 0 | AI82: 0 | AJ82: 0 | AK82: 0 | AL82: 0 | AM82: 0 | AN82: 0 | AO82: 0 | AP82: 0 | AQ82: 0 | AR82: 0 | AS82: 0 | AT82: 0 | AU82: 0 | AV82: 0 | AW82: 0 | AX82: 0 | AY82: 0 | AZ82: 0 | BA82: 0 | BB82: 0 | BC82: 0 | BD82: 0 | BE82: 0 | BF82: 0 | BG82: 0 | BH82: 0 | BI82: 0 | BJ82: 0 | BK82: 0 | BL82: 0 | BM82: 0 | BN82: 0 | BO82: 0 | BP82: 0 | BQ82: 0 | BR82: 0 | BS82: 0 | BT82: 0 | BU82: 0 | BV82: 0 | BW82: 0 | BX82: =BX$18 -> 0 | BY82: 0 | BZ82: 0 | CA82: 0 | CB82: 0 | CC82: 0 | CD82: 0 | CE82: 0 | CF82: 0 | CG82: 0 | CH82: 0 | CI82: 0
H83: Unknown | I83: No
H84: Response Yo | I84: 1
I85: 2
I86: 3
I87: 4
I88: 5
I89: 6
I90: 7
I91: 8
I92: 9
I93: 10
I94: 11
I95: 12
I96: 13
I97: 14
I98: 15
I99: 16
I100: 17
I101: 18
I102: 19
I103: 20
I104: 21
I105: 22
I106: 23
I107: 24
I108: 25
I109: 26
I110: 27
I111: 28
I112: 29
I113: 30
I114: 31
I115: 32
I116: 33
I117: 34
I118: 35
I119: 36
I120: 37
I121: 38
I122: 39
I123: 40
I124: 41
I125: 42
I126: 43
I127: 44
I128: 45
I129: 46
I130: 47
I131: 48
I132: 49
I133: 50
I134: 51
I135: 52
I136: 53
I137: 54
I138: 55
I139: 56
I140: 57
I141: 58
I142: 59
I143: 60
I144: 61
I145: 62
I146: 63
I147: 64
I148: 65
I149: 66
I150: 67
I151: 68
I152: 69
I153: 70
I154: 71
I155: 72
I156: 73
I157: 74
I158: 75
I159: 76
I160: 77
I161: 78
I162: 79
I163: 80
I164: 81
I165: 82
I166: 83
I167: 84
I168: 85
I169: 86
I170: 87
I171: 88
I172: 89
I173: 90
I174: 91
I175: 92
I176: 93
I177: 94
I178: 95
I179: 96
I180: 97
I181: 98
I182: 99
I183: 100

Sheet Output
A1: =Info!$A$1 -> Calibration_Quant_8.15.xlsm | F1: Output of results | J1: =Info!$J$1 -> Author: Bo Svensmark, svensmark@plen.ku.dk, Analytical Chemistry, PLEN, University of Copenhagen, 2017 - 2025
A3: For all runs: | C3: Row 3 to 12:
C4: Can be used for comments or
A5: a(DL) % | B5: 1 | C5: calculations
A6: b(LOD) % | B6: 5
A7: s(LOQ) | B7: 10 | C7: Color codes for results:
A8: CI(LOQ)% | B8: 20 | C8: Not detected
A9: a(LOQ) % | B9: 5 | C9: Below blank limit
A10: a(Blank) % | B10: 10
A11: m | B11: 1 | C11: Below Low limit: LOQ or Min(X)
A12: r | B12: 1 | C12: Abowe highest calibration conc.
A13: a(CI) % | B13: 95 | C13: na: Not applicable | F13: 1 | G13: 2 | H13: 3 | I13: 4 | J13: 5 | K13: 6 | L13: 7 | M13: 8 | N13: 9 | O13: 10 | P13: 11 | Q13: 12 | R13: 13 | S13: 14 | T13: 15 | U13: 16 | V13: 17 | W13: 18 | X13: 19 | Y13: 20 | Z13: 21 | AA13: 22 | AB13: 23 | AC13: 24 | AD13: 25 | AE13: 26 | AF13: 27 | AG13: 28 | AH13: 29 | AI13: 30 | AJ13: 31 | AK13: 32 | AL13: 33 | AM13: 34 | AN13: 35 | AO13: 36 | AP13: 37 | AQ13: 38 | AR13: 39 | AS13: 40 | AT13: 41 | AU13: 42 | AV13: 43 | AW13: 44 | AX13: 45 | AY13: 46 | AZ13: 47 | BA13: 48 | BB13: 49 | BC13: 50 | BD13: 51 | BE13: 52 | BF13: 53 | BG13: 54 | BH13: 55 | BI13: 56 | BJ13: 57 | BK13: 58 | BL13: 59 | BM13: 60 | BN13: 61 | BO13: 62 | BP13: 63 | BQ13: 64 | BR13: 65 | BS13: 66 | BT13: 67 | BU13: 68 | BV13: 68 | BW13: 70 | BX13: 71 | BY13: 72 | BZ13: 73 | CA13: 74 | CB13: 75 | CC13: 76 | CD13: 77 | CE13: 78 | CF13: 79 | CG13: 80
A14: Headings | D14: No
D15: Analyte
D16: IS factor
D17: Not used
D18: Not used
D19: Subtract blank
D20: Blank stdev
D21: Multiplier
D22: Run comment
D23: Run comment
D24: Auto keys (W-degree)?
A26: Calibration | D26: Type
D27: a0
D28: a1
D29: a2
D30: a3
A32: Statistics | D32: R2
D33: Force zero OK?
D34: s(y/x)
D35: P(a0)
D36: P(a1)
D37: P(a2)
D38: P(a3)
A40: Weights | D40: s0
D41: s½
D42: s1
D43: n (calibration)
A45: Detection Limits | D45: DL
D46: LOD
D47: (DL from calibration)
D48: (LOD from calibration)
D49: LOQ-s
D50: LOQ-ci
D51: Blank limit
D52: Low limit
A54: Samples:

Sheet Input
A1: =Info!$A$1 -> Calibration_Quant_8.15.xlsm | D1: Input and estimation of weights | J1: ='Experimental data'!J1 -> Author: Bo Svensmark, svensmark@plen.ku.dk, Analytical Chemistry, PLEN, University of Copenhagen, 2017 - 2025 | S1: This sheet is not protected, so take care only to change the white cells! | AD1: Most formulas are standard mathematics. Regression calculated by matrix maths.
A2: 0) Start by saving the sheet under a new name: File->Save As | G2: -4105
A3: 1a) Enter statistical parameters for all analytes here | G3: 1b) User input for output Table 1&6 | S3: Input X,Y and Yo must be in ascending order and without blank lines | AD3: Detection limits are calculated according to:
A4: 2) Enter values for the present analyte here (Calibration X,Y and unknown Yo's): | S4: Please start with a data set containing the max number of unknown samples and calibration points | AD4: W. Funk, V. Dammann and G. Donnevert, Quality Assurance in Analytical Chemistry: Applications in Environmental, Food, and Materials Analysis, Biotechnology, and Medical Engineering, Second Edition. Wiley-VCH, Weinheim, 2007. See page 29-35 for detection limits. The detection limit DL is called the Decision limit XDL and the limit of detection LOD is called the Minimum Detectable Value XMDV in Funk et al..
A5: a) Enter X, Ymean and s(Y) in column X, Y1 and s(Y)obs. B23 = no of replicates
A6: or: b) Enter X and Y1-Y4 in column Y1-Y4. Leave s(Y)obs empty. B23 = 1 | S6: A short explanation to Table 5:
A7: 3) Enter manual values for s(Y) as function of X in Table 5, see explanation in column S and T | T7: In the white cells under manual enter values for s(Y) that will be used
A8: 4) Press the button Copy X, Y and unknowns… to copy all values to the the other sheets | T8: for weighted regression.
T9: The input is the standard derviation at the lowest concentration in the
A10: Table 1: All analytes | D10: Table 5 | E10: See column S for an explanation | T10: calibration for an uncertainty that has:
A11: a(DL)% | B11: 1 | D11: s(Y) vs X | E11: C(i) | F11: Estimated | G11: Manual | U11: s0: Constant contribution to s(Y)
A12: b(LOD)% | B12: 5 | D12: s0 | E12: =G12 -> 1 | F12: =Q38 -> 0 | G12: 1 | U12: s½: Contribution proportional to Sqrt(X)
A13: s(LOQ)% | B13: 10 | D13: s½ | E13: =IF(Q33=0,G13,G13/SQRT(Q33)) -> 1.053465343 | F13: =Q39*SQRT(Q33) -> 0 | G13: 1 | U13: s1: Contribution proportional to X
A14: CI(LOQ)% | B14: 20 | D14: s1 | E14: =IF(Q33=0,G14,G14/Q33) -> 0 | F14: =Q40*Q33 -> 0 | G14: 0 | T14: C(i): | U14: The function that will be used for weighted regression (calculated from Manual input)
A15: a(LOQ)% | B15: 5 | D15: =IF(E12>0,"",IF(E12=0,"s0 should be >0","s0 must be 0 or positive")) ->  | H15: Analyte no: | I15: 1 | T15: Estimated: | U15: The function fitted to s(Y)obs if repeat measurements are available
A16: a(Blank)% | B16: 10 | T16: Manual: | U16: The manual input for s(Y)
A17: m | B17: 1
A18: r | B18: 1 | S18: OBS: | T18: The absolute values are unimportant.The weights gets normalized to a sum of N anyway
A19: CI % | B19: 95 | T19: The plot shows the observed, the fitted and the manual function for s(Y)
A20: Low limit | B20: 1 | C20: 0: None; 1: LOQ-s; 2:LOQ-CI; 3: Min(X)
A21: Unc. Key | B21: 1 | C21: 1: s; 2: RSD%, 3:CI | H21: Table 6 | L21: Table 2 B | S21: If no repeat measurements are available:
A22: DL Limit | B22: 1 | C22: 0: None; 1: from s; 2: from calibration | H22: Counters for output | L22: Subtract blank ? | N22: 1 | O22: 0 = No; 1 = Yes | T22: For uncertainty proportional to Sqrt(X) use | Y22: (s0, s½, s1) = (a, 1, 0)
A23: Digits | B23: 0 | C23: In adddition to significant digits | H23: Run # | I23: 1 | J23: Start with 1 | L23: IS factor | N23: 50 | T23: For uncertainty proportional to X use | Y23: (s0, s½, s1) = (a, 0, 1)
A24: Table 2 A | H24: Nmax | I24: =MAX(COUNTIF('Experimental data'!L16:L45,"*"),COUNT(A33:A62)) -> 20 | L24: Auto? | M24: Auto/ 2 | N24: 1 | T24: For uncertainty proportional to Sqrt(X) and X use | Y24: (s0, s½, s1) = (a, b, c)
A25: Analyte | B25: Naphthalene | C25: Name of analyte | H25: Smax | I25: =COUNT(N33:N132) -> 19 | T25: A constant uncertainty a of zero is unrealistic | Y25: a must be positive
A26: n(DL) | B26: 7 | C26: Data for detetion limits from repeat measurements | H26: Plots? | I26: ='Experimental data'!F7 -> Yes | T26: Default for approximately exponentally increasing conc. | Y26: (s0, s½, s1) = (1, 1, 0)
A27: s(DL) | B27: 0.0007127708357 | C27: Manual input
A28: n(Blank) | B28: 3
A29: Mean(Bl) | B29: 0.04021161644
A30: s(Blank) | B30: 0.01914515554 | L30: V/m is V/m for X = ratios and V*C(IS)/m for X = concentrations
A31: Table 3 | K31: Table 4
A32: X | B32: Y1 | C32: Y2 | D32: Y3 | E32: Y4 | F32: s(Y)obs | G32: X | H32: Y | I32: s(Y) | J32: s(Y) man | K32: Name | L32: V/m blank | M32: V/m sample | N32: Yo | Q32: X | R32: Y | T32: s(Y) obs | U32: Q | V32: sq(X) | W32: X | X32: s(Y) est
A33: 0.901072 | B33: 0.01166200783 | G33: =IF(A33<>"",A33,"") -> 0.901072 | H33: =IF(A33<>"",AVERAGE(B33:E33),"") -> 0.01166200783 | I33: =IF(A33<>"",IF(COUNT(B33:E33)=1,F33,STDEV(B33:E33)),"") -> 0 | J33: =IF(A33<>"",SQRT($E$12^2+$E$13^2*G33+($E$14*G33)^2),"") -> 1.414213562 | K33: OYSTERS 1 | L33: 0.02272727273 | M33: 0.02272727273 | N33: 0.03373174442 | P33: Min | Q33: =MIN(G33:G62) -> 0.901072 | R33: =MIN(H33:H62) -> 0.009632461888 | T33: =IF(A33<>"",I33,0) -> 0 | U33: =IF(A33<>"",1,0) -> 1 | V33: =IF(A33<>"",SQRT(A33),0) -> 0.9492481235 | W33: =IF(A33<>"",A33,0) -> 0.901072 | X33: =IF(T33<>"",$Q$38+V33*$Q$39+W33*$Q$40,"") -> 0
A34: 0.901072 | B34: 0.01016128507 | G34: 0.901072 | H34: 0.01016128507 | I34: 0 | J34: 1.414213562 | K34: OYSTERS 2 | L34: 0.02659574468 | M34: 0.02659574468 | N34: 0.03325294251 | P34: Max | Q34: =MAX(G33:G62) -> 901.072 | R34: =MAX(H33:H62) -> 8.625933064 | T34: 0 | U34: 1 | V34: 0.9492481235 | W34: 0.901072 | X34: =IF(A34<>"",$Q$38+V34*$Q$39+W34*$Q$40,"") -> 0
A35: 0.901072 | B35: 0.01023730808 | G35: 0.901072 | H35: 0.01023730808 | I35: 0 | J35: 1.414213562 | K35: OYSTERS 3 | L35: 0.03300330033 | M35: 0.03300330033 | N35: 0.02716172811 | T35: 0 | U35: 1 | V35: 0.9492481235 | W35: 0.901072 | X35: 0
A36: 0.901072 | B36: 0.009632461888 | G36: 0.901072 | H36: 0.009632461888 | I36: 0 | J36: 1.414213562 | K36: OYSTERS #12 | L36: 0.04545454545 | M36: 0.04545454545 | N36: 0.03041001815 | P36: Regression s(Y) obs | T36: 0 | U36: 1 | V36: 0.9492481235 | W36: 0.901072 | X36: 0
A37: 0.901072 | B37: 0.00973915424 | G37: 0.901072 | H37: 0.00973915424 | I37: 0 | J37: 1.414213562 | K37: OYSTERS 14 | L37: 0.02444987775 | M37: 0.02444987775 | N37: 0.03387589985 | P37: Term | Q37: Coeff | T37: 0 | U37: 1 | V37: 0.9492481235 | W37: 0.901072 | X37: 0
A38: 0.901072 | B38: 0.009820539463 | G38: 0.901072 | H38: 0.009820539463 | I38: 0 | J38: 1.414213562 | K38: OYSTERS #32 | L38: 0.02747252747 | M38: 0.02747252747 | N38: 0.03642827105 | P38: s0 | Q38: =MMULT(P43:R45,MMULT(TRANSPOSE(U33:W62),T33:W62)) -> 0 | T38: 0 | U38: 1 | V38: 0.9492481235 | W38: 0.901072 | X38: 0
A39: 0.901072 | B39: 0.01072667925 | G39: 0.901072 | H39: 0.01072667925 | I39: 0 | J39: 1.414213562 | K39: OYSTERS #9 | L39: 0.02557544757 | M39: 0.02557544757 | N39: 0.1391406716 | P39: s½ | Q39: 0 | T39: 0 | U39: 1 | V39: 0.9492481235 | W39: 0.901072 | X39: 0
A40: 2.25268 | B40: 0.02250464678 | G40: 2.25268 | H40: 0.02250464678 | I40: 0 | J40: 1.870828693 | K40: OYSTERS #25 | L40: 0.02114164905 | M40: 0.02114164905 | N40: 0.05070557853 | P40: s1 | Q40: 0 | T40: 0 | U40: 1 | V40: 1.500893067 | W40: 2.25268 | X40: 0
A41: 4.50536 | B41: 0.04206173356 | G41: 4.50536 | H41: 0.04206173356 | I41: 0 | J41: 2.449489743 | K41: OYSTERS #37 | L41: 0.02652519894 | M41: 0.02652519894 | N41: 0.06746374501 | T41: 0 | U41: 1 | V41: 2.122583332 | W41: 4.50536 | X41: 0
A42: 13.51608 | B42: 0.1256339594 | G42: 13.51608 | H42: 0.1256339594 | I42: 0 | J42: 4 | K42: OYSTERS NIST | L42: 0.1 | M42: 0.1 | N42: 0.02961059073 | P42: Covar matrix | T42: 0 | U42: 1 | V42: 3.676422174 | W42: 13.51608 | X42: 0
A43: 27.03216 | B43: 0.2481236702 | G43: 27.03216 | H43: 0.2481236702 | I43: 0 | J43: 5.567764363 | K43: DIESEL WATER1 | L43: 0.0001 | M43: 0.0001 | N43: 4.863988112 | P43: =MINVERSE(MMULT(TRANSPOSE(U33:W62),U33:W62)) -> 0.1449719157 | Q43: -0.02522322709 | R43: 0.000744896645 | T43: 0 | U43: 1 | V43: 5.199246099 | W43: 27.03216 | X43: 0
A44: 54.06432 | B44: 0.49535092 | G44: 54.06432 | H44: 0.49535092 | I44: 0 | J44: 7.810249676 | K44: DIESEL WATER2 | L44: 0.0001 | M44: 0.0001 | N44: 4.936537386 | P44: -0.02522322709 | Q44: 0.007749837232 | R44: -0.0002654714849 | T44: 0 | U44: 1 | V44: 7.352844348 | W44: 54.06432 | X44: 0
A45: 54.06432 | B45: 0.4953812024 | G45: 54.06432 | H45: 0.4953812024 | I45: 0 | J45: 7.810249676 | K45: DIESEL FILTER1 | L45: 0.0001 | M45: 0.0001 | N45: 0.05073637373 | P45: 0.000744896645 | Q45: -0.0002654714849 | R45: 1.019570445e-05 | T45: 0 | U45: 1 | V45: 7.352844348 | W45: 54.06432 | X45: 0
A46: 54.06432 | B46: 0.4944612167 | G46: 54.06432 | H46: 0.4944612167 | I46: 0 | J46: 7.810249676 | K46: DIESEL FILTER2 | L46: 0.0001 | M46: 0.0001 | N46: 0.04712442049 | T46: 0 | U46: 1 | V46: 7.352844348 | W46: 54.06432 | X46: 0
A47: 54.06432 | B47: 0.4977655751 | G47: 54.06432 | H47: 0.4977655751 | I47: 0 | J47: 7.810249676 | K47: DIESEL WATER LAB BLANK | L47: 0.0001 | M47: 0.0001 | N47: 0.01582759344 | T47: 0 | U47: 1 | V47: 7.352844348 | W47: 54.06432 | X47: 0
A48: 90.1072 | B48: 0.816049586 | G48: 90.1072 | H48: 0.816049586 | I48: 0 | J48: 10.04987562 | K48: Diesel ca 1mg/ml | L48: 20 | M48: 20 | T48: 0 | U48: 1 | V48: 9.492481235 | W48: 90.1072 | X48: 0
A49: 180.2144 | B49: 1.705003155 | G49: 180.2144 | H49: 1.705003155 | I49: 0 | J49: 14.17744688 | K49: Diesel ca 1mg/ml +IS+RS | L49: 20 | M49: 20 | N49: 2.741762449 | T49: 0 | U49: 1 | V49: 13.4243957 | W49: 180.2144 | X49: 0
A50: 270.3216 | B50: 2.570652439 | G50: 270.3216 | H50: 2.570652439 | I50: 0 | J50: 17.34935157 | K50: OYSTERS PLE BLANK | L50: 0.02 | M50: 0.02272727273 | N50: 0.02796282127 | T50: 0 | U50: 1 | V50: 16.44145979 | W50: 270.3216 | X50: 0
A51: 450.536 | B51: 4.315552421 | G51: 450.536 | H51: 4.315552421 | I51: 0 | J51: 22.38302929 | K51: DIESEL FILTER BLANK | L51: 0.0001 | M51: 0.02659574468 | N51: 0.03039825246 | T51: 0 | U51: 1 | V51: 21.22583332 | W51: 450.536 | X51: 0
A52: 901.072 | B52: 8.625933064 | G52: 901.072 | H52: 8.625933064 | I52: 0 | J52: 31.63858404 | K52: DIESEL FILTER PLE BLANK | L52: 0.0001 | M52: 0.03300330033 | N52: 0.06227377558 | T52: 0 | U52: 1 | V52: 30.01786135 | W52: 901.072 | X52: 0
T53: 0 | U53: 0 | V53: 0 | W53: 0
T54: 0 | U54: 0 | V54: 0 | W54: 0
T55: 0 | U55: 0 | V55: 0 | W55: 0
T56: 0 | U56: 0 | V56: 0 | W56: 0
T57: 0 | U57: 0 | V57: 0 | W57: 0
T58: 0 | U58: 0 | V58: 0 | W58: 0
T59: 0 | U59: 0 | V59: 0 | W59: 0
T60: 0 | U60: 0 | V60: 0 | W60: 0
T61: 0 | U61: 0 | V61: 0 | W61: 0
T62: 0 | U62: 0 | V62: 0 | W62: 0

Sheet Plots

Sheet Test of calibration function
A1: =Info!$A$1 -> Calibration_Quant_8.15.xlsm | D1: Test of calibration functions | J1: ='Experimental data'!J1 -> Author: Bo Svensmark, svensmark@plen.ku.dk, Analytical Chemistry, PLEN, University of Copenhagen, 2017 - 2025
O2: This sheet is not protected, so take care only to change the white cells! | AB2: Sum | AC2: =SUM(AB19:AB48) -> 4.13390617 | AE2: Statistical param | AH2: SSreg | AK2: 1 | AL2: Covariance matrix | AN2: 2 | AO2: Covariance matrix | AR2: 3 | AS2: Covariance matrix
A3: 1) Look at the "Statistics" cell F10:K19, to see which polynomial degree is recommended. | O3: You may need to change the formatting of numbers in the tables depending on the magnitude of X and Y | AB3: Norm | AC3: =AF3/AC2 -> 4.838039176 | AE3: N | AF3: =COUNT(X)*Input!B18 -> 20 | AG3: 1 | AH3: =SUM(Q*(MMULT(X_1,AC12:AC13)-$AF$6)^2) -> 83.20512251 | AL3: =MINVERSE(MMULT(TRANSPOSE(X_1),X_1)) -> 0.06287842578 | AM3: -0.0001191276368 | AO3: =MINVERSE(MMULT(TRANSPOSE(X_2),X_2)) -> 0.07741042551 | AP3: -0.0005135053355 | AQ3: 4.925017064e-07 | AS3: =MINVERSE(MMULT(TRANSPOSE(X_3),X_3)) -> 0.09495040261 | AT3: -0.001510149251 | AU3: 4.540594055e-06 | AV3: -3.312385082e-09
A4: 2) Look at the "Accuracy (Error %)" in cell L10:M19 to see, whether or not weighted regression is better or worse. | AE4: Xmax | AF4: =MAX(X) -> 901.072 | AG4: 2 | AH4: =SUM(Q*(MMULT(X_2,AE12:AE14)-$AF$6)^2) -> 83.20572447 | AL4: -0.0001191276368 | AM4: 1.101950974e-06 | AO4: -0.0005135053355 | AP4: 1.180479795e-05 | AQ4: -1.336579228e-08 | AS4: -0.001510149251 | AT4: 6.843537898e-05 | AU4: -2.433835731e-07 | AV4: 1.882139537e-10
A5: 3) IMPORTANT - look at the plots of the calibration functions and the predicted error in X below | AB5: weights | AE5: Xmin | AF5: =MIN(X) -> 0.901072 | AG5: 3 | AH5: =SUM(Q*(MMULT(X_3,AG12:AG15)-$AF$6)^2) -> 83.2077623
A6: OBS: Look careful at the function between datapoints - too high an order may give wrong results here even when the statistics is ok | AB6: w0 | AC6: =B22^2/$AC$3 -> 0.2066953085 | AE6: Ymean | AF6: =SUM(Y)/$AF$3 -> 1.026322651 | AG6: 4 | AH6: =SUM(Q*(MMULT(X_4,AI12:AI16)-$AF$6)^2) -> 83.20822485 | AK6: W 1 | AL6: Covariance matrix | AN6: W 2 | AO6: Covariance matrix | AR6: W 3 | AS6: Covariance matrix
A7: 4) Enter 1 or 0 in cell C26 to choose weighted or unweighted regression. | AB7: w1 | AC7: =B23^2/$AC$3 -> 0.229388227 | AE7: Xmean | AF7: =SUM(X)/$AF$3 -> 108.1061132 | AG7: 1W | AH7: =SUM(W*(MMULT(X_1,AD12:AD13)-$AF$8)^2) -> 0.8205873138 | AL7: =MINVERSE(MMULT(MMULT(TRANSPOSE(X_1),W),X_1)) -> 0.05131083785 | AM7: -0.0003790356643 | AO7: =MINVERSE(MMULT(MMULT(TRANSPOSE(X_2),W),X_2)) -> 0.05322227751 | AP7: -0.001116288456 | AQ7: 1.363279518e-06 | AS7: =MINVERSE(MMULT(MMULT(TRANSPOSE(X_3),W),X_3)) -> 0.05569189265 | AT7: -0.002361462086 | AU7: 9.262296745e-06 | AV7: -7.495654117e-09
A8: 6) Go to the sheet for the best calibration function (Linear, 2nd degree or 3rd degree) - 4th degree is not included | AB8: w2 | AC8: =B24^2/$AC$3 -> 0 | AE8: YmeanW | AF8: =SUM(W*Y)/$AF$3 -> 0.0338970947 | AG8: 2W | AH8: =SUM(W*(MMULT(X_2,AF12:AF14)-$AF$8)^2) -> 0.8207158283 | AL8: -0.0003790356643 | AM8: 0.0001096001573 | AO8: -0.001116288456 | AP8: 0.0003939626149 | AQ8: -5.258244098e-07 | AS8: -0.002361462086 | AT8: 0.001021775971 | AU8: -4.508488672e-06 | AV8: 3.779289615e-09
AE9: XmeanW | AF9: =SUM(W*X)/$AF$3 -> 3.458349636 | AG9: 3W | AH9: =SUM(W*(MMULT(X_3,AH12:AH15)-$AF$8)^2) -> 0.8208153657
A10: Calibration curve | F10: Polynomial fit | I10: Accuracy (Error %) | K10: Through | N10: Y = a0 + a1X + a2X^2 + a3X^3 + a4X^4 | AE10: SStotal | AF10: =SUM(Q*(Y-$AF$6)^2) -> 83.2085825
C11: Poly | D11: Degree | E11: R2 | F11: P | G11: Degree Ok? | I11: Mean Abs | J11: Max | K11: zero OK? | L11: s(y/x) | M11: a0 | N11: a1 | O11: a2 | P11: a3 | Q11: a4 | R11: 0 = sign. | AE11: SStotalW | AF11: =SUM(W*(Y-$AF$8)^2) -> 0.820849565
A12: Unweighted | C12: Linear | D12: 1 | E12: =AH3/AF$10 -> 0.9999584178 | F12: =TDIST(SQRT((E12)*($AF$3-D12-1)/(1-E12)),$AF$3-D12-1,2) -> 6.89361325e-41 | G12: =IF(R12=0,IF(R13=0,"A better fit is possible","Ok"),"No correlation") -> Ok | I12: =F113 -> 46.73912979 | J12: =F114 -> 137.558755 | K12: =IF(AN13>0.05,"Yes","No") -> No | L12: =SQRT(($AF$10-AH3)/($AF$3-2)) -> 0.01386440867 | M12: =AC12 -> -0.008834822401 | N12: =AC13 -> 0.009575383324 | R12: =IF(F12<0.05,0,1) -> 0 | AB12: a0 | AC12: =MMULT(MINVERSE(MMULT(TRANSPOSE(X_1),X_1)),MMULT(TRANSPOSE(X_1),Y)) -> -0.008834822401 | AD12: =MMULT(MMULT(MINVERSE(MMULT(MMULT(TRANSPOSE(X_1),W),X_1)),MMULT(TRANSPOSE(X_1),W)),Y) -> 0.001099885805 | AE12: =MMULT(MINVERSE(MMULT(TRANSPOSE(X_2),X_2)),MMULT(TRANSPOSE(X_2),Y)) -> -0.005877175294 | AF12: =MMULT(MMULT(MINVERSE(MMULT(MMULT(TRANSPOSE(X_2),W),X_2)),MMULT(TRANSPOSE(X_2),W)),Y) -> 0.001595514423 | AG12: =MMULT(MINVERSE(MMULT(TRANSPOSE(X_3),X_3)),MMULT(TRANSPOSE(X_3),Y)) -> 0.000101408128 | AH12: =MMULT(MMULT(MINVERSE(MMULT(MMULT(TRANSPOSE(X_3),W),X_3)),MMULT(TRANSPOSE(X_3),W)),Y) -> 0.00209131568 | AI12: =MMULT(MINVERSE(MMULT(TRANSPOSE(X_4),X_4)),MMULT(TRANSPOSE(X_4),Y)) -> 0.002705794364 | AM12: s Intercept | AN12: P Intercept | AQ12: s Intercept | AR12: P Intercept | AU12: s Intercept | AV12: P Intercept
C13: 2nd | D13: 2 | E13: =AH4/AF$10 -> 0.9999656522 | F13: =TDIST(SQRT((E13-E12)*($AF$3-D13-1)/(1-E13)),$AF$3-D13-1,2) -> 0.07561800429 | G13: =IF(R13>0,"Too high",IF(SUM(R12:R12)>0,"OK??",IF(R14=0,"A better fit is possible","Ok"))) -> Too high | I13: =H113 -> 34.2336404 | J13: =H114 -> 104.9950148 | K13: =IF(AR13>0.05,"Yes","No") -> Yes | L13: =SQRT(($AF$10-AH4)/($AF$3-3)) -> 0.01296609453 | M13: =AE12 -> -0.005877175294 | N13: =AE13 -> 0.00949511701 | O13: =AE14 -> 1.002371508e-07 | R13: 1 | AB13: a1 | AC13: 0.009575383324 | AD13: 0.009483485578 | AE13: 0.00949511701 | AF13: 0.009292318893 | AG13: 0.009155406259 | AH13: 0.009042337169 | AI13: 0.008881333304 | AL13: 1 | AM13: =SQRT(AL3)*$L12 -> 0.003476579631 | AN13: =TDIST(ABS($M12/AM13),$AF$3-2,2) -> 0.02047111627 | AP13: 2 | AQ13: =SQRT(AO3)*$L13 -> 0.003607521356 | AR13: =TDIST(ABS($M13/AQ13),$AF$3-3,2) -> 0.1216707377 | AT13: 3 | AU13: =SQRT(AS3)*$L14 -> 0.002206224317 | AV13: =TDIST(ABS($M14/AU13),$AF$3-4,2) -> 0.9639073098
C14: 3rd | D14: 3 | E14: =AH5/AF$10 -> 0.9999901428 | F14: =TDIST(SQRT((E14-E13)*($AF$3-D14-1)/(1-E14)),$AF$3-D14-1,2) -> 1.047415756e-05 | G14: =IF(R14>0,"Too high",IF(SUM(R12:R13)>0,"Ok??","Ok")) -> Ok?? | I14: =J113 -> 9.094931461 | J14: =J114 -> 40.10768364 | K14: =IF(AV13>0.05,"Yes","No") -> Yes | L14: =SQRT(($AF$10-AH5)/($AF$3-4)) -> 0.007159806112 | M14: =AG12 -> 0.000101408128 | N14: =AG13 -> 0.009155406259 | O14: =AG14 -> 1.480048404e-06 | P14: =AG15 -> -1.129041983e-09 | R14: 0 | AB14: a2 | AE14: 1.002371508e-07 | AF14: 3.534928972e-07 | AG14: 1.480048404e-06 | AH14: 1.939303824e-06 | AI14: 4.086507801e-06 | AL14: W 1 | AM14: =SQRT(AL7)*$L16 -> 0.0008646234982 | AN14: =TDIST(ABS($M16/AM14),$AF$3-2,2) -> 0.2195277159 | AP14: W 2 | AQ14: =SQRT(AO7)*$L17 -> 0.0006470644491 | AR14: =TDIST(ABS($M17/AQ14),$AF$3-3,2) -> 0.0246096323 | AT14: W 3 | AU14: =SQRT(AS7)*L18 -> 0.0003450205519 | AV14: =TDIST(ABS($M18/AU14),$AF$3-4,2) -> 1.649623422e-05
AB15: a3 | AG15: -1.129041983e-09 | AH15: -1.504831532e-09 | AI15: -7.650509129e-09
A16: Weigted | C16: Linear | D16: 1 | E16: =AH7/AF$11 -> 0.9996805125 | F16: =TDIST(SQRT((E16)*($AF$3-D16-1)/(1-E16)),$AF$3-D16-1,2) -> 6.433133091e-33 | G16: =IF(R16=0,IF(R17=0,"A better fit is possible","Ok"),"No correlation") -> A better fit is possible | I16: =G113 -> 4.225789554 | J16: =G114 -> 23.60148763 | K16: =IF(AN14>0.05,"Yes","No") -> Yes | L16: =SQRT(($AF$11-AH7)/($AF$3-2)) -> 0.003817002824 | M16: =AD12 -> 0.001099885805 | N16: =AD13 -> 0.009483485578 | R16: 0 | AB16: a4 | AI16: 4.398647343e-12
C17: 2nd | D17: 2 | E17: =AH8/AF$11 -> 0.9998370753 | F17: =TDIST(SQRT((E17-E16)*($AF$3-D17-1)/(1-E17)),$AF$3-D17-1,2) -> 0.0008469394905 | G17: =IF(R17>0,"Too high",IF(SUM(R16:R16)>0,"Ok??",IF(R18=0,"A better fit is possible","Ok"))) -> A better fit is possible | I17: =I113 -> 3.217972642 | J17: =I114 -> 20.22013822 | K17: =IF(AR14>0.05,"Yes","No") -> No | L17: =SQRT(($AF$11-AH8)/($AF$3-3)) -> 0.002804792981 | M17: =AF12 -> 0.001595514423 | N17: =AF13 -> 0.009292318893 | O17: =AF14 -> 3.534928972e-07 | R17: 0
C18: 3rd | D18: 3 | E18: =AH9/AF$11 -> 0.9999583366 | F18: =TDIST(SQRT((E18-E17)*($AF$3-D18-1)/(1-E18)),$AF$3-D18-1,2) -> 4.086998702e-06 | G18: =IF(R18>0,"Too high",IF(SUM(R16:R17)>0,"Ok??","Ok")) -> Ok | I18: =K113 -> 2.554449851 | J18: =K114 -> 17.43751469 | K18: =IF(AV14>0.05,"Yes","No") -> No | L18: =SQRT(($AF$11-AH9)/($AF$3-4)) -> 0.0014620054 | M18: =AH12 -> 0.00209131568 | N18: =AH13 -> 0.009042337169 | O18: =AH14 -> 1.939303824e-06 | P18: =AH15 -> -1.504831532e-09 | R18: 0 | AB18: NN weights | AC18: Weight diagonal matrix
AB19: =IF(A29<>"",1/($B$22^2+A29*$B$23^2+(A29*$B$24)^2),"") -> 0.5 | AC19: =IF($A29<>"",$C29,0) -> 2.419019588 | AD19: 0 | AE19: 0 | AF19: 0 | AG19: 0 | AH19: 0 | AI19: 0 | AJ19: 0 | AK19: 0 | AL19: 0 | AM19: 0 | AN19: 0 | AO19: 0 | AP19: 0 | AQ19: 0 | AR19: 0 | AS19: 0 | AT19: 0 | AU19: 0 | AV19: 0 | AW19: 0 | AX19: 0 | AY19: 0 | AZ19: 0 | BA19: 0 | BB19: 0 | BC19: 0 | BD19: 0 | BE19: 0 | BF19: 0
AB20: =IF(A30<>"",1/($B$22^2+A30*$B$23^2+(A30*$B$24)^2),"") -> 0.5 | AC20: 0 | AD20: =IF($A30<>"",$C30,0) -> 2.419019588 | AE20: 0 | AF20: 0 | AG20: 0 | AH20: 0 | AI20: 0 | AJ20: 0 | AK20: 0 | AL20: 0 | AM20: 0 | AN20: 0 | AO20: 0 | AP20: 0 | AQ20: 0 | AR20: 0 | AS20: 0 | AT20: 0 | AU20: 0 | AV20: 0 | AW20: 0 | AX20: 0 | AY20: 0 | AZ20: 0 | BA20: 0 | BB20: 0 | BC20: 0 | BD20: 0 | BE20: 0 | BF20: 0
B21: C(i) | C21: Used | E21: Recommended: | G21: 2nd degree | H21: Weighted | I21: Recommendation is limited to the chosen max degree | AB21: 0.5 | AC21: 0 | AD21: 0 | AE21: =IF($A31<>"",$C31,0) -> 2.419019588 | AF21: 0 | AG21: 0 | AH21: 0 | AI21: 0 | AJ21: 0 | AK21: 0 | AL21: 0 | AM21: 0 | AN21: 0 | AO21: 0 | AP21: 0 | AQ21: 0 | AR21: 0 | AS21: 0 | AT21: 0 | AU21: 0 | AV21: 0 | AW21: 0 | AX21: 0 | AY21: 0 | AZ21: 0 | BA21: 0 | BB21: 0 | BC21: 0 | BD21: 0 | BE21: 0 | BF21: 0
A22: s0 | B22: =Input!$E$12 -> 1 | C22: =IF($C$26,B22,1) -> 1 | I22: A higher degree may be better | AB22: 0.5 | AC22: 0 | AD22: 0 | AE22: 0 | AF22: =IF($A32<>"",$C32,0) -> 2.419019588 | AG22: 0 | AH22: 0 | AI22: 0 | AJ22: 0 | AK22: 0 | AL22: 0 | AM22: 0 | AN22: 0 | AO22: 0 | AP22: 0 | AQ22: 0 | AR22: 0 | AS22: 0 | AT22: 0 | AU22: 0 | AV22: 0 | AW22: 0 | AX22: 0 | AY22: 0 | AZ22: 0 | BA22: 0 | BB22: 0 | BC22: 0 | BD22: 0 | BE22: 0 | BF22: 0
A23: s½ | B23: =Input!$E$13 -> 1.053465343 | C23: =IF($C$26,B23,0) -> 1.053465343 | AB23: 0.5 | AC23: 0 | AD23: 0 | AE23: 0 | AF23: 0 | AG23: =IF($A33<>"",$C33,0) -> 2.419019588 | AH23: 0 | AI23: 0 | AJ23: 0 | AK23: 0 | AL23: 0 | AM23: 0 | AN23: 0 | AO23: 0 | AP23: 0 | AQ23: 0 | AR23: 0 | AS23: 0 | AT23: 0 | AU23: 0 | AV23: 0 | AW23: 0 | AX23: 0 | AY23: 0 | AZ23: 0 | BA23: 0 | BB23: 0 | BC23: 0 | BD23: 0 | BE23: 0 | BF23: 0
A24: s1 | B24: =Input!$E$14 -> 0 | C24: =IF($C$26,B24,0) -> 0 | E24: Linear regression | M24: Polynomial regression | U24: Polynomial regression | AB24: 0.5 | AC24: 0 | AD24: 0 | AE24: 0 | AF24: 0 | AG24: 0 | AH24: =IF($A34<>"",$C34,0) -> 2.419019588 | AI24: 0 | AJ24: 0 | AK24: 0 | AL24: 0 | AM24: 0 | AN24: 0 | AO24: 0 | AP24: 0 | AQ24: 0 | AR24: 0 | AS24: 0 | AT24: 0 | AU24: 0 | AV24: 0 | AW24: 0 | AX24: 0 | AY24: 0 | AZ24: 0 | BA24: 0 | BB24: 0 | BC24: 0 | BD24: 0 | BE24: 0 | BF24: 0
B25: Use weighted regression? | E25: Y = a0 + a1×X | M25: Y = a0 + a1×X +a2×X2 | U25: Y = a0 + a1×X + a2×X2 + a3×X3 | AB25: 0.5 | AC25: 0 | AD25: 0 | AE25: 0 | AF25: 0 | AG25: 0 | AH25: 0 | AI25: =IF($A35<>"",$C35,0) -> 2.419019588 | AJ25: 0 | AK25: 0 | AL25: 0 | AM25: 0 | AN25: 0 | AO25: 0 | AP25: 0 | AQ25: 0 | AR25: 0 | AS25: 0 | AT25: 0 | AU25: 0 | AV25: 0 | AW25: 0 | AX25: 0 | AY25: 0 | AZ25: 0 | BA25: 0 | BB25: 0 | BC25: 0 | BD25: 0 | BE25: 0 | BF25: 0
A26: 1 = Yes 0 = No | C26: 1 | E26: Degree = 1 | M26: Degree = 2 | U26: Degree = 3 | AB26: 0.2857142857 | AC26: 0 | AD26: 0 | AE26: 0 | AF26: 0 | AG26: 0 | AH26: 0 | AI26: 0 | AJ26: =IF($A36<>"",$C36,0) -> 1.382296907 | AK26: 0 | AL26: 0 | AM26: 0 | AN26: 0 | AO26: 0 | AP26: 0 | AQ26: 0 | AR26: 0 | AS26: 0 | AT26: 0 | AU26: 0 | AV26: 0 | AW26: 0 | AX26: 0 | AY26: 0 | AZ26: 0 | BA26: 0 | BB26: 0 | BC26: 0 | BD26: 0 | BE26: 0 | BF26: 0
AB27: 0.1666666667 | AC27: 0 | AD27: 0 | AE27: 0 | AF27: 0 | AG27: 0 | AH27: 0 | AI27: 0 | AJ27: 0 | AK27: =IF($A37<>"",$C37,0) -> 0.8063398627 | AL27: 0 | AM27: 0 | AN27: 0 | AO27: 0 | AP27: 0 | AQ27: 0 | AR27: 0 | AS27: 0 | AT27: 0 | AU27: 0 | AV27: 0 | AW27: 0 | AX27: 0 | AY27: 0 | AZ27: 0 | BA27: 0 | BB27: 0 | BC27: 0 | BD27: 0 | BE27: 0 | BF27: 0
A28: X | B28: Y | C28: W | AB28: 0.0625 | AC28: 0 | AD28: 0 | AE28: 0 | AF28: 0 | AG28: 0 | AH28: 0 | AI28: 0 | AJ28: 0 | AK28: 0 | AL28: =IF($A38<>"",$C38,0) -> 0.3023774485 | AM28: 0 | AN28: 0 | AO28: 0 | AP28: 0 | AQ28: 0 | AR28: 0 | AS28: 0 | AT28: 0 | AU28: 0 | AV28: 0 | AW28: 0 | AX28: 0 | AY28: 0 | AZ28: 0 | BA28: 0 | BB28: 0 | BC28: 0 | BD28: 0 | BE28: 0 | BF28: 0
A29: 0.901072 | B29: 0.01166200783 | C29: =IF(A29<>"",AB19*$AC$3,"") -> 2.419019588 | AB29: 0.03225806452 | AC29: 0 | AD29: 0 | AE29: 0 | AF29: 0 | AG29: 0 | AH29: 0 | AI29: 0 | AJ29: 0 | AK29: 0 | AL29: 0 | AM29: =IF($A39<>"",$C39,0) -> 0.1560657799 | AN29: 0 | AO29: 0 | AP29: 0 | AQ29: 0 | AR29: 0 | AS29: 0 | AT29: 0 | AU29: 0 | AV29: 0 | AW29: 0 | AX29: 0 | AY29: 0 | AZ29: 0 | BA29: 0 | BB29: 0 | BC29: 0 | BD29: 0 | BE29: 0 | BF29: 0
A30: 0.901072 | B30: 0.01016128507 | C30: =IF(A30<>"",AB20*$AC$3,"") -> 2.419019588 | AB30: 0.01639344262 | AC30: 0 | AD30: 0 | AE30: 0 | AF30: 0 | AG30: 0 | AH30: 0 | AI30: 0 | AJ30: 0 | AK30: 0 | AL30: 0 | AM30: 0 | AN30: =IF($A40<>"",$C40,0) -> 0.07931211764 | AO30: =$E42 -> 0 | AP30: 0 | AQ30: 0 | AR30: 0 | AS30: 0 | AT30: 0 | AU30: 0 | AV30: 0 | AW30: 0 | AX30: 0 | AY30: 0 | AZ30: 0 | BA30: 0 | BB30: 0 | BC30: 0 | BD30: 0 | BE30: 0 | BF30: 0
A31: 0.901072 | B31: 0.01023730808 | C31: 2.419019588 | AB31: 0.01639344262 | AC31: 0 | AD31: 0 | AE31: 0 | AF31: 0 | AG31: 0 | AH31: 0 | AI31: 0 | AJ31: 0 | AK31: 0 | AL31: 0 | AM31: 0 | AN31: 0 | AO31: =IF($A41<>"",$C41,0) -> 0.07931211764 | AP31: 0 | AQ31: 0 | AR31: 0 | AS31: 0 | AT31: 0 | AU31: 0 | AV31: 0 | AW31: 0 | AX31: 0 | AY31: 0 | AZ31: 0 | BA31: 0 | BB31: 0 | BC31: 0 | BD31: 0 | BE31: 0 | BF31: 0
A32: 0.901072 | B32: 0.009632461888 | C32: 2.419019588 | AB32: 0.01639344262 | AC32: 0 | AD32: 0 | AE32: 0 | AF32: 0 | AG32: 0 | AH32: 0 | AI32: 0 | AJ32: 0 | AK32: 0 | AL32: 0 | AM32: 0 | AN32: 0 | AO32: 0 | AP32: =IF($A42<>"",$C42,0) -> 0.07931211764 | AQ32: 0 | AR32: 0 | AS32: 0 | AT32: 0 | AU32: 0 | AV32: 0 | AW32: 0 | AX32: 0 | AY32: 0 | AZ32: 0 | BA32: 0 | BB32: 0 | BC32: 0 | BD32: 0 | BE32: 0 | BF32: 0
A33: 0.901072 | B33: 0.00973915424 | C33: 2.419019588 | AB33: 0.01639344262 | AC33: 0 | AD33: 0 | AE33: 0 | AF33: 0 | AG33: 0 | AH33: 0 | AI33: 0 | AJ33: 0 | AK33: 0 | AL33: 0 | AM33: 0 | AN33: 0 | AO33: 0 | AP33: 0 | AQ33: =IF($A43<>"",$C43,0) -> 0.07931211764 | AR33: 0 | AS33: 0 | AT33: 0 | AU33: 0 | AV33: 0 | AW33: 0 | AX33: 0 | AY33: 0 | AZ33: 0 | BA33: 0 | BB33: 0 | BC33: 0 | BD33: 0 | BE33: 0 | BF33: 0
A34: 0.901072 | B34: 0.009820539463 | C34: 2.419019588 | AB34: 0.009900990099 | AC34: 0 | AD34: 0 | AE34: 0 | AF34: 0 | AG34: 0 | AH34: 0 | AI34: 0 | AJ34: 0 | AK34: 0 | AL34: 0 | AM34: 0 | AN34: 0 | AO34: 0 | AP34: 0 | AQ34: 0 | AR34: =IF($A44<>"",$C44,0) -> 0.04790137798 | AS34: 0 | AT34: 0 | AU34: 0 | AV34: 0 | AW34: 0 | AX34: 0 | AY34: 0 | AZ34: 0 | BA34: 0 | BB34: 0 | BC34: 0 | BD34: 0 | BE34: 0 | BF34: 0
A35: 0.901072 | B35: 0.01072667925 | C35: 2.419019588 | AB35: 0.004975124378 | AC35: 0 | AD35: 0 | AE35: 0 | AF35: 0 | AG35: 0 | AH35: 0 | AI35: 0 | AJ35: 0 | AK35: 0 | AL35: 0 | AM35: 0 | AN35: 0 | AO35: 0 | AP35: 0 | AQ35: 0 | AR35: 0 | AS35: =IF($A45<>"",$C45,0) -> 0.02406984665 | AT35: 0 | AU35: 0 | AV35: 0 | AW35: 0 | AX35: 0 | AY35: 0 | AZ35: 0 | BA35: 0 | BB35: 0 | BC35: 0 | BD35: 0 | BE35: 0 | BF35: 0
A36: 2.25268 | B36: 0.02250464678 | C36: 1.382296907 | AB36: 0.003322259136 | AC36: 0 | AD36: 0 | AE36: 0 | AF36: 0 | AG36: 0 | AH36: 0 | AI36: 0 | AJ36: 0 | AK36: 0 | AL36: 0 | AM36: 0 | AN36: 0 | AO36: 0 | AP36: 0 | AQ36: 0 | AR36: 0 | AS36: 0 | AT36: =IF($A46<>"",$C46,0) -> 0.01607321985 | AU36: 0 | AV36: 0 | AW36: 0 | AX36: 0 | AY36: 0 | AZ36: 0 | BA36: 0 | BB36: 0 | BC36: 0 | BD36: 0 | BE36: 0 | BF36: 0
A37: 4.50536 | B37: 0.04206173356 | C37: 0.8063398627 | AB37: 0.001996007984 | AC37: 0 | AD37: 0 | AE37: 0 | AF37: 0 | AG37: 0 | AH37: 0 | AI37: 0 | AJ37: 0 | AK37: 0 | AL37: 0 | AM37: 0 | AN37: 0 | AO37: 0 | AP37: 0 | AQ37: 0 | AR37: 0 | AS37: 0 | AT37: 0 | AU37: =IF($A47<>"",$C47,0) -> 0.009656764822 | AV37: 0 | AW37: 0 | AX37: 0 | AY37: 0 | AZ37: 0 | BA37: 0 | BB37: 0 | BC37: 0 | BD37: 0 | BE37: 0 | BF37: 0
A38: 13.51608 | B38: 0.1256339594 | C38: 0.3023774485 | AB38: 0.000999000999 | AC38: 0 | AD38: 0 | AE38: 0 | AF38: 0 | AG38: 0 | AH38: 0 | AI38: 0 | AJ38: 0 | AK38: 0 | AL38: 0 | AM38: 0 | AN38: 0 | AO38: 0 | AP38: 0 | AQ38: 0 | AR38: 0 | AS38: 0 | AT38: 0 | AU38: 0 | AV38: =IF($A48<>"",$C48,0) -> 0.00483320597 | AW38: 0 | AX38: 0 | AY38: 0 | AZ38: 0 | BA38: 0 | BB38: 0 | BC38: 0 | BD38: 0 | BE38: 0 | BF38: 0
A39: 27.03216 | B39: 0.2481236702 | C39: 0.1560657799 | AC39: 0 | AD39: 0 | AE39: 0 | AF39: 0 | AG39: 0 | AH39: 0 | AI39: 0 | AJ39: 0 | AK39: 0 | AL39: 0 | AM39: 0 | AN39: 0 | AO39: 0 | AP39: 0 | AQ39: 0 | AR39: 0 | AS39: 0 | AT39: 0 | AU39: 0 | AV39: 0 | AW39: =IF($A49<>"",$C49,0) -> 0 | AX39: 0 | AY39: 0 | AZ39: 0 | BA39: 0 | BB39: 0 | BC39: 0 | BD39: 0 | BE39: 0 | BF39: 0
A40: 54.06432 | B40: 0.49535092 | C40: 0.07931211764 | AC40: 0 | AD40: 0 | AE40: 0 | AF40: 0 | AG40: 0 | AH40: 0 | AI40: 0 | AJ40: 0 | AK40: 0 | AL40: 0 | AM40: 0 | AN40: 0 | AO40: 0 | AP40: 0 | AQ40: 0 | AR40: 0 | AS40: 0 | AT40: 0 | AU40: 0 | AV40: 0 | AW40: 0 | AX40: =IF($A50<>"",$C50,0) -> 0 | AY40: 0 | AZ40: 0 | BA40: 0 | BB40: 0 | BC40: 0 | BD40: 0 | BE40: 0 | BF40: 0
A41: 54.06432 | B41: 0.4953812024 | C41: 0.07931211764 | AC41: 0 | AD41: 0 | AE41: 0 | AF41: 0 | AG41: 0 | AH41: 0 | AI41: 0 | AJ41: 0 | AK41: 0 | AL41: 0 | AM41: 0 | AN41: 0 | AO41: 0 | AP41: 0 | AQ41: 0 | AR41: 0 | AS41: 0 | AT41: 0 | AU41: 0 | AV41: 0 | AW41: 0 | AX41: 0 | AY41: =IF($A51<>"",$C51,0) -> 0 | AZ41: 0 | BA41: 0 | BB41: 0 | BC41: 0 | BD41: 0 | BE41: 0 | BF41: 0
A42: 54.06432 | B42: 0.4944612167 | C42: 0.07931211764 | AC42: 0 | AD42: 0 | AE42: 0 | AF42: 0 | AG42: 0 | AH42: 0 | AI42: 0 | AJ42: 0 | AK42: 0 | AL42: 0 | AM42: 0 | AN42: 0 | AO42: 0 | AP42: 0 | AQ42: 0 | AR42: 0 | AS42: 0 | AT42: 0 | AU42: 0 | AV42: 0 | AW42: 0 | AX42: 0 | AY42: 0 | AZ42: =IF($A52<>"",$C52,0) -> 0 | BA42: 0 | BB42: 0 | BC42: 0 | BD42: 0 | BE42: 0 | BF42: 0
A43: 54.06432 | B43: 0.4977655751 | C43: 0.07931211764 | AC43: 0 | AD43: 0 | AE43: 0 | AF43: 0 | AG43: 0 | AH43: 0 | AI43: 0 | AJ43: 0 | AK43: 0 | AL43: 0 | AM43: 0 | AN43: 0 | AO43: 0 | AP43: 0 | AQ43: 0 | AR43: 0 | AS43: 0 | AT43: 0 | AU43: 0 | AV43: 0 | AW43: 0 | AX43: 0 | AY43: =$E55 -> 0 | AZ43: 0 | BA43: =IF($A53<>"",$C53,0) -> 0 | BB43: 0 | BC43: 0 | BD43: 0 | BE43: 0 | BF43: 0
A44: 90.1072 | B44: 0.816049586 | C44: 0.04790137798 | AC44: 0 | AD44: 0 | AE44: 0 | AF44: 0 | AG44: 0 | AH44: 0 | AI44: 0 | AJ44: 0 | AK44: 0 | AL44: 0 | AM44: 0 | AN44: 0 | AO44: 0 | AP44: 0 | AQ44: 0 | AR44: 0 | AS44: 0 | AT44: 0 | AU44: 0 | AV44: 0 | AW44: 0 | AX44: 0 | AY44: 0 | AZ44: 0 | BA44: 0 | BB44: =IF($A54<>"",$C54,0) -> 0 | BC44: 0 | BD44: 0 | BE44: 0 | BF44: 0
A45: 180.2144 | B45: 1.705003155 | C45: 0.02406984665 | AC45: 0 | AD45: 0 | AE45: 0 | AF45: 0 | AG45: 0 | AH45: 0 | AI45: 0 | AJ45: 0 | AK45: 0 | AL45: 0 | AM45: 0 | AN45: 0 | AO45: 0 | AP45: 0 | AQ45: 0 | AR45: 0 | AS45: 0 | AT45: 0 | AU45: 0 | AV45: 0 | AW45: 0 | AX45: 0 | AY45: 0 | AZ45: 0 | BA45: 0 | BB45: 0 | BC45: =IF($A55<>"",$C55,0) -> 0 | BD45: 0 | BE45: 0 | BF45: 0
A46: 270.3216 | B46: 2.570652439 | C46: 0.01607321985 | AC46: 0 | AD46: 0 | AE46: 0 | AF46: 0 | AG46: 0 | AH46: 0 | AI46: 0 | AJ46: 0 | AK46: 0 | AL46: 0 | AM46: 0 | AN46: 0 | AO46: 0 | AP46: 0 | AQ46: 0 | AR46: 0 | AS46: 0 | AT46: 0 | AU46: 0 | AV46: 0 | AW46: 0 | AX46: 0 | AY46: 0 | AZ46: 0 | BA46: 0 | BB46: 0 | BC46: 0 | BD46: =IF($A56<>"",$C56,0) -> 0 | BE46: 0 | BF46: 0
A47: 450.536 | B47: 4.315552421 | C47: 0.009656764822 | AC47: 0 | AD47: 0 | AE47: 0 | AF47: 0 | AG47: 0 | AH47: 0 | AI47: 0 | AJ47: 0 | AK47: 0 | AL47: 0 | AM47: 0 | AN47: 0 | AO47: 0 | AP47: 0 | AQ47: 0 | AR47: 0 | AS47: 0 | AT47: 0 | AU47: 0 | AV47: 0 | AW47: 0 | AX47: 0 | AY47: 0 | AZ47: 0 | BA47: 0 | BB47: 0 | BC47: 0 | BD47: 0 | BE47: =IF($A57<>"",$C57,0) -> 0 | BF47: 0
A48: 901.072 | B48: 8.625933064 | C48: 0.00483320597 | AC48: 0 | AD48: 0 | AE48: 0 | AF48: 0 | AG48: 0 | AH48: 0 | AI48: 0 | AJ48: 0 | AK48: 0 | AL48: 0 | AM48: 0 | AN48: 0 | AO48: 0 | AP48: 0 | AQ48: 0 | AR48: 0 | AS48: 0 | AT48: 0 | AU48: 0 | AV48: 0 | AW48: 0 | AX48: 0 | AY48: 0 | AZ48: 0 | BA48: 0 | BB48: 0 | BC48: 0 | BD48: 0 | BE48: 0 | BF48: =IF($A58<>"",$C58,0) -> 0
AB50: Values for calibration | AM50: Y-estimated | AS50: Xmin | AT50: =MIN(X) -> 0.901072 | AY50: Y-estimated
AB51: Y | AC51: Q | AD51: X | AE51: X2 | AF51: X3 | AG51: X4 | AI51: X | AJ51: 1 | AK51: 1W | AL51: 2 | AM51: 2W | AN51: 3 | AO51: 3W | AP51: 4 | AQ51: 4W | AS51: Xmax | AT51: =MAX(X) -> 901.072 | AU51: X | AV51: 1 | AW51: 1W | AX51: 2 | AY51: 2W | AZ51: 3 | BA51: 3W | BB51: 4 | BC51: 4W
AB52: na | AC52: 1 | AD52: 0 | AE52: =AD52^2 -> 0 | AF52: =AD52^3 -> 0 | AG52: =AD52^4 -> 0 | AI52: 0 | AJ52: =IF($A28<>"",$M$12+$AI52*$N$12,"") -> -0.008834822401 | AK52: =IF($A28<>"",$M$16+$AI52*$N$16,"") -> 0.001099885805 | AL52: =IF($A28<>"",$M$13+$AI52*($N$13+$AI52*$O$13),"") -> -0.005877175294 | AM52: =IF($A28<>"",$M$17+$AI52*($N$17+$AI52*$O$17),"") -> 0.001595514423 | AN52: =IF($A28<>"",$M$14+$AI52*($N$14+$AI52*($O$14+$AI52*$P$14)),"") -> 0.000101408128 | AO52: =IF($A28<>"",$M$18+$AI52*($N$18+$AI52*($O$18+$AI52*$P$18)),"") -> 0.00209131568 | AP52: =IF($A28<>"",$M$15+$AI52*($N$15+$AI52*($O$15+$AI52*($P$15+$AI52*$Q$15))),"") -> 0 | AQ52: =IF($A28<>"",$M$19+$AI52*($N$19+$AI52*($O$19+$AI52*($P$19+$AI52*$Q$19))),"") -> 0 | AS52: dX | AT52: =(AT51-AT50)/10 -> 90.0170928 | AU52: 0 | AV52: =$M$12+$AU52*$N$12 -> -0.008834822401 | AW52: =$M$16+$AU52*$N$16 -> 0.001099885805 | AX52: =$M$13+$AU52*($N$13+$AU52*$O$13) -> -0.005877175294 | AY52: =$M$17+$AU52*($N$17+$AU52*$O$17) -> 0.001595514423 | AZ52: =$M$14+$AU52*($N$14+$AU52*($O$14+$AU52*$P$14)) -> 0.000101408128 | BA52: =$M$18+$AU52*($N$18+$AU52*($O$18+$AU52*$P$18)) -> 0.00209131568 | BB52: =$M$15+$AU52*($N$15+$AU52*($O$15+$AU52*($P$15+$AU52*$Q$15))) -> 0 | BC52: =$M$19+$AU52*($N$19+$AU52*($O$19+$AU52*($P$19+$AU52*$Q$19))) -> 0
AB53: =IF(A29<>"",B29,0) -> 0.01166200783 | AC53: =IF(A29<>"",1,0) -> 1 | AD53: =$A29^1 -> 0.901072 | AE53: =AD53^2 -> 0.8119307492 | AF53: =AD53^3 -> 0.731608064 | AG53: =AD53^4 -> 0.6592315415 | AI53: =IF(A29<>"",A29,"") -> 0.901072 | AJ53: -0.0002067125981 | AK53: 0.009645189121 | AL53: 0.002678690166 | AM53: 0.009968849804 | AN53: 0.008352289227 | AO53: 0.010240686 | AP53: 0 | AQ53: 0 | AU53: =AT50 -> 0.901072 | AV53: -0.0002067125981 | AW53: 0.009645189121 | AX53: 0.002678690166 | AY53: 0.009968849804 | AZ53: 0.008352289227 | BA53: 0.010240686 | BB53: 0 | BC53: 0
AB54: 0.01016128507 | AC54: 1 | AD54: 0.901072 | AE54: 0.8119307492 | AF54: 0.731608064 | AG54: 0.6592315415 | AI54: 0.901072 | AJ54: -0.0002067125981 | AK54: 0.009645189121 | AL54: 0.002678690166 | AM54: 0.009968849804 | AN54: 0.008352289227 | AO54: 0.010240686 | AP54: 0 | AQ54: 0 | AU54: =AU53+$AT$52 -> 90.9181648 | AV54: 0.8617414567 | AW54: 0.8633209904 | AX54: 0.8582300094 | AY54: 0.8493581071 | AZ54: 0.8438798701 | BA54: 0.8391035797 | BB54: 0 | BC54: 0
AB55: 0.01023730808 | AC55: 1 | AD55: 0.901072 | AE55: 0.8119307492 | AF55: 0.731608064 | AG55: 0.6592315415 | AI55: 0.901072 | AJ55: -0.0002067125981 | AK55: 0.009645189121 | AL55: 0.002678690166 | AM55: 0.009968849804 | AN55: 0.008352289227 | AO55: 0.010240686 | AP55: 0 | AQ55: 0 | AU55: =AU54+$AT$52 -> 180.9352576 | AV55: 1.723689626 | AW55: 1.716996792 | AX55: 1.715405787 | AY55: 1.694476125 | AZ55: 1.698402638 | BA55: 1.692743321 | BB55: 0 | BC55: 0
AB56: 0.009632461888 | AC56: 1 | AD56: 0.901072 | AE56: 0.8119307492 | AF56: 0.731608064 | AG56: 0.6592315415 | AI56: 0.901072 | AJ56: -0.0002067125981 | AK56: 0.009645189121 | AL56: 0.002678690166 | AM56: 0.009968849804 | AN56: 0.008352289227 | AO56: 0.010240686 | AP56: 0 | AQ56: 0 | AU56: 270.9523504 | AV56: 2.585637795 | AW56: 2.570672593 | AX56: 2.574206024 | AY56: 2.545322903 | AZ56: 2.566979348 | BA56: 2.564574026 | BB56: 0 | BC56: 0
AB57: 0.00973915424 | AC57: 1 | AD57: 0.901072 | AE57: 0.8119307492 | AF57: 0.731608064 | AG57: 0.6592315415 | AI57: 0.901072 | AJ57: -0.0002067125981 | AK57: 0.009645189121 | AL57: 0.002678690166 | AM57: 0.009968849804 | AN57: 0.008352289227 | AO57: 0.010240686 | AP57: 0 | AQ57: 0 | AU57: 360.9694432 | AV57: 3.447585965 | AW57: 3.424348394 | AX57: 3.434630719 | AY57: 3.401898441 | AZ57: 3.444668757 | BA57: 3.44800981 | BB57: 0 | BC57: 0
C58: =IF(A58<>"",AB48*$AC$3,"") ->  | AB58: 0.009820539463 | AC58: 1 | AD58: 0.901072 | AE58: 0.8119307492 | AF58: 0.731608064 | AG58: 0.6592315415 | AI58: 0.901072 | AJ58: -0.0002067125981 | AK58: 0.009645189121 | AL58: 0.002678690166 | AM58: 0.009968849804 | AN58: 0.008352289227 | AO58: 0.010240686 | AP58: 0 | AQ58: 0 | AU58: 450.986536 | AV58: 4.309534134 | AW58: 4.278024196 | AX58: 4.296679873 | AY58: 4.264202739 | AZ58: 4.32652962 | BA58: 4.33646479 | BB58: 0 | BC58: 0
AB59: 0.01072667925 | AC59: 1 | AD59: 0.901072 | AE59: 0.8119307492 | AF59: 0.731608064 | AG59: 0.6592315415 | AI59: 0.901072 | AJ59: -0.0002067125981 | AK59: 0.009645189121 | AL59: 0.002678690166 | AM59: 0.009968849804 | AN59: 0.008352289227 | AO59: 0.010240686 | AP59: 0 | AQ59: 0 | AU59: 541.0036288 | AV59: 5.171482303 | AW59: 5.131699997 | AX59: 5.160353486 | AY59: 5.132235798 | AZ59: 5.207620695 | BA59: 5.22335308 | BB59: 0 | BC59: 0
AB60: 0.02250464678 | AC60: 1 | AD60: 2.25268 | AE60: 5.074567182 | AF60: 11.431376 | AG60: 25.75123209 | AI60: 2.25268 | AJ60: 0.01273545211 | AK60: 0.0224631441 | AL60: 0.01551279355 | AM60: 0.02252992917 | AN60: 0.0207331064 | AO60: 0.0224706317 | AP60: 0 | AQ60: 0 | AU60: 631.0207216 | AV60: 6.033430473 | AW60: 5.985375798 | AX60: 6.025651557 | AY60: 6.005997617 | AZ60: 6.083000737 | BA60: 6.102088799 | BB60: 0 | BC60: 0
AB61: 0.04206173356 | AC61: 1 | AD61: 4.50536 | AE61: 20.29826873 | AF61: 91.451008 | AG61: 412.0197134 | AI61: 4.50536 | AJ61: 0.03430572661 | AK61: 0.04382640239 | AL61: 0.03690377972 | AM61: 0.04346793157 | AN61: 0.04137974844 | AO61: 0.04286952676 | AP61: 0 | AQ61: 0 | AU61: 721.0378144 | AV61: 6.895378642 | AW61: 6.8390516 | AX61: 6.892574088 | AY61: 6.885488197 | AZ61: 6.947728503 | BA61: 6.96608606 | BB61: 0 | BC61: 0
AB62: 0.1256339594 | AC62: 1 | AD62: 13.51608 | AE62: 182.6844186 | AF62: 2469.177216 | AG62: 33373.59679 | AI62: 13.51608 | AJ62: 0.1205868246 | AK62: 0.1292794356 | AL62: 0.1224778976 | AM62: 0.1272558176 | AN62: 0.1241142055 | AO62: 0.1246588331 | AP62: 0 | AQ62: 0 | AU62: 811.0549072 | AV62: 7.757326811 | AW62: 7.692727401 | AX62: 7.761121076 | AY62: 7.770707537 | AZ62: 7.796862747 | BA62: 7.80875898 | BB62: 0 | BC62: 0
AB63: 0.2481236702 | AC63: 1 | AD63: 27.03216 | AE63: 730.7376743 | AF63: 19753.41773 | AG63: 533977.5486 | AI63: 27.03216 | AJ63: 0.2500084717 | AK63: 0.2574589853 | AL63: 0.250869594 | AM63: 0.2530452761 | AN63: 0.2486510397 | AO63: 0.2479126176 | AP63: 0 | AQ63: 0 | AU63: 901.072 | AV63: 8.61927498 | AW63: 8.546403202 | AX63: 8.631292524 | AY63: 8.661655637 | AZ63: 8.625462227 | BA63: 8.623521675 | BB63: 0 | BC63: 0
AB64: 0.49535092 | AC64: 1 | AD64: 54.06432 | AE64: 2922.950697 | AF64: 158027.3418 | AG64: 8543640.777 | AI64: 54.06432 | AJ64: 0.5088517658 | AK64: 0.5138180848 | AL64: 0.5077628574 | AM64: 0.5050116589 | AN64: 0.4992299109 | AO64: 0.4963898109 | AP64: 0 | AQ64: 0
AB65: 0.4953812024 | AC65: 1 | AD65: 54.06432 | AE65: 2922.950697 | AF65: 158027.3418 | AG65: 8543640.777 | AI65: 54.06432 | AJ65: 0.5088517658 | AK65: 0.5138180848 | AL65: 0.5077628574 | AM65: 0.5050116589 | AN65: 0.4992299109 | AO65: 0.4963898109 | AP65: 0 | AQ65: 0
AB66: 0.4944612167 | AC66: 1 | AD66: 54.06432 | AE66: 2922.950697 | AF66: 158027.3418 | AG66: 8543640.777 | AI66: 54.06432 | AJ66: 0.5088517658 | AK66: 0.5138180848 | AL66: 0.5077628574 | AM66: 0.5050116589 | AN66: 0.4992299109 | AO66: 0.4963898109 | AP66: 0 | AQ66: 0
AB67: 0.4977655751 | AC67: 1 | AD67: 54.06432 | AE67: 2922.950697 | AF67: 158027.3418 | AG67: 8543640.777 | AI67: 54.06432 | AJ67: 0.5088517658 | AK67: 0.5138180848 | AL67: 0.5077628574 | AM67: 0.5050116589 | AN67: 0.4992299109 | AO67: 0.4963898109 | AP67: 0 | AQ67: 0
AB68: 0.816049586 | AC68: 1 | AD68: 90.1072 | AE68: 8119.307492 | AF68: 731608.064 | AG68: 65923154.15 | AI68: 90.1072 | AJ68: 0.8539761579 | AK68: 0.8556302174 | AL68: 0.8505150884 | AM68: 0.8417704689 | AN68: 0.8362603829 | AO68: 0.8315158566 | AP68: 0 | AQ68: 0
AB69: 1.705003155 | AC69: 1 | AD69: 180.2144 | AE69: 32477.22997 | AF69: 5852864.512 | AG69: 1054770466 | AI69: 180.2144 | AJ69: 1.716787138 | AK69: 1.710160549 | AL69: 1.708535065 | AM69: 1.687685658 | AN69: 1.691497197 | AO69: 1.685826324 | AP69: 0 | AQ69: 0
AB70: 2.570652439 | AC70: 1 | AD70: 270.3216 | AE70: 73073.76743 | AF70: 19753417.73 | AG70: 5339775486 | AI70: 270.3216 | AJ70: 2.579598118 | AK70: 2.564690881 | AL70: 2.568182753 | AM70: 2.539341083 | AN70: 2.560855752 | AO70: 2.558417038 | AP70: 0 | AQ70: 0
AB71: 4.315552421 | AC71: 1 | AD71: 450.536 | AE71: 202982.6873 | AF71: 91451008 | AG71: 4.120197134e+10 | AI71: 450.536 | AJ71: 4.305220079 | AK71: 4.273751544 | AL71: 4.292361268 | AM71: 4.259872638 | AN71: 4.322113697 | AO71: 4.332016475 | AP71: 0 | AQ71: 0
AB72: 8.625933064 | AC72: 1 | AD72: 901.072 | AE72: 811930.7492 | AF72: 731608064 | AG72: 6.592315415e+11 | AI72: 901.072 | AJ72: 8.61927498 | AK72: 8.546403202 | AL72: 8.631292524 | AM72: 8.661655637 | AN72: 8.625462227 | AO72: 8.623521675 | AP72: 0 | AQ72: 0
AB73: 0 | AC73: 0 | AD73: 0 | AE73: 0 | AF73: 0 | AG73: 0
AB74: 0 | AC74: 0 | AD74: 0 | AE74: 0 | AF74: 0 | AG74: 0
AB75: 0 | AC75: 0 | AD75: 0 | AE75: 0 | AF75: 0 | AG75: 0
AB76: 0 | AC76: 0 | AD76: 0 | AE76: 0 | AF76: 0 | AG76: 0
AB77: 0 | AC77: 0 | AD77: 0 | AE77: 0 | AF77: 0 | AG77: 0
AB78: 0 | AC78: 0 | AD78: 0 | AE78: 0 | AF78: 0 | AG78: 0
AB79: 0 | AC79: 0 | AD79: 0 | AE79: 0 | AF79: 0 | AG79: 0
AB80: 0 | AC80: 0 | AD80: 0 | AE80: 0 | AF80: 0 | AG80: 0
I81: Error % | AB81: 0 | AC81: 0 | AD81: 0 | AE81: 0 | AF81: 0 | AG81: 0
E82: X | F82: 1 | G82: 1W | H82: 2 | I82: 2W | J82: 3 | K82: 3w | L82: 4 | M82: 4w | AB82: 0 | AC82: 0 | AD82: 0 | AE82: 0 | AF82: 0 | AG82: 0
E83: =AI53 -> 0.901072 | F83: =IF($A29<>"",IF($A29<>0,-100*(AJ53-$B29)/($N$12*$AI53),""),"") -> 137.558755 | G83: =IF($A29<>"",IF($A29<>0,-100*(AK53-$B29)/($N$16*$AI53),""),"") -> 23.60148763 | H83: =IF($A29<>"",IF($A29<>0,-100*(AL53-$B29)/($AI53*($N$13+AI53*2*$O$13)),""),"") -> 104.9950148 | I83: =IF($A29<>"",IF($A29<>0,-100*(AM53-$B29)/($AI53*($N$17+AI53*2*$O$17)),""),"") -> 20.22013822 | J83: =IF($A29<>"",IF($A29<>0,-100*(AN53-$B29)/($AI53*($N$14+AI53*(2*$O$14+AI53*3*$P$14))),""),"") -> 40.10768364 | K83: =IF($A29<>"",IF($A29<>0,-100*(AO53-$B29)/($AI53*($N$18+AI53*(2*$O$18+AI53*3*$P$18))),""),"") -> 17.43751469 | L83: =IF($A29<>"",IF($A29<>0,-100*($AP53-$B29)/($AI53*($N$15+$AI53*(2*$O$15+$AI53*(3*$P$15+$AI53*4*$Q$15)))),""),"") ->  | M83: =IF($A29<>"",IF($A29<>0,-100*($AP53-$B29)/($AI53*($N$19+$AI53*(2*$O$19+$AI53*(3*$P$19+$AI53*4*$Q$19)))),""),"") -> 
E84: 0.901072 | F84: 120.1653422 | G84: 6.039527543 | H84: 87.4549017 | I84: 2.29811252 | J84: 21.92169236 | K84: -0.9741318373
E85: 0.901072 | F85: 121.0464507 | G85: 6.92917427 | H85: 88.34344171 | I85: 3.205999307 | J85: 22.842951 | K85: -0.04144203574
E86: 0.901072 | F86: 114.0362688 | G86: -0.1489383406 | H86: 81.27413422 | I86: -4.017232925 | J86: 15.51333098 | K86: -7.462009377
E87: 0.901072 | F87: 115.2728357 | G87: 1.099611271 | H87: 82.52113064 | I87: -2.743084816 | J87: 16.80624546 | K87: -6.153052176
E88: 0.901072 | F88: 116.2160924 | G88: 2.052008399 | H88: 83.47234299 | I88: -1.771161083 | J88: 17.79248422 | K88: -5.15457597
E89: 0.901072 | F89: 126.7182744 | G89: 12.65595957 | H89: 94.06310293 | I89: 9.050198517 | J89: 28.77322684 | K89: 5.962417789
E90: 2.25268 | F90: 45.29008042 | G90: 0.1942713055 | H90: 32.68675617 | I90: -0.1207591797 | J90: 8.583384203 | K90: 0.1668295332
E91: 4.50536 | F91: 17.97846139 | G91: -4.130149067 | H91: 12.05608557 | I91: -3.357716545 | J91: 1.650968848 | K91: -1.979046117
E92: 13.51608 | F92: 3.899760903 | G92: -2.844038793 | H92: 2.458501702 | I92: -1.290005741 | J92: 1.222870294 | K92: 0.7933379333
E93: 27.03216 | F93: -0.72816316 | G93: -3.641499421 | H93: -1.069201639 | I93: -1.955283307 | J93: -0.2112972427 | K93: 0.08538451739
E94: 54.06432 | F94: -2.607918791 | G94: -3.601815748 | H94: -2.415088533 | I94: -1.9151057 | J94: -0.7710212846 | K94: -0.2079897577
E95: 54.06432 | F95: -2.602069217 | G95: -3.59590949 | H95: -2.409196236 | I95: -1.909102628 | J95: -0.7650020849 | K95: -0.2019270984
E96: 54.06432 | F96: -2.779780168 | G96: -3.775342512 | H96: -2.588205119 | I96: -2.091476873 | J96: -0.9478662935 | K96: -0.3861116119
E97: 54.06432 | F97: -2.141486943 | G97: -3.130864039 | H97: -1.945250048 | I97: -1.436434265 | J97: -0.2910638582 | K97: 0.2754330276
E98: 90.1072 | F98: -4.395698802 | G98: -4.631857995 | H98: -4.02067853 | I98: -3.050949922 | J98: -2.387504555 | K98: -1.834738965
E99: 180.2144 | F99: -0.6828832561 | G99: -0.3017677762 | H99: -0.2056224205 | I99: 1.020134073 | J99: 0.7823883307 | K99: 1.109062304
E100: 270.3216 | F100: -0.3456021462 | G100: 0.2325471548 | H100: 0.09567289507 | I100: 1.221393393 | J100: 0.3733063603 | K100: 0.4637103822
E101: 450.536 | F101: 0.2395041785 | G101: 0.9783357056 | H101: 0.5370081517 | I101: 1.285898307 | J101: -0.1485819094 | K101: -0.3701173602
E102: 901.072 | F102: 0.0771673473 | G102: 0.9306850641 | H102: -0.06147188202 | I102: -0.3992655215 | J102: 0.005759452306 | K102: 0.03016453958
E113: MeanAbs | F113: =SUM(IF(F83:F112>0,F83:F112,-F83:F112))/COUNT(F83:F112) -> 46.73912979 | G113: =SUM(IF(G83:G112>0,G83:G112,-G83:G112))/COUNT(G83:G112) -> 4.225789554 | H113: =SUM(IF(H83:H112>0,H83:H112,-H83:H112))/COUNT(H83:H112) -> 34.2336404 | I113: =SUM(IF(I83:I112>0,I83:I112,-I83:I112))/COUNT(I83:I112) -> 3.217972642 | J113: =SUM(IF(J83:J112>0,J83:J112,-J83:J112))/COUNT(J83:J112) -> 9.094931461 | K113: =SUM(IF(K83:K112>0,K83:K112,-K83:K112))/COUNT(K83:K112) -> 2.554449851 | L113: =SUM(IF(L83:L112>0,L83:L112,-L83:L112))/COUNT(L83:L112) ->  | M113: =SUM(IF(M83:M112>0,M83:M112,-M83:M112))/COUNT(M83:M112) -> 
E114: Max | F114: =MAX(MAX(F83:F112),-MIN(F83:F112)) -> 137.558755 | G114: =MAX(MAX(G83:G112),-MIN(G83:G112)) -> 23.60148763 | H114: 104.9950148 | I114: 20.22013822 | J114: 40.10768364 | K114: 17.43751469
B117: 0 | C117: 0 | D117: =IF(B117=0,"Please update Leverage",IF(B117=1,"Please wait","Ok")) -> Please update Leverage
I118: OBS: X-axis is logarithmic
A120: X | B120: 1 | C120: W 1 | D120: 2 | E120: W 2 | F120: 3 | G120: W 3
A121: 0.706464 | B121: 14.12126244 | C121: 36.00403466 | D121: 12.76067083 | E121: 24.94373267 | F121: 14.79544893 | G121: 20.70197378
A122: 3.53232 | B122: 13.98843439 | C122: 11.83028838 | D122: 12.07203677 | E122: 7.91523259 | F122: 10.58443639 | G122: 6.785047663
A123: 21.19392 | B123: 13.20755281 | C123: 3.052799213 | D123: 9.179907994 | E123: 6.071018435 | F123: 24.62030954 | G123: 22.52122822
A124: 141.2928 | B124: 10.15147403 | C124: 8.111445534 | D124: 32.65486922 | E124: 27.77090363 | F124: 24.99980515 | G124: 24.99175226
A125: 706.464 | B125: 48.53127633 | C125: 41.00143221 | D125: 33.33251519 | E125: 33.29911267 | F125: 24.99999999 | G125: 24.99999808

Sheet Linear
A1: =Info!$A$1 -> Calibration_Quant_8.15.xlsm | D1: Linear calibration | N1: ='Experimental data'!$J$1 -> Author: Bo Svensmark, svensmark@plen.ku.dk, Analytical Chemistry, PLEN, University of Copenhagen, 2017 - 2025
G2: =Input!I15 -> 1 | H2: =Input!B25 -> Naphthalene | W2: Statistical param | Z2: Covariance matrix
W3: Ymean | X3: =SUM(W*Y)/I9 -> 0.0338970947 | Z3: =MINVERSE(MMULT(MMULT(TRANSPOSE(X_1),W),X_1)) -> 0.05131083785 | AA3: -0.0003790356643
G4: =IF(G6=0,"Remember to save the results","") -> Remember to save the results | K4: Comments to output | W4: Xmean | X4: =SUM(W*X)/I9 -> 3.458349636 | Z4: -0.0003790356643 | AA4: 0.0001096001573
G5: =IF(G6=0,"","Results are saved") ->  | W5: SStotal | X5: =SUM(W*(Y-$X$3)^2) -> 0.820849565
G6: ='Test of calibration function'!C117 -> 0 | W6: SSreg | X6: =SUM(W*(MMULT(X_1,C9:C10)-X3)^2) -> 0.8205873138 | AN6: Detection limits to output:
A7: =IF('Test of calibration function'!$C$26=0,"Simple linear","Weighted linear") -> Weighted linear | C7: Y = a0 + a1X | F7: Weights | H7: Statistics | K7: Subtract blank | M7: =IF(Input!N22=1,IF(H28=0,0,J28),0) -> 4.124193611 | W7: SSres | X7: =X5-X6 -> 0.00026225119 | AN7: LOQ-s | AO7: =IF(L15="Ok",K15,"na") -> na
A8: =IF('Test of calibration function'!$C$26=0,"1","W 1") &IF(J11=0,""," ZERO") -> W 1 | C8: Coeff | D8: s | E8: P | W8: Xmax | X8: =MAX(X) -> 901.072 | AN8: LOQ-ci | AO8: =IF(L16="Ok",K16,"na") -> na
A9: a0 | C9: =MMULT(MMULT(COV,MMULT(TRANSPOSE(X_1),W)),Y) -> 0.001099885805 | D9: =SQRT(Z3)*I12 -> 0.0008646234982 | E9: =IF('Test of calibration function'!C26=1,'Test of calibration function'!AN14,'Test of calibration function'!AN13) -> 0.2195277159 | F9: C0 | G9: ='Test of calibration function'!$C$22 -> 1 | H9: N | I9: =COUNT(X)*Input!B18 -> 20 | N9: This sheet is not protected, so take care only to change the white cells! | Z9: LOQ data | AA9: D | AB9: Q | AC9: X | AN9: DL | AO9: =K19 -> 0.3315748214
A10: a1 | C10: 0.009483485578 | D10: =SQRT(AA4)*I12 -> 3.996023835e-05 | E10: =TDIST(ABS(C10/D10),$I$9-$I$10,2) -> 6.433133091e-33 | F10: C½ | G10: ='Test of calibration function'!$C$23 -> 1.053465343 | H10: k | I10: 2 | W10: Sum | X10: =SUM(Z16:Z45) -> 4.13390617 | Z10: =IF(AC10>0,100*$I$12*SQRT(($X$14+AC10*$X$15+AC10^2*$X$16)/$D$16+MMULT(MMULT($AB10:$AC10,COV),TRANSPOSE($AB10:$AC10)))/($C$10*AC10),2*I15) -> 0.838244695 | AA10: =(Z10-I15)/I15 -> -0.9161755305 | AB10: 1 | AC10: =K15 -> 706.464 | AN10: LOD | AO10: =K20 -> 0.5468064941
F11: C1 | G11: ='Test of calibration function'!$C$24 -> 0 | H11: R2 | I11: =X6/X5 -> 0.9996805125 | J11: 0 | W11: Norm | X11: =I9/X10 -> 4.838039176 | Z11: =IF(AC11>0,100*TINV(J16/100,I9-I10)*$I$12*SQRT(($X$14+AC11*$X$15+AC11^2*$X$16)/$D$16+MMULT(MMULT($AB11:$AC11,COV),TRANSPOSE($AB11:$AC11)))/($C$10*AC11),2*I16) -> 1.761086755 | AA11: =(Z11-I16)/I16 -> -0.9119456623 | AB11: 1 | AC11: =K16 -> 706.464 | AN11: DL-cal | AO11: =K23 -> 0.5218128734
H12: s(y/x) | I12: =SQRT(X7/(I9-I10)) -> 0.003817002824 | N12: LOQ: White cells means that you may enter start values manually | AN12: LOD-ca, | AO12: =K24 -> 0.735836384
N13: "Please update" may mean that the target values are impossible | W13: weights | Z13: Update ok? | AA13: =IF(AND(L15="Ok", L16="Ok"), "Yes","No") -> No | AN13: Blank limit | AO13: =IF(G28=0,"na",K28) -> 7.930858492
A14: Unknown samples (Predict Xo from Yo) | G14: LOQ | I14: Target ± | J14: a % | K14: LOQx | N14: Please look in Statistics for X in W18:X52 and enter a new: | W14: w0 | X14: =G9^2/$X$11 -> 0.2066953085 | AN14: sBlank | AO14: =IF(M7>0,$I$12*SQRT(($X$14+J28*$X$15+J28^2*$X$16)/$G$28+MMULT(MMULT(AJ81:AK81,COV),TRANSPOSE(AJ81:AK81)))/$C$10,0) -> 0.2652445677
A15: Confidence | C15: % | D15: m | E15: t | G15: LOQ from ±s % | I15: =Input!$B$13 -> 10 | K15: 706.464 | L15: =IF(ABS($AA$10)>0.001,"Please update","Ok") -> Please update | N15: 1) Reasonalbe start value in K15:K16 - then press Update LOQ again | W15: w1 | X15: =G10^2/$X$11 -> 0.229388227 | Z15: NN weights | AA15: Weight diagonal matrix
A16: interval | C16: =Input!$B$19 -> 95 | D16: =Input!$B$17 -> 1 | E16: =TINV((100-C16)/100,I9-I10) -> 2.10092204 | G16: LOQ from ±CI % | I16: =Input!$B$14 -> 20 | J16: =Input!$B$15 -> 5 | K16: 706.464 | L16: =IF(ABS($AA$11)>0.001,"Please update","Ok") -> Please update | N16: 2) Reasonable target value for LOQ - go to sheet Input and enter new values | W16: w2 | X16: =G11^2/$X$11 -> 0 | Z16: =IF(N54<>"",1/($G$9^2+N54*$G$10^2+(N54*$G$11)^2),"") -> 0.5 | AA16: =IF($N54<>"",$Q54,0) -> 2.419019588 | AB16: 0 | AC16: 0 | AD16: 0 | AE16: 0 | AF16: 0 | AG16: 0 | AH16: 0 | AI16: 0 | AJ16: 0 | AK16: 0 | AL16: 0 | AM16: 0 | AN16: 0 | AO16: 0 | AP16: 0 | AQ16: 0 | AR16: 0 | AS16: 0 | AT16: 0 | AU16: 0 | AV16: 0 | AW16: 0 | AX16: 0 | AY16: 0 | AZ16: 0 | BA16: 0 | BB16: 0 | BC16: 0 | BD16: 0
Z17: 0.5 | AA17: 0 | AB17: =IF($N55<>"",$Q55,0) -> 2.419019588 | AC17: 0 | AD17: 0 | AE17: 0 | AF17: 0 | AG17: 0 | AH17: 0 | AI17: 0 | AJ17: 0 | AK17: 0 | AL17: 0 | AM17: 0 | AN17: 0 | AO17: 0 | AP17: 0 | AQ17: 0 | AR17: 0 | AS17: 0 | AT17: 0 | AU17: 0 | AV17: 0 | AW17: 0 | AX17: 0 | AY17: 0 | AZ17: 0 | BA17: 0 | BB17: 0 | BC17: 0 | BD17: 0
A18: Yo | B18: Xo | C18: sXo | D18: RSD % | E18: Xm | G18: DL From repeat exp | I18: n | J18: s | K18: DL/LOD | N18: Plot of line | P18: Prediction intervals | U18: Accuracy | W18: Statistics for X | Z18: 0.5 | AA18: 0 | AB18: 0 | AC18: =IF($N56<>"",$Q56,0) -> 2.419019588 | AD18: 0 | AE18: 0 | AF18: 0 | AG18: 0 | AH18: 0 | AI18: 0 | AJ18: 0 | AK18: 0 | AL18: 0 | AM18: 0 | AN18: 0 | AO18: 0 | AP18: 0 | AQ18: 0 | AR18: 0 | AS18: 0 | AT18: 0 | AU18: 0 | AV18: 0 | AW18: 0 | AX18: 0 | AY18: 0 | AZ18: 0 | BA18: 0 | BB18: 0 | BC18: 0 | BD18: 0
A19: 0.03373174442 | B19: =IF(A19<>"",(A19-$C$9)/$C$10,0) -> 3.440914034 | C19: =IF($A19<>"",$I$12*SQRT(($X$14+B19*$X$15+B19^2*$X$16)/$D$16+MMULT(MMULT($Z49:$AA49,COV),TRANSPOSE($Z49:$AA49)))/$C$10,"") -> 0.4116427222 | D19: =IF(A19<>"",100*C19/B19,"") -> 11.9631795 | E19: =IF(A19="","",IF(Input!M33>0,(B19*Input!M33-$M$7*Input!L33)*Input!$N$23,"na")) -> -0.7764540653 | G19: DL | I19: =Input!$B$26 -> 7 | J19: =Input!$B$27 -> 0.0007127708357 | K19: =IF(I19>0,SQRT((J19*TINV(J23/50,I19-1))^2+(D9*TINV(J23/50,I9-I10))^2)/C10,"na") -> 0.3315748214 | N19: X | O19: Yo | P19: sYo | Q19: Y- | R19: Y+ | S19: PI % | T19: RSD % | U19: Error X % | W19: sX % | X19: ±CI % X | Z19: 0.5 | AA19: 0 | AB19: 0 | AC19: 0 | AD19: =IF($N57<>"",$Q57,0) -> 2.419019588 | AE19: 0 | AF19: 0 | AG19: 0 | AH19: 0 | AI19: 0 | AJ19: 0 | AK19: 0 | AL19: 0 | AM19: 0 | AN19: 0 | AO19: 0 | AP19: 0 | AQ19: 0 | AR19: 0 | AS19: 0 | AT19: 0 | AU19: 0 | AV19: 0 | AW19: 0 | AX19: 0 | AY19: 0 | AZ19: 0 | BA19: 0 | BB19: 0 | BC19: 0 | BD19: 0
A20: 0.03325294251 | B20: 3.390426067 | C20: =IF($A20<>"",$I$12*SQRT(($X$14+B20*$X$15+B20^2*$X$16)/$D$16+MMULT(MMULT($Z50:$AA50,COV),TRANSPOSE($Z50:$AA50)))/$C$10,"") -> 0.4093576131 | D20: 12.07392832 | E20: =IF(A20="","",IF(Input!M34>0,(B20*Input!M34-$M$7*Input!L34)*Input!$N$23,"na")) -> -0.9757547134 | G20: LOD | K20: =IF(I19>0,K19+SQRT((J19*TINV(J24/50,I19-1))^2+(D9*TINV(J24/50,I9-I10))^2)/C10,"na") -> 0.5468064941 | N20: 0 | O20: =$C$9+$N20*$C$10 -> 0.001099885805 | P20: =IF($N53<>"",$I$12*SQRT(($X$14+N20*$X$15+N20^2*$X$16)/$D$16+MMULT(MMULT($AD49:$AE49,COV),TRANSPOSE($AD49:$AE49))),"") -> 0.001938820072 | Q20: =$C$9-$E$16*P20 -> -0.002973424017 | R20: =$C$9+$E$16*P20 -> 0.005173195627 | Z20: 0.5 | AA20: 0 | AB20: 0 | AC20: 0 | AD20: 0 | AE20: =IF($N58<>"",$Q58,0) -> 2.419019588 | AF20: 0 | AG20: 0 | AH20: 0 | AI20: 0 | AJ20: 0 | AK20: 0 | AL20: 0 | AM20: 0 | AN20: 0 | AO20: 0 | AP20: 0 | AQ20: 0 | AR20: 0 | AS20: 0 | AT20: 0 | AU20: 0 | AV20: 0 | AW20: 0 | AX20: 0 | AY20: 0 | AZ20: 0 | BA20: 0 | BB20: 0 | BC20: 0 | BD20: 0
A21: 0.02716172811 | B21: 2.748129059 | C21: =IF($A21<>"",$I$12*SQRT(($X$14+B21*$X$15+B21^2*$X$16)/$D$16+MMULT(MMULT($Z51:$AA51,COV),TRANSPOSE($Z51:$AA51)))/$C$10,"") -> 0.3790969934 | D21: 13.79473035 | E21: =IF(A21="","",IF(Input!M35>0,(B21*Input!M35-$M$7*Input!L35)*Input!$N$23,"na")) -> -2.270733584 | N21: =IF(N54<>"",N54,"") -> 0.901072 | O21: =IF(N54<>"",$C$9+$N21*$C$10,"") -> 0.009645189121 | P21: =IF($N54<>"",$I$12*SQRT(($X$14+N21*$X$15+N21^2*$X$16)/$D$16+MMULT(MMULT($AD50:$AE50,COV),TRANSPOSE($AD50:$AE50))),"") -> 0.002600349431 | Q21: =IF(N54<>"",$O21-$E$16*$P21,"") -> 0.004182057689 | R21: =IF(O54<>"",$O21+$E$16*$P21,"") -> 0.01510832055 | S21: =IF(N54<>"",100*P21*$E$16/O54,"") -> 46.84554764 | T21: =IF(N54<>"",100*P21/O54,"") -> 22.2976135 | U21: =IF($N54<>0,-100*(O21-'Test of calibration function'!$B29)/($C$10*N21),"") -> 23.60148763 | W21: =IF(N21<>0,100*P21/($C$10*N21),"") -> 30.43015953 | X21: =IF(N21<>0,W21*$E$16,"") -> 63.93139284 | Z21: 0.5 | AA21: 0 | AB21: 0 | AC21: 0 | AD21: 0 | AE21: 0 | AF21: =IF($N59<>"",$Q59,0) -> 2.419019588 | AG21: 0 | AH21: 0 | AI21: 0 | AJ21: 0 | AK21: 0 | AL21: 0 | AM21: 0 | AN21: 0 | AO21: 0 | AP21: 0 | AQ21: 0 | AR21: 0 | AS21: 0 | AT21: 0 | AU21: 0 | AV21: 0 | AW21: 0 | AX21: 0 | AY21: 0 | AZ21: 0 | BA21: 0 | BB21: 0 | BC21: 0 | BD21: 0
A22: 0.03041001815 | B22: 3.090649751 | C22: =IF($A22<>"",$I$12*SQRT(($X$14+B22*$X$15+B22^2*$X$16)/$D$16+MMULT(MMULT($Z52:$AA52,COV),TRANSPOSE($Z52:$AA52)))/$C$10,"") -> 0.3955201299 | D22: 12.79731324 | E22: =IF(A22="","",IF(Input!M36>0,(B22*Input!M36-$M$7*Input!L36)*Input!$N$23,"na")) -> -2.348963317 | G22: DL From calibration | J22: a or b % | K22: DL/LOD | L22: Calculated from s | N22: 0.901072 | O22: 0.009645189121 | P22: =IF($N55<>"",$I$12*SQRT(($X$14+N22*$X$15+N22^2*$X$16)/$D$16+MMULT(MMULT($AD51:$AE51,COV),TRANSPOSE($AD51:$AE51))),"") -> 0.002600349431 | Q22: =IF(N55<>"",$O22-$E$16*$P22,"") -> 0.004182057689 | R22: =IF(O55<>"",$O22+$E$16*$P22,"") -> 0.01510832055 | S22: 53.7641784 | T22: 25.59075366 | U22: =IF($N55<>0,-100*(O22-'Test of calibration function'!$B30)/($C$10*N22),"") -> 6.039527543 | W22: =IF(N22<>"",100*P22/($C$10*N22),"") -> 30.43015953 | X22: =IF(N22<>"",W22*$E$16,"") -> 63.93139284 | Z22: 0.5 | AA22: 0 | AB22: 0 | AC22: 0 | AD22: 0 | AE22: 0 | AF22: 0 | AG22: =IF($N60<>"",$Q60,0) -> 2.419019588 | AH22: 0 | AI22: 0 | AJ22: 0 | AK22: 0 | AL22: 0 | AM22: 0 | AN22: 0 | AO22: 0 | AP22: 0 | AQ22: 0 | AR22: 0 | AS22: 0 | AT22: 0 | AU22: 0 | AV22: 0 | AW22: 0 | AX22: 0 | AY22: 0 | AZ22: 0 | BA22: 0 | BB22: 0 | BC22: 0 | BD22: 0
A23: 0.03387589985 | B23: 3.456114714 | C23: =IF($A23<>"",$I$12*SQRT(($X$14+B23*$X$15+B23^2*$X$16)/$D$16+MMULT(MMULT($Z53:$AA53,COV),TRANSPOSE($Z53:$AA53)))/$C$10,"") -> 0.4123282533 | D23: 11.93039836 | E23: =IF(A23="","",IF(Input!M37>0,(B23*Input!M37-$M$7*Input!L37)*Input!$N$23,"na")) -> -0.8167223679 | G23: DL | J23: =Input!$B$11 -> 1 | K23: =P20*TINV(J23/50,I9-I10)/C10 -> 0.5218128734 | L23: at X = 0 | N23: 0.901072 | O23: 0.009645189121 | P23: =IF($N56<>"",$I$12*SQRT(($X$14+N23*$X$15+N23^2*$X$16)/$D$16+MMULT(MMULT($AD52:$AE52,COV),TRANSPOSE($AD52:$AE52))),"") -> 0.002600349431 | Q23: =IF(N56<>"",$O23-$E$16*$P23,"") -> 0.004182057689 | R23: 0.01510832055 | S23: 53.36492161 | T23: 25.40071482 | U23: =IF($N56<>0,-100*(O23-'Test of calibration function'!$B31)/($C$10*N23),"") -> 6.92917427 | W23: 30.43015953 | X23: 63.93139284 | Z23: 0.2857142857 | AA23: 0 | AB23: 0 | AC23: 0 | AD23: 0 | AE23: 0 | AF23: 0 | AG23: 0 | AH23: =IF($N61<>"",$Q61,0) -> 1.382296907 | AI23: 0 | AJ23: 0 | AK23: 0 | AL23: 0 | AM23: 0 | AN23: 0 | AO23: 0 | AP23: 0 | AQ23: 0 | AR23: 0 | AS23: 0 | AT23: 0 | AU23: 0 | AV23: 0 | AW23: 0 | AX23: 0 | AY23: 0 | AZ23: 0 | BA23: 0 | BB23: 0 | BC23: 0 | BD23: 0
A24: 0.03642827105 | B24: 3.725253226 | C24: =IF($A24<>"",$I$12*SQRT(($X$14+B24*$X$15+B24^2*$X$16)/$D$16+MMULT(MMULT($Z54:$AA54,COV),TRANSPOSE($Z54:$AA54)))/$C$10,"") -> 0.42428427 | D24: 11.38940749 | E24: =IF(A24="","",IF(Input!M38>0,(B24*Input!M38-$M$7*Input!L38)*Input!$N$23,"na")) -> -0.5479950342 | G24: LOD | J24: =Input!$B$12 -> 5 | K24: =K23+(SQRT((I12*X14)^2/D16+D9^2)*TINV(J24/50,I9-I10))/C10 -> 0.735836384 | N24: 0.901072 | O24: 0.009645189121 | P24: =IF($N57<>"",$I$12*SQRT(($X$14+N24*$X$15+N24^2*$X$16)/$D$16+MMULT(MMULT($AD53:$AE53,COV),TRANSPOSE($AD53:$AE53))),"") -> 0.002600349431 | Q24: =IF(N57<>"",$O24-$E$16*$P24,"") -> 0.004182057689 | R24: 0.01510832055 | S24: 56.7158375 | T24: 26.99568876 | U24: =IF($N57<>0,-100*(O24-'Test of calibration function'!$B32)/($C$10*N24),"") -> -0.1489383406 | W24: =IF(N24<>"",100*P24/($C$10*N24),"") -> 30.43015953 | X24: 63.93139284 | Z24: 0.1666666667 | AA24: 0 | AB24: 0 | AC24: 0 | AD24: 0 | AE24: 0 | AF24: 0 | AG24: 0 | AH24: 0 | AI24: =IF($N62<>"",$Q62,0) -> 0.8063398627 | AJ24: 0 | AK24: 0 | AL24: 0 | AM24: 0 | AN24: 0 | AO24: 0 | AP24: 0 | AQ24: 0 | AR24: 0 | AS24: 0 | AT24: 0 | AU24: 0 | AV24: 0 | AW24: 0 | AX24: 0 | AY24: 0 | AZ24: 0 | BA24: 0 | BB24: 0 | BC24: 0 | BD24: 0
A25: 0.1391406716 | B25: 14.55591245 | C25: =IF($A25<>"",$I$12*SQRT(($X$14+B25*$X$15+B25^2*$X$16)/$D$16+MMULT(MMULT($Z55:$AA55,COV),TRANSPOSE($Z55:$AA55)))/$C$10,"") -> 0.7646397107 | D25: 5.253121115 | E25: =IF(A25="","",IF(Input!M39>0,(B25*Input!M39-$M$7*Input!L39)*Input!$N$23,"na")) -> 13.33979392 | N25: 0.901072 | O25: 0.009645189121 | P25: =IF($N58<>"",$I$12*SQRT(($X$14+N25*$X$15+N25^2*$X$16)/$D$16+MMULT(MMULT($AD54:$AE54,COV),TRANSPOSE($AD54:$AE54))),"") -> 0.002600349431 | Q25: 0.004182057689 | R25: 0.01510832055 | S25: 56.09451599 | T25: 26.69995122 | U25: =IF($N58<>0,-100*(O25-'Test of calibration function'!$B33)/($C$10*N25),"") -> 1.099611271 | W25: 30.43015953 | X25: 63.93139284 | Z25: 0.0625 | AA25: 0 | AB25: 0 | AC25: 0 | AD25: 0 | AE25: 0 | AF25: 0 | AG25: 0 | AH25: 0 | AI25: 0 | AJ25: =IF($N63<>"",$Q63,0) -> 0.3023774485 | AK25: 0 | AL25: 0 | AM25: 0 | AN25: 0 | AO25: 0 | AP25: 0 | AQ25: 0 | AR25: 0 | AS25: 0 | AT25: 0 | AU25: 0 | AV25: 0 | AW25: 0 | AX25: 0 | AY25: 0 | AZ25: 0 | BA25: 0 | BB25: 0 | BC25: 0 | BD25: 0
A26: 0.05070557853 | B26: 5.230744785 | C26: =IF($A26<>"",$I$12*SQRT(($X$14+B26*$X$15+B26^2*$X$16)/$D$16+MMULT(MMULT($Z56:$AA56,COV),TRANSPOSE($Z56:$AA56)))/$C$10,"") -> 0.4858150739 | D26: 9.287684524 | E26: =IF(A26="","",IF(Input!M40>0,(B26*Input!M40-$M$7*Input!L40)*Input!$N$23,"na")) -> 1.169715828 | G26: Blank values | I26: a % | J26: =Input!B16 -> 10 | N26: 0.901072 | O26: 0.009645189121 | P26: =IF($N59<>"",$I$12*SQRT(($X$14+N26*$X$15+N26^2*$X$16)/$D$16+MMULT(MMULT($AD55:$AE55,COV),TRANSPOSE($AD55:$AE55))),"") -> 0.002600349431 | Q26: 0.004182057689 | R26: 0.01510832055 | S26: 55.62964695 | T26: 26.47868216 | U26: =IF($N59<>0,-100*(O26-'Test of calibration function'!$B34)/($C$10*N26),"") -> 2.052008399 | W26: 30.43015953 | X26: 63.93139284 | Z26: 0.03225806452 | AA26: 0 | AB26: 0 | AC26: 0 | AD26: 0 | AE26: 0 | AF26: 0 | AG26: 0 | AH26: 0 | AI26: 0 | AJ26: 0 | AK26: =IF($N64<>"",$Q64,0) -> 0.1560657799 | AL26: 0 | AM26: 0 | AN26: 0 | AO26: 0 | AP26: 0 | AQ26: 0 | AR26: 0 | AS26: 0 | AT26: 0 | AU26: 0 | AV26: 0 | AW26: 0 | AX26: 0 | AY26: 0 | AZ26: 0 | BA26: 0 | BB26: 0 | BC26: 0 | BD26: 0
A27: 0.06746374501 | B27: 6.997834147 | C27: =IF($A27<>"",$I$12*SQRT(($X$14+B27*$X$15+B27^2*$X$16)/$D$16+MMULT(MMULT($Z57:$AA57,COV),TRANSPOSE($Z57:$AA57)))/$C$10,"") -> 0.5494075456 | D27: 7.851108415 | E27: =IF(A27="","",IF(Input!M41>0,(B27*Input!M41-$M$7*Input!L41)*Input!$N$23,"na")) -> 3.811194345 | G27: N | H27: Mean | I27: s | J27: Xblank | K27: Limit | N27: 0.901072 | O27: 0.009645189121 | P27: =IF($N60<>"",$I$12*SQRT(($X$14+N27*$X$15+N27^2*$X$16)/$D$16+MMULT(MMULT($AD56:$AE56,COV),TRANSPOSE($AD56:$AE56))),"") -> 0.002600349431 | Q27: 0.004182057689 | R27: 0.01510832055 | S27: 50.93031406 | T27: 24.2418867 | U27: =IF($N60<>0,-100*(O27-'Test of calibration function'!$B35)/($C$10*N27),"") -> 12.65595957 | W27: 30.43015953 | X27: 63.93139284 | Z27: 0.01639344262 | AA27: 0 | AB27: 0 | AC27: 0 | AD27: 0 | AE27: 0 | AF27: 0 | AG27: 0 | AH27: 0 | AI27: 0 | AJ27: 0 | AK27: 0 | AL27: =IF($N65<>"",$Q65,0) -> 0.07931211764 | AM27: 0 | AN27: 0 | AO27: 0 | AP27: 0 | AQ27: 0 | AR27: 0 | AS27: 0 | AT27: 0 | AU27: 0 | AV27: 0 | AW27: 0 | AX27: 0 | AY27: 0 | AZ27: 0 | BA27: 0 | BB27: 0 | BC27: 0 | BD27: 0
A28: 0.02961059073 | B28: 3.006352958 | C28: =IF($A28<>"",$I$12*SQRT(($X$14+B28*$X$15+B28^2*$X$16)/$D$16+MMULT(MMULT($Z58:$AA58,COV),TRANSPOSE($Z58:$AA58)))/$C$10,"") -> 0.3915416956 | D28: 13.02380994 | E28: =IF(A28="","",IF(Input!M42>0,(B28*Input!M42-$M$7*Input!L42)*Input!$N$23,"na")) -> -5.589203264 | G28: =Input!B28 -> 3 | H28: =Input!B29 -> 0.04021161644 | I28: =Input!B30 -> 0.01914515554 | J28: =IF(G28>0,(H28-C9)/C10,0) -> 4.124193611 | K28: =IF(G28*H28=0,0,IF(G28>1,((H28+I28*TINV(J26/50,G28-1)-$C$9)/$C$10),(H28-$C$9)/$C$10)) -> 7.930858492 | N28: 2.25268 | O28: 0.0224631441 | P28: =IF($N61<>"",$I$12*SQRT(($X$14+N28*$X$15+N28^2*$X$16)/$D$16+MMULT(MMULT($AD57:$AE57,COV),TRANSPOSE($AD57:$AE57))),"") -> 0.003357211627 | Q28: 0.0154099042 | R28: 0.029516384 | S28: 31.34126018 | T28: 14.91785968 | U28: =IF($N61<>0,-100*(O28-'Test of calibration function'!$B36)/($C$10*N28),"") -> 0.1942713055 | W28: 15.71488572 | X28: 33.01574977 | Z28: 0.01639344262 | AA28: 0 | AB28: 0 | AC28: 0 | AD28: 0 | AE28: 0 | AF28: 0 | AG28: 0 | AH28: 0 | AI28: 0 | AJ28: 0 | AK28: 0 | AL28: 0 | AM28: =IF($N66<>"",$Q66,0) -> 0.07931211764 | AN28: 0 | AO28: 0 | AP28: 0 | AQ28: 0 | AR28: 0 | AS28: 0 | AT28: 0 | AU28: 0 | AV28: 0 | AW28: 0 | AX28: 0 | AY28: 0 | AZ28: 0 | BA28: 0 | BB28: 0 | BC28: 0 | BD28: 0
A29: 4.863988112 | B29: 512.7743577 | C29: =IF($A29<>"",$I$12*SQRT(($X$14+B29*$X$15+B29^2*$X$16)/$D$16+MMULT(MMULT($Z59:$AA59,COV),TRANSPOSE($Z59:$AA59)))/$C$10,"") -> 4.868486798 | D29: 0.9494403776 | E29: =IF(A29="","",IF(Input!M43>0,(B29*Input!M43-$M$7*Input!L43)*Input!$N$23,"na")) -> 2.54325082 | N29: 4.50536 | O29: 0.04382640239 | P29: =IF($N62<>"",$I$12*SQRT(($X$14+N29*$X$15+N29^2*$X$16)/$D$16+MMULT(MMULT($AD58:$AE58,COV),TRANSPOSE($AD58:$AE58))),"") -> 0.004335772467 | Q29: 0.03471728245 | R29: 0.05293552232 | S29: 21.656549 | T29: 10.30811643 | U29: =IF($N62<>0,-100*(O29-'Test of calibration function'!$B37)/($C$10*N29),"") -> -4.130149067 | W29: 10.14773217 | X29: 21.31959417 | Z29: 0.01639344262 | AA29: 0 | AB29: 0 | AC29: 0 | AD29: 0 | AE29: 0 | AF29: 0 | AG29: 0 | AH29: 0 | AI29: 0 | AJ29: 0 | AK29: 0 | AL29: 0 | AM29: 0 | AN29: =IF($N67<>"",$Q67,0) -> 0.07931211764 | AO29: 0 | AP29: 0 | AQ29: 0 | AR29: 0 | AS29: 0 | AT29: 0 | AU29: 0 | AV29: 0 | AW29: 0 | AX29: 0 | AY29: 0 | AZ29: 0 | BA29: 0 | BB29: 0 | BC29: 0 | BD29: 0
A30: 4.936537386 | B30: 520.424422 | C30: =IF($A30<>"",$I$12*SQRT(($X$14+B30*$X$15+B30^2*$X$16)/$D$16+MMULT(MMULT($Z60:$AA60,COV),TRANSPOSE($Z60:$AA60)))/$C$10,"") -> 4.911806136 | D30: 0.9438077708 | E30: =IF(A30="","",IF(Input!M44>0,(B30*Input!M44-$M$7*Input!L44)*Input!$N$23,"na")) -> 2.581501142 | N30: 13.51608 | O30: 0.1292794356 | P30: =IF($N63<>"",$I$12*SQRT(($X$14+N30*$X$15+N30^2*$X$16)/$D$16+MMULT(MMULT($AD59:$AE59,COV),TRANSPOSE($AD59:$AE59))),"") -> 0.007005226497 | Q30: 0.1145620008 | R30: 0.1439968703 | S30: 11.71453547 | T30: 5.575902032 | U30: =IF($N63<>0,-100*(O30-'Test of calibration function'!$B38)/($C$10*N30),"") -> -2.844038793 | W30: 5.465167034 | X30: 11.48188988 | Z30: 0.01639344262 | AA30: 0 | AB30: 0 | AC30: 0 | AD30: 0 | AE30: 0 | AF30: 0 | AG30: 0 | AH30: 0 | AI30: 0 | AJ30: 0 | AK30: 0 | AL30: 0 | AM30: 0 | AN30: 0 | AO30: =IF($N68<>"",$Q68,0) -> 0.07931211764 | AP30: 0 | AQ30: 0 | AR30: 0 | AS30: 0 | AT30: 0 | AU30: 0 | AV30: 0 | AW30: 0 | AX30: 0 | AY30: 0 | AZ30: 0 | BA30: 0 | BB30: 0 | BC30: 0 | BD30: 0
A31: 0.05073637373 | B31: 5.233992029 | C31: =IF($A31<>"",$I$12*SQRT(($X$14+B31*$X$15+B31^2*$X$16)/$D$16+MMULT(MMULT($Z61:$AA61,COV),TRANSPOSE($Z61:$AA61)))/$C$10,"") -> 0.4859394606 | D31: 9.284298828 | E31: =IF(A31="","",IF(Input!M45>0,(B31*Input!M45-$M$7*Input!L45)*Input!$N$23,"na")) -> 0.005548992091 | N31: 27.03216 | O31: 0.2574589853 | P31: =IF($N64<>"",$I$12*SQRT(($X$14+N31*$X$15+N31^2*$X$16)/$D$16+MMULT(MMULT($AD60:$AE60,COV),TRANSPOSE($AD60:$AE60))),"") -> 0.009745296393 | Q31: 0.2369848773 | R31: 0.2779330933 | S31: 8.251573889 | T31: 3.927596422 | U31: =IF($N64<>0,-100*(O31-'Test of calibration function'!$B39)/($C$10*N31),"") -> -3.641499421 | W31: 3.801424023 | X31: 7.986495514 | Z31: 0.009900990099 | AA31: 0 | AB31: 0 | AC31: 0 | AD31: 0 | AE31: 0 | AF31: 0 | AG31: 0 | AH31: 0 | AI31: 0 | AJ31: 0 | AK31: 0 | AL31: 0 | AM31: 0 | AN31: 0 | AO31: 0 | AP31: =IF($N69<>"",$Q69,0) -> 0.04790137798 | AQ31: 0 | AR31: 0 | AS31: 0 | AT31: 0 | AU31: 0 | AV31: 0 | AW31: 0 | AX31: 0 | AY31: 0 | AZ31: 0 | BA31: 0 | BB31: 0 | BC31: 0 | BD31: 0
A32: 0.04712442049 | B32: 4.85312434 | C32: =IF($A32<>"",$I$12*SQRT(($X$14+B32*$X$15+B32^2*$X$16)/$D$16+MMULT(MMULT($Z62:$AA62,COV),TRANSPOSE($Z62:$AA62)))/$C$10,"") -> 0.4711289985 | D32: 9.707746298 | E32: =IF(A32="","",IF(Input!M46>0,(B32*Input!M46-$M$7*Input!L46)*Input!$N$23,"na")) -> 0.003644653646 | N32: 54.06432 | O32: 0.5138180848 | P32: =IF($N65<>"",$I$12*SQRT(($X$14+N32*$X$15+N32^2*$X$16)/$D$16+MMULT(MMULT($AD61:$AE61,COV),TRANSPOSE($AD61:$AE61))),"") -> 0.01373012361 | Q32: 0.4849721655 | R32: 0.5426640041 | S32: 5.823330117 | T32: 2.771797337 | U32: =IF($N65<>0,-100*(O32-'Test of calibration function'!$B40)/($C$10*N32),"") -> -3.601815748 | W32: 2.677908379 | X32: 5.626076734 | Z32: 0.004975124378 | AA32: 0 | AB32: 0 | AC32: 0 | AD32: 0 | AE32: 0 | AF32: 0 | AG32: 0 | AH32: 0 | AI32: 0 | AJ32: 0 | AK32: 0 | AL32: 0 | AM32: 0 | AN32: 0 | AO32: 0 | AP32: 0 | AQ32: =IF($N70<>"",$Q70,0) -> 0.02406984665 | AR32: 0 | AS32: 0 | AT32: 0 | AU32: 0 | AV32: 0 | AW32: 0 | AX32: 0 | AY32: 0 | AZ32: 0 | BA32: 0 | BB32: 0 | BC32: 0 | BD32: 0
A33: 0.01582759344 | B33: 1.552984661 | C33: =IF($A33<>"",$I$12*SQRT(($X$14+B33*$X$15+B33^2*$X$16)/$D$16+MMULT(MMULT($Z63:$AA63,COV),TRANSPOSE($Z63:$AA63)))/$C$10,"") -> 0.315211066 | D33: 20.29711394 | E33: =IF(A33="","",IF(Input!M47>0,(B33*Input!M47-$M$7*Input!L47)*Input!$N$23,"na")) -> -0.01285604475 | N33: 54.06432 | O33: 0.5138180848 | P33: =IF($N66<>"",$I$12*SQRT(($X$14+N33*$X$15+N33^2*$X$16)/$D$16+MMULT(MMULT($AD62:$AE62,COV),TRANSPOSE($AD62:$AE62))),"") -> 0.01373012361 | Q33: 0.4849721655 | R33: 0.5426640041 | S33: 5.822974139 | T33: 2.771627898 | U33: =IF($N66<>0,-100*(O33-'Test of calibration function'!$B41)/($C$10*N33),"") -> -3.59590949 | W33: 2.677908379 | X33: 5.626076734 | Z33: 0.003322259136 | AA33: 0 | AB33: 0 | AC33: 0 | AD33: 0 | AE33: 0 | AF33: 0 | AG33: 0 | AH33: 0 | AI33: 0 | AJ33: 0 | AK33: 0 | AL33: 0 | AM33: 0 | AN33: 0 | AO33: 0 | AP33: 0 | AQ33: 0 | AR33: =IF($N71<>"",$Q71,0) -> 0.01607321985 | AS33: 0 | AT33: 0 | AU33: 0 | AV33: 0 | AW33: 0 | AX33: 0 | AY33: 0 | AZ33: 0 | BA33: 0 | BB33: 0 | BC33: 0 | BD33: 0
B34: =IF(A34<>"",(A34-$C$9)/$C$10,0) -> 0 | C34: =IF($A34<>"",$I$12*SQRT(($X$14+B34*$X$15+B34^2*$X$16)/$D$16+MMULT(MMULT($Z64:$AA64,COV),TRANSPOSE($Z64:$AA64)))/$C$10,"") ->  | E34: =IF(A34="","",IF(Input!M48>0,(B34*Input!M48-$M$7*Input!L48)*Input!$N$23,"na")) ->  | N34: 54.06432 | O34: 0.5138180848 | P34: =IF($N67<>"",$I$12*SQRT(($X$14+N34*$X$15+N34^2*$X$16)/$D$16+MMULT(MMULT($AD63:$AE63,COV),TRANSPOSE($AD63:$AE63))),"") -> 0.01373012361 | Q34: 0.4849721655 | R34: 0.5426640041 | S34: 5.833808261 | T34: 2.77678474 | U34: =IF($N67<>0,-100*(O34-'Test of calibration function'!$B42)/($C$10*N34),"") -> -3.775342512 | W34: =IF(N34<>"",100*P34/($C$10*N34),"") -> 2.677908379 | X34: =IF(N34<>"",W34*$E$16,"") -> 5.626076734 | Z34: 0.001996007984 | AA34: 0 | AB34: 0 | AC34: 0 | AD34: 0 | AE34: 0 | AF34: 0 | AG34: 0 | AH34: 0 | AI34: 0 | AJ34: 0 | AK34: 0 | AL34: 0 | AM34: 0 | AN34: 0 | AO34: 0 | AP34: 0 | AQ34: 0 | AR34: 0 | AS34: =IF($N72<>"",$Q72,0) -> 0.009656764822 | AT34: 0 | AU34: 0 | AV34: 0 | AW34: 0 | AX34: 0 | AY34: 0 | AZ34: 0 | BA34: 0 | BB34: 0 | BC34: 0 | BD34: 0
A35: 2.741762449 | B35: 288.9931704 | C35: =IF($A35<>"",$I$12*SQRT(($X$14+B35*$X$15+B35^2*$X$16)/$D$16+MMULT(MMULT($Z65:$AA65,COV),TRANSPOSE($Z65:$AA65)))/$C$10,"") -> 3.496890767 | D35: 1.2100254 | E35: =IF(A35="","",IF(Input!M49>0,(B35*Input!M49-$M$7*Input!L49)*Input!$N$23,"na")) -> 284868.9768 | N35: 54.06432 | O35: 0.5138180848 | P35: =IF($N68<>"",$I$12*SQRT(($X$14+N35*$X$15+N35^2*$X$16)/$D$16+MMULT(MMULT($AD64:$AE64,COV),TRANSPOSE($AD64:$AE64))),"") -> 0.01373012361 | Q35: 0.4849721655 | R35: 0.5426640041 | S35: 5.795081209 | T35: 2.75835138 | U35: =IF($N68<>0,-100*(O35-'Test of calibration function'!$B43)/($C$10*N35),"") -> -3.130864039 | W35: =IF(N35<>"",100*P35/($C$10*N35),"") -> 2.677908379 | X35: =IF(N35<>"",W35*$E$16,"") -> 5.626076734 | Z35: 0.000999000999 | AA35: 0 | AB35: 0 | AC35: 0 | AD35: 0 | AE35: 0 | AF35: 0 | AG35: 0 | AH35: 0 | AI35: 0 | AJ35: 0 | AK35: 0 | AL35: 0 | AM35: 0 | AN35: 0 | AO35: 0 | AP35: 0 | AQ35: 0 | AR35: 0 | AS35: 0 | AT35: =IF($N73<>"",$Q73,0) -> 0.00483320597 | AU35: 0 | AV35: 0 | AW35: 0 | AX35: 0 | AY35: 0 | AZ35: 0 | BA35: 0 | BB35: 0 | BC35: 0 | BD35: 0
A36: 0.02796282127 | B36: 2.8326015 | C36: =IF($A36<>"",$I$12*SQRT(($X$14+B36*$X$15+B36^2*$X$16)/$D$16+MMULT(MMULT($Z66:$AA66,COV),TRANSPOSE($Z66:$AA66)))/$C$10,"") -> 0.3832121533 | D36: 13.52862919 | E36: =IF(A36="","",IF(Input!M50>0,(B36*Input!M50-$M$7*Input!L50)*Input!$N$23,"na")) -> -0.9053282707 | N36: 90.1072 | O36: 0.8556302174 | P36: =IF($N69<>"",$I$12*SQRT(($X$14+N36*$X$15+N36^2*$X$16)/$D$16+MMULT(MMULT($AD65:$AE65,COV),TRANSPOSE($AD65:$AE65))),"") -> 0.01780095052 | Q36: 0.8182318082 | R36: 0.8930286267 | S36: 4.582859906 | T36: 2.18135648 | U36: =IF($N69<>0,-100*(O36-'Test of calibration function'!$B44)/($C$10*N36),"") -> -4.631857995 | W36: 2.08312682 | X36: 4.376487048 | AA36: 0 | AB36: 0 | AC36: 0 | AD36: 0 | AE36: 0 | AF36: 0 | AG36: 0 | AH36: 0 | AI36: 0 | AJ36: 0 | AK36: 0 | AL36: 0 | AM36: 0 | AN36: 0 | AO36: 0 | AP36: 0 | AQ36: 0 | AR36: 0 | AS36: 0 | AT36: 0 | AU36: =IF($N74<>"",$Q74,0) -> 0 | AV36: 0 | AW36: 0 | AX36: 0 | AY36: 0 | AZ36: 0 | BA36: 0 | BB36: 0 | BC36: 0 | BD36: 0
A37: 0.03039825246 | B37: 3.089409101 | C37: =IF($A37<>"",$I$12*SQRT(($X$14+B37*$X$15+B37^2*$X$16)/$D$16+MMULT(MMULT($Z67:$AA67,COV),TRANSPOSE($Z67:$AA67)))/$C$10,"") -> 0.3954618646 | D37: 12.80056644 | E37: =IF(A37="","",IF(Input!M51>0,(B37*Input!M51-$M$7*Input!L51)*Input!$N$23,"na")) -> 4.087635815 | N37: 180.2144 | O37: 1.710160549 | P37: =IF($N70<>"",$I$12*SQRT(($X$14+N37*$X$15+N37^2*$X$16)/$D$16+MMULT(MMULT($AD66:$AE66,COV),TRANSPOSE($AD66:$AE66))),"") -> 0.02561091196 | Q37: 1.65635402 | R37: 1.763967078 | S37: 3.155802337 | T37: 1.502103494 | U37: =IF($N70<>0,-100*(O37-'Test of calibration function'!$B45)/($C$10*N37),"") -> -0.3017677762 | W37: 1.498537326 | X37: 3.148310096 | AA37: 0 | AB37: 0 | AC37: 0 | AD37: 0 | AE37: 0 | AF37: 0 | AG37: 0 | AH37: 0 | AI37: 0 | AJ37: 0 | AK37: 0 | AL37: 0 | AM37: 0 | AN37: 0 | AO37: 0 | AP37: 0 | AQ37: 0 | AR37: 0 | AS37: 0 | AT37: 0 | AU37: 0 | AV37: =IF($N75<>"",$Q75,0) -> 0 | AW37: 0 | AX37: 0 | AY37: 0 | AZ37: 0 | BA37: 0 | BB37: 0 | BC37: 0 | BD37: 0
A38: 0.06227377558 | B38: 6.450570233 | C38: =IF($A38<>"",$I$12*SQRT(($X$14+B38*$X$15+B38^2*$X$16)/$D$16+MMULT(MMULT($Z68:$AA68,COV),TRANSPOSE($Z68:$AA68)))/$C$10,"") -> 0.5305173432 | D38: 8.224347988 | E38: =IF(A38="","",IF(Input!M52>0,(B38*Input!M52-$M$7*Input!L52)*Input!$N$23,"na")) -> 10.62388437 | N38: 270.3216 | O38: 2.564690881 | P38: =IF($N71<>"",$I$12*SQRT(($X$14+N38*$X$15+N38^2*$X$16)/$D$16+MMULT(MMULT($AD67:$AE67,COV),TRANSPOSE($AD67:$AE67))),"") -> 0.03195143094 | Q38: 2.497563415 | R38: 2.631818346 | S38: 2.611300714 | T38: 1.242930801 | U38: =IF($N71<>0,-100*(O38-'Test of calibration function'!$B46)/($C$10*N38),"") -> 0.2325471548 | W38: 1.246354469 | X38: 2.618493575 | AA38: 0 | AB38: 0 | AC38: 0 | AD38: 0 | AE38: 0 | AF38: 0 | AG38: 0 | AH38: 0 | AI38: 0 | AJ38: 0 | AK38: 0 | AL38: 0 | AM38: 0 | AN38: 0 | AO38: 0 | AP38: 0 | AQ38: 0 | AR38: 0 | AS38: 0 | AT38: 0 | AU38: 0 | AV38: 0 | AW38: =IF($N76<>"",$Q76,0) -> 0 | AX38: 0 | AY38: 0 | AZ38: 0 | BA38: 0 | BB38: 0 | BC38: 0 | BD38: 0
B39: 0 | C39: =IF($A39<>"",$I$12*SQRT(($X$14+B39*$X$15+B39^2*$X$16)/$D$16+MMULT(MMULT($Z69:$AA69,COV),TRANSPOSE($Z69:$AA69)))/$C$10,"") ->  | E39: =IF(A39="","",IF(Input!M53>0,(B39*Input!M53-$M$7*Input!L53)*Input!$N$23,"na")) ->  | N39: 450.536 | O39: 4.273751544 | P39: =IF($N72<>"",$I$12*SQRT(($X$14+N39*$X$15+N39^2*$X$16)/$D$16+MMULT(MMULT($AD68:$AE68,COV),TRANSPOSE($AD68:$AE68))),"") -> 0.04276253806 | Q39: 4.183910785 | R39: 4.363592303 | S39: 2.081790463 | T39: 0.9908937233 | U39: =IF($N72<>0,-100*(O39-'Test of calibration function'!$B47)/($C$10*N39),"") -> 0.9783357056 | W39: 1.000843071 | X39: 2.102693266 | AA39: 0 | AB39: 0 | AC39: 0 | AD39: 0 | AE39: 0 | AF39: 0 | AG39: 0 | AH39: 0 | AI39: 0 | AJ39: 0 | AK39: 0 | AL39: 0 | AM39: 0 | AN39: 0 | AO39: 0 | AP39: 0 | AQ39: 0 | AR39: 0 | AS39: 0 | AT39: 0 | AU39: 0 | AV39: 0 | AW39: 0 | AX39: =IF($N77<>"",$Q77,0) -> 0 | AY39: 0 | AZ39: 0 | BA39: 0 | BB39: 0 | BC39: 0 | BD39: 0
B40: 0 | C40: =IF($A40<>"",$I$12*SQRT(($X$14+B40*$X$15+B40^2*$X$16)/$D$16+MMULT(MMULT($Z70:$AA70,COV),TRANSPOSE($Z70:$AA70)))/$C$10,"") ->  | E40: =IF(A40="","",IF(Input!M54>0,(B40*Input!M54-$M$7*Input!L54)*Input!$N$23,"na")) ->  | N40: 901.072 | O40: 8.546403202 | P40: =IF($N73<>"",$I$12*SQRT(($X$14+N40*$X$15+N40^2*$X$16)/$D$16+MMULT(MMULT($AD69:$AE69,COV),TRANSPOSE($AD69:$AE69))),"") -> 0.06558783571 | Q40: 8.408608273 | R40: 8.684198132 | S40: 1.597449558 | T40: 0.7603564185 | U40: =IF($N73<>0,-100*(O40-'Test of calibration function'!$B48)/($C$10*N40),"") -> 0.9306850641 | W40: 0.7675308094 | X40: 1.612522394 | AA40: 0 | AB40: 0 | AC40: 0 | AD40: 0 | AE40: 0 | AF40: 0 | AG40: 0 | AH40: 0 | AI40: 0 | AJ40: 0 | AK40: 0 | AL40: 0 | AM40: 0 | AN40: 0 | AO40: 0 | AP40: 0 | AQ40: 0 | AR40: 0 | AS40: 0 | AT40: 0 | AU40: 0 | AV40: 0 | AW40: 0 | AX40: 0 | AY40: =IF($N78<>"",$Q78,0) -> 0 | AZ40: 0 | BA40: 0 | BB40: 0 | BC40: 0 | BD40: 0
B41: 0 | C41: =IF($A41<>"",$I$12*SQRT(($X$14+B41*$X$15+B41^2*$X$16)/$D$16+MMULT(MMULT($Z71:$AA71,COV),TRANSPOSE($Z71:$AA71)))/$C$10,"") ->  | E41: =IF(A41="","",IF(Input!M55>0,(B41*Input!M55-$M$7*Input!L55)*Input!$N$23,"na")) ->  | P41: =IF($N74<>"",$I$12*SQRT(($X$14+N41*$X$15+N41^2*$X$16)/$D$16+MMULT(MMULT($AD70:$AE70,COV),TRANSPOSE($AD70:$AE70))),"") ->  | U41: =IF($N74<>0,-100*(O41-'Test of calibration function'!$B49)/($C$10*N41),"") ->  | AA41: 0 | AB41: 0 | AC41: 0 | AD41: 0 | AE41: 0 | AF41: 0 | AG41: 0 | AH41: 0 | AI41: 0 | AJ41: 0 | AK41: 0 | AL41: 0 | AM41: 0 | AN41: 0 | AO41: 0 | AP41: 0 | AQ41: 0 | AR41: 0 | AS41: 0 | AT41: 0 | AU41: 0 | AV41: 0 | AW41: 0 | AX41: 0 | AY41: 0 | AZ41: =IF($N79<>"",$Q79,0) -> 0 | BA41: 0 | BB41: 0 | BC41: 0 | BD41: 0
B42: 0 | C42: =IF($A42<>"",$I$12*SQRT(($X$14+B42*$X$15+B42^2*$X$16)/$D$16+MMULT(MMULT($Z72:$AA72,COV),TRANSPOSE($Z72:$AA72)))/$C$10,"") ->  | E42: =IF(A42="","",IF(Input!M56>0,(B42*Input!M56-$M$7*Input!L56)*Input!$N$23,"na")) ->  | P42: =IF($N75<>"",$I$12*SQRT(($X$14+N42*$X$15+N42^2*$X$16)/$D$16+MMULT(MMULT($AD71:$AE71,COV),TRANSPOSE($AD71:$AE71))),"") ->  | U42: =IF($N75<>0,-100*(O42-'Test of calibration function'!$B50)/($C$10*N42),"") ->  | AA42: 0 | AB42: 0 | AC42: 0 | AD42: 0 | AE42: 0 | AF42: 0 | AG42: 0 | AH42: 0 | AI42: 0 | AJ42: 0 | AK42: 0 | AL42: 0 | AM42: 0 | AN42: 0 | AO42: 0 | AP42: 0 | AQ42: 0 | AR42: 0 | AS42: 0 | AT42: 0 | AU42: 0 | AV42: 0 | AW42: 0 | AX42: 0 | AY42: 0 | AZ42: 0 | BA42: =IF($N80<>"",$Q80,0) -> 0 | BB42: 0 | BC42: 0 | BD42: 0
B43: 0 | C43: =IF($A43<>"",$I$12*SQRT(($X$14+B43*$X$15+B43^2*$X$16)/$D$16+MMULT(MMULT($Z73:$AA73,COV),TRANSPOSE($Z73:$AA73)))/$C$10,"") ->  | E43: =IF(A43="","",IF(Input!M57>0,(B43*Input!M57-$M$7*Input!L57)*Input!$N$23,"na")) ->  | P43: =IF($N76<>"",$I$12*SQRT(($X$14+N43*$X$15+N43^2*$X$16)/$D$16+MMULT(MMULT($AD72:$AE72,COV),TRANSPOSE($AD72:$AE72))),"") ->  | U43: =IF($N76<>0,-100*(O43-'Test of calibration function'!$B51)/($C$10*N43),"") ->  | AA43: 0 | AB43: 0 | AC43: 0 | AD43: 0 | AE43: 0 | AF43: 0 | AG43: 0 | AH43: 0 | AI43: 0 | AJ43: 0 | AK43: 0 | AL43: 0 | AM43: 0 | AN43: 0 | AO43: 0 | AP43: 0 | AQ43: 0 | AR43: 0 | AS43: 0 | AT43: 0 | AU43: 0 | AV43: 0 | AW43: 0 | AX43: 0 | AY43: 0 | AZ43: 0 | BA43: 0 | BB43: =IF($N81<>"",$Q81,0) -> 0 | BC43: 0 | BD43: 0
B44: 0 | C44: =IF($A44<>"",$I$12*SQRT(($X$14+B44*$X$15+B44^2*$X$16)/$D$16+MMULT(MMULT($Z74:$AA74,COV),TRANSPOSE($Z74:$AA74)))/$C$10,"") ->  | E44: =IF(A44="","",IF(Input!M58>0,(B44*Input!M58-$M$7*Input!L58)*Input!$N$23,"na")) ->  | P44: =IF($N77<>"",$I$12*SQRT(($X$14+N44*$X$15+N44^2*$X$16)/$D$16+MMULT(MMULT($AD73:$AE73,COV),TRANSPOSE($AD73:$AE73))),"") ->  | U44: =IF($N77<>0,-100*(O44-'Test of calibration function'!$B52)/($C$10*N44),"") ->  | AA44: 0 | AB44: 0 | AC44: 0 | AD44: 0 | AE44: 0 | AF44: 0 | AG44: 0 | AH44: 0 | AI44: 0 | AJ44: 0 | AK44: 0 | AL44: 0 | AM44: 0 | AN44: 0 | AO44: 0 | AP44: 0 | AQ44: 0 | AR44: 0 | AS44: 0 | AT44: 0 | AU44: 0 | AV44: 0 | AW44: 0 | AX44: 0 | AY44: 0 | AZ44: 0 | BA44: 0 | BB44: 0 | BC44: =IF($N82<>"",$Q82,0) -> 0 | BD44: 0
B45: 0 | C45: =IF($A45<>"",$I$12*SQRT(($X$14+B45*$X$15+B45^2*$X$16)/$D$16+MMULT(MMULT($Z75:$AA75,COV),TRANSPOSE($Z75:$AA75)))/$C$10,"") ->  | E45: =IF(A45="","",IF(Input!M59>0,(B45*Input!M59-$M$7*Input!L59)*Input!$N$23,"na")) ->  | P45: =IF($N78<>"",$I$12*SQRT(($X$14+N45*$X$15+N45^2*$X$16)/$D$16+MMULT(MMULT($AD74:$AE74,COV),TRANSPOSE($AD74:$AE74))),"") ->  | U45: =IF($N78<>0,-100*(O45-'Test of calibration function'!$B53)/($C$10*N45),"") ->  | AA45: 0 | AB45: 0 | AC45: 0 | AD45: 0 | AE45: 0 | AF45: 0 | AG45: 0 | AH45: 0 | AI45: 0 | AJ45: 0 | AK45: 0 | AL45: 0 | AM45: 0 | AN45: 0 | AO45: 0 | AP45: 0 | AQ45: 0 | AR45: 0 | AS45: 0 | AT45: 0 | AU45: 0 | AV45: 0 | AW45: 0 | AX45: 0 | AY45: 0 | AZ45: 0 | BA45: 0 | BB45: 0 | BC45: 0 | BD45: =IF($N83<>"",$Q83,0) -> 0
B46: 0 | C46: =IF($A46<>"",$I$12*SQRT(($X$14+B46*$X$15+B46^2*$X$16)/$D$16+MMULT(MMULT($Z76:$AA76,COV),TRANSPOSE($Z76:$AA76)))/$C$10,"") ->  | E46: =IF(A46="","",IF(Input!M60>0,(B46*Input!M60-$M$7*Input!L60)*Input!$N$23,"na")) ->  | P46: =IF($N79<>"",$I$12*SQRT(($X$14+N46*$X$15+N46^2*$X$16)/$D$16+MMULT(MMULT($AD75:$AE75,COV),TRANSPOSE($AD75:$AE75))),"") ->  | U46: =IF($N79<>0,-100*(O46-'Test of calibration function'!$B54)/($C$10*N46),"") -> 
B47: 0 | C47: =IF($A47<>"",$I$12*SQRT(($X$14+B47*$X$15+B47^2*$X$16)/$D$16+MMULT(MMULT($Z77:$AA77,COV),TRANSPOSE($Z77:$AA77)))/$C$10,"") ->  | E47: =IF(A47="","",IF(Input!M61>0,(B47*Input!M61-$M$7*Input!L61)*Input!$N$23,"na")) ->  | P47: =IF($N80<>"",$I$12*SQRT(($X$14+N47*$X$15+N47^2*$X$16)/$D$16+MMULT(MMULT($AD76:$AE76,COV),TRANSPOSE($AD76:$AE76))),"") ->  | U47: =IF($N80<>0,-100*(O47-'Test of calibration function'!$B55)/($C$10*N47),"") ->  | Z47: Values for unknown | AC47: Values for calibration | AH47: Xmin | AI47: =MIN(X) -> 0.901072
B48: 0 | C48: =IF($A48<>"",$I$12*SQRT(($X$14+B48*$X$15+B48^2*$X$16)/$D$16+MMULT(MMULT($Z78:$AA78,COV),TRANSPOSE($Z78:$AA78)))/$C$10,"") ->  | E48: =IF(A48="","",IF(Input!M62>0,(B48*Input!M62-$M$7*Input!L62)*Input!$N$23,"na")) ->  | P48: =IF($N81<>"",$I$12*SQRT(($X$14+N48*$X$15+N48^2*$X$16)/$D$16+MMULT(MMULT($AD77:$AE77,COV),TRANSPOSE($AD77:$AE77))),"") ->  | U48: =IF($N81<>0,-100*(O48-'Test of calibration function'!$B56)/($C$10*N48),"") ->  | Z48: Q | AA48: Xm | AC48: Y | AD48: Q | AE48: X | AH48: Xmax | AI48: =MAX(X) -> 901.072
B49: 0 | C49: =IF($A49<>"",$I$12*SQRT(($X$14+B49*$X$15+B49^2*$X$16)/$D$16+MMULT(MMULT($Z79:$AA79,COV),TRANSPOSE($Z79:$AA79)))/$C$10,"") ->  | D49: =IF(A49<>"",100*C49/B49,"") ->  | E49: =IF(A49="","",IF(Input!M63>0,(B49*Input!M63-$M$7*Input!L63)*Input!$N$23,"na")) ->  | P49: =IF($N82<>"",$I$12*SQRT(($X$14+N49*$X$15+N49^2*$X$16)/$D$16+MMULT(MMULT($AD78:$AE78,COV),TRANSPOSE($AD78:$AE78))),"") ->  | U49: =IF($N82<>0,-100*(O49-'Test of calibration function'!$B57)/($C$10*N49),"") ->  | Z49: =IF(A19<>"",1,0) -> 1 | AA49: =IF(B19<>"",$B19^1,0) -> 3.440914034 | AC49: na | AD49: 1 | AE49: 0 | AH49: dX | AI49: =(AI48/AI47)^(1/20) -> 1.412537545
B50: 0 | C50: =IF($A50<>"",$I$12*SQRT(($X$14+B50*$X$15+B50^2*$X$16)/$D$16+MMULT(MMULT($Z80:$AA80,COV),TRANSPOSE($Z80:$AA80)))/$C$10,"") ->  | E50: =IF(A50="","",IF(Input!M64>0,(B50*Input!M64-$M$7*Input!L64)*Input!$N$23,"na")) ->  | P50: =IF($N83<>"",$I$12*SQRT(($X$14+N50*$X$15+N50^2*$X$16)/$D$16+MMULT(MMULT($AD79:$AE79,COV),TRANSPOSE($AD79:$AE79))),"") ->  | U50: =IF($N83<>0,-100*(O50-'Test of calibration function'!$B58)/($C$10*N50),"") ->  | Z50: 1 | AA50: 3.390426067 | AC50: =IF(N54<>"",O54,0) -> 0.01166200783 | AD50: =IF(N54<>"",1,0) -> 1 | AE50: =$N54^1 -> 0.901072 | AH50: Plot of line | AJ50: Prediction intervals
B51: 0 | C51: =IF($A51<>"",$I$12*SQRT(($X$14+B51*$X$15+B51^2*$X$16)/$D$16+MMULT(MMULT($Z81:$AA81,COV),TRANSPOSE($Z81:$AA81)))/$C$10,"") ->  | E51: =IF(A51="","",IF(Input!M65>0,(B51*Input!M65-$M$7*Input!L65)*Input!$N$23,"na")) ->  | T51: MeanAbs | U51: =SUM(IF(U21:U50>0,U21:U50,-U21:U50))/COUNT(U21:U50) -> 4.225789554 | W51: =MIN(W21:W50) -> 0.7675308094 | X51: Min | Z51: 1 | AA51: 2.748129059 | AC51: 0.01016128507 | AD51: 1 | AE51: 0.901072 | AH51: X | AI51: Yo | AJ51: sYo | AK51: Y- | AL51: Y+ | AM51: PI % | AN51: RSD %
B52: 0 | C52: =IF($A52<>"",$I$12*SQRT(($X$14+B52*$X$15+B52^2*$X$16)/$D$16+MMULT(MMULT($Z82:$AA82,COV),TRANSPOSE($Z82:$AA82)))/$C$10,"") ->  | E52: =IF(A52="","",IF(Input!M66>0,(B52*Input!M66-$M$7*Input!L66)*Input!$N$23,"na")) ->  | N52: Calibration values | W52: =MAX(W21:W50) -> 30.43015953 | X52: Max | Z52: 1 | AA52: 3.090649751 | AC52: 0.01023730808 | AD52: 1 | AE52: 0.901072 | AG52: 1 | AH52: 0 | AI52: =$C$9+$AH52*$C$10 -> 0.001099885805 | AJ52: =$I$12*SQRT(($X$14+AH52*$X$15+AH52^2*$X$16)/$D$16+MMULT(MMULT($AG52:$AH52,COV),TRANSPOSE($AG52:$AH52))) -> 0.001938820072 | AK52: =$C$9-$E$16*AJ52 -> -0.002973424017 | AL52: =$C$9+$E$16*AJ52 -> 0.005173195627
B53: 0 | C53: =IF($A53<>"",$I$12*SQRT(($X$14+B53*$X$15+B53^2*$X$16)/$D$16+MMULT(MMULT($Z83:$AA83,COV),TRANSPOSE($Z83:$AA83)))/$C$10,"") ->  | E53: =IF(A53="","",IF(Input!M67>0,(B53*Input!M67-$M$7*Input!L67)*Input!$N$23,"na")) ->  | N53: X | O53: Y | Q53: W | R53: s(i) | Z53: 1 | AA53: 3.456114714 | AC53: 0.009632461888 | AD53: 1 | AE53: 0.901072 | AG53: 1 | AH53: =AI47 -> 0.901072 | AI53: 0.009645189121 | AJ53: =$I$12*SQRT(($X$14+AH53*$X$15+AH53^2*$X$16)/$D$16+MMULT(MMULT($AG53:$AH53,COV),TRANSPOSE($AG53:$AH53))) -> 0.002600349431 | AK53: =$AI53-$E$16*$AJ53 -> 0.004182057689 | AL53: =$AI53+$E$16*$AJ53 -> 0.01510832055 | AM53: =100*AJ53*$E$16/AI53 -> 56.64099857 | AN53: =100*AJ53/AI53 -> 26.96006681
B54: 0 | C54: =IF($A54<>"",$I$12*SQRT(($X$14+B54*$X$15+B54^2*$X$16)/$D$16+MMULT(MMULT($Z84:$AA84,COV),TRANSPOSE($Z84:$AA84)))/$C$10,"") ->  | E54: =IF(A54="","",IF(Input!M68>0,(B54*Input!M68-$M$7*Input!L68)*Input!$N$23,"na")) ->  | N54: 0.901072 | O54: 0.01166200783 | Q54: =IF(N54<>"",Z16*$X$11,"") -> 2.419019588 | R54: =IF(N54<>"",$I$12/SQRT(Q54),"") -> 0.002454159522 | Z54: 1 | AA54: 3.725253226 | AC54: 0.00973915424 | AD54: 1 | AE54: 0.901072 | AG54: 1 | AH54: =AH53*$AI$49 -> 1.27279803 | AI54: 0.01317044757 | AJ54: =$I$12*SQRT(($X$14+AH54*$X$15+AH54^2*$X$16)/$D$16+MMULT(MMULT($AG54:$AH54,COV),TRANSPOSE($AG54:$AH54))) -> 0.002828663623 | AK54: 0.00722764582 | AL54: 0.01911324932 | AM54: =100*AJ54*$E$16/AI54 -> 45.12224598 | AN54: =100*AJ54/AI54 -> 21.47735381
B55: 0 | C55: =IF($A55<>"",$I$12*SQRT(($X$14+B55*$X$15+B55^2*$X$16)/$D$16+MMULT(MMULT($Z85:$AA85,COV),TRANSPOSE($Z85:$AA85)))/$C$10,"") ->  | E55: =IF(A55="","",IF(Input!M69>0,(B55*Input!M69-$M$7*Input!L69)*Input!$N$23,"na")) ->  | N55: 0.901072 | O55: 0.01016128507 | Q55: 2.419019588 | R55: 0.002454159522 | T55: Values for CI Low | W55: Values for CI High | Z55: 1 | AA55: 14.55591245 | AC55: 0.009820539463 | AD55: 1 | AE55: 0.901072 | AG55: 1 | AH55: =AH54*$AI$49 -> 1.797875005 | AI55: 0.01815000748 | AJ55: =$I$12*SQRT(($X$14+AH55*$X$15+AH55^2*$X$16)/$D$16+MMULT(MMULT($AG55:$AH55,COV),TRANSPOSE($AG55:$AH55))) -> 0.003122972843 | AK55: 0.011588885 | AL55: 0.02471112996 | AM55: 36.14942024 | AN55: 17.20645485
B56: 0 | C56: =IF($A56<>"",$I$12*SQRT(($X$14+B56*$X$15+B56^2*$X$16)/$D$16+MMULT(MMULT($Z86:$AA86,COV),TRANSPOSE($Z86:$AA86)))/$C$10,"") ->  | E56: =IF(A56="","",IF(Input!M70>0,(B56*Input!M70-$M$7*Input!L70)*Input!$N$23,"na")) ->  | N56: 0.901072 | O56: 0.01023730808 | Q56: 2.419019588 | R56: 0.002454159522 | T56: Q | U56: X | W56: Q | X56: X | Z56: 1 | AA56: 5.230744785 | AC56: 0.01072667925 | AD56: 1 | AE56: 0.901072 | AG56: 1 | AH56: 2.539565945 | AI56: 0.02518382281 | AJ56: =$I$12*SQRT(($X$14+AH56*$X$15+AH56^2*$X$16)/$D$16+MMULT(MMULT($AG56:$AH56,COV),TRANSPOSE($AG56:$AH56))) -> 0.003496954503 | AK56: 0.01783699403 | AL56: 0.0325306516 | AM56: 29.17281003 | AN56: 13.88571754
B57: 0 | C57: =IF($A57<>"",$I$12*SQRT(($X$14+B57*$X$15+B57^2*$X$16)/$D$16+MMULT(MMULT($Z87:$AA87,COV),TRANSPOSE($Z87:$AA87)))/$C$10,"") ->  | E57: =IF(A57="","",IF(Input!M71>0,(B57*Input!M71-$M$7*Input!L71)*Input!$N$23,"na")) ->  | N57: 0.901072 | O57: 0.009632461888 | Q57: 2.419019588 | R57: 0.002454159522 | T57: 1 | U57: 0.849766747 | W57: 1 | X57: 7.07639598 | Z57: 1 | AA57: 6.997834147 | AC57: 0.02250464678 | AD57: 1 | AE57: 2.25268 | AG57: 1 | AH57: 3.587232244 | AI57: 0.03511935105 | AJ57: =$I$12*SQRT(($X$14+AH57*$X$15+AH57^2*$X$16)/$D$16+MMULT(MMULT($AG57:$AH57,COV),TRANSPOSE($AG57:$AH57))) -> 0.003965948543 | AK57: 0.02678720235 | AL57: 0.04345149976 | AM57: 23.72523539 | AN57: 11.29277286
B58: 0 | C58: =IF($A58<>"",$I$12*SQRT(($X$14+B58*$X$15+B58^2*$X$16)/$D$16+MMULT(MMULT($Z88:$AA88,COV),TRANSPOSE($Z88:$AA88)))/$C$10,"") ->  | E58: =IF(A58="","",IF(Input!M72>0,(B58*Input!M72-$M$7*Input!L72)*Input!$N$23,"na")) ->  | N58: 0.901072 | O58: 0.00973915424 | Q58: 2.419019588 | R58: 0.002454159522 | T58: 1 | U58: 0.1426028473 | W58: 1 | X58: 5.49262717 | Z58: 1 | AA58: 3.006352958 | AC58: 0.04206173356 | AD58: 1 | AE58: 4.50536 | AG58: 1 | AH58: 5.067100226 | AI58: 0.04915365772 | AJ58: =$I$12*SQRT(($X$14+AH58*$X$15+AH58^2*$X$16)/$D$16+MMULT(MMULT($AG58:$AH58,COV),TRANSPOSE($AG58:$AH58))) -> 0.004547381951 | AK58: 0.03959996275 | AL58: 0.05870735268 | AM58: 19.43638665 | AN58: 9.25136025
B59: 0 | C59: =IF($A59<>"",$I$12*SQRT(($X$14+B59*$X$15+B59^2*$X$16)/$D$16+MMULT(MMULT($Z89:$AA89,COV),TRANSPOSE($Z89:$AA89)))/$C$10,"") ->  | E59: =IF(A59="","",IF(Input!M73>0,(B59*Input!M73-$M$7*Input!L73)*Input!$N$23,"na")) ->  | N59: 0.901072 | O59: 0.009820539463 | Q59: 2.419019588 | R59: 0.002454159522 | T59: 1 | U59: 0.001818689569 | W59: 1 | X59: 5.146466373 | Z59: 1 | AA59: 512.7743577 | AC59: 0.1256339594 | AD59: 1 | AE59: 13.51608 | AG59: 1 | AH59: 7.157469311 | AI59: 0.06897764279 | AJ59: =$I$12*SQRT(($X$14+AH59*$X$15+AH59^2*$X$16)/$D$16+MMULT(MMULT($AG59:$AH59,COV),TRANSPOSE($AG59:$AH59))) -> 0.005261422675 | AK59: 0.05792380393 | AL59: 0.08003148165 | AM59: 16.02524878 | AN59: 7.627721769
B60: 0 | C60: =IF($A60<>"",$I$12*SQRT(($X$14+B60*$X$15+B60^2*$X$16)/$D$16+MMULT(MMULT($Z90:$AA90,COV),TRANSPOSE($Z90:$AA90)))/$C$10,"") ->  | E60: =IF(A60="","",IF(Input!M74>0,(B60*Input!M74-$M$7*Input!L74)*Input!$N$23,"na")) ->  | N60: 0.901072 | O60: 0.01072667925 | Q60: 2.419019588 | R60: 0.002454159522 | T60: 1 | U60: 1.742567211 | W60: 1 | X60: 8.858475095 | Z60: 1 | AA60: 520.424422 | AC60: 0.2481236702 | AD60: 1 | AE60: 27.03216 | AG60: 1 | AH60: 10.11019413 | AI60: 0.09697976599 | AJ60: =$I$12*SQRT(($X$14+AH60*$X$15+AH60^2*$X$16)/$D$16+MMULT(MMULT($AG60:$AH60,COV),TRANSPOSE($AG60:$AH60))) -> 0.006131851146 | AK60: 0.08409722477 | AL60: 0.1098623072 | AM60: 13.28374129 | AN60: 6.322814954
B61: 0 | C61: =IF($A61<>"",$I$12*SQRT(($X$14+B61*$X$15+B61^2*$X$16)/$D$16+MMULT(MMULT($Z91:$AA91,COV),TRANSPOSE($Z91:$AA91)))/$C$10,"") ->  | E61: =IF(A61="","",IF(Input!M75>0,(B61*Input!M75-$M$7*Input!L75)*Input!$N$23,"na")) ->  | N61: 2.25268 | O61: 0.02250464678 | Q61: 1.382296907 | R61: 0.003246547886 | T61: 1 | U61: -0.2880752384 | W61: 1 | X61: 4.380552855 | Z61: 1 | AA61: 5.233992029 | AC61: 0.49535092 | AD61: 1 | AE61: 54.06432 | AG61: 1 | AH61: 14.28102879 | AI61: 0.1365338163 | AJ61: =$I$12*SQRT(($X$14+AH61*$X$15+AH61^2*$X$16)/$D$16+MMULT(MMULT($AG61:$AH61,COV),TRANSPOSE($AG61:$AH61))) -> 0.007187156532 | AK61: 0.1214341608 | AL61: 0.1516334719 | AM61: 11.05927892 | AN61: 5.26401204
B62: 0 | C62: =IF($A62<>"",$I$12*SQRT(($X$14+B62*$X$15+B62^2*$X$16)/$D$16+MMULT(MMULT($Z92:$AA92,COV),TRANSPOSE($Z92:$AA92)))/$C$10,"") ->  | E62: =IF(A62="","",IF(Input!M76>0,(B62*Input!M76-$M$7*Input!L76)*Input!$N$23,"na")) ->  | N62: 4.50536 | O62: 0.04206173356 | Q62: 0.8063398627 | R62: 0.004250728981 | T62: 1 | U62: 1.195407021 | W62: 1 | X62: 7.787571657 | Z62: 1 | AA62: 4.85312434 | AC62: 0.4953812024 | AD62: 1 | AE62: 54.06432 | AG62: 1 | AH62: 20.17248934 | AI62: 0.1924053975 | AJ62: =$I$12*SQRT(($X$14+AH62*$X$15+AH62^2*$X$16)/$D$16+MMULT(MMULT($AG62:$AH62,COV),TRANSPOSE($AG62:$AH62))) -> 0.008461913071 | AK62: 0.1746275778 | AL62: 0.2101832172 | AM62: =100*AJ62*$E$16/AI62 -> 9.239771807 | AN62: =100*AJ62/AI62 -> 4.397960338
B63: 0 | C63: =IF($A63<>"",$I$12*SQRT(($X$14+B63*$X$15+B63^2*$X$16)/$D$16+MMULT(MMULT($Z93:$AA93,COV),TRANSPOSE($Z93:$AA93)))/$C$10,"") ->  | E63: =IF(A63="","",IF(Input!M77>0,(B63*Input!M77-$M$7*Input!L77)*Input!$N$23,"na")) ->  | N63: 13.51608 | O63: 0.1256339594 | Q63: 0.3023774485 | R63: 0.00694141136 | T63: 1 | U63: 1.693896825 | W63: 1 | X63: 8.765481823 | Z63: 1 | AA63: 1.552984661 | AC63: 0.4944612167 | AD63: 1 | AE63: 54.06432 | AG63: 1 | AH63: 28.49439856 | AI63: 0.2713261036 | AJ63: =$I$12*SQRT(($X$14+AH63*$X$15+AH63^2*$X$16)/$D$16+MMULT(MMULT($AG63:$AH63,COV),TRANSPOSE($AG63:$AH63))) -> 0.009998560511 | AK63: 0.2503199074 | AL63: 0.2923322997 | AM63: 7.742047622 | AN63: 3.685071351
B64: 0 | C64: =IF($A64<>"",$I$12*SQRT(($X$14+B64*$X$15+B64^2*$X$16)/$D$16+MMULT(MMULT($Z94:$AA94,COV),TRANSPOSE($Z94:$AA94)))/$C$10,"") ->  | E64: =IF(A64="","",IF(Input!M78>0,(B64*Input!M78-$M$7*Input!L78)*Input!$N$23,"na")) ->  | N64: 27.03216 | O64: 0.2481236702 | Q64: 0.1560657799 | R64: 0.009662035699 | T64: 1 | U64: 0.002891280761 | W64: 1 | X64: 5.149157649 | Z64: 0 | AA64: 0 | AC64: 0.4977655751 | AD64: 1 | AE64: 54.06432 | AG64: 1 | AH64: 40.24940777 | AI64: 0.3828045639 | AJ64: =$I$12*SQRT(($X$14+AH64*$X$15+AH64^2*$X$16)/$D$16+MMULT(MMULT($AG64:$AH64,COV),TRANSPOSE($AG64:$AH64))) -> 0.01184980421 | AK64: 0.3579090491 | AL64: 0.4077000788 | AM64: 6.503452982 | AN64: 3.095523231
B65: 0 | C65: =IF($A65<>"",$I$12*SQRT(($X$14+B65*$X$15+B65^2*$X$16)/$D$16+MMULT(MMULT($Z95:$AA95,COV),TRANSPOSE($Z95:$AA95)))/$C$10,"") ->  | E65: =IF(A65="","",IF(Input!M79>0,(B65*Input!M79-$M$7*Input!L79)*Input!$N$23,"na")) ->  | N65: 54.06432 | O65: 0.49535092 | Q65: 0.07931211764 | R65: 0.01355353896 | T65: 1 | U65: 1.386421596 | W65: 1 | X65: 8.168180875 | Z65: 1 | AA65: 288.9931704 | AC65: 0.816049586 | AD65: 1 | AE65: 90.1072 | AG65: 1 | AH65: 56.85379963 | AI65: 0.5402720746 | AJ65: =$I$12*SQRT(($X$14+AH65*$X$15+AH65^2*$X$16)/$D$16+MMULT(MMULT($AG65:$AH65,COV),TRANSPOSE($AG65:$AH65))) -> 0.01408198124 | AK65: 0.5106869299 | AL65: 0.5698572194 | AM65: 5.475971486 | AN65: 2.606461059
B66: 0 | C66: =IF($A66<>"",$I$12*SQRT(($X$14+B66*$X$15+B66^2*$X$16)/$D$16+MMULT(MMULT($Z96:$AA96,COV),TRANSPOSE($Z96:$AA96)))/$C$10,"") ->  | E66: =IF(A66="","",IF(Input!M80>0,(B66*Input!M80-$M$7*Input!L80)*Input!$N$23,"na")) ->  | N66: 54.06432 | O66: 0.4953812024 | Q66: 0.07931211764 | R66: 0.01355353896 | T66: 1 | U66: 1.628641776 | W66: 1 | X66: 8.6401654 | Z66: 1 | AA66: 2.8326015 | AC66: 1.705003155 | AD66: 1 | AE66: 180.2144 | AG66: 1 | AH66: 80.30812653 | AI66: 0.7627008455 | AJ66: =$I$12*SQRT(($X$14+AH66*$X$15+AH66^2*$X$16)/$D$16+MMULT(MMULT($AG66:$AH66,COV),TRANSPOSE($AG66:$AH66))) -> 0.01677993703 | AK66: 0.727447506 | AL66: 0.7979541851 | AM66: 4.622171293 | AN66: 2.200067972
B67: 0 | C67: =IF($A67<>"",$I$12*SQRT(($X$14+B67*$X$15+B67^2*$X$16)/$D$16+MMULT(MMULT($Z97:$AA97,COV),TRANSPOSE($Z97:$AA97)))/$C$10,"") ->  | E67: =IF(A67="","",IF(Input!M81>0,(B67*Input!M81-$M$7*Input!L81)*Input!$N$23,"na")) ->  | N67: 54.06432 | O67: 0.4944612167 | Q67: 0.07931211764 | R67: 0.01355353896 | T67: 1 | U67: -1.5 | W67: 1 | X67: 3.583828613 | Z67: 1 | AA67: 3.089409101 | AC67: 2.570652439 | AD67: 1 | AE67: 270.3216 | AG67: 1 | AH67: 113.4382439 | AI67: 1.076889835 | AJ67: =$I$12*SQRT(($X$14+AH67*$X$15+AH67^2*$X$16)/$D$16+MMULT(MMULT($AG67:$AH67,COV),TRANSPOSE($AG67:$AH67))) -> 0.02005426189 | AK67: 1.034757395 | AL67: 1.119022276 | AM67: 3.912418839 | AN67: 1.862238943
B68: 0 | C68: =IF($A68<>"",$I$12*SQRT(($X$14+B68*$X$15+B68^2*$X$16)/$D$16+MMULT(MMULT($Z98:$AA98,COV),TRANSPOSE($Z98:$AA98)))/$C$10,"") ->  | E68: =IF(A68="","",IF(Input!M82>0,(B68*Input!M82-$M$7*Input!L82)*Input!$N$23,"na")) ->  | N68: 54.06432 | O68: 0.4977655751 | Q68: 0.07931211764 | R68: 0.01355353896 | T68: 1 | W68: 1 | Z68: 1 | AA68: 6.450570233 | AC68: 4.315552421 | AD68: 1 | AE68: 450.536 | AG68: 1 | AH68: 160.2357785 | AI68: 1.52069358 | AJ68: =$I$12*SQRT(($X$14+AH68*$X$15+AH68^2*$X$16)/$D$16+MMULT(MMULT($AG68:$AH68,COV),TRANSPOSE($AG68:$AH68))) -> 0.02405219946 | AK68: 1.470161784 | AL68: 1.571225376 | AM68: 3.322943993 | AN68: 1.581659828
B69: 0 | C69: =IF($A69<>"",$I$12*SQRT(($X$14+B69*$X$15+B69^2*$X$16)/$D$16+MMULT(MMULT($Z99:$AA99,COV),TRANSPOSE($Z99:$AA99)))/$C$10,"") ->  | E69: =IF(A69="","",IF(Input!M83>0,(B69*Input!M83-$M$7*Input!L83)*Input!$N$23,"na")) ->  | N69: 90.1072 | O69: 0.816049586 | Q69: 0.04790137798 | R69: 0.0174400802 | T69: 1 | W69: 1 | Z69: 0 | AA69: 0 | AC69: 8.625933064 | AD69: 1 | AE69: 901.072 | AG69: 1 | AH69: 226.3390531 | AI69: 2.147583031 | AJ69: =$I$12*SQRT(($X$14+AH69*$X$15+AH69^2*$X$16)/$D$16+MMULT(MMULT($AG69:$AH69,COV),TRANSPOSE($AG69:$AH69))) -> 0.02897421594 | AK69: 2.086710462 | AL69: 2.2084556 | AM69: 2.834468702 | AN69: 1.349154632
B70: 0 | C70: =IF($A70<>"",$I$12*SQRT(($X$14+B70*$X$15+B70^2*$X$16)/$D$16+MMULT(MMULT($Z100:$AA100,COV),TRANSPOSE($Z100:$AA100)))/$C$10,"") ->  | E70: =IF(A70="","",IF(Input!M84>0,(B70*Input!M84-$M$7*Input!L84)*Input!$N$23,"na")) ->  | N70: 180.2144 | O70: 1.705003155 | Q70: 0.02406984665 | R70: 0.0246028727 | T70: 1 | W70: 1 | Z70: 0 | AA70: 0 | AC70: 0 | AD70: 0 | AE70: 0 | AG70: 1 | AH70: 319.7124103 | AI70: 3.033087918 | AJ70: =$I$12*SQRT(($X$14+AH70*$X$15+AH70^2*$X$16)/$D$16+MMULT(MMULT($AG70:$AH70,COV),TRANSPOSE($AG70:$AH70))) -> 0.03509916157 | AK70: 2.959347315 | AL70: 3.10682852 | AM70: 2.431205561 | AN70: 1.157208842
B71: 0 | C71: =IF($A71<>"",$I$12*SQRT(($X$14+B71*$X$15+B71^2*$X$16)/$D$16+MMULT(MMULT($Z101:$AA101,COV),TRANSPOSE($Z101:$AA101)))/$C$10,"") ->  | E71: =IF(A71="","",IF(Input!M85>0,(B71*Input!M85-$M$7*Input!L85)*Input!$N$23,"na")) ->  | N71: 270.3216 | O71: 2.570652439 | Q71: 0.01607321985 | R71: 0.03010724652 | T71: 1 | W71: 1 | Z71: 0 | AA71: 0 | AC71: 0 | AD71: 0 | AE71: 0 | AG71: 1 | AH71: 451.605783 | AI71: 4.283896815 | AJ71: =$I$12*SQRT(($X$14+AH71*$X$15+AH71^2*$X$16)/$D$16+MMULT(MMULT($AG71:$AH71,COV),TRANSPOSE($AG71:$AH71))) -> 0.04282218146 | AK71: 4.193930751 | AL71: 4.37386288 | AM71: 2.100098782 | AN71: 0.9996081444
B72: 0 | C72: =IF($A72<>"",$I$12*SQRT(($X$14+B72*$X$15+B72^2*$X$16)/$D$16+MMULT(MMULT($Z102:$AA102,COV),TRANSPOSE($Z102:$AA102)))/$C$10,"") ->  | E72: =IF(A72="","",IF(Input!M86>0,(B72*Input!M86-$M$7*Input!L86)*Input!$N$23,"na")) ->  | N72: 450.536 | O72: 4.315552421 | Q72: 0.009656764822 | R72: 0.03884245344 | T72: 1 | W72: 1 | Z72: 0 | AA72: 0 | AC72: 0 | AD72: 0 | AE72: 0 | AG72: 1 | AH72: 637.9101238 | AI72: 6.050711345 | AJ72: =$I$12*SQRT(($X$14+AH72*$X$15+AH72^2*$X$16)/$D$16+MMULT(MMULT($AG72:$AH72,COV),TRANSPOSE($AG72:$AH72))) -> 0.05271100069 | AK72: 5.939969642 | AL72: 6.161453048 | AM72: 1.83022618 | AN72: 0.8711537815
B73: 0 | C73: =IF($A73<>"",$I$12*SQRT(($X$14+B73*$X$15+B73^2*$X$16)/$D$16+MMULT(MMULT($Z103:$AA103,COV),TRANSPOSE($Z103:$AA103)))/$C$10,"") ->  | E73: =IF(A73="","",IF(Input!M87>0,(B73*Input!M87-$M$7*Input!L87)*Input!$N$23,"na")) ->  | N73: 901.072 | O73: 8.625933064 | Q73: 0.00483320597 | R73: 0.05490410666 | T73: 1 | W73: 1 | Z73: 0 | AA73: 0 | AC73: 0 | AD73: 0 | AE73: 0 | AG73: 1 | AH73: 901.072 | AI73: 8.546403202 | AJ73: =$I$12*SQRT(($X$14+AH73*$X$15+AH73^2*$X$16)/$D$16+MMULT(MMULT($AG73:$AH73,COV),TRANSPOSE($AG73:$AH73))) -> 0.06558783571 | AK73: 8.408608273 | AL73: 8.684198132 | AM73: 1.612314869 | AN73: 0.7674320314
B74: 0 | C74: =IF($A74<>"",$I$12*SQRT(($X$14+B74*$X$15+B74^2*$X$16)/$D$16+MMULT(MMULT($Z104:$AA104,COV),TRANSPOSE($Z104:$AA104)))/$C$10,"") ->  | E74: =IF(A74="","",IF(Input!M88>0,(B74*Input!M88-$M$7*Input!L88)*Input!$N$23,"na")) ->  | T74: 1 | W74: 1 | Z74: 0 | AA74: 0 | AC74: 0 | AD74: 0 | AE74: 0
B75: 0 | C75: =IF($A75<>"",$I$12*SQRT(($X$14+B75*$X$15+B75^2*$X$16)/$D$16+MMULT(MMULT($Z105:$AA105,COV),TRANSPOSE($Z105:$AA105)))/$C$10,"") ->  | E75: =IF(A75="","",IF(Input!M89>0,(B75*Input!M89-$M$7*Input!L89)*Input!$N$23,"na")) ->  | T75: 1 | W75: 1 | Z75: 0 | AA75: 0 | AC75: 0 | AD75: 0 | AE75: 0 | AG75: Values for plot of DL | AJ75: Values for limits
B76: 0 | C76: =IF($A76<>"",$I$12*SQRT(($X$14+B76*$X$15+B76^2*$X$16)/$D$16+MMULT(MMULT($Z106:$AA106,COV),TRANSPOSE($Z106:$AA106)))/$C$10,"") ->  | E76: =IF(A76="","",IF(Input!M90>0,(B76*Input!M90-$M$7*Input!L90)*Input!$N$23,"na")) ->  | T76: 1 | W76: 1 | Z76: 0 | AA76: 0 | AC76: 0 | AD76: 0 | AE76: 0 | AG76: X | AH76: Y | AJ76: Q | AK76: X
B77: 0 | C77: =IF($A77<>"",$I$12*SQRT(($X$14+B77*$X$15+B77^2*$X$16)/$D$16+MMULT(MMULT($Z107:$AA107,COV),TRANSPOSE($Z107:$AA107)))/$C$10,"") ->  | E77: =IF(A77="","",IF(Input!M91>0,(B77*Input!M91-$M$7*Input!L91)*Input!$N$23,"na")) ->  | T77: 1 | W77: 1 | Z77: 0 | AA77: 0 | AC77: 0 | AD77: 0 | AE77: 0 | AG77: =IF($K$19<>"na",$K$19,$K$23) -> 0.3315748214 | AH77: 0 | AJ77: =IF(K19<>"",1,0) -> 1 | AK77: =IF(K19<>"na",$K19^1,0) -> 0.3315748214
B78: 0 | C78: =IF($A78<>"",$I$12*SQRT(($X$14+B78*$X$15+B78^2*$X$16)/$D$16+MMULT(MMULT($Z108:$AA108,COV),TRANSPOSE($Z108:$AA108)))/$C$10,"") ->  | E78: =IF(A78="","",IF(Input!M92>0,(B78*Input!M92-$M$7*Input!L92)*Input!$N$23,"na")) ->  | T78: 1 | W78: 1 | Z78: 0 | AA78: 0 | AC78: 0 | AD78: 0 | AE78: 0 | AG78: =IF($K$19<>"na",$K$19,$K$23) -> 0.3315748214 | AH78: =$C$9+AG78*$C$10 -> 0.004244370842 | AJ78: =IF(K20<>"",1,0) -> 1 | AK78: =IF(K20<>"na",$K20^1,0) -> 0.5468064941
B79: 0 | C79: =IF($A79<>"",$I$12*SQRT(($X$14+B79*$X$15+B79^2*$X$16)/$D$16+MMULT(MMULT($Z109:$AA109,COV),TRANSPOSE($Z109:$AA109)))/$C$10,"") ->  | E79: =IF(A79="","",IF(Input!M93>0,(B79*Input!M93-$M$7*Input!L93)*Input!$N$23,"na")) ->  | T79: 1 | W79: 1 | Z79: =IF(A49<>"",1,0) -> 0 | AA79: =IF(B49<>"",$B49^1,0) -> 0 | AC79: 0 | AD79: 0 | AE79: 0 | AG79: 0 | AH79: =$C$9+AG80*$C$10 -> 0.004244370842 | AJ79: =IF(K23<>"",1,0) -> 1 | AK79: =IF(K23<>"",$K23^1,0) -> 0.5218128734
B80: 0 | C80: =IF($A80<>"",$I$12*SQRT(($X$14+B80*$X$15+B80^2*$X$16)/$D$16+MMULT(MMULT($Z110:$AA110,COV),TRANSPOSE($Z110:$AA110)))/$C$10,"") ->  | E80: =IF(A80="","",IF(Input!M94>0,(B80*Input!M94-$M$7*Input!L94)*Input!$N$23,"na")) ->  | T80: 1 | W80: 1 | Z80: 0 | AA80: 0 | AG80: =IF($K$19<>"na",$K$19,$K$23) -> 0.3315748214 | AH80: =$C$9+AG80*$C$10 -> 0.004244370842 | AJ80: =IF(K24<>"",1,0) -> 1 | AK80: =IF(K24<>"",$K24^1,0) -> 0.735836384
B81: 0 | C81: =IF($A81<>"",$I$12*SQRT(($X$14+B81*$X$15+B81^2*$X$16)/$D$16+MMULT(MMULT($Z111:$AA111,COV),TRANSPOSE($Z111:$AA111)))/$C$10,"") ->  | E81: =IF(A81="","",IF(Input!M95>0,(B81*Input!M95-$M$7*Input!L95)*Input!$N$23,"na")) ->  | T81: 1 | W81: 1 | Z81: 0 | AA81: 0 | AJ81: 1 | AK81: =J28 -> 4.124193611
B82: 0 | C82: =IF($A82<>"",$I$12*SQRT(($X$14+B82*$X$15+B82^2*$X$16)/$D$16+MMULT(MMULT($Z112:$AA112,COV),TRANSPOSE($Z112:$AA112)))/$C$10,"") ->  | E82: =IF(A82="","",IF(Input!M96>0,(B82*Input!M96-$M$7*Input!L96)*Input!$N$23,"na")) ->  | T82: 1 | W82: 1 | Z82: 0 | AA82: 0
B83: 0 | C83: =IF($A83<>"",$I$12*SQRT(($X$14+B83*$X$15+B83^2*$X$16)/$D$16+MMULT(MMULT($Z113:$AA113,COV),TRANSPOSE($Z113:$AA113)))/$C$10,"") ->  | E83: =IF(A83="","",IF(Input!M97>0,(B83*Input!M97-$M$7*Input!L97)*Input!$N$23,"na")) ->  | T83: 1 | W83: 1 | Z83: 0 | AA83: 0
B84: 0 | C84: =IF($A84<>"",$I$12*SQRT(($X$14+B84*$X$15+B84^2*$X$16)/$D$16+MMULT(MMULT($Z114:$AA114,COV),TRANSPOSE($Z114:$AA114)))/$C$10,"") ->  | E84: =IF(A84="","",IF(Input!M98>0,(B84*Input!M98-$M$7*Input!L98)*Input!$N$23,"na")) ->  | J84: CI from | K84: 0 | T84: 1 | W84: 1 | Z84: 0 | AA84: 0
B85: 0 | C85: =IF($A85<>"",$I$12*SQRT(($X$14+B85*$X$15+B85^2*$X$16)/$D$16+MMULT(MMULT($Z115:$AA115,COV),TRANSPOSE($Z115:$AA115)))/$C$10,"") ->  | E85: =IF(A85="","",IF(Input!M99>0,(B85*Input!M99-$M$7*Input!L99)*Input!$N$23,"na")) ->  | J85: 0: sXo; 1: Low/High | T85: 1 | W85: 1 | Z85: 0 | AA85: 0
B86: 0 | C86: =IF($A86<>"",$I$12*SQRT(($X$14+B86*$X$15+B86^2*$X$16)/$D$16+MMULT(MMULT($Z116:$AA116,COV),TRANSPOSE($Z116:$AA116)))/$C$10,"") ->  | E86: =IF(A86="","",IF(Input!M100>0,(B86*Input!M100-$M$7*Input!L100)*Input!$N$23,"na")) ->  | T86: 1 | W86: 1 | Z86: 0 | AA86: 0
B87: 0 | C87: =IF($A87<>"",$I$12*SQRT(($X$14+B87*$X$15+B87^2*$X$16)/$D$16+MMULT(MMULT($Z117:$AA117,COV),TRANSPOSE($Z117:$AA117)))/$C$10,"") ->  | E87: =IF(A87="","",IF(Input!M101>0,(B87*Input!M101-$M$7*Input!L101)*Input!$N$23,"na")) ->  | G87: Limits for confidence interval: | T87: 1 | W87: 1 | Z87: 0 | AA87: 0
B88: 0 | C88: =IF($A88<>"",$I$12*SQRT(($X$14+B88*$X$15+B88^2*$X$16)/$D$16+MMULT(MMULT($Z118:$AA118,COV),TRANSPOSE($Z118:$AA118)))/$C$10,"") ->  | E88: =IF(A88="","",IF(Input!M102>0,(B88*Input!M102-$M$7*Input!L102)*Input!$N$23,"na")) ->  | G88: dY-Low | H88: dY-High | I88: CI Low | J88: CI High | L88: sXm | T88: 1 | W88: 1 | Z88: 0 | AA88: 0
B89: 0 | C89: =IF($A89<>"",$I$12*SQRT(($X$14+B89*$X$15+B89^2*$X$16)/$D$16+MMULT(MMULT($Z119:$AA119,COV),TRANSPOSE($Z119:$AA119)))/$C$10,"") ->  | E89: =IF(A89="","",IF(Input!M103>0,(B89*Input!M103-$M$7*Input!L103)*Input!$N$23,"na")) ->  | G89: =IF(A19="","",($C$9+U57*$C$10+$I$12*SQRT(($X$14+U57*$X$15+U57^2*$X$16)/$D$16+MMULT(MMULT($T57:$U57,COV),TRANSPOSE($T57:$U57)))*E$16-A19)^2) -> 0.0003678537978 | H89: =IF(A19="","",($C$9+X57*$C$10-$I$12*SQRT(($X$14+X57*$X$15+X57^2*$X$16)/$D$16+MMULT(MMULT($W57:$X57,COV),TRANSPOSE($W57:$X57)))*E$16-A19)^2) -> 0.0005511987131 | I89: =IF(A19="","",IF(K$84=0,C19*$E$16,B19-U57)) -> 0.8648292678 | J89: =IF(A19="","",IF(K$84=0,C19*$E$16,X57-B19)) -> 0.8648292678 | K89: =IF(ISNUMBER(G89),IF(AND(G89<0.001*A19,H89<0.001*A19),"Ok",""),"") ->  | L89: =IF(A19="","",IF(Input!M33>0,Input!$N$23*SQRT((Input!M33*C19)^2+(Input!L33*$AO$14)^2),"na")) -> 0.5564753252 | T89: 1 | W89: 1 | Z89: 0 | AA89: 0
B90: 0 | C90: =IF($A90<>"",$I$12*SQRT(($X$14+B90*$X$15+B90^2*$X$16)/$D$16+MMULT(MMULT($Z120:$AA120,COV),TRANSPOSE($Z120:$AA120)))/$C$10,"") ->  | E90: =IF(A90="","",IF(Input!M104>0,(B90*Input!M104-$M$7*Input!L104)*Input!$N$23,"na")) ->  | G90: =IF(A20="","",($C$9+U58*$C$10+$I$12*SQRT(($X$14+U58*$X$15+U58^2*$X$16)/$D$16+MMULT(MMULT($T58:$U58,COV),TRANSPOSE($T58:$U58)))*E$16-A20)^2) -> 0.000701065824 | H90: =IF(A20="","",($C$9+X58*$C$10-$I$12*SQRT(($X$14+X58*$X$15+X58^2*$X$16)/$D$16+MMULT(MMULT($W58:$X58,COV),TRANSPOSE($W58:$X58)))*E$16-A20)^2) -> 0.0001011812274 | I90: =IF(A20="","",IF(K$84=0,C20*$E$16,B20-U58)) -> 0.8600284317 | J90: =IF(A20="","",IF(K$84=0,C20*$E$16,X58-B20)) -> 0.8600284317 | K90: =IF(ISNUMBER(G90),IF(AND(G90<0.001*A20,H90<0.001*A20),"Ok",""),"") ->  | L90: =IF(A20="","",IF(Input!M34>0,Input!$N$23*SQRT((Input!M34*C20)^2+(Input!L34*$AO$14)^2),"na")) -> 0.6486422644 | T90: 1 | W90: 1 | Z90: 0 | AA90: 0
B91: 0 | C91: =IF($A91<>"",$I$12*SQRT(($X$14+B91*$X$15+B91^2*$X$16)/$D$16+MMULT(MMULT($Z121:$AA121,COV),TRANSPOSE($Z121:$AA121)))/$C$10,"") ->  | E91: =IF(A91="","",IF(Input!M105>0,(B91*Input!M105-$M$7*Input!L105)*Input!$N$23,"na")) ->  | G91: =IF(A21="","",($C$9+U59*$C$10+$I$12*SQRT(($X$14+U59*$X$15+U59^2*$X$16)/$D$16+MMULT(MMULT($T59:$U59,COV),TRANSPOSE($T59:$U59)))*E$16-A21)^2) -> 0.0004825931985 | H91: =IF(A21="","",($C$9+X59*$C$10-$I$12*SQRT(($X$14+X59*$X$15+X59^2*$X$16)/$D$16+MMULT(MMULT($W59:$X59,COV),TRANSPOSE($W59:$X59)))*E$16-A21)^2) -> 0.0001723897728 | I91: 0.7964532289 | J91: 0.7964532289 | L91: =IF(A21="","",IF(Input!M35>0,Input!$N$23*SQRT((Input!M35*C21)^2+(Input!L35*$AO$14)^2),"na")) -> 0.7634919813 | T91: 1 | W91: 1 | Z91: 0 | AA91: 0
B92: 0 | C92: =IF($A92<>"",$I$12*SQRT(($X$14+B92*$X$15+B92^2*$X$16)/$D$16+MMULT(MMULT($Z122:$AA122,COV),TRANSPOSE($Z122:$AA122)))/$C$10,"") ->  | E92: =IF(A92="","",IF(Input!M106>0,(B92*Input!M106-$M$7*Input!L106)*Input!$N$23,"na")) ->  | G92: =IF(A22="","",($C$9+U60*$C$10+$I$12*SQRT(($X$14+U60*$X$15+U60^2*$X$16)/$D$16+MMULT(MMULT($T60:$U60,COV),TRANSPOSE($T60:$U60)))*E$16-A22)^2) -> 3.951090168e-05 | H92: =IF(A22="","",($C$9+X60*$C$10-$I$12*SQRT(($X$14+X60*$X$15+X60^2*$X$16)/$D$16+MMULT(MMULT($W60:$X60,COV),TRANSPOSE($W60:$X60)))*E$16-A22)^2) -> 0.001811243695 | I92: 0.8309569582 | J92: 0.8309569582 | L92: =IF(A22="","",IF(Input!M36>0,Input!$N$23*SQRT((Input!M36*C22)^2+(Input!L36*$AO$14)^2),"na")) -> 1.082330985 | T92: 1 | W92: 1 | Z92: 0 | AA92: 0
B93: 0 | C93: =IF($A93<>"",$I$12*SQRT(($X$14+B93*$X$15+B93^2*$X$16)/$D$16+MMULT(MMULT($Z123:$AA123,COV),TRANSPOSE($Z123:$AA123)))/$C$10,"") ->  | E93: =IF(A93="","",IF(Input!M107>0,(B93*Input!M107-$M$7*Input!L107)*Input!$N$23,"na")) ->  | G93: =IF(A23="","",($C$9+U61*$C$10+$I$12*SQRT(($X$14+U61*$X$15+U61^2*$X$16)/$D$16+MMULT(MMULT($T61:$U61,COV),TRANSPOSE($T61:$U61)))*E$16-A23)^2) -> 0.001023534595 | H93: =IF(A23="","",($C$9+X61*$C$10-$I$12*SQRT(($X$14+X61*$X$15+X61^2*$X$16)/$D$16+MMULT(MMULT($W61:$X61,COV),TRANSPOSE($W61:$X61)))*E$16-A23)^2) -> 5.784194643e-08 | I93: 0.8662695152 | J93: 0.8662695152 | L93: =IF(A23="","",IF(Input!M37>0,Input!$N$23*SQRT((Input!M37*C23)^2+(Input!L37*$AO$14)^2),"na")) -> 0.5993578086 | T93: 1 | W93: 1 | Z93: 0 | AA93: 0
B94: 0 | C94: =IF($A94<>"",$I$12*SQRT(($X$14+B94*$X$15+B94^2*$X$16)/$D$16+MMULT(MMULT($Z124:$AA124,COV),TRANSPOSE($Z124:$AA124)))/$C$10,"") ->  | E94: =IF(A94="","",IF(Input!M108>0,(B94*Input!M108-$M$7*Input!L108)*Input!$N$23,"na")) ->  | G94: =IF(A24="","",($C$9+U62*$C$10+$I$12*SQRT(($X$14+U62*$X$15+U62^2*$X$16)/$D$16+MMULT(MMULT($T62:$U62,COV),TRANSPOSE($T62:$U62)))*E$16-A24)^2) -> 0.0003292624905 | H94: =IF(A24="","",($C$9+X62*$C$10-$I$12*SQRT(($X$14+X62*$X$15+X62^2*$X$16)/$D$16+MMULT(MMULT($W62:$X62,COV),TRANSPOSE($W62:$X62)))*E$16-A24)^2) -> 0.0007320709855 | I94: 0.8913881742 | J94: 0.8913881742 | L94: =IF(A24="","",IF(Input!M38>0,Input!$N$23*SQRT((Input!M38*C24)^2+(Input!L38*$AO$14)^2),"na")) -> 0.6873237422 | T94: 1 | W94: 1 | Z94: 0 | AA94: 0
B95: 0 | C95: =IF($A95<>"",$I$12*SQRT(($X$14+B95*$X$15+B95^2*$X$16)/$D$16+MMULT(MMULT($Z125:$AA125,COV),TRANSPOSE($Z125:$AA125)))/$C$10,"") ->  | E95: =IF(A95="","",IF(Input!M109>0,(B95*Input!M109-$M$7*Input!L109)*Input!$N$23,"na")) ->  | G95: =IF(A25="","",($C$9+U63*$C$10+$I$12*SQRT(($X$14+U63*$X$15+U63^2*$X$16)/$D$16+MMULT(MMULT($T63:$U63,COV),TRANSPOSE($T63:$U63)))*E$16-A25)^2) -> 0.01334795974 | H95: =IF(A25="","",($C$9+X63*$C$10-$I$12*SQRT(($X$14+X63*$X$15+X63^2*$X$16)/$D$16+MMULT(MMULT($W63:$X63,COV),TRANSPOSE($W63:$X63)))*E$16-A25)^2) -> 0.004488588038 | I95: 1.606448421 | J95: 1.606448421 | L95: =IF(A25="","",IF(Input!M39>0,Input!$N$23*SQRT((Input!M39*C25)^2+(Input!L39*$AO$14)^2),"na")) -> 1.034959529 | T95: 1 | W95: 1 | Z95: 0 | AA95: 0
B96: 0 | C96: =IF($A96<>"",$I$12*SQRT(($X$14+B96*$X$15+B96^2*$X$16)/$D$16+MMULT(MMULT($Z126:$AA126,COV),TRANSPOSE($Z126:$AA126)))/$C$10,"") ->  | E96: =IF(A96="","",IF(Input!M110>0,(B96*Input!M110-$M$7*Input!L110)*Input!$N$23,"na")) ->  | G96: =IF(A26="","",($C$9+U64*$C$10+$I$12*SQRT(($X$14+U64*$X$15+U64^2*$X$16)/$D$16+MMULT(MMULT($T64:$U64,COV),TRANSPOSE($T64:$U64)))*E$16-A26)^2) -> 0.002070227135 | H96: =IF(A26="","",($C$9+X64*$C$10-$I$12*SQRT(($X$14+X64*$X$15+X64^2*$X$16)/$D$16+MMULT(MMULT($W64:$X64,COV),TRANSPOSE($W64:$X64)))*E$16-A26)^2) -> 0.0001079659567 | I96: 1.020659596 | J96: 1.020659596 | L96: =IF(A26="","",IF(Input!M40>0,Input!$N$23*SQRT((Input!M40*C26)^2+(Input!L40*$AO$14)^2),"na")) -> 0.585103461 | T96: 1 | W96: 1 | Z96: 0 | AA96: 0
B97: 0 | C97: =IF($A97<>"",$I$12*SQRT(($X$14+B97*$X$15+B97^2*$X$16)/$D$16+MMULT(MMULT($Z127:$AA127,COV),TRANSPOSE($Z127:$AA127)))/$C$10,"") ->  | E97: =IF(A97="","",IF(Input!M111>0,(B97*Input!M111-$M$7*Input!L111)*Input!$N$23,"na")) ->  | G97: =IF(A27="","",($C$9+U65*$C$10+$I$12*SQRT(($X$14+U65*$X$15+U65^2*$X$16)/$D$16+MMULT(MMULT($T65:$U65,COV),TRANSPOSE($T65:$U65)))*E$16-A27)^2) -> 0.002221599098 | H97: =IF(A27="","",($C$9+X65*$C$10-$I$12*SQRT(($X$14+X65*$X$15+X65^2*$X$16)/$D$16+MMULT(MMULT($W65:$X65,COV),TRANSPOSE($W65:$X65)))*E$16-A27)^2) -> 3.750682326e-07 | I97: 1.154262422 | J97: 1.154262422 | L97: =IF(A27="","",IF(Input!M41>0,Input!$N$23*SQRT((Input!M41*C27)^2+(Input!L41*$AO$14)^2),"na")) -> 0.8091308917 | T97: 1 | W97: 1 | Z97: 0 | AA97: 0
B98: =IF(A98<>"",(A98-$C$9)/$C$10,0) -> 0 | C98: =IF($A98<>"",$I$12*SQRT(($X$14+B98*$X$15+B98^2*$X$16)/$D$16+MMULT(MMULT($Z128:$AA128,COV),TRANSPOSE($Z128:$AA128)))/$C$10,"") ->  | E98: =IF(A98="","",IF(Input!M112>0,(B98*Input!M112-$M$7*Input!L112)*Input!$N$23,"na")) ->  | G98: =IF(A28="","",($C$9+U66*$C$10+$I$12*SQRT(($X$14+U66*$X$15+U66^2*$X$16)/$D$16+MMULT(MMULT($T66:$U66,COV),TRANSPOSE($T66:$U66)))*E$16-A28)^2) -> 4.485169801e-05 | H98: =IF(A28="","",($C$9+X66*$C$10-$I$12*SQRT(($X$14+X66*$X$15+X66^2*$X$16)/$D$16+MMULT(MMULT($W66:$X66,COV),TRANSPOSE($W66:$X66)))*E$16-A28)^2) -> 0.001715768949 | I98: 0.8225985779 | J98: 0.8225985779 | L98: =IF(A28="","",IF(Input!M42>0,Input!$N$23*SQRT((Input!M42*C28)^2+(Input!L42*$AO$14)^2),"na")) -> 2.364633059 | T98: 1 | W98: 1 | Z98: 0 | AA98: 0
B99: 0 | C99: =IF($A99<>"",$I$12*SQRT(($X$14+B99*$X$15+B99^2*$X$16)/$D$16+MMULT(MMULT($Z129:$AA129,COV),TRANSPOSE($Z129:$AA129)))/$C$10,"") ->  | D99: =IF(A99<>"",100*C99/B99,"") ->  | E99: =IF(A99="","",IF(Input!M113>0,(B99*Input!M113-$M$7*Input!L113)*Input!$N$23,"na")) ->  | G99: =IF(A29="","",($C$9+U67*$C$10+$I$12*SQRT(($X$14+U67*$X$15+U67^2*$X$16)/$D$16+MMULT(MMULT($T67:$U67,COV),TRANSPOSE($T67:$U67)))*E$16-A29)^2) ->  | H99: =IF(A29="","",($C$9+X67*$C$10-$I$12*SQRT(($X$14+X67*$X$15+X67^2*$X$16)/$D$16+MMULT(MMULT($W67:$X67,COV),TRANSPOSE($W67:$X67)))*E$16-A29)^2) -> 23.39879575 | I99: 10.22831122 | J99: 10.22831122 | L99: =IF(A29="","",IF(Input!M43>0,Input!$N$23*SQRT((Input!M43*C29)^2+(Input!L43*$AO$14)^2),"na")) -> 0.02437853481 | T99: 1 | W99: 1 | Z99: 0 | AA99: 0
B100: 0 | C100: =IF($A100<>"",$I$12*SQRT(($X$14+B100*$X$15+B100^2*$X$16)/$D$16+MMULT(MMULT($Z130:$AA130,COV),TRANSPOSE($Z130:$AA130)))/$C$10,"") ->  | E100: =IF(A100="","",IF(Input!M114>0,(B100*Input!M114-$M$7*Input!L114)*Input!$N$23,"na")) ->  | G100: =IF(A30="","",($C$9+U68*$C$10+$I$12*SQRT(($X$14+U68*$X$15+U68^2*$X$16)/$D$16+MMULT(MMULT($T68:$U68,COV),TRANSPOSE($T68:$U68)))*E$16-A30)^2) ->  | H100: =IF(A30="","",($C$9+X68*$C$10-$I$12*SQRT(($X$14+X68*$X$15+X68^2*$X$16)/$D$16+MMULT(MMULT($W68:$X68,COV),TRANSPOSE($W68:$X68)))*E$16-A30)^2) ->  | I100: 10.31932177 | J100: 10.31932177 | L100: =IF(A30="","",IF(Input!M44>0,Input!$N$23*SQRT((Input!M44*C30)^2+(Input!L44*$AO$14)^2),"na")) -> 0.02459481358 | T100: 1 | W100: 1 | Z100: 0 | AA100: 0
B101: 0 | C101: =IF($A101<>"",$I$12*SQRT(($X$14+B101*$X$15+B101^2*$X$16)/$D$16+MMULT(MMULT($Z131:$AA131,COV),TRANSPOSE($Z131:$AA131)))/$C$10,"") ->  | E101: =IF(A101="","",IF(Input!M115>0,(B101*Input!M115-$M$7*Input!L115)*Input!$N$23,"na")) ->  | G101: =IF(A31="","",($C$9+U69*$C$10+$I$12*SQRT(($X$14+U69*$X$15+U69^2*$X$16)/$D$16+MMULT(MMULT($T69:$U69,COV),TRANSPOSE($T69:$U69)))*E$16-A31)^2) ->  | H101: =IF(A31="","",($C$9+X69*$C$10-$I$12*SQRT(($X$14+X69*$X$15+X69^2*$X$16)/$D$16+MMULT(MMULT($W69:$X69,COV),TRANSPOSE($W69:$X69)))*E$16-A31)^2) ->  | I101: 1.020920923 | J101: 1.020920923 | L101: =IF(A31="","",IF(Input!M45>0,Input!$N$23*SQRT((Input!M45*C31)^2+(Input!L45*$AO$14)^2),"na")) -> 0.002768085259 | T101: 1 | W101: 1 | Z101: 0 | AA101: 0
B102: 0 | C102: =IF($A102<>"",$I$12*SQRT(($X$14+B102*$X$15+B102^2*$X$16)/$D$16+MMULT(MMULT($Z132:$AA132,COV),TRANSPOSE($Z132:$AA132)))/$C$10,"") ->  | E102: =IF(A102="","",IF(Input!M116>0,(B102*Input!M116-$M$7*Input!L116)*Input!$N$23,"na")) ->  | G102: =IF(A32="","",($C$9+U70*$C$10+$I$12*SQRT(($X$14+U70*$X$15+U70^2*$X$16)/$D$16+MMULT(MMULT($T70:$U70,COV),TRANSPOSE($T70:$U70)))*E$16-A32)^2) ->  | H102: =IF(A32="","",($C$9+X70*$C$10-$I$12*SQRT(($X$14+X70*$X$15+X70^2*$X$16)/$D$16+MMULT(MMULT($W70:$X70,COV),TRANSPOSE($W70:$X70)))*E$16-A32)^2) ->  | I102: 0.9898052967 | J102: 0.9898052967 | L102: =IF(A32="","",IF(Input!M46>0,Input!$N$23*SQRT((Input!M46*C32)^2+(Input!L46*$AO$14)^2),"na")) -> 0.002703318396 | T102: 1 | W102: 1 | Z102: 0 | AA102: 0
B103: 0 | C103: =IF($A103<>"",$I$12*SQRT(($X$14+B103*$X$15+B103^2*$X$16)/$D$16+MMULT(MMULT($Z133:$AA133,COV),TRANSPOSE($Z133:$AA133)))/$C$10,"") ->  | E103: =IF(A103="","",IF(Input!M117>0,(B103*Input!M117-$M$7*Input!L117)*Input!$N$23,"na")) ->  | G103: =IF(A33="","",($C$9+U71*$C$10+$I$12*SQRT(($X$14+U71*$X$15+U71^2*$X$16)/$D$16+MMULT(MMULT($T71:$U71,COV),TRANSPOSE($T71:$U71)))*E$16-A33)^2) ->  | H103: =IF(A33="","",($C$9+X71*$C$10-$I$12*SQRT(($X$14+X71*$X$15+X71^2*$X$16)/$D$16+MMULT(MMULT($W71:$X71,COV),TRANSPOSE($W71:$X71)))*E$16-A33)^2) ->  | I103: 0.6622338759 | J103: 0.6622338759 | L103: =IF(A33="","",IF(Input!M47>0,Input!$N$23*SQRT((Input!M47*C33)^2+(Input!L47*$AO$14)^2),"na")) -> 0.002059810045 | T103: 1 | W103: 1 | Z103: 0 | AA103: 0
B104: 0 | C104: =IF($A104<>"",$I$12*SQRT(($X$14+B104*$X$15+B104^2*$X$16)/$D$16+MMULT(MMULT($Z134:$AA134,COV),TRANSPOSE($Z134:$AA134)))/$C$10,"") ->  | E104: =IF(A104="","",IF(Input!M118>0,(B104*Input!M118-$M$7*Input!L118)*Input!$N$23,"na")) ->  | G104: =IF(A34="","",($C$9+U72*$C$10+$I$12*SQRT(($X$14+U72*$X$15+U72^2*$X$16)/$D$16+MMULT(MMULT($T72:$U72,COV),TRANSPOSE($T72:$U72)))*E$16-A34)^2) ->  | H104: =IF(A34="","",($C$9+X72*$C$10-$I$12*SQRT(($X$14+X72*$X$15+X72^2*$X$16)/$D$16+MMULT(MMULT($W72:$X72,COV),TRANSPOSE($W72:$X72)))*E$16-A34)^2) ->  | L104: =IF(A34="","",IF(Input!M48>0,Input!$N$23*SQRT((Input!M48*C34)^2+(Input!L48*$AO$14)^2),"na")) ->  | T104: 1 | W104: 1 | Z104: 0 | AA104: 0
B105: 0 | C105: =IF($A105<>"",$I$12*SQRT(($X$14+B105*$X$15+B105^2*$X$16)/$D$16+MMULT(MMULT($Z135:$AA135,COV),TRANSPOSE($Z135:$AA135)))/$C$10,"") ->  | E105: =IF(A105="","",IF(Input!M119>0,(B105*Input!M119-$M$7*Input!L119)*Input!$N$23,"na")) ->  | G105: =IF(A35="","",($C$9+U73*$C$10+$I$12*SQRT(($X$14+U73*$X$15+U73^2*$X$16)/$D$16+MMULT(MMULT($T73:$U73,COV),TRANSPOSE($T73:$U73)))*E$16-A35)^2) ->  | H105: =IF(A35="","",($C$9+X73*$C$10-$I$12*SQRT(($X$14+X73*$X$15+X73^2*$X$16)/$D$16+MMULT(MMULT($W73:$X73,COV),TRANSPOSE($W73:$X73)))*E$16-A35)^2) ->  | I105: 7.346694884 | J105: 7.346694884 | L105: =IF(A35="","",IF(Input!M49>0,Input!$N$23*SQRT((Input!M49*C35)^2+(Input!L49*$AO$14)^2),"na")) -> 3506.935944 | T105: 1 | W105: 1 | Z105: 0 | AA105: 0
B106: 0 | C106: =IF($A106<>"",$I$12*SQRT(($X$14+B106*$X$15+B106^2*$X$16)/$D$16+MMULT(MMULT($Z136:$AA136,COV),TRANSPOSE($Z136:$AA136)))/$C$10,"") ->  | E106: =IF(A106="","",IF(Input!M120>0,(B106*Input!M120-$M$7*Input!L120)*Input!$N$23,"na")) ->  | G106: =IF(A36="","",($C$9+U74*$C$10+$I$12*SQRT(($X$14+U74*$X$15+U74^2*$X$16)/$D$16+MMULT(MMULT($T74:$U74,COV),TRANSPOSE($T74:$U74)))*E$16-A36)^2) ->  | H106: =IF(A36="","",($C$9+X74*$C$10-$I$12*SQRT(($X$14+X74*$X$15+X74^2*$X$16)/$D$16+MMULT(MMULT($W74:$X74,COV),TRANSPOSE($W74:$X74)))*E$16-A36)^2) ->  | I106: 0.805098859 | J106: 0.805098859 | L106: =IF(A36="","",IF(Input!M50>0,Input!$N$23*SQRT((Input!M50*C36)^2+(Input!L50*$AO$14)^2),"na")) -> 0.5098895663 | T106: 1 | W106: 1 | Z106: 0 | AA106: 0
B107: 0 | C107: =IF($A107<>"",$I$12*SQRT(($X$14+B107*$X$15+B107^2*$X$16)/$D$16+MMULT(MMULT($Z137:$AA137,COV),TRANSPOSE($Z137:$AA137)))/$C$10,"") ->  | E107: =IF(A107="","",IF(Input!M121>0,(B107*Input!M121-$M$7*Input!L121)*Input!$N$23,"na")) ->  | G107: =IF(A37="","",($C$9+U75*$C$10+$I$12*SQRT(($X$14+U75*$X$15+U75^2*$X$16)/$D$16+MMULT(MMULT($T75:$U75,COV),TRANSPOSE($T75:$U75)))*E$16-A37)^2) ->  | H107: =IF(A37="","",($C$9+X75*$C$10-$I$12*SQRT(($X$14+X75*$X$15+X75^2*$X$16)/$D$16+MMULT(MMULT($W75:$X75,COV),TRANSPOSE($W75:$X75)))*E$16-A37)^2) ->  | I107: 0.8308345473 | J107: 0.8308345473 | L107: =IF(A37="","",IF(Input!M51>0,Input!$N$23*SQRT((Input!M51*C37)^2+(Input!L51*$AO$14)^2),"na")) -> 0.5258818114 | T107: 1 | W107: 1 | Z107: 0 | AA107: 0
B108: 0 | C108: =IF($A108<>"",$I$12*SQRT(($X$14+B108*$X$15+B108^2*$X$16)/$D$16+MMULT(MMULT($Z138:$AA138,COV),TRANSPOSE($Z138:$AA138)))/$C$10,"") ->  | E108: =IF(A108="","",IF(Input!M122>0,(B108*Input!M122-$M$7*Input!L122)*Input!$N$23,"na")) ->  | G108: =IF(A38="","",($C$9+U76*$C$10+$I$12*SQRT(($X$14+U76*$X$15+U76^2*$X$16)/$D$16+MMULT(MMULT($T76:$U76,COV),TRANSPOSE($T76:$U76)))*E$16-A38)^2) ->  | H108: =IF(A38="","",($C$9+X76*$C$10-$I$12*SQRT(($X$14+X76*$X$15+X76^2*$X$16)/$D$16+MMULT(MMULT($W76:$X76,COV),TRANSPOSE($W76:$X76)))*E$16-A38)^2) ->  | I108: 1.114575579 | J108: 1.114575579 | L108: =IF(A38="","",IF(Input!M52>0,Input!$N$23*SQRT((Input!M52*C38)^2+(Input!L52*$AO$14)^2),"na")) -> 0.8754421649 | T108: 1 | W108: 1 | Z108: 0 | AA108: 0
B109: 0 | C109: =IF($A109<>"",$I$12*SQRT(($X$14+B109*$X$15+B109^2*$X$16)/$D$16+MMULT(MMULT($Z139:$AA139,COV),TRANSPOSE($Z139:$AA139)))/$C$10,"") ->  | E109: =IF(A109="","",IF(Input!M123>0,(B109*Input!M123-$M$7*Input!L123)*Input!$N$23,"na")) ->  | G109: =IF(A39="","",($C$9+U77*$C$10+$I$12*SQRT(($X$14+U77*$X$15+U77^2*$X$16)/$D$16+MMULT(MMULT($T77:$U77,COV),TRANSPOSE($T77:$U77)))*E$16-A39)^2) ->  | H109: =IF(A39="","",($C$9+X77*$C$10-$I$12*SQRT(($X$14+X77*$X$15+X77^2*$X$16)/$D$16+MMULT(MMULT($W77:$X77,COV),TRANSPOSE($W77:$X77)))*E$16-A39)^2) ->  | L109: =IF(A39="","",IF(Input!M53>0,Input!$N$23*SQRT((Input!M53*C39)^2+(Input!L53*$AO$14)^2),"na")) ->  | T109: 1 | W109: 1 | Z109: 0 | AA109: 0
B110: 0 | C110: =IF($A110<>"",$I$12*SQRT(($X$14+B110*$X$15+B110^2*$X$16)/$D$16+MMULT(MMULT($Z140:$AA140,COV),TRANSPOSE($Z140:$AA140)))/$C$10,"") ->  | E110: =IF(A110="","",IF(Input!M124>0,(B110*Input!M124-$M$7*Input!L124)*Input!$N$23,"na")) ->  | G110: =IF(A40="","",($C$9+U78*$C$10+$I$12*SQRT(($X$14+U78*$X$15+U78^2*$X$16)/$D$16+MMULT(MMULT($T78:$U78,COV),TRANSPOSE($T78:$U78)))*E$16-A40)^2) ->  | H110: =IF(A40="","",($C$9+X78*$C$10-$I$12*SQRT(($X$14+X78*$X$15+X78^2*$X$16)/$D$16+MMULT(MMULT($W78:$X78,COV),TRANSPOSE($W78:$X78)))*E$16-A40)^2) ->  | L110: =IF(A40="","",IF(Input!M54>0,Input!$N$23*SQRT((Input!M54*C40)^2+(Input!L54*$AO$14)^2),"na")) ->  | T110: 1 | W110: 1 | Z110: 0 | AA110: 0
B111: 0 | C111: =IF($A111<>"",$I$12*SQRT(($X$14+B111*$X$15+B111^2*$X$16)/$D$16+MMULT(MMULT($Z141:$AA141,COV),TRANSPOSE($Z141:$AA141)))/$C$10,"") ->  | E111: =IF(A111="","",IF(Input!M125>0,(B111*Input!M125-$M$7*Input!L125)*Input!$N$23,"na")) ->  | G111: =IF(A41="","",($C$9+U79*$C$10+$I$12*SQRT(($X$14+U79*$X$15+U79^2*$X$16)/$D$16+MMULT(MMULT($T79:$U79,COV),TRANSPOSE($T79:$U79)))*E$16-A41)^2) ->  | H111: =IF(A41="","",($C$9+X79*$C$10-$I$12*SQRT(($X$14+X79*$X$15+X79^2*$X$16)/$D$16+MMULT(MMULT($W79:$X79,COV),TRANSPOSE($W79:$X79)))*E$16-A41)^2) ->  | L111: =IF(A41="","",IF(Input!M55>0,Input!$N$23*SQRT((Input!M55*C41)^2+(Input!L55*$AO$14)^2),"na")) ->  | T111: 1 | W111: 1 | Z111: =IF(A81<>"",1,0) -> 0 | AA111: =IF(B81<>"",$B81^1,0) -> 0
B112: 0 | C112: =IF($A112<>"",$I$12*SQRT(($X$14+B112*$X$15+B112^2*$X$16)/$D$16+MMULT(MMULT($Z142:$AA142,COV),TRANSPOSE($Z142:$AA142)))/$C$10,"") ->  | E112: =IF(A112="","",IF(Input!M126>0,(B112*Input!M126-$M$7*Input!L126)*Input!$N$23,"na")) ->  | G112: =IF(A42="","",($C$9+U80*$C$10+$I$12*SQRT(($X$14+U80*$X$15+U80^2*$X$16)/$D$16+MMULT(MMULT($T80:$U80,COV),TRANSPOSE($T80:$U80)))*E$16-A42)^2) ->  | H112: =IF(A42="","",($C$9+X80*$C$10-$I$12*SQRT(($X$14+X80*$X$15+X80^2*$X$16)/$D$16+MMULT(MMULT($W80:$X80,COV),TRANSPOSE($W80:$X80)))*E$16-A42)^2) ->  | L112: =IF(A42="","",IF(Input!M56>0,Input!$N$23*SQRT((Input!M56*C42)^2+(Input!L56*$AO$14)^2),"na")) ->  | T112: 1 | W112: 1 | Z112: 0 | AA112: 0
B113: 0 | C113: =IF($A113<>"",$I$12*SQRT(($X$14+B113*$X$15+B113^2*$X$16)/$D$16+MMULT(MMULT($Z143:$AA143,COV),TRANSPOSE($Z143:$AA143)))/$C$10,"") ->  | E113: =IF(A113="","",IF(Input!M127>0,(B113*Input!M127-$M$7*Input!L127)*Input!$N$23,"na")) ->  | G113: =IF(A43="","",($C$9+U81*$C$10+$I$12*SQRT(($X$14+U81*$X$15+U81^2*$X$16)/$D$16+MMULT(MMULT($T81:$U81,COV),TRANSPOSE($T81:$U81)))*E$16-A43)^2) ->  | H113: =IF(A43="","",($C$9+X81*$C$10-$I$12*SQRT(($X$14+X81*$X$15+X81^2*$X$16)/$D$16+MMULT(MMULT($W81:$X81,COV),TRANSPOSE($W81:$X81)))*E$16-A43)^2) ->  | L113: =IF(A43="","",IF(Input!M57>0,Input!$N$23*SQRT((Input!M57*C43)^2+(Input!L57*$AO$14)^2),"na")) ->  | T113: 1 | W113: 1 | Z113: 0 | AA113: 0
B114: 0 | C114: =IF($A114<>"",$I$12*SQRT(($X$14+B114*$X$15+B114^2*$X$16)/$D$16+MMULT(MMULT($Z144:$AA144,COV),TRANSPOSE($Z144:$AA144)))/$C$10,"") ->  | E114: =IF(A114="","",IF(Input!M128>0,(B114*Input!M128-$M$7*Input!L128)*Input!$N$23,"na")) ->  | G114: =IF(A44="","",($C$9+U82*$C$10+$I$12*SQRT(($X$14+U82*$X$15+U82^2*$X$16)/$D$16+MMULT(MMULT($T82:$U82,COV),TRANSPOSE($T82:$U82)))*E$16-A44)^2) ->  | H114: =IF(A44="","",($C$9+X82*$C$10-$I$12*SQRT(($X$14+X82*$X$15+X82^2*$X$16)/$D$16+MMULT(MMULT($W82:$X82,COV),TRANSPOSE($W82:$X82)))*E$16-A44)^2) ->  | L114: =IF(A44="","",IF(Input!M58>0,Input!$N$23*SQRT((Input!M58*C44)^2+(Input!L58*$AO$14)^2),"na")) ->  | T114: 1 | W114: 1 | Z114: 0 | AA114: 0
B115: 0 | C115: =IF($A115<>"",$I$12*SQRT(($X$14+B115*$X$15+B115^2*$X$16)/$D$16+MMULT(MMULT($Z145:$AA145,COV),TRANSPOSE($Z145:$AA145)))/$C$10,"") ->  | E115: =IF(A115="","",IF(Input!M129>0,(B115*Input!M129-$M$7*Input!L129)*Input!$N$23,"na")) ->  | G115: =IF(A45="","",($C$9+U83*$C$10+$I$12*SQRT(($X$14+U83*$X$15+U83^2*$X$16)/$D$16+MMULT(MMULT($T83:$U83,COV),TRANSPOSE($T83:$U83)))*E$16-A45)^2) ->  | H115: =IF(A45="","",($C$9+X83*$C$10-$I$12*SQRT(($X$14+X83*$X$15+X83^2*$X$16)/$D$16+MMULT(MMULT($W83:$X83,COV),TRANSPOSE($W83:$X83)))*E$16-A45)^2) ->  | L115: =IF(A45="","",IF(Input!M59>0,Input!$N$23*SQRT((Input!M59*C45)^2+(Input!L59*$AO$14)^2),"na")) ->  | T115: 1 | W115: 1 | Z115: 0 | AA115: 0
B116: 0 | C116: =IF($A116<>"",$I$12*SQRT(($X$14+B116*$X$15+B116^2*$X$16)/$D$16+MMULT(MMULT($Z146:$AA146,COV),TRANSPOSE($Z146:$AA146)))/$C$10,"") ->  | E116: =IF(A116="","",IF(Input!M130>0,(B116*Input!M130-$M$7*Input!L130)*Input!$N$23,"na")) ->  | G116: =IF(A46="","",($C$9+U84*$C$10+$I$12*SQRT(($X$14+U84*$X$15+U84^2*$X$16)/$D$16+MMULT(MMULT($T84:$U84,COV),TRANSPOSE($T84:$U84)))*E$16-A46)^2) ->  | H116: =IF(A46="","",($C$9+X84*$C$10-$I$12*SQRT(($X$14+X84*$X$15+X84^2*$X$16)/$D$16+MMULT(MMULT($W84:$X84,COV),TRANSPOSE($W84:$X84)))*E$16-A46)^2) ->  | L116: =IF(A46="","",IF(Input!M60>0,Input!$N$23*SQRT((Input!M60*C46)^2+(Input!L60*$AO$14)^2),"na")) ->  | T116: 1 | W116: 1 | Z116: 0 | AA116: 0
B117: 0 | C117: =IF($A117<>"",$I$12*SQRT(($X$14+B117*$X$15+B117^2*$X$16)/$D$16+MMULT(MMULT($Z147:$AA147,COV),TRANSPOSE($Z147:$AA147)))/$C$10,"") ->  | E117: =IF(A117="","",IF(Input!M131>0,(B117*Input!M131-$M$7*Input!L131)*Input!$N$23,"na")) ->  | G117: =IF(A47="","",($C$9+U85*$C$10+$I$12*SQRT(($X$14+U85*$X$15+U85^2*$X$16)/$D$16+MMULT(MMULT($T85:$U85,COV),TRANSPOSE($T85:$U85)))*E$16-A47)^2) ->  | H117: =IF(A47="","",($C$9+X85*$C$10-$I$12*SQRT(($X$14+X85*$X$15+X85^2*$X$16)/$D$16+MMULT(MMULT($W85:$X85,COV),TRANSPOSE($W85:$X85)))*E$16-A47)^2) ->  | L117: =IF(A47="","",IF(Input!M61>0,Input!$N$23*SQRT((Input!M61*C47)^2+(Input!L61*$AO$14)^2),"na")) ->  | T117: 1 | W117: 1 | Z117: 0 | AA117: 0
B118: 0 | C118: =IF($A118<>"",$I$12*SQRT(($X$14+B118*$X$15+B118^2*$X$16)/$D$16+MMULT(MMULT($Z148:$AA148,COV),TRANSPOSE($Z148:$AA148)))/$C$10,"") ->  | E118: =IF(A118="","",IF(Input!M132>0,(B118*Input!M132-$M$7*Input!L132)*Input!$N$23,"na")) ->  | G118: =IF(A48="","",($C$9+U86*$C$10+$I$12*SQRT(($X$14+U86*$X$15+U86^2*$X$16)/$D$16+MMULT(MMULT($T86:$U86,COV),TRANSPOSE($T86:$U86)))*E$16-A48)^2) ->  | H118: =IF(A48="","",($C$9+X86*$C$10-$I$12*SQRT(($X$14+X86*$X$15+X86^2*$X$16)/$D$16+MMULT(MMULT($W86:$X86,COV),TRANSPOSE($W86:$X86)))*E$16-A48)^2) ->  | L118: =IF(A48="","",IF(Input!M62>0,Input!$N$23*SQRT((Input!M62*C48)^2+(Input!L62*$AO$14)^2),"na")) ->  | T118: 1 | W118: 1 | Z118: 0 | AA118: 0
G119: =IF(A49="","",($C$9+U87*$C$10+$I$12*SQRT(($X$14+U87*$X$15+U87^2*$X$16)/$D$16+MMULT(MMULT($T87:$U87,COV),TRANSPOSE($T87:$U87)))*E$16-A49)^2) ->  | H119: =IF(A49="","",($C$9+X87*$C$10-$I$12*SQRT(($X$14+X87*$X$15+X87^2*$X$16)/$D$16+MMULT(MMULT($W87:$X87,COV),TRANSPOSE($W87:$X87)))*E$16-A49)^2) ->  | L119: =IF(A49="","",IF(Input!M63>0,Input!$N$23*SQRT((Input!M63*C49)^2+(Input!L63*$AO$14)^2),"na")) ->  | T119: 1 | W119: 1 | Z119: 0 | AA119: 0
G120: =IF(A50="","",($C$9+U88*$C$10+$I$12*SQRT(($X$14+U88*$X$15+U88^2*$X$16)/$D$16+MMULT(MMULT($T88:$U88,COV),TRANSPOSE($T88:$U88)))*E$16-A50)^2) ->  | H120: =IF(A50="","",($C$9+X88*$C$10-$I$12*SQRT(($X$14+X88*$X$15+X88^2*$X$16)/$D$16+MMULT(MMULT($W88:$X88,COV),TRANSPOSE($W88:$X88)))*E$16-A50)^2) ->  | L120: =IF(A50="","",IF(Input!M64>0,Input!$N$23*SQRT((Input!M64*C50)^2+(Input!L64*$AO$14)^2),"na")) ->  | T120: 1 | W120: 1 | Z120: 0 | AA120: 0
G121: =IF(A51="","",($C$9+U89*$C$10+$I$12*SQRT(($X$14+U89*$X$15+U89^2*$X$16)/$D$16+MMULT(MMULT($T89:$U89,COV),TRANSPOSE($T89:$U89)))*E$16-A51)^2) ->  | H121: =IF(A51="","",($C$9+X89*$C$10-$I$12*SQRT(($X$14+X89*$X$15+X89^2*$X$16)/$D$16+MMULT(MMULT($W89:$X89,COV),TRANSPOSE($W89:$X89)))*E$16-A51)^2) ->  | L121: =IF(A51="","",IF(Input!M65>0,Input!$N$23*SQRT((Input!M65*C51)^2+(Input!L65*$AO$14)^2),"na")) ->  | T121: 1 | W121: 1 | Z121: 0 | AA121: 0
G122: =IF(A52="","",($C$9+U90*$C$10+$I$12*SQRT(($X$14+U90*$X$15+U90^2*$X$16)/$D$16+MMULT(MMULT($T90:$U90,COV),TRANSPOSE($T90:$U90)))*E$16-A52)^2) ->  | H122: =IF(A52="","",($C$9+X90*$C$10-$I$12*SQRT(($X$14+X90*$X$15+X90^2*$X$16)/$D$16+MMULT(MMULT($W90:$X90,COV),TRANSPOSE($W90:$X90)))*E$16-A52)^2) ->  | L122: =IF(A52="","",IF(Input!M66>0,Input!$N$23*SQRT((Input!M66*C52)^2+(Input!L66*$AO$14)^2),"na")) ->  | T122: 1 | W122: 1 | Z122: 0 | AA122: 0
G123: =IF(A53="","",($C$9+U91*$C$10+$I$12*SQRT(($X$14+U91*$X$15+U91^2*$X$16)/$D$16+MMULT(MMULT($T91:$U91,COV),TRANSPOSE($T91:$U91)))*E$16-A53)^2) ->  | H123: =IF(A53="","",($C$9+X91*$C$10-$I$12*SQRT(($X$14+X91*$X$15+X91^2*$X$16)/$D$16+MMULT(MMULT($W91:$X91,COV),TRANSPOSE($W91:$X91)))*E$16-A53)^2) ->  | L123: =IF(A53="","",IF(Input!M67>0,Input!$N$23*SQRT((Input!M67*C53)^2+(Input!L67*$AO$14)^2),"na")) ->  | T123: 1 | W123: 1 | Z123: 0 | AA123: 0
G124: =IF(A54="","",($C$9+U92*$C$10+$I$12*SQRT(($X$14+U92*$X$15+U92^2*$X$16)/$D$16+MMULT(MMULT($T92:$U92,COV),TRANSPOSE($T92:$U92)))*E$16-A54)^2) ->  | H124: =IF(A54="","",($C$9+X92*$C$10-$I$12*SQRT(($X$14+X92*$X$15+X92^2*$X$16)/$D$16+MMULT(MMULT($W92:$X92,COV),TRANSPOSE($W92:$X92)))*E$16-A54)^2) ->  | L124: =IF(A54="","",IF(Input!M68>0,Input!$N$23*SQRT((Input!M68*C54)^2+(Input!L68*$AO$14)^2),"na")) ->  | T124: 1 | W124: 1 | Z124: 0 | AA124: 0
G125: =IF(A55="","",($C$9+U93*$C$10+$I$12*SQRT(($X$14+U93*$X$15+U93^2*$X$16)/$D$16+MMULT(MMULT($T93:$U93,COV),TRANSPOSE($T93:$U93)))*E$16-A55)^2) ->  | H125: =IF(A55="","",($C$9+X93*$C$10-$I$12*SQRT(($X$14+X93*$X$15+X93^2*$X$16)/$D$16+MMULT(MMULT($W93:$X93,COV),TRANSPOSE($W93:$X93)))*E$16-A55)^2) ->  | L125: =IF(A55="","",IF(Input!M69>0,Input!$N$23*SQRT((Input!M69*C55)^2+(Input!L69*$AO$14)^2),"na")) ->  | T125: 1 | W125: 1 | Z125: 0 | AA125: 0
G126: =IF(A56="","",($C$9+U94*$C$10+$I$12*SQRT(($X$14+U94*$X$15+U94^2*$X$16)/$D$16+MMULT(MMULT($T94:$U94,COV),TRANSPOSE($T94:$U94)))*E$16-A56)^2) ->  | H126: =IF(A56="","",($C$9+X94*$C$10-$I$12*SQRT(($X$14+X94*$X$15+X94^2*$X$16)/$D$16+MMULT(MMULT($W94:$X94,COV),TRANSPOSE($W94:$X94)))*E$16-A56)^2) ->  | L126: =IF(A56="","",IF(Input!M70>0,Input!$N$23*SQRT((Input!M70*C56)^2+(Input!L70*$AO$14)^2),"na")) ->  | T126: 1 | W126: 1 | Z126: 0 | AA126: 0
G127: =IF(A57="","",($C$9+U95*$C$10+$I$12*SQRT(($X$14+U95*$X$15+U95^2*$X$16)/$D$16+MMULT(MMULT($T95:$U95,COV),TRANSPOSE($T95:$U95)))*E$16-A57)^2) ->  | H127: =IF(A57="","",($C$9+X95*$C$10-$I$12*SQRT(($X$14+X95*$X$15+X95^2*$X$16)/$D$16+MMULT(MMULT($W95:$X95,COV),TRANSPOSE($W95:$X95)))*E$16-A57)^2) ->  | L127: =IF(A57="","",IF(Input!M71>0,Input!$N$23*SQRT((Input!M71*C57)^2+(Input!L71*$AO$14)^2),"na")) ->  | T127: 1 | W127: 1 | Z127: 0 | AA127: 0
G128: =IF(A58="","",($C$9+U96*$C$10+$I$12*SQRT(($X$14+U96*$X$15+U96^2*$X$16)/$D$16+MMULT(MMULT($T96:$U96,COV),TRANSPOSE($T96:$U96)))*E$16-A58)^2) ->  | H128: =IF(A58="","",($C$9+X96*$C$10-$I$12*SQRT(($X$14+X96*$X$15+X96^2*$X$16)/$D$16+MMULT(MMULT($W96:$X96,COV),TRANSPOSE($W96:$X96)))*E$16-A58)^2) ->  | L128: =IF(A58="","",IF(Input!M72>0,Input!$N$23*SQRT((Input!M72*C58)^2+(Input!L72*$AO$14)^2),"na")) ->  | T128: 1 | W128: 1 | Z128: 0 | AA128: 0
G129: =IF(A59="","",($C$9+U97*$C$10+$I$12*SQRT(($X$14+U97*$X$15+U97^2*$X$16)/$D$16+MMULT(MMULT($T97:$U97,COV),TRANSPOSE($T97:$U97)))*E$16-A59)^2) ->  | H129: =IF(A59="","",($C$9+X97*$C$10-$I$12*SQRT(($X$14+X97*$X$15+X97^2*$X$16)/$D$16+MMULT(MMULT($W97:$X97,COV),TRANSPOSE($W97:$X97)))*E$16-A59)^2) ->  | L129: =IF(A59="","",IF(Input!M73>0,Input!$N$23*SQRT((Input!M73*C59)^2+(Input!L73*$AO$14)^2),"na")) ->  | T129: 1 | W129: 1 | Z129: 0 | AA129: 0
G130: =IF(A60="","",($C$9+U98*$C$10+$I$12*SQRT(($X$14+U98*$X$15+U98^2*$X$16)/$D$16+MMULT(MMULT($T98:$U98,COV),TRANSPOSE($T98:$U98)))*E$16-A60)^2) ->  | H130: =IF(A60="","",($C$9+X98*$C$10-$I$12*SQRT(($X$14+X98*$X$15+X98^2*$X$16)/$D$16+MMULT(MMULT($W98:$X98,COV),TRANSPOSE($W98:$X98)))*E$16-A60)^2) ->  | L130: =IF(A60="","",IF(Input!M74>0,Input!$N$23*SQRT((Input!M74*C60)^2+(Input!L74*$AO$14)^2),"na")) ->  | T130: 1 | W130: 1 | Z130: 0 | AA130: 0
G131: =IF(A61="","",($C$9+U99*$C$10+$I$12*SQRT(($X$14+U99*$X$15+U99^2*$X$16)/$D$16+MMULT(MMULT($T99:$U99,COV),TRANSPOSE($T99:$U99)))*E$16-A61)^2) ->  | H131: =IF(A61="","",($C$9+X99*$C$10-$I$12*SQRT(($X$14+X99*$X$15+X99^2*$X$16)/$D$16+MMULT(MMULT($W99:$X99,COV),TRANSPOSE($W99:$X99)))*E$16-A61)^2) ->  | L131: =IF(A61="","",IF(Input!M75>0,Input!$N$23*SQRT((Input!M75*C61)^2+(Input!L75*$AO$14)^2),"na")) ->  | T131: 1 | W131: 1 | Z131: 0 | AA131: 0
G132: =IF(A62="","",($C$9+U100*$C$10+$I$12*SQRT(($X$14+U100*$X$15+U100^2*$X$16)/$D$16+MMULT(MMULT($T100:$U100,COV),TRANSPOSE($T100:$U100)))*E$16-A62)^2) ->  | H132: =IF(A62="","",($C$9+X100*$C$10-$I$12*SQRT(($X$14+X100*$X$15+X100^2*$X$16)/$D$16+MMULT(MMULT($W100:$X100,COV),TRANSPOSE($W100:$X100)))*E$16-A62)^2) ->  | L132: =IF(A62="","",IF(Input!M76>0,Input!$N$23*SQRT((Input!M76*C62)^2+(Input!L76*$AO$14)^2),"na")) ->  | T132: 1 | W132: 1 | Z132: 0 | AA132: 0
G133: =IF(A63="","",($C$9+U101*$C$10+$I$12*SQRT(($X$14+U101*$X$15+U101^2*$X$16)/$D$16+MMULT(MMULT($T101:$U101,COV),TRANSPOSE($T101:$U101)))*E$16-A63)^2) ->  | H133: =IF(A63="","",($C$9+X101*$C$10-$I$12*SQRT(($X$14+X101*$X$15+X101^2*$X$16)/$D$16+MMULT(MMULT($W101:$X101,COV),TRANSPOSE($W101:$X101)))*E$16-A63)^2) ->  | L133: =IF(A63="","",IF(Input!M77>0,Input!$N$23*SQRT((Input!M77*C63)^2+(Input!L77*$AO$14)^2),"na")) ->  | T133: 1 | W133: 1 | Z133: 0 | AA133: 0
G134: =IF(A64="","",($C$9+U102*$C$10+$I$12*SQRT(($X$14+U102*$X$15+U102^2*$X$16)/$D$16+MMULT(MMULT($T102:$U102,COV),TRANSPOSE($T102:$U102)))*E$16-A64)^2) ->  | H134: =IF(A64="","",($C$9+X102*$C$10-$I$12*SQRT(($X$14+X102*$X$15+X102^2*$X$16)/$D$16+MMULT(MMULT($W102:$X102,COV),TRANSPOSE($W102:$X102)))*E$16-A64)^2) ->  | L134: =IF(A64="","",IF(Input!M78>0,Input!$N$23*SQRT((Input!M78*C64)^2+(Input!L78*$AO$14)^2),"na")) ->  | T134: 1 | W134: 1 | Z134: 0 | AA134: 0
G135: =IF(A65="","",($C$9+U103*$C$10+$I$12*SQRT(($X$14+U103*$X$15+U103^2*$X$16)/$D$16+MMULT(MMULT($T103:$U103,COV),TRANSPOSE($T103:$U103)))*E$16-A65)^2) ->  | H135: =IF(A65="","",($C$9+X103*$C$10-$I$12*SQRT(($X$14+X103*$X$15+X103^2*$X$16)/$D$16+MMULT(MMULT($W103:$X103,COV),TRANSPOSE($W103:$X103)))*E$16-A65)^2) ->  | L135: =IF(A65="","",IF(Input!M79>0,Input!$N$23*SQRT((Input!M79*C65)^2+(Input!L79*$AO$14)^2),"na")) ->  | T135: 1 | W135: 1 | Z135: 0 | AA135: 0
G136: =IF(A66="","",($C$9+U104*$C$10+$I$12*SQRT(($X$14+U104*$X$15+U104^2*$X$16)/$D$16+MMULT(MMULT($T104:$U104,COV),TRANSPOSE($T104:$U104)))*E$16-A66)^2) ->  | H136: =IF(A66="","",($C$9+X104*$C$10-$I$12*SQRT(($X$14+X104*$X$15+X104^2*$X$16)/$D$16+MMULT(MMULT($W104:$X104,COV),TRANSPOSE($W104:$X104)))*E$16-A66)^2) ->  | L136: =IF(A66="","",IF(Input!M80>0,Input!$N$23*SQRT((Input!M80*C66)^2+(Input!L80*$AO$14)^2),"na")) ->  | T136: 1 | W136: 1 | Z136: 0 | AA136: 0
G137: =IF(A67="","",($C$9+U105*$C$10+$I$12*SQRT(($X$14+U105*$X$15+U105^2*$X$16)/$D$16+MMULT(MMULT($T105:$U105,COV),TRANSPOSE($T105:$U105)))*E$16-A67)^2) ->  | H137: =IF(A67="","",($C$9+X105*$C$10-$I$12*SQRT(($X$14+X105*$X$15+X105^2*$X$16)/$D$16+MMULT(MMULT($W105:$X105,COV),TRANSPOSE($W105:$X105)))*E$16-A67)^2) ->  | L137: =IF(A67="","",IF(Input!M81>0,Input!$N$23*SQRT((Input!M81*C67)^2+(Input!L81*$AO$14)^2),"na")) ->  | T137: 1 | W137: 1 | Z137: 0 | AA137: 0
G138: =IF(A68="","",($C$9+U106*$C$10+$I$12*SQRT(($X$14+U106*$X$15+U106^2*$X$16)/$D$16+MMULT(MMULT($T106:$U106,COV),TRANSPOSE($T106:$U106)))*E$16-A68)^2) ->  | H138: =IF(A68="","",($C$9+X106*$C$10-$I$12*SQRT(($X$14+X106*$X$15+X106^2*$X$16)/$D$16+MMULT(MMULT($W106:$X106,COV),TRANSPOSE($W106:$X106)))*E$16-A68)^2) ->  | L138: =IF(A68="","",IF(Input!M82>0,Input!$N$23*SQRT((Input!M82*C68)^2+(Input!L82*$AO$14)^2),"na")) ->  | T138: 1 | W138: 1 | Z138: 0 | AA138: 0
G139: =IF(A69="","",($C$9+U107*$C$10+$I$12*SQRT(($X$14+U107*$X$15+U107^2*$X$16)/$D$16+MMULT(MMULT($T107:$U107,COV),TRANSPOSE($T107:$U107)))*E$16-A69)^2) ->  | H139: =IF(A69="","",($C$9+X107*$C$10-$I$12*SQRT(($X$14+X107*$X$15+X107^2*$X$16)/$D$16+MMULT(MMULT($W107:$X107,COV),TRANSPOSE($W107:$X107)))*E$16-A69)^2) ->  | L139: =IF(A69="","",IF(Input!M83>0,Input!$N$23*SQRT((Input!M83*C69)^2+(Input!L83*$AO$14)^2),"na")) ->  | T139: 1 | W139: 1 | Z139: 0 | AA139: 0
G140: =IF(A70="","",($C$9+U108*$C$10+$I$12*SQRT(($X$14+U108*$X$15+U108^2*$X$16)/$D$16+MMULT(MMULT($T108:$U108,COV),TRANSPOSE($T108:$U108)))*E$16-A70)^2) ->  | H140: =IF(A70="","",($C$9+X108*$C$10-$I$12*SQRT(($X$14+X108*$X$15+X108^2*$X$16)/$D$16+MMULT(MMULT($W108:$X108,COV),TRANSPOSE($W108:$X108)))*E$16-A70)^2) ->  | L140: =IF(A70="","",IF(Input!M84>0,Input!$N$23*SQRT((Input!M84*C70)^2+(Input!L84*$AO$14)^2),"na")) ->  | T140: 1 | W140: 1 | Z140: 0 | AA140: 0
G141: =IF(A71="","",($C$9+U109*$C$10+$I$12*SQRT(($X$14+U109*$X$15+U109^2*$X$16)/$D$16+MMULT(MMULT($T109:$U109,COV),TRANSPOSE($T109:$U109)))*E$16-A71)^2) ->  | H141: =IF(A71="","",($C$9+X109*$C$10-$I$12*SQRT(($X$14+X109*$X$15+X109^2*$X$16)/$D$16+MMULT(MMULT($W109:$X109,COV),TRANSPOSE($W109:$X109)))*E$16-A71)^2) ->  | L141: =IF(A71="","",IF(Input!M85>0,Input!$N$23*SQRT((Input!M85*C71)^2+(Input!L85*$AO$14)^2),"na")) ->  | T141: 1 | W141: 1 | Z141: 0 | AA141: 0
G142: =IF(A72="","",($C$9+U110*$C$10+$I$12*SQRT(($X$14+U110*$X$15+U110^2*$X$16)/$D$16+MMULT(MMULT($T110:$U110,COV),TRANSPOSE($T110:$U110)))*E$16-A72)^2) ->  | H142: =IF(A72="","",($C$9+X110*$C$10-$I$12*SQRT(($X$14+X110*$X$15+X110^2*$X$16)/$D$16+MMULT(MMULT($W110:$X110,COV),TRANSPOSE($W110:$X110)))*E$16-A72)^2) ->  | L142: =IF(A72="","",IF(Input!M86>0,Input!$N$23*SQRT((Input!M86*C72)^2+(Input!L86*$AO$14)^2),"na")) ->  | T142: 1 | W142: 1 | Z142: 0 | AA142: 0
G143: =IF(A73="","",($C$9+U111*$C$10+$I$12*SQRT(($X$14+U111*$X$15+U111^2*$X$16)/$D$16+MMULT(MMULT($T111:$U111,COV),TRANSPOSE($T111:$U111)))*E$16-A73)^2) ->  | H143: =IF(A73="","",($C$9+X111*$C$10-$I$12*SQRT(($X$14+X111*$X$15+X111^2*$X$16)/$D$16+MMULT(MMULT($W111:$X111,COV),TRANSPOSE($W111:$X111)))*E$16-A73)^2) ->  | L143: =IF(A73="","",IF(Input!M87>0,Input!$N$23*SQRT((Input!M87*C73)^2+(Input!L87*$AO$14)^2),"na")) ->  | T143: 1 | W143: 1 | Z143: 0 | AA143: 0
G144: =IF(A74="","",($C$9+U112*$C$10+$I$12*SQRT(($X$14+U112*$X$15+U112^2*$X$16)/$D$16+MMULT(MMULT($T112:$U112,COV),TRANSPOSE($T112:$U112)))*E$16-A74)^2) ->  | H144: =IF(A74="","",($C$9+X112*$C$10-$I$12*SQRT(($X$14+X112*$X$15+X112^2*$X$16)/$D$16+MMULT(MMULT($W112:$X112,COV),TRANSPOSE($W112:$X112)))*E$16-A74)^2) ->  | L144: =IF(A74="","",IF(Input!M88>0,Input!$N$23*SQRT((Input!M88*C74)^2+(Input!L88*$AO$14)^2),"na")) ->  | T144: 1 | W144: 1 | Z144: 0 | AA144: 0
G145: =IF(A75="","",($C$9+U113*$C$10+$I$12*SQRT(($X$14+U113*$X$15+U113^2*$X$16)/$D$16+MMULT(MMULT($T113:$U113,COV),TRANSPOSE($T113:$U113)))*E$16-A75)^2) ->  | H145: =IF(A75="","",($C$9+X113*$C$10-$I$12*SQRT(($X$14+X113*$X$15+X113^2*$X$16)/$D$16+MMULT(MMULT($W113:$X113,COV),TRANSPOSE($W113:$X113)))*E$16-A75)^2) ->  | L145: =IF(A75="","",IF(Input!M89>0,Input!$N$23*SQRT((Input!M89*C75)^2+(Input!L89*$AO$14)^2),"na")) ->  | T145: 1 | W145: 1 | Z145: 0 | AA145: 0
G146: =IF(A76="","",($C$9+U114*$C$10+$I$12*SQRT(($X$14+U114*$X$15+U114^2*$X$16)/$D$16+MMULT(MMULT($T114:$U114,COV),TRANSPOSE($T114:$U114)))*E$16-A76)^2) ->  | H146: =IF(A76="","",($C$9+X114*$C$10-$I$12*SQRT(($X$14+X114*$X$15+X114^2*$X$16)/$D$16+MMULT(MMULT($W114:$X114,COV),TRANSPOSE($W114:$X114)))*E$16-A76)^2) ->  | L146: =IF(A76="","",IF(Input!M90>0,Input!$N$23*SQRT((Input!M90*C76)^2+(Input!L90*$AO$14)^2),"na")) ->  | T146: 1 | W146: 1 | Z146: 0 | AA146: 0
G147: =IF(A77="","",($C$9+U115*$C$10+$I$12*SQRT(($X$14+U115*$X$15+U115^2*$X$16)/$D$16+MMULT(MMULT($T115:$U115,COV),TRANSPOSE($T115:$U115)))*E$16-A77)^2) ->  | H147: =IF(A77="","",($C$9+X115*$C$10-$I$12*SQRT(($X$14+X115*$X$15+X115^2*$X$16)/$D$16+MMULT(MMULT($W115:$X115,COV),TRANSPOSE($W115:$X115)))*E$16-A77)^2) ->  | L147: =IF(A77="","",IF(Input!M91>0,Input!$N$23*SQRT((Input!M91*C77)^2+(Input!L91*$AO$14)^2),"na")) ->  | T147: 1 | W147: 1 | Z147: 0 | AA147: 0
G148: =IF(A78="","",($C$9+U116*$C$10+$I$12*SQRT(($X$14+U116*$X$15+U116^2*$X$16)/$D$16+MMULT(MMULT($T116:$U116,COV),TRANSPOSE($T116:$U116)))*E$16-A78)^2) ->  | H148: =IF(A78="","",($C$9+X116*$C$10-$I$12*SQRT(($X$14+X116*$X$15+X116^2*$X$16)/$D$16+MMULT(MMULT($W116:$X116,COV),TRANSPOSE($W116:$X116)))*E$16-A78)^2) ->  | L148: =IF(A78="","",IF(Input!M92>0,Input!$N$23*SQRT((Input!M92*C78)^2+(Input!L92*$AO$14)^2),"na")) ->  | T148: 1 | W148: 1 | Z148: 0 | AA148: 0
G149: =IF(A79="","",($C$9+U117*$C$10+$I$12*SQRT(($X$14+U117*$X$15+U117^2*$X$16)/$D$16+MMULT(MMULT($T117:$U117,COV),TRANSPOSE($T117:$U117)))*E$16-A79)^2) ->  | H149: =IF(A79="","",($C$9+X117*$C$10-$I$12*SQRT(($X$14+X117*$X$15+X117^2*$X$16)/$D$16+MMULT(MMULT($W117:$X117,COV),TRANSPOSE($W117:$X117)))*E$16-A79)^2) ->  | L149: =IF(A79="","",IF(Input!M93>0,Input!$N$23*SQRT((Input!M93*C79)^2+(Input!L93*$AO$14)^2),"na")) ->  | T149: 1 | W149: 1
G150: =IF(A80="","",($C$9+U118*$C$10+$I$12*SQRT(($X$14+U118*$X$15+U118^2*$X$16)/$D$16+MMULT(MMULT($T118:$U118,COV),TRANSPOSE($T118:$U118)))*E$16-A80)^2) ->  | H150: =IF(A80="","",($C$9+X118*$C$10-$I$12*SQRT(($X$14+X118*$X$15+X118^2*$X$16)/$D$16+MMULT(MMULT($W118:$X118,COV),TRANSPOSE($W118:$X118)))*E$16-A80)^2) ->  | L150: =IF(A80="","",IF(Input!M94>0,Input!$N$23*SQRT((Input!M94*C80)^2+(Input!L94*$AO$14)^2),"na")) ->  | T150: 1 | W150: 1
G151: =IF(A81="","",($C$9+U119*$C$10+$I$12*SQRT(($X$14+U119*$X$15+U119^2*$X$16)/$D$16+MMULT(MMULT($T119:$U119,COV),TRANSPOSE($T119:$U119)))*E$16-A81)^2) ->  | H151: =IF(A81="","",($C$9+X119*$C$10-$I$12*SQRT(($X$14+X119*$X$15+X119^2*$X$16)/$D$16+MMULT(MMULT($W119:$X119,COV),TRANSPOSE($W119:$X119)))*E$16-A81)^2) ->  | L151: =IF(A81="","",IF(Input!M95>0,Input!$N$23*SQRT((Input!M95*C81)^2+(Input!L95*$AO$14)^2),"na")) ->  | T151: 1 | W151: 1
G152: =IF(A82="","",($C$9+U120*$C$10+$I$12*SQRT(($X$14+U120*$X$15+U120^2*$X$16)/$D$16+MMULT(MMULT($T120:$U120,COV),TRANSPOSE($T120:$U120)))*E$16-A82)^2) ->  | H152: =IF(A82="","",($C$9+X120*$C$10-$I$12*SQRT(($X$14+X120*$X$15+X120^2*$X$16)/$D$16+MMULT(MMULT($W120:$X120,COV),TRANSPOSE($W120:$X120)))*E$16-A82)^2) ->  | L152: =IF(A82="","",IF(Input!M96>0,Input!$N$23*SQRT((Input!M96*C82)^2+(Input!L96*$AO$14)^2),"na")) ->  | T152: 1 | W152: 1
G153: =IF(A83="","",($C$9+U121*$C$10+$I$12*SQRT(($X$14+U121*$X$15+U121^2*$X$16)/$D$16+MMULT(MMULT($T121:$U121,COV),TRANSPOSE($T121:$U121)))*E$16-A83)^2) ->  | H153: =IF(A83="","",($C$9+X121*$C$10-$I$12*SQRT(($X$14+X121*$X$15+X121^2*$X$16)/$D$16+MMULT(MMULT($W121:$X121,COV),TRANSPOSE($W121:$X121)))*E$16-A83)^2) ->  | L153: =IF(A83="","",IF(Input!M97>0,Input!$N$23*SQRT((Input!M97*C83)^2+(Input!L97*$AO$14)^2),"na")) ->  | T153: 1 | W153: 1
G154: =IF(A84="","",($C$9+U122*$C$10+$I$12*SQRT(($X$14+U122*$X$15+U122^2*$X$16)/$D$16+MMULT(MMULT($T122:$U122,COV),TRANSPOSE($T122:$U122)))*E$16-A84)^2) ->  | H154: =IF(A84="","",($C$9+X122*$C$10-$I$12*SQRT(($X$14+X122*$X$15+X122^2*$X$16)/$D$16+MMULT(MMULT($W122:$X122,COV),TRANSPOSE($W122:$X122)))*E$16-A84)^2) ->  | I154: =IF(A84="","",IF(K$84=0,C84*$E$16,B84-U122)) ->  | J154: =IF(A84="","",IF(K$84=0,C84*$E$16,X122-B84)) ->  | K154: =IF(ISNUMBER(G154),IF(AND(G154<0.001*A84,H154<0.001*A84),"Ok",""),"") ->  | L154: =IF(A84="","",IF(Input!M98>0,Input!$N$23*SQRT((Input!M98*C84)^2+(Input!L98*$AO$14)^2),"na")) ->  | T154: 1 | W154: 1
G155: =IF(A85="","",($C$9+U123*$C$10+$I$12*SQRT(($X$14+U123*$X$15+U123^2*$X$16)/$D$16+MMULT(MMULT($T123:$U123,COV),TRANSPOSE($T123:$U123)))*E$16-A85)^2) ->  | H155: =IF(A85="","",($C$9+X123*$C$10-$I$12*SQRT(($X$14+X123*$X$15+X123^2*$X$16)/$D$16+MMULT(MMULT($W123:$X123,COV),TRANSPOSE($W123:$X123)))*E$16-A85)^2) ->  | L155: =IF(A85="","",IF(Input!M99>0,Input!$N$23*SQRT((Input!M99*C85)^2+(Input!L99*$AO$14)^2),"na")) ->  | T155: 1 | W155: 1
G156: =IF(A86="","",($C$9+U124*$C$10+$I$12*SQRT(($X$14+U124*$X$15+U124^2*$X$16)/$D$16+MMULT(MMULT($T124:$U124,COV),TRANSPOSE($T124:$U124)))*E$16-A86)^2) ->  | H156: =IF(A86="","",($C$9+X124*$C$10-$I$12*SQRT(($X$14+X124*$X$15+X124^2*$X$16)/$D$16+MMULT(MMULT($W124:$X124,COV),TRANSPOSE($W124:$X124)))*E$16-A86)^2) ->  | L156: =IF(A86="","",IF(Input!M100>0,Input!$N$23*SQRT((Input!M100*C86)^2+(Input!L100*$AO$14)^2),"na")) ->  | T156: 1 | W156: 1
G157: =IF(A87="","",($C$9+U125*$C$10+$I$12*SQRT(($X$14+U125*$X$15+U125^2*$X$16)/$D$16+MMULT(MMULT($T125:$U125,COV),TRANSPOSE($T125:$U125)))*E$16-A87)^2) ->  | H157: =IF(A87="","",($C$9+X125*$C$10-$I$12*SQRT(($X$14+X125*$X$15+X125^2*$X$16)/$D$16+MMULT(MMULT($W125:$X125,COV),TRANSPOSE($W125:$X125)))*E$16-A87)^2) ->  | L157: =IF(A87="","",IF(Input!M101>0,Input!$N$23*SQRT((Input!M101*C87)^2+(Input!L101*$AO$14)^2),"na")) -> 
G158: =IF(A88="","",($C$9+U126*$C$10+$I$12*SQRT(($X$14+U126*$X$15+U126^2*$X$16)/$D$16+MMULT(MMULT($T126:$U126,COV),TRANSPOSE($T126:$U126)))*E$16-A88)^2) ->  | H158: =IF(A88="","",($C$9+X126*$C$10-$I$12*SQRT(($X$14+X126*$X$15+X126^2*$X$16)/$D$16+MMULT(MMULT($W126:$X126,COV),TRANSPOSE($W126:$X126)))*E$16-A88)^2) ->  | L158: =IF(A88="","",IF(Input!M102>0,Input!$N$23*SQRT((Input!M102*C88)^2+(Input!L102*$AO$14)^2),"na")) -> 
G159: =IF(A89="","",($C$9+U127*$C$10+$I$12*SQRT(($X$14+U127*$X$15+U127^2*$X$16)/$D$16+MMULT(MMULT($T127:$U127,COV),TRANSPOSE($T127:$U127)))*E$16-A89)^2) ->  | H159: =IF(A89="","",($C$9+X127*$C$10-$I$12*SQRT(($X$14+X127*$X$15+X127^2*$X$16)/$D$16+MMULT(MMULT($W127:$X127,COV),TRANSPOSE($W127:$X127)))*E$16-A89)^2) ->  | L159: =IF(A89="","",IF(Input!M103>0,Input!$N$23*SQRT((Input!M103*C89)^2+(Input!L103*$AO$14)^2),"na")) -> 
G160: =IF(A90="","",($C$9+U128*$C$10+$I$12*SQRT(($X$14+U128*$X$15+U128^2*$X$16)/$D$16+MMULT(MMULT($T128:$U128,COV),TRANSPOSE($T128:$U128)))*E$16-A90)^2) ->  | H160: =IF(A90="","",($C$9+X128*$C$10-$I$12*SQRT(($X$14+X128*$X$15+X128^2*$X$16)/$D$16+MMULT(MMULT($W128:$X128,COV),TRANSPOSE($W128:$X128)))*E$16-A90)^2) ->  | L160: =IF(A90="","",IF(Input!M104>0,Input!$N$23*SQRT((Input!M104*C90)^2+(Input!L104*$AO$14)^2),"na")) -> 
G161: =IF(A91="","",($C$9+U129*$C$10+$I$12*SQRT(($X$14+U129*$X$15+U129^2*$X$16)/$D$16+MMULT(MMULT($T129:$U129,COV),TRANSPOSE($T129:$U129)))*E$16-A91)^2) ->  | H161: =IF(A91="","",($C$9+X129*$C$10-$I$12*SQRT(($X$14+X129*$X$15+X129^2*$X$16)/$D$16+MMULT(MMULT($W129:$X129,COV),TRANSPOSE($W129:$X129)))*E$16-A91)^2) ->  | L161: =IF(A91="","",IF(Input!M105>0,Input!$N$23*SQRT((Input!M105*C91)^2+(Input!L105*$AO$14)^2),"na")) -> 
G162: =IF(A92="","",($C$9+U130*$C$10+$I$12*SQRT(($X$14+U130*$X$15+U130^2*$X$16)/$D$16+MMULT(MMULT($T130:$U130,COV),TRANSPOSE($T130:$U130)))*E$16-A92)^2) ->  | H162: =IF(A92="","",($C$9+X130*$C$10-$I$12*SQRT(($X$14+X130*$X$15+X130^2*$X$16)/$D$16+MMULT(MMULT($W130:$X130,COV),TRANSPOSE($W130:$X130)))*E$16-A92)^2) ->  | L162: =IF(A92="","",IF(Input!M106>0,Input!$N$23*SQRT((Input!M106*C92)^2+(Input!L106*$AO$14)^2),"na")) -> 
G163: =IF(A93="","",($C$9+U131*$C$10+$I$12*SQRT(($X$14+U131*$X$15+U131^2*$X$16)/$D$16+MMULT(MMULT($T131:$U131,COV),TRANSPOSE($T131:$U131)))*E$16-A93)^2) ->  | H163: =IF(A93="","",($C$9+X131*$C$10-$I$12*SQRT(($X$14+X131*$X$15+X131^2*$X$16)/$D$16+MMULT(MMULT($W131:$X131,COV),TRANSPOSE($W131:$X131)))*E$16-A93)^2) ->  | L163: =IF(A93="","",IF(Input!M107>0,Input!$N$23*SQRT((Input!M107*C93)^2+(Input!L107*$AO$14)^2),"na")) -> 
G164: =IF(A94="","",($C$9+U132*$C$10+$I$12*SQRT(($X$14+U132*$X$15+U132^2*$X$16)/$D$16+MMULT(MMULT($T132:$U132,COV),TRANSPOSE($T132:$U132)))*E$16-A94)^2) ->  | H164: =IF(A94="","",($C$9+X132*$C$10-$I$12*SQRT(($X$14+X132*$X$15+X132^2*$X$16)/$D$16+MMULT(MMULT($W132:$X132,COV),TRANSPOSE($W132:$X132)))*E$16-A94)^2) ->  | L164: =IF(A94="","",IF(Input!M108>0,Input!$N$23*SQRT((Input!M108*C94)^2+(Input!L108*$AO$14)^2),"na")) -> 
G165: =IF(A95="","",($C$9+U133*$C$10+$I$12*SQRT(($X$14+U133*$X$15+U133^2*$X$16)/$D$16+MMULT(MMULT($T133:$U133,COV),TRANSPOSE($T133:$U133)))*E$16-A95)^2) ->  | H165: =IF(A95="","",($C$9+X133*$C$10-$I$12*SQRT(($X$14+X133*$X$15+X133^2*$X$16)/$D$16+MMULT(MMULT($W133:$X133,COV),TRANSPOSE($W133:$X133)))*E$16-A95)^2) ->  | L165: =IF(A95="","",IF(Input!M109>0,Input!$N$23*SQRT((Input!M109*C95)^2+(Input!L109*$AO$14)^2),"na")) -> 
G166: =IF(A96="","",($C$9+U134*$C$10+$I$12*SQRT(($X$14+U134*$X$15+U134^2*$X$16)/$D$16+MMULT(MMULT($T134:$U134,COV),TRANSPOSE($T134:$U134)))*E$16-A96)^2) ->  | H166: =IF(A96="","",($C$9+X134*$C$10-$I$12*SQRT(($X$14+X134*$X$15+X134^2*$X$16)/$D$16+MMULT(MMULT($W134:$X134,COV),TRANSPOSE($W134:$X134)))*E$16-A96)^2) ->  | L166: =IF(A96="","",IF(Input!M110>0,Input!$N$23*SQRT((Input!M110*C96)^2+(Input!L110*$AO$14)^2),"na")) -> 
G167: =IF(A97="","",($C$9+U135*$C$10+$I$12*SQRT(($X$14+U135*$X$15+U135^2*$X$16)/$D$16+MMULT(MMULT($T135:$U135,COV),TRANSPOSE($T135:$U135)))*E$16-A97)^2) ->  | H167: =IF(A97="","",($C$9+X135*$C$10-$I$12*SQRT(($X$14+X135*$X$15+X135^2*$X$16)/$D$16+MMULT(MMULT($W135:$X135,COV),TRANSPOSE($W135:$X135)))*E$16-A97)^2) ->  | L167: =IF(A97="","",IF(Input!M111>0,Input!$N$23*SQRT((Input!M111*C97)^2+(Input!L111*$AO$14)^2),"na")) -> 
G168: =IF(A98="","",($C$9+U136*$C$10+$I$12*SQRT(($X$14+U136*$X$15+U136^2*$X$16)/$D$16+MMULT(MMULT($T136:$U136,COV),TRANSPOSE($T136:$U136)))*E$16-A98)^2) ->  | H168: =IF(A98="","",($C$9+X136*$C$10-$I$12*SQRT(($X$14+X136*$X$15+X136^2*$X$16)/$D$16+MMULT(MMULT($W136:$X136,COV),TRANSPOSE($W136:$X136)))*E$16-A98)^2) ->  | L168: =IF(A98="","",IF(Input!M112>0,Input!$N$23*SQRT((Input!M112*C98)^2+(Input!L112*$AO$14)^2),"na")) -> 
G169: =IF(A99="","",($C$9+U137*$C$10+$I$12*SQRT(($X$14+U137*$X$15+U137^2*$X$16)/$D$16+MMULT(MMULT($T137:$U137,COV),TRANSPOSE($T137:$U137)))*E$16-A99)^2) ->  | H169: =IF(A99="","",($C$9+X137*$C$10-$I$12*SQRT(($X$14+X137*$X$15+X137^2*$X$16)/$D$16+MMULT(MMULT($W137:$X137,COV),TRANSPOSE($W137:$X137)))*E$16-A99)^2) ->  | L169: =IF(A99="","",IF(Input!M113>0,Input!$N$23*SQRT((Input!M113*C99)^2+(Input!L113*$AO$14)^2),"na")) -> 
G170: =IF(A100="","",($C$9+U138*$C$10+$I$12*SQRT(($X$14+U138*$X$15+U138^2*$X$16)/$D$16+MMULT(MMULT($T138:$U138,COV),TRANSPOSE($T138:$U138)))*E$16-A100)^2) ->  | H170: =IF(A100="","",($C$9+X138*$C$10-$I$12*SQRT(($X$14+X138*$X$15+X138^2*$X$16)/$D$16+MMULT(MMULT($W138:$X138,COV),TRANSPOSE($W138:$X138)))*E$16-A100)^2) ->  | L170: =IF(A100="","",IF(Input!M114>0,Input!$N$23*SQRT((Input!M114*C100)^2+(Input!L114*$AO$14)^2),"na")) -> 
G171: =IF(A101="","",($C$9+U139*$C$10+$I$12*SQRT(($X$14+U139*$X$15+U139^2*$X$16)/$D$16+MMULT(MMULT($T139:$U139,COV),TRANSPOSE($T139:$U139)))*E$16-A101)^2) ->  | H171: =IF(A101="","",($C$9+X139*$C$10-$I$12*SQRT(($X$14+X139*$X$15+X139^2*$X$16)/$D$16+MMULT(MMULT($W139:$X139,COV),TRANSPOSE($W139:$X139)))*E$16-A101)^2) ->  | L171: =IF(A101="","",IF(Input!M115>0,Input!$N$23*SQRT((Input!M115*C101)^2+(Input!L115*$AO$14)^2),"na")) -> 
G172: =IF(A102="","",($C$9+U140*$C$10+$I$12*SQRT(($X$14+U140*$X$15+U140^2*$X$16)/$D$16+MMULT(MMULT($T140:$U140,COV),TRANSPOSE($T140:$U140)))*E$16-A102)^2) ->  | H172: =IF(A102="","",($C$9+X140*$C$10-$I$12*SQRT(($X$14+X140*$X$15+X140^2*$X$16)/$D$16+MMULT(MMULT($W140:$X140,COV),TRANSPOSE($W140:$X140)))*E$16-A102)^2) ->  | L172: =IF(A102="","",IF(Input!M116>0,Input!$N$23*SQRT((Input!M116*C102)^2+(Input!L116*$AO$14)^2),"na")) -> 
G173: =IF(A103="","",($C$9+U141*$C$10+$I$12*SQRT(($X$14+U141*$X$15+U141^2*$X$16)/$D$16+MMULT(MMULT($T141:$U141,COV),TRANSPOSE($T141:$U141)))*E$16-A103)^2) ->  | H173: =IF(A103="","",($C$9+X141*$C$10-$I$12*SQRT(($X$14+X141*$X$15+X141^2*$X$16)/$D$16+MMULT(MMULT($W141:$X141,COV),TRANSPOSE($W141:$X141)))*E$16-A103)^2) ->  | L173: =IF(A103="","",IF(Input!M117>0,Input!$N$23*SQRT((Input!M117*C103)^2+(Input!L117*$AO$14)^2),"na")) -> 
G174: =IF(A104="","",($C$9+U142*$C$10+$I$12*SQRT(($X$14+U142*$X$15+U142^2*$X$16)/$D$16+MMULT(MMULT($T142:$U142,COV),TRANSPOSE($T142:$U142)))*E$16-A104)^2) ->  | H174: =IF(A104="","",($C$9+X142*$C$10-$I$12*SQRT(($X$14+X142*$X$15+X142^2*$X$16)/$D$16+MMULT(MMULT($W142:$X142,COV),TRANSPOSE($W142:$X142)))*E$16-A104)^2) ->  | L174: =IF(A104="","",IF(Input!M118>0,Input!$N$23*SQRT((Input!M118*C104)^2+(Input!L118*$AO$14)^2),"na")) -> 
G175: =IF(A105="","",($C$9+U143*$C$10+$I$12*SQRT(($X$14+U143*$X$15+U143^2*$X$16)/$D$16+MMULT(MMULT($T143:$U143,COV),TRANSPOSE($T143:$U143)))*E$16-A105)^2) ->  | H175: =IF(A105="","",($C$9+X143*$C$10-$I$12*SQRT(($X$14+X143*$X$15+X143^2*$X$16)/$D$16+MMULT(MMULT($W143:$X143,COV),TRANSPOSE($W143:$X143)))*E$16-A105)^2) ->  | L175: =IF(A105="","",IF(Input!M119>0,Input!$N$23*SQRT((Input!M119*C105)^2+(Input!L119*$AO$14)^2),"na")) -> 
G176: =IF(A106="","",($C$9+U144*$C$10+$I$12*SQRT(($X$14+U144*$X$15+U144^2*$X$16)/$D$16+MMULT(MMULT($T144:$U144,COV),TRANSPOSE($T144:$U144)))*E$16-A106)^2) ->  | H176: =IF(A106="","",($C$9+X144*$C$10-$I$12*SQRT(($X$14+X144*$X$15+X144^2*$X$16)/$D$16+MMULT(MMULT($W144:$X144,COV),TRANSPOSE($W144:$X144)))*E$16-A106)^2) ->  | L176: =IF(A106="","",IF(Input!M120>0,Input!$N$23*SQRT((Input!M120*C106)^2+(Input!L120*$AO$14)^2),"na")) -> 
G177: =IF(A107="","",($C$9+U145*$C$10+$I$12*SQRT(($X$14+U145*$X$15+U145^2*$X$16)/$D$16+MMULT(MMULT($T145:$U145,COV),TRANSPOSE($T145:$U145)))*E$16-A107)^2) ->  | H177: =IF(A107="","",($C$9+X145*$C$10-$I$12*SQRT(($X$14+X145*$X$15+X145^2*$X$16)/$D$16+MMULT(MMULT($W145:$X145,COV),TRANSPOSE($W145:$X145)))*E$16-A107)^2) ->  | L177: =IF(A107="","",IF(Input!M121>0,Input!$N$23*SQRT((Input!M121*C107)^2+(Input!L121*$AO$14)^2),"na")) -> 
G178: =IF(A108="","",($C$9+U146*$C$10+$I$12*SQRT(($X$14+U146*$X$15+U146^2*$X$16)/$D$16+MMULT(MMULT($T146:$U146,COV),TRANSPOSE($T146:$U146)))*E$16-A108)^2) ->  | H178: =IF(A108="","",($C$9+X146*$C$10-$I$12*SQRT(($X$14+X146*$X$15+X146^2*$X$16)/$D$16+MMULT(MMULT($W146:$X146,COV),TRANSPOSE($W146:$X146)))*E$16-A108)^2) ->  | L178: =IF(A108="","",IF(Input!M122>0,Input!$N$23*SQRT((Input!M122*C108)^2+(Input!L122*$AO$14)^2),"na")) -> 
G179: =IF(A109="","",($C$9+U147*$C$10+$I$12*SQRT(($X$14+U147*$X$15+U147^2*$X$16)/$D$16+MMULT(MMULT($T147:$U147,COV),TRANSPOSE($T147:$U147)))*E$16-A109)^2) ->  | H179: =IF(A109="","",($C$9+X147*$C$10-$I$12*SQRT(($X$14+X147*$X$15+X147^2*$X$16)/$D$16+MMULT(MMULT($W147:$X147,COV),TRANSPOSE($W147:$X147)))*E$16-A109)^2) ->  | L179: =IF(A109="","",IF(Input!M123>0,Input!$N$23*SQRT((Input!M123*C109)^2+(Input!L123*$AO$14)^2),"na")) -> 
G180: =IF(A110="","",($C$9+U148*$C$10+$I$12*SQRT(($X$14+U148*$X$15+U148^2*$X$16)/$D$16+MMULT(MMULT($T148:$U148,COV),TRANSPOSE($T148:$U148)))*E$16-A110)^2) ->  | H180: =IF(A110="","",($C$9+X148*$C$10-$I$12*SQRT(($X$14+X148*$X$15+X148^2*$X$16)/$D$16+MMULT(MMULT($W148:$X148,COV),TRANSPOSE($W148:$X148)))*E$16-A110)^2) ->  | L180: =IF(A110="","",IF(Input!M124>0,Input!$N$23*SQRT((Input!M124*C110)^2+(Input!L124*$AO$14)^2),"na")) -> 
G181: =IF(A111="","",($C$9+U149*$C$10+$I$12*SQRT(($X$14+U149*$X$15+U149^2*$X$16)/$D$16+MMULT(MMULT($T149:$U149,COV),TRANSPOSE($T149:$U149)))*E$16-A111)^2) ->  | H181: =IF(A111="","",($C$9+X149*$C$10-$I$12*SQRT(($X$14+X149*$X$15+X149^2*$X$16)/$D$16+MMULT(MMULT($W149:$X149,COV),TRANSPOSE($W149:$X149)))*E$16-A111)^2) ->  | L181: =IF(A111="","",IF(Input!M125>0,Input!$N$23*SQRT((Input!M125*C111)^2+(Input!L125*$AO$14)^2),"na")) -> 
G182: =IF(A112="","",($C$9+U150*$C$10+$I$12*SQRT(($X$14+U150*$X$15+U150^2*$X$16)/$D$16+MMULT(MMULT($T150:$U150,COV),TRANSPOSE($T150:$U150)))*E$16-A112)^2) ->  | H182: =IF(A112="","",($C$9+X150*$C$10-$I$12*SQRT(($X$14+X150*$X$15+X150^2*$X$16)/$D$16+MMULT(MMULT($W150:$X150,COV),TRANSPOSE($W150:$X150)))*E$16-A112)^2) ->  | L182: =IF(A112="","",IF(Input!M126>0,Input!$N$23*SQRT((Input!M126*C112)^2+(Input!L126*$AO$14)^2),"na")) -> 
G183: =IF(A113="","",($C$9+U151*$C$10+$I$12*SQRT(($X$14+U151*$X$15+U151^2*$X$16)/$D$16+MMULT(MMULT($T151:$U151,COV),TRANSPOSE($T151:$U151)))*E$16-A113)^2) ->  | H183: =IF(A113="","",($C$9+X151*$C$10-$I$12*SQRT(($X$14+X151*$X$15+X151^2*$X$16)/$D$16+MMULT(MMULT($W151:$X151,COV),TRANSPOSE($W151:$X151)))*E$16-A113)^2) ->  | L183: =IF(A113="","",IF(Input!M127>0,Input!$N$23*SQRT((Input!M127*C113)^2+(Input!L127*$AO$14)^2),"na")) -> 
G184: =IF(A114="","",($C$9+U152*$C$10+$I$12*SQRT(($X$14+U152*$X$15+U152^2*$X$16)/$D$16+MMULT(MMULT($T152:$U152,COV),TRANSPOSE($T152:$U152)))*E$16-A114)^2) ->  | H184: =IF(A114="","",($C$9+X152*$C$10-$I$12*SQRT(($X$14+X152*$X$15+X152^2*$X$16)/$D$16+MMULT(MMULT($W152:$X152,COV),TRANSPOSE($W152:$X152)))*E$16-A114)^2) ->  | L184: =IF(A114="","",IF(Input!M128>0,Input!$N$23*SQRT((Input!M128*C114)^2+(Input!L128*$AO$14)^2),"na")) -> 
G185: =IF(A115="","",($C$9+U153*$C$10+$I$12*SQRT(($X$14+U153*$X$15+U153^2*$X$16)/$D$16+MMULT(MMULT($T153:$U153,COV),TRANSPOSE($T153:$U153)))*E$16-A115)^2) ->  | H185: =IF(A115="","",($C$9+X153*$C$10-$I$12*SQRT(($X$14+X153*$X$15+X153^2*$X$16)/$D$16+MMULT(MMULT($W153:$X153,COV),TRANSPOSE($W153:$X153)))*E$16-A115)^2) ->  | L185: =IF(A115="","",IF(Input!M129>0,Input!$N$23*SQRT((Input!M129*C115)^2+(Input!L129*$AO$14)^2),"na")) -> 
G186: =IF(A116="","",($C$9+U154*$C$10+$I$12*SQRT(($X$14+U154*$X$15+U154^2*$X$16)/$D$16+MMULT(MMULT($T154:$U154,COV),TRANSPOSE($T154:$U154)))*E$16-A116)^2) ->  | H186: =IF(A116="","",($C$9+X154*$C$10-$I$12*SQRT(($X$14+X154*$X$15+X154^2*$X$16)/$D$16+MMULT(MMULT($W154:$X154,COV),TRANSPOSE($W154:$X154)))*E$16-A116)^2) ->  | L186: =IF(A116="","",IF(Input!M130>0,Input!$N$23*SQRT((Input!M130*C116)^2+(Input!L130*$AO$14)^2),"na")) -> 
G187: =IF(A117="","",($C$9+U155*$C$10+$I$12*SQRT(($X$14+U155*$X$15+U155^2*$X$16)/$D$16+MMULT(MMULT($T155:$U155,COV),TRANSPOSE($T155:$U155)))*E$16-A117)^2) ->  | H187: =IF(A117="","",($C$9+X155*$C$10-$I$12*SQRT(($X$14+X155*$X$15+X155^2*$X$16)/$D$16+MMULT(MMULT($W155:$X155,COV),TRANSPOSE($W155:$X155)))*E$16-A117)^2) ->  | L187: =IF(A117="","",IF(Input!M131>0,Input!$N$23*SQRT((Input!M131*C117)^2+(Input!L131*$AO$14)^2),"na")) -> 
G188: =IF(A118="","",($C$9+U156*$C$10+$I$12*SQRT(($X$14+U156*$X$15+U156^2*$X$16)/$D$16+MMULT(MMULT($T156:$U156,COV),TRANSPOSE($T156:$U156)))*E$16-A118)^2) ->  | H188: =IF(A118="","",($C$9+X156*$C$10-$I$12*SQRT(($X$14+X156*$X$15+X156^2*$X$16)/$D$16+MMULT(MMULT($W156:$X156,COV),TRANSPOSE($W156:$X156)))*E$16-A118)^2) ->  | L188: =IF(A118="","",IF(Input!M132>0,Input!$N$23*SQRT((Input!M132*C118)^2+(Input!L132*$AO$14)^2),"na")) -> 

Sheet 2nd degree
A1: =Info!$A$1 -> Calibration_Quant_8.15.xlsm | D1: 2nd degree polynomial regression | N1: ='Experimental data'!$J$1 -> Author: Bo Svensmark, svensmark@plen.ku.dk, Analytical Chemistry, PLEN, University of Copenhagen, 2017 - 2025
G2: =Input!I15 -> 1 | H2: =Input!B25 -> Naphthalene | W2: Statistical param | Z2: Covariance matrix
W3: Ymean | X3: =SUM(W*Y)/I9 -> 0.0338970947 | Z3: =MINVERSE(MMULT(MMULT(TRANSPOSE(X_1),W),X_1)) -> 0.05322227751 | AA3: -0.001116288456 | AB3: 1.363279518e-06
G4: =IF(G6=0,"Remember to save the results","") -> Remember to save the results | K4: Comments to output | W4: Xmean | X4: =SUM(W*X)/I9 -> 3.458349636 | Z4: -0.001116288456 | AA4: 0.0003939626149 | AB4: -5.258244098e-07
G5: =IF(G6=0,"","Results are saved") ->  | W5: SStotal | X5: =SUM(W*(Y-$X$3)^2) -> 0.820849565 | Z5: 1.363279518e-06 | AA5: -5.258244098e-07 | AB5: 9.72320018e-10
G6: ='Test of calibration function'!C117 -> 0 | W6: SSreg | X6: =SUM(W*(MMULT(X_1,C9:C11)-X3)^2) -> 0.8207158283 | AN6: Detection limits to output:
A7: =IF('Test of calibration function'!$C$26=0,"Simple 2nd degr.","Weighted 2nd degr.") -> Weighted 2nd degr. | D7: Y = a0 + a1X + a2X^2 | F7: Weigths | H7: Statistics | K7: Subtract blank | M7: =IF(Input!N22=1,IF(H28=0,0,J28),0) -> 4.155044571 | W7: SSres | X7: =X5-X6 -> 0.0001337366824 | AN7: LOQ-s | AO7: =IF(L15="Ok",K15,"na") -> 2.896281966
A8: =IF('Test of calibration function'!$C$26=0,"2","W 2")&IF(J11=0,""," ZERO") -> W 2 | C8: Coeff | D8: Calibration_6.1_Quant_2.xlsm | E8: P | W8: Xmax | X8: =MAX(X) -> 901.072 | AN8: LOQ-ci | AO8: =IF(L16="Ok",K16,"na") -> 3.15054913
A9: a0 | C9: =MMULT(MMULT(COV,MMULT(TRANSPOSE(X_1),W)),Y) -> 0.001595514423 | D9: =SQRT(Z3)*$I$12 -> 0.0006470644491 | E9: =IF('Test of calibration function'!C26=1,'Test of calibration function'!AR14,'Test of calibration function'!AR13) -> 0.0246096323 | F9: s0 | G9: ='Test of calibration function'!$C$22 -> 1 | H9: N | I9: =COUNT(X)*Input!B18 -> 20 | N9: This sheet is not protected, so take care only to change the white cells! | Z9: LOQ data | AA9: D | AB9: Q | AC9: X | AD9: X2 | AN9: DL | AO9: =K19 -> 0.3000967461
A10: a1 | C10: 0.009292318893 | D10: =SQRT(AA4)*$I$12 -> 5.567090966e-05 | E10: =TDIST(ABS(C10/D10),$I$9-$I$10,2) -> 9.007136526e-29 | F10: s½ | G10: ='Test of calibration function'!$C$23 -> 1.053465343 | H10: k | I10: 3 | W10: Sum | X10: =SUM(Z16:Z45) -> 4.13390617 | Z10: =IF(AC10>0,100*$I$12*SQRT(($X$14+AC10*$X$15+AC10^2*$X$16)/$D$16+MMULT(MMULT($AB10:$AD10,COV),TRANSPOSE($AB10:$AD10)))/(($C$10+2*$C$11*$AC$10)*AC10),2*I15) -> 9.999995881 | AA10: =(Z10-I15)/I15 -> -4.119028851e-07 | AB10: 1 | AC10: =K15 -> 2.896281966 | AD10: =AC10^2 -> 8.388449224 | AN10: LOD | AO10: =K20 -> 0.492164676
A11: a2 | C11: 3.534928972e-07 | D11: =SQRT(AB5)*$I$12 -> 8.74591849e-08 | E11: =TDIST(ABS(C11/D11),$I$9-$I$10,2) -> 0.0008469394904 | F11: s1 | G11: ='Test of calibration function'!$C$24 -> 0 | H11: R2 | I11: =X6/X5 -> 0.9998370753 | J11: 0 | N11: White cells means that you may enter start values manually | W11: Norm | X11: =I9/X10 -> 4.838039176 | Z11: =IF(AC11>0,100*TINV(J16/100,I9-I10)*$I$12*SQRT(($X$14+AC11*$X$15+AC11^2*$X$16)/$D$16+MMULT(MMULT($AB11:$AD11,COV),TRANSPOSE($AB11:$AD11)))/(($C$10+2*$C$11*$AC$11)*AC11),2*I16) -> 20.00001271 | AA11: =(Z11-I16)/I16 -> 6.353192768e-07 | AB11: 1 | AC11: =K16 -> 3.15054913 | AD11: =AC11^2 -> 9.925959822 | AN11: DL-cal | AO11: =K23 -> 0.3950051089
H12: s(y/x) | I12: =SQRT(X7/(I9-I10)) -> 0.002804792981 | N12: "Please update" may mean that the target values are impossible | AN12: LOD-ca, | AO12: =K24 -> 0.5576486373
N13: Please look in Statistics for X in W37:X66 and enter a new: | W13: weights | Z13: Update ok? | AA13: =IF(AND(L15="Ok", L16="Ok"), "Yes","No") -> Yes | AN13: Blank limit | AO13: =IF(G28=0,"na",K28) -> 8.038221044
A14: Unknown samples (Predict Xo from Yo) | G14: LOQ | I14: Target ± | J14: a % | K14: LOQx | N14: 1) Reasonalbe start value in K15:K16 - then press Update LOQ again | W14: w0 | X14: =G9^2/$X$11 -> 0.2066953085 | AN14: sBlank | AO14: =IF(M7>0,$I$12*SQRT(($X$14+J28*$X$15+J28^2*$X$16)/$G$28+MMULT(MMULT(AL81:AN81,COV),TRANSPOSE(AL81:AN81)))/$C$10,0) -> 0.199608149
A15: Confidence | C15: a % | D15: m | E15: t | G15: LOQ from ±s % | I15: =Input!$B$13 -> 10 | K15: 2.896281966 | L15: =IF(ABS($AA$10)>0.001,"Please update","Ok") -> Ok | N15: 2) Reasonable target value for LOQ - go to sheet Input and enter new values | W15: w1 | X15: =G10^2/$X$11 -> 0.229388227 | Z15: NN weights | AA15: Weight diagonal matrix
A16: interval | C16: =Input!$B$19 -> 95 | D16: =Input!$B$17 -> 1 | E16: =TINV((100-C16)/100,I9-I10) -> 2.109815578 | G16: LOQ from ±CI % | I16: =Input!$B$14 -> 20 | J16: =Input!$B$15 -> 5 | K16: 3.15054913 | L16: =IF(ABS($AA$11)>0.001,"Please update","Ok") -> Ok | W16: w2 | X16: =G11^2/$X$11 -> 0 | Z16: =IF(N54<>"",1/($G$9^2+N54*$G$10^2+(N54*$G$11)^2),"") -> 0.5 | AA16: =IF($N54<>"",$Q54,0) -> 2.419019588 | AB16: 0 | AC16: 0 | AD16: 0 | AE16: 0 | AF16: 0 | AG16: 0 | AH16: 0 | AI16: 0 | AJ16: 0 | AK16: 0 | AL16: 0 | AM16: 0 | AN16: 0 | AO16: 0 | AP16: 0 | AQ16: 0 | AR16: 0 | AS16: 0 | AT16: 0 | AU16: 0 | AV16: 0 | AW16: 0 | AX16: 0 | AY16: 0 | AZ16: 0 | BA16: 0 | BB16: 0 | BC16: 0 | BD16: 0
Z17: 0.5 | AA17: 0 | AB17: =IF($N55<>"",$Q55,0) -> 2.419019588 | AC17: 0 | AD17: 0 | AE17: 0 | AF17: 0 | AG17: 0 | AH17: 0 | AI17: 0 | AJ17: 0 | AK17: 0 | AL17: 0 | AM17: 0 | AN17: 0 | AO17: 0 | AP17: 0 | AQ17: 0 | AR17: 0 | AS17: 0 | AT17: 0 | AU17: 0 | AV17: 0 | AW17: 0 | AX17: 0 | AY17: 0 | AZ17: 0 | BA17: 0 | BB17: 0 | BC17: 0 | BD17: 0
A18: Yo | B18: Xo | C18: sXo | D18: RSD % | E18: Xm | G18: DL From repeat exp | I18: n | J18: s | K18: DL/LOD | N18: Plot of line | P18: Prediction intervals | U18: Accuracy | W18: Statistics for X | Z18: 0.5 | AA18: 0 | AB18: 0 | AC18: =IF($N56<>"",$Q56,0) -> 2.419019588 | AD18: 0 | AE18: 0 | AF18: 0 | AG18: 0 | AH18: 0 | AI18: 0 | AJ18: 0 | AK18: 0 | AL18: 0 | AM18: 0 | AN18: 0 | AO18: 0 | AP18: 0 | AQ18: 0 | AR18: 0 | AS18: 0 | AT18: 0 | AU18: 0 | AV18: 0 | AW18: 0 | AX18: 0 | AY18: 0 | AZ18: 0 | BA18: 0 | BB18: 0 | BC18: 0 | BD18: 0
A19: 0.03373174442 | B19: =IF(A19<>"",(-$C$10+SIGN($C$10)*SQRT($C$10^2-4*$C$11*($C$9-A19)))/(2*$C$11),"") -> 3.457910087 | C19: =IF($A19<>"",$I$12*SQRT(($X$14+B19*$X$15+B19^2*$X$16)/$D$16+MMULT(MMULT($AE49:$AG49,COV),TRANSPOSE($AE49:$AG49)))/($C$10+2*B19*$C$11),"") -> 0.3092274701 | D19: =IF(A19<>"",100*C19/B19,"") -> 8.942611646 | E19: =IF(A19="","",IF(Input!M33>0,(B19*Input!M33-$M$7*Input!L33)*Input!$N$23,"na")) -> -0.7921982779 | G19: DL | I19: =Input!$B$26 -> 7 | J19: =Input!$B$27 -> 0.0007127708357 | K19: =IF($I19>0,(-$C$10+SIGN($C$10)*SQRT($C$10^2-4*$C$11*(-SQRT((J19*TINV(J23/50,I19-1))^2+(D9*TINV(J23/50,I9-I10))^2))))/(2*$C$11),"na") -> 0.3000967461 | N19: X | O19: Yo | P19: sYo | Q19: Y- | R19: Y+ | S19: PI % | T19: RSD % | U19: Error X % | W19: sX % | X19: ±CI % X | Z19: 0.5 | AA19: 0 | AB19: 0 | AC19: 0 | AD19: =IF($N57<>"",$Q57,0) -> 2.419019588 | AE19: 0 | AF19: 0 | AG19: 0 | AH19: 0 | AI19: 0 | AJ19: 0 | AK19: 0 | AL19: 0 | AM19: 0 | AN19: 0 | AO19: 0 | AP19: 0 | AQ19: 0 | AR19: 0 | AS19: 0 | AT19: 0 | AU19: 0 | AV19: 0 | AW19: 0 | AX19: 0 | AY19: 0 | AZ19: 0 | BA19: 0 | BB19: 0 | BC19: 0 | BD19: 0
A20: 0.03325294251 | B20: =IF(A20<>"",(-$C$10+SIGN($C$10)*SQRT($C$10^2-4*$C$11*($C$9-A20)))/(2*$C$11),0) -> 3.406396905 | C20: =IF($A20<>"",$I$12*SQRT(($X$14+B20*$X$15+B20^2*$X$16)/$D$16+MMULT(MMULT($AE50:$AG50,COV),TRANSPOSE($AE50:$AG50)))/($C$10+2*B20*$C$11),"") -> 0.307480466 | D20: 9.026560163 | E20: =IF(A20="","",IF(Input!M34>0,(B20*Input!M34-$M$7*Input!L34)*Input!$N$23,"na")) -> -0.9955421093 | G20: LOD | K20: =IF($I19>0,K19+(-$C$10+SIGN($C$10)*SQRT($C$10^2-4*$C$11*(-SQRT((J19*TINV(J24/50,I19-1))^2+(D9*TINV(J24/50,I9-I10))^2))))/(2*$C$11),"na") -> 0.492164676 | N20: 0 | O20: =$C$9+$N20*($C$10+$N20*$C$11) -> 0.001595514423 | P20: =IF($N53<>"",$I$12*SQRT(($X$14+N20*$X$15+N20^2*$X$16)/$D$16+MMULT(MMULT($AA49:$AC49,COV),TRANSPOSE($AA49:$AC49))),"") -> 0.001429942731 | Q20: =$C$9-$E$16*P20 -> -0.001421401027 | R20: =$C$9+$E$16*P20 -> 0.004612429872 | Z20: 0.5 | AA20: 0 | AB20: 0 | AC20: 0 | AD20: 0 | AE20: =IF($N58<>"",$Q58,0) -> 2.419019588 | AF20: 0 | AG20: 0 | AH20: 0 | AI20: 0 | AJ20: 0 | AK20: 0 | AL20: 0 | AM20: 0 | AN20: 0 | AO20: 0 | AP20: 0 | AQ20: 0 | AR20: 0 | AS20: 0 | AT20: 0 | AU20: 0 | AV20: 0 | AW20: 0 | AX20: 0 | AY20: 0 | AZ20: 0 | BA20: 0 | BB20: 0 | BC20: 0 | BD20: 0
A21: 0.02716172811 | B21: 2.751039721 | C21: =IF($A21<>"",$I$12*SQRT(($X$14+B21*$X$15+B21^2*$X$16)/$D$16+MMULT(MMULT($AE51:$AG51,COV),TRANSPOSE($AE51:$AG51)))/($C$10+2*B21*$C$11),"") -> 0.2843455054 | D21: 10.33592875 | E21: =IF(A21="","",IF(Input!M35>0,(B21*Input!M35-$M$7*Input!L35)*Input!$N$23,"na")) -> -2.316839688 | N21: =IF(N54<>"",N54,"") -> 0.901072 | O21: =IF(N54<>"",$C$9+$N21*($C$10+$N21*$C$11),"") -> 0.009968849804 | P21: =IF($N54<>"",$I$12*SQRT(($X$14+N21*$X$15+N21^2*$X$16)/$D$16+MMULT(MMULT($AA50:$AC50,COV),TRANSPOSE($AA50:$AC50))),"") -> 0.001912454419 | Q21: =IF(N54<>"",$O21-$E$16*$P21,"") -> 0.00593392368 | R21: =IF(O54<>"",$O21+$E$16*$P21,"") -> 0.01400377593 | S21: =IF(N54<>"",100*P21*$E$16/O54,"") -> 34.59889741 | T21: =IF(N54<>"",100*P21/O54,"") -> 16.39901505 | U21: =IF($N54<>0,-100*(O21-'Test of calibration function'!$B29)/(($C$10+2*N21*$C$11)*N21),"") -> 20.22013822 | W21: =IF(N21<>0,100*P21/(($C$10+N21*$C$11*2)*N21),"") -> 22.83903344 | X21: =IF(N21<>0,W21*$E$16,"") -> 48.18614853 | Z21: 0.5 | AA21: 0 | AB21: 0 | AC21: 0 | AD21: 0 | AE21: 0 | AF21: =IF($N59<>"",$Q59,0) -> 2.419019588 | AG21: 0 | AH21: 0 | AI21: 0 | AJ21: 0 | AK21: 0 | AL21: 0 | AM21: 0 | AN21: 0 | AO21: 0 | AP21: 0 | AQ21: 0 | AR21: 0 | AS21: 0 | AT21: 0 | AU21: 0 | AV21: 0 | AW21: 0 | AX21: 0 | AY21: 0 | AZ21: 0 | BA21: 0 | BB21: 0 | BC21: 0 | BD21: 0
A22: 0.03041001815 | B22: 3.100529139 | C22: =IF($A22<>"",$I$12*SQRT(($X$14+B22*$X$15+B22^2*$X$16)/$D$16+MMULT(MMULT($AE52:$AG52,COV),TRANSPOSE($AE52:$AG52)))/($C$10+2*B22*$C$11),"") -> 0.2969015845 | D22: 9.575835968 | E22: =IF(A22="","",IF(Input!M36>0,(B22*Input!M36-$M$7*Input!L36)*Input!$N$23,"na")) -> -2.396625982 | G22: DL From calibration* | I22: X(DL) | J22: a or b % | K22: DL/LOD | L22: Calculated from s | N22: 0.901072 | O22: 0.009968849804 | P22: =IF($N55<>"",$I$12*SQRT(($X$14+N22*$X$15+N22^2*$X$16)/$D$16+MMULT(MMULT($AA51:$AC51,COV),TRANSPOSE($AA51:$AC51))),"") -> 0.001912454419 | Q22: 0.00593392368 | R22: 0.01400377593 | S22: 39.70881731 | T22: 18.82098972 | U22: =IF($N55<>0,-100*(O22-'Test of calibration function'!$B30)/(($C$10+2*N22*$C$11)*N22),"") -> 2.29811252 | W22: =IF(N22<>"",100*P22/(($C$10+N22*$C$11*2)*N22),"") -> 22.83903344 | X22: =IF(N22<>"",W22*$E$16,"") -> 48.18614853 | Z22: 0.5 | AA22: 0 | AB22: 0 | AC22: 0 | AD22: 0 | AE22: 0 | AF22: 0 | AG22: =IF($N60<>"",$Q60,0) -> 2.419019588 | AH22: 0 | AI22: 0 | AJ22: 0 | AK22: 0 | AL22: 0 | AM22: 0 | AN22: 0 | AO22: 0 | AP22: 0 | AQ22: 0 | AR22: 0 | AS22: 0 | AT22: 0 | AU22: 0 | AV22: 0 | AW22: 0 | AX22: 0 | AY22: 0 | AZ22: 0 | BA22: 0 | BB22: 0 | BC22: 0 | BD22: 0
A23: 0.03387589985 | B23: 3.473419395 | C23: =IF($A23<>"",$I$12*SQRT(($X$14+B23*$X$15+B23^2*$X$16)/$D$16+MMULT(MMULT($AE53:$AG53,COV),TRANSPOSE($AE53:$AG53)))/($C$10+2*B23*$C$11),"") -> 0.3097515724 | D23: 8.917770566 | E23: =IF(A23="","",IF(Input!M37>0,(B23*Input!M37-$M$7*Input!L37)*Input!$N$23,"na")) -> -0.8332826121 | G23: DL | J23: =Input!$B$11 -> 1 | K23: =(-$C$10+SIGN($C$10)*SQRT($C$10^2-4*$C$11*(-P20*TINV(J23/50,I9-I10))))/(2*$C$11) -> 0.3950051089 | L23: at X = 0 | N23: 0.901072 | O23: 0.009968849804 | P23: =IF($N56<>"",$I$12*SQRT(($X$14+N23*$X$15+N23^2*$X$16)/$D$16+MMULT(MMULT($AA52:$AC52,COV),TRANSPOSE($AA52:$AC52))),"") -> 0.001912454419 | Q23: 0.00593392368 | R23: 0.01400377593 | S23: 39.41393668 | T23: 18.68122365 | U23: =IF($N56<>0,-100*(O23-'Test of calibration function'!$B31)/(($C$10+2*N23*$C$11)*N23),"") -> 3.205999307 | W23: 22.83903344 | X23: 48.18614853 | Z23: 0.2857142857 | AA23: 0 | AB23: 0 | AC23: 0 | AD23: 0 | AE23: 0 | AF23: 0 | AG23: 0 | AH23: =IF($N61<>"",$Q61,0) -> 1.382296907 | AI23: 0 | AJ23: 0 | AK23: 0 | AL23: 0 | AM23: 0 | AN23: 0 | AO23: 0 | AP23: 0 | AQ23: 0 | AR23: 0 | AS23: 0 | AT23: 0 | AU23: 0 | AV23: 0 | AW23: 0 | AX23: 0 | AY23: 0 | AZ23: 0 | BA23: 0 | BB23: 0 | BC23: 0 | BD23: 0
A24: 0.03642827105 | B24: 3.748019335 | C24: =IF($A24<>"",$I$12*SQRT(($X$14+B24*$X$15+B24^2*$X$16)/$D$16+MMULT(MMULT($AE54:$AG54,COV),TRANSPOSE($AE54:$AG54)))/($C$10+2*B24*$C$11),"") -> 0.3188924408 | D24: 8.508292307 | E24: =IF(A24="","",IF(Input!M38>0,(B24*Input!M38-$M$7*Input!L38)*Input!$N$23,"na")) -> -0.5591005987 | G24: LOD | J24: =Input!$B$12 -> 5 | K24: =K23+(-$C$10+SIGN($C$10)*SQRT($C$10^2-4*$C$11*(-SQRT((I12*X14)^2/D16+D9^2)*TINV(J24/50,I9-I10))))/(2*$C$11) -> 0.5576486373 | N24: 0.901072 | O24: 0.009968849804 | P24: =IF($N57<>"",$I$12*SQRT(($X$14+N24*$X$15+N24^2*$X$16)/$D$16+MMULT(MMULT($AA53:$AC53,COV),TRANSPOSE($AA53:$AC53))),"") -> 0.001912454419 | Q24: 0.00593392368 | R24: 0.01400377593 | S24: 41.88883559 | T24: 19.85426406 | U24: =IF($N57<>0,-100*(O24-'Test of calibration function'!$B32)/(($C$10+2*N24*$C$11)*N24),"") -> -4.017232925 | W24: 22.83903344 | X24: 48.18614853 | Z24: 0.1666666667 | AA24: 0 | AB24: 0 | AC24: 0 | AD24: 0 | AE24: 0 | AF24: 0 | AG24: 0 | AH24: 0 | AI24: =IF($N62<>"",$Q62,0) -> 0.8063398627 | AJ24: 0 | AK24: 0 | AL24: 0 | AM24: 0 | AN24: 0 | AO24: 0 | AP24: 0 | AQ24: 0 | AR24: 0 | AS24: 0 | AT24: 0 | AU24: 0 | AV24: 0 | AW24: 0 | AX24: 0 | AY24: 0 | AZ24: 0 | BA24: 0 | BB24: 0 | BC24: 0 | BD24: 0
A25: 0.1391406716 | B25: 14.79370172 | C25: =IF($A25<>"",$I$12*SQRT(($X$14+B25*$X$15+B25^2*$X$16)/$D$16+MMULT(MMULT($AE55:$AG55,COV),TRANSPOSE($AE55:$AG55)))/($C$10+2*B25*$C$11),"") -> 0.5802495381 | D25: 3.922274147 | E25: =IF(A25="","",IF(Input!M39>0,(B25*Input!M39-$M$7*Input!L39)*Input!$N$23,"na")) -> 13.60442091 | N25: 0.901072 | O25: 0.009968849804 | P25: =IF($N58<>"",$I$12*SQRT(($X$14+N25*$X$15+N25^2*$X$16)/$D$16+MMULT(MMULT($AA54:$AC54,COV),TRANSPOSE($AA54:$AC54))),"") -> 0.001912454419 | Q25: 0.00593392368 | R25: 0.01400377593 | S25: 41.42994376 | T25: 19.63676076 | U25: =IF($N58<>0,-100*(O25-'Test of calibration function'!$B33)/(($C$10+2*N25*$C$11)*N25),"") -> -2.743084816 | W25: 22.83903344 | X25: 48.18614853 | Z25: 0.0625 | AA25: 0 | AB25: 0 | AC25: 0 | AD25: 0 | AE25: 0 | AF25: 0 | AG25: 0 | AH25: 0 | AI25: 0 | AJ25: =IF($N63<>"",$Q63,0) -> 0.3023774485 | AK25: 0 | AL25: 0 | AM25: 0 | AN25: 0 | AO25: 0 | AP25: 0 | AQ25: 0 | AR25: 0 | AS25: 0 | AT25: 0 | AU25: 0 | AV25: 0 | AW25: 0 | AX25: 0 | AY25: 0 | AZ25: 0 | BA25: 0 | BB25: 0 | BC25: 0 | BD25: 0
A26: 0.05070557853 | B26: 5.283954962 | C26: =IF($A26<>"",$I$12*SQRT(($X$14+B26*$X$15+B26^2*$X$16)/$D$16+MMULT(MMULT($AE56:$AG56,COV),TRANSPOSE($AE56:$AG56)))/($C$10+2*B26*$C$11),"") -> 0.3659536283 | D26: 6.925752225 | E26: =IF(A26="","",IF(Input!M40>0,(B26*Input!M40-$M$7*Input!L40)*Input!$N$23,"na")) -> 1.193351364 | G26: Blank values | I26: a % | J26: =Input!B16 -> 10 | N26: 0.901072 | O26: 0.009968849804 | P26: =IF($N59<>"",$I$12*SQRT(($X$14+N26*$X$15+N26^2*$X$16)/$D$16+MMULT(MMULT($AA55:$AC55,COV),TRANSPOSE($AA55:$AC55))),"") -> 0.001912454419 | Q26: 0.00593392368 | R26: 0.01400377593 | S26: 41.08660364 | T26: 19.4740261 | U26: =IF($N59<>0,-100*(O26-'Test of calibration function'!$B34)/(($C$10+2*N26*$C$11)*N26),"") -> -1.771161083 | W26: 22.83903344 | X26: 48.18614853 | Z26: 0.03225806452 | AA26: 0 | AB26: 0 | AC26: 0 | AD26: 0 | AE26: 0 | AF26: 0 | AG26: 0 | AH26: 0 | AI26: 0 | AJ26: 0 | AK26: =IF($N64<>"",$Q64,0) -> 0.1560657799 | AL26: 0 | AM26: 0 | AN26: 0 | AO26: 0 | AP26: 0 | AQ26: 0 | AR26: 0 | AS26: 0 | AT26: 0 | AU26: 0 | AV26: 0 | AW26: 0 | AX26: 0 | AY26: 0 | AZ26: 0 | BA26: 0 | BB26: 0 | BC26: 0 | BD26: 0
A27: 0.06746374501 | B27: 7.086549571 | C27: =IF($A27<>"",$I$12*SQRT(($X$14+B27*$X$15+B27^2*$X$16)/$D$16+MMULT(MMULT($AE57:$AG57,COV),TRANSPOSE($AE57:$AG57)))/($C$10+2*B27*$C$11),"") -> 0.4146517771 | D27: 5.85125064 | E27: =IF(A27="","",IF(Input!M41>0,(B27*Input!M41-$M$7*Input!L41)*Input!$N$23,"na")) -> 3.887937665 | G27: N | H27: Mean | I27: s | J27: Xblank | K27: Limit | N27: 0.901072 | O27: 0.009968849804 | P27: =IF($N60<>"",$I$12*SQRT(($X$14+N27*$X$15+N27^2*$X$16)/$D$16+MMULT(MMULT($AA56:$AC56,COV),TRANSPOSE($AA56:$AC56))),"") -> 0.001912454419 | Q27: 0.00593392368 | R27: 0.01400377593 | S27: 37.61579915 | T27: 17.82895128 | U27: =IF($N60<>0,-100*(O27-'Test of calibration function'!$B35)/(($C$10+2*N27*$C$11)*N27),"") -> 9.050198517 | W27: 22.83903344 | X27: 48.18614853 | Z27: 0.01639344262 | AA27: 0 | AB27: 0 | AC27: 0 | AD27: 0 | AE27: 0 | AF27: 0 | AG27: 0 | AH27: 0 | AI27: 0 | AJ27: 0 | AK27: 0 | AL27: =IF($N65<>"",$Q65,0) -> 0.07931211764 | AM27: 0 | AN27: 0 | AO27: 0 | AP27: 0 | AQ27: 0 | AR27: 0 | AS27: 0 | AT27: 0 | AU27: 0 | AV27: 0 | AW27: 0 | AX27: 0 | AY27: 0 | AZ27: 0 | BA27: 0 | BB27: 0 | BC27: 0 | BD27: 0
A28: 0.02961059073 | B28: 3.014518155 | C28: =IF($A28<>"",$I$12*SQRT(($X$14+B28*$X$15+B28^2*$X$16)/$D$16+MMULT(MMULT($AE58:$AG58,COV),TRANSPOSE($AE58:$AG58)))/($C$10+2*B28*$C$11),"") -> 0.2938600108 | D28: 9.748158602 | E28: =IF(A28="","",IF(Input!M42>0,(B28*Input!M42-$M$7*Input!L42)*Input!$N$23,"na")) -> -5.702632083 | G28: =Input!B28 -> 3 | H28: =Input!B29 -> 0.04021161644 | I28: =Input!B30 -> 0.01914515554 | J28: =IF(G28>0,(-$C$10+SIGN($C$10)*SQRT($C$10^2-4*$C$11*($C$9-H28)))/(2*$C$11),0) -> 4.155044571 | K28: =IF(G28*H28=0,0,IF(G28>1,(-$C$10+SIGN($C$10)*SQRT($C$10^2-4*$C$11*($C$9-H28-I28*TINV(J26/50,G28-1))))/(2*$C$11),(-$C$10+SIGN($C$10)*SQRT($C$10^2-4*$C$11*($C$9-H28)))/(2*$C$11))) -> 8.038221044 | N28: 2.25268 | O28: 0.02252992917 | P28: =IF($N61<>"",$I$12*SQRT(($X$14+N28*$X$15+N28^2*$X$16)/$D$16+MMULT(MMULT($AA57:$AC57,COV),TRANSPOSE($AA57:$AC57))),"") -> 0.002466986603 | Q28: 0.01732504241 | R28: 0.02773481594 | S28: 23.12805358 | T28: 10.96212097 | U28: =IF($N61<>0,-100*(O28-'Test of calibration function'!$B36)/(($C$10+2*N28*$C$11)*N28),"") -> -0.1207591797 | W28: 11.78334938 | X28: 24.86069408 | Z28: 0.01639344262 | AA28: 0 | AB28: 0 | AC28: 0 | AD28: 0 | AE28: 0 | AF28: 0 | AG28: 0 | AH28: 0 | AI28: 0 | AJ28: 0 | AK28: 0 | AL28: 0 | AM28: =IF($N66<>"",$Q66,0) -> 0.07931211764 | AN28: 0 | AO28: 0 | AP28: 0 | AQ28: 0 | AR28: 0 | AS28: 0 | AT28: 0 | AU28: 0 | AV28: 0 | AW28: 0 | AX28: 0 | AY28: 0 | AZ28: 0 | BA28: 0 | BB28: 0 | BC28: 0 | BD28: 0
A29: 4.863988112 | B29: 513.2490534 | C29: =IF($A29<>"",$I$12*SQRT(($X$14+B29*$X$15+B29^2*$X$16)/$D$16+MMULT(MMULT($AE59:$AG59,COV),TRANSPOSE($AE59:$AG59)))/($C$10+2*B29*$C$11),"") -> 3.517659676 | D29: 0.6853709039 | E29: =IF(A29="","",IF(Input!M43>0,(B29*Input!M43-$M$7*Input!L43)*Input!$N$23,"na")) -> 2.545470044 | N29: 4.50536 | O29: 0.04346793157 | P29: =IF($N62<>"",$I$12*SQRT(($X$14+N29*$X$15+N29^2*$X$16)/$D$16+MMULT(MMULT($AA58:$AC58,COV),TRANSPOSE($AA58:$AC58))),"") -> 0.003187227211 | Q29: 0.03674346994 | R29: 0.05019239319 | S29: 15.98712429 | T29: 7.577498457 | U29: =IF($N62<>0,-100*(O29-'Test of calibration function'!$B37)/(($C$10+2*N29*$C$11)*N29),"") -> -3.357716545 | W29: 7.610454224 | X29: 16.05665488 | Z29: 0.01639344262 | AA29: 0 | AB29: 0 | AC29: 0 | AD29: 0 | AE29: 0 | AF29: 0 | AG29: 0 | AH29: 0 | AI29: 0 | AJ29: 0 | AK29: 0 | AL29: 0 | AM29: 0 | AN29: =IF($N67<>"",$Q67,0) -> 0.07931211764 | AO29: 0 | AP29: 0 | AQ29: 0 | AR29: 0 | AS29: 0 | AT29: 0 | AU29: 0 | AV29: 0 | AW29: 0 | AX29: 0 | AY29: 0 | AZ29: 0 | BA29: 0 | BB29: 0 | BC29: 0 | BD29: 0
A30: 4.936537386 | B30: 520.7610145 | C30: =IF($A30<>"",$I$12*SQRT(($X$14+B30*$X$15+B30^2*$X$16)/$D$16+MMULT(MMULT($AE60:$AG60,COV),TRANSPOSE($AE60:$AG60)))/($C$10+2*B30*$C$11),"") -> 3.545455445 | D30: 0.6808219791 | E30: =IF(A30="","",IF(Input!M44>0,(B30*Input!M44-$M$7*Input!L44)*Input!$N$23,"na")) -> 2.583029849 | N30: 13.51608 | O30: 0.1272558176 | P30: =IF($N63<>"",$I$12*SQRT(($X$14+N30*$X$15+N30^2*$X$16)/$D$16+MMULT(MMULT($AA59:$AC59,COV),TRANSPOSE($AA59:$AC59))),"") -> 0.00517184067 | Q30: 0.1163441876 | R30: 0.1381674476 | S30: 8.685255214 | T30: 4.116594505 | U30: =IF($N63<>0,-100*(O30-'Test of calibration function'!$B38)/(($C$10+2*N30*$C$11)*N30),"") -> -1.290005741 | W30: 4.113617476 | X30: 8.678974233 | Z30: 0.01639344262 | AA30: 0 | AB30: 0 | AC30: 0 | AD30: 0 | AE30: 0 | AF30: 0 | AG30: 0 | AH30: 0 | AI30: 0 | AJ30: 0 | AK30: 0 | AL30: 0 | AM30: 0 | AN30: 0 | AO30: =IF($N68<>"",$Q68,0) -> 0.07931211764 | AP30: 0 | AQ30: 0 | AR30: 0 | AS30: 0 | AT30: 0 | AU30: 0 | AV30: 0 | AW30: 0 | AX30: 0 | AY30: 0 | AZ30: 0 | BA30: 0 | BB30: 0 | BC30: 0 | BD30: 0
A31: 0.05073637373 | B31: 5.287267678 | C31: =IF($A31<>"",$I$12*SQRT(($X$14+B31*$X$15+B31^2*$X$16)/$D$16+MMULT(MMULT($AE61:$AG61,COV),TRANSPOSE($AE61:$AG61)))/($C$10+2*B31*$C$11),"") -> 0.3660488112 | D31: 6.92321315 | E31: =IF(A31="","",IF(Input!M45>0,(B31*Input!M45-$M$7*Input!L45)*Input!$N$23,"na")) -> 0.005661115536 | N31: 27.03216 | O31: 0.2530452761 | P31: =IF($N64<>"",$I$12*SQRT(($X$14+N31*$X$15+N31^2*$X$16)/$D$16+MMULT(MMULT($AA60:$AC60,COV),TRANSPOSE($AA60:$AC60))),"") -> 0.007243779971 | Q31: 0.2377622363 | R31: 0.2683283159 | S31: 6.159444528 | T31: 2.919423192 | U31: =IF($N64<>0,-100*(O31-'Test of calibration function'!$B39)/(($C$10+2*N31*$C$11)*N31),"") -> -1.955283307 | W31: 2.877849688 | X31: 6.071732102 | Z31: 0.009900990099 | AA31: 0 | AB31: 0 | AC31: 0 | AD31: 0 | AE31: 0 | AF31: 0 | AG31: 0 | AH31: 0 | AI31: 0 | AJ31: 0 | AK31: 0 | AL31: 0 | AM31: 0 | AN31: 0 | AO31: 0 | AP31: =IF($N69<>"",$Q69,0) -> 0.04790137798 | AQ31: 0 | AR31: 0 | AS31: 0 | AT31: 0 | AU31: 0 | AV31: 0 | AW31: 0 | AX31: 0 | AY31: 0 | AZ31: 0 | BA31: 0 | BB31: 0 | BC31: 0 | BD31: 0
A32: 0.04712442049 | B32: 4.89871513 | C32: =IF($A32<>"",$I$12*SQRT(($X$14+B32*$X$15+B32^2*$X$16)/$D$16+MMULT(MMULT($AE62:$AG62,COV),TRANSPOSE($AE62:$AG62)))/($C$10+2*B32*$C$11),"") -> 0.3547171814 | D32: 7.241024881 | E32: =IF(A32="","",IF(Input!M46>0,(B32*Input!M46-$M$7*Input!L46)*Input!$N$23,"na")) -> 0.003718352795 | N32: 54.06432 | O32: 0.5050116589 | P32: =IF($N65<>"",$I$12*SQRT(($X$14+N32*$X$15+N32^2*$X$16)/$D$16+MMULT(MMULT($AA61:$AC61,COV),TRANSPOSE($AA61:$AC61))),"") -> 0.01032169691 | Q32: 0.483234782 | R32: 0.5267885358 | S32: 4.396252444 | T32: 2.083714088 | U32: =IF($N65<>0,-100*(O32-'Test of calibration function'!$B40)/(($C$10+2*N32*$C$11)*N32),"") -> -1.9151057 | W32: 2.046131322 | X32: 4.316959737 | Z32: 0.004975124378 | AA32: 0 | AB32: 0 | AC32: 0 | AD32: 0 | AE32: 0 | AF32: 0 | AG32: 0 | AH32: 0 | AI32: 0 | AJ32: 0 | AK32: 0 | AL32: 0 | AM32: 0 | AN32: 0 | AO32: 0 | AP32: 0 | AQ32: =IF($N70<>"",$Q70,0) -> 0.02406984665 | AR32: 0 | AS32: 0 | AT32: 0 | AU32: 0 | AV32: 0 | AW32: 0 | AX32: 0 | AY32: 0 | AZ32: 0 | BA32: 0 | BB32: 0 | BC32: 0 | BD32: 0
A33: 0.01582759344 | B33: 1.531506834 | C33: =IF($A33<>"",$I$12*SQRT(($X$14+B33*$X$15+B33^2*$X$16)/$D$16+MMULT(MMULT($AE63:$AG63,COV),TRANSPOSE($AE63:$AG63)))/($C$10+2*B33*$C$11),"") -> 0.2354724641 | D33: 15.37521471 | E33: =IF(A33="","",IF(Input!M47>0,(B33*Input!M47-$M$7*Input!L47)*Input!$N$23,"na")) -> -0.01311768868 | N33: 54.06432 | O33: 0.5050116589 | P33: =IF($N66<>"",$I$12*SQRT(($X$14+N33*$X$15+N33^2*$X$16)/$D$16+MMULT(MMULT($AA62:$AC62,COV),TRANSPOSE($AA62:$AC62))),"") -> 0.01032169691 | Q33: 0.483234782 | R33: 0.5267885358 | S33: 4.395983702 | T33: 2.083586712 | U33: =IF($N66<>0,-100*(O33-'Test of calibration function'!$B41)/(($C$10+2*N33*$C$11)*N33),"") -> -1.909102628 | W33: 2.046131322 | X33: 4.316959737 | Z33: 0.003322259136 | AA33: 0 | AB33: 0 | AC33: 0 | AD33: 0 | AE33: 0 | AF33: 0 | AG33: 0 | AH33: 0 | AI33: 0 | AJ33: 0 | AK33: 0 | AL33: 0 | AM33: 0 | AN33: 0 | AO33: 0 | AP33: 0 | AQ33: 0 | AR33: =IF($N71<>"",$Q71,0) -> 0.01607321985 | AS33: 0 | AT33: 0 | AU33: 0 | AV33: 0 | AW33: 0 | AX33: 0 | AY33: 0 | AZ33: 0 | BA33: 0 | BB33: 0 | BC33: 0 | BD33: 0
B34: 0 | C34: =IF($A34<>"",$I$12*SQRT(($X$14+B34*$X$15+B34^2*$X$16)/$D$16+MMULT(MMULT($AE64:$AG64,COV),TRANSPOSE($AE64:$AG64)))/($C$10+2*B34*$C$11),"") ->  | E34: =IF(A34="","",IF(Input!M48>0,(B34*Input!M48-$M$7*Input!L48)*Input!$N$23,"na")) ->  | N34: 54.06432 | O34: 0.5050116589 | P34: =IF($N67<>"",$I$12*SQRT(($X$14+N34*$X$15+N34^2*$X$16)/$D$16+MMULT(MMULT($AA63:$AC63,COV),TRANSPOSE($AA63:$AC63))),"") -> 0.01032169691 | Q34: 0.483234782 | R34: 0.5267885358 | S34: 4.404162792 | T34: 2.087463396 | U34: =IF($N67<>0,-100*(O34-'Test of calibration function'!$B42)/(($C$10+2*N34*$C$11)*N34),"") -> -2.091476873 | W34: 2.046131322 | X34: 4.316959737 | Z34: 0.001996007984 | AA34: 0 | AB34: 0 | AC34: 0 | AD34: 0 | AE34: 0 | AF34: 0 | AG34: 0 | AH34: 0 | AI34: 0 | AJ34: 0 | AK34: 0 | AL34: 0 | AM34: 0 | AN34: 0 | AO34: 0 | AP34: 0 | AQ34: 0 | AR34: 0 | AS34: =IF($N72<>"",$Q72,0) -> 0.009656764822 | AT34: 0 | AU34: 0 | AV34: 0 | AW34: 0 | AX34: 0 | AY34: 0 | AZ34: 0 | BA34: 0 | BB34: 0 | BC34: 0 | BD34: 0
A35: 2.741762449 | B35: 291.6493812 | C35: =IF($A35<>"",$I$12*SQRT(($X$14+B35*$X$15+B35^2*$X$16)/$D$16+MMULT(MMULT($AE65:$AG65,COV),TRANSPOSE($AE65:$AG65)))/($C$10+2*B35*$C$11),"") -> 2.660833244 | D35: 0.9123397531 | E35: =IF(A35="","",IF(Input!M49>0,(B35*Input!M49-$M$7*Input!L49)*Input!$N$23,"na")) -> 287494.3366 | N35: 54.06432 | O35: 0.5050116589 | P35: =IF($N68<>"",$I$12*SQRT(($X$14+N35*$X$15+N35^2*$X$16)/$D$16+MMULT(MMULT($AA64:$AC64,COV),TRANSPOSE($AA64:$AC64))),"") -> 0.01032169691 | Q35: 0.483234782 | R35: 0.5267885358 | S35: 4.374926273 | T35: 2.073606015 | U35: =IF($N68<>0,-100*(O35-'Test of calibration function'!$B43)/(($C$10+2*N35*$C$11)*N35),"") -> -1.436434265 | W35: 2.046131322 | X35: 4.316959737 | Z35: 0.000999000999 | AA35: 0 | AB35: 0 | AC35: 0 | AD35: 0 | AE35: 0 | AF35: 0 | AG35: 0 | AH35: 0 | AI35: 0 | AJ35: 0 | AK35: 0 | AL35: 0 | AM35: 0 | AN35: 0 | AO35: 0 | AP35: 0 | AQ35: 0 | AR35: 0 | AS35: 0 | AT35: =IF($N73<>"",$Q73,0) -> 0.00483320597 | AU35: 0 | AV35: 0 | AW35: 0 | AX35: 0 | AY35: 0 | AZ35: 0 | BA35: 0 | BB35: 0 | BC35: 0 | BD35: 0
A36: 0.02796282127 | B36: 2.837231651 | C36: =IF($A36<>"",$I$12*SQRT(($X$14+B36*$X$15+B36^2*$X$16)/$D$16+MMULT(MMULT($AE66:$AG66,COV),TRANSPOSE($AE66:$AG66)))/($C$10+2*B36*$C$11),"") -> 0.2874917972 | D36: 10.13282779 | E36: =IF(A36="","",IF(Input!M50>0,(B36*Input!M50-$M$7*Input!L50)*Input!$N$23,"na")) -> -0.9309176952 | N36: 90.1072 | O36: 0.8417704689 | P36: =IF($N69<>"",$I$12*SQRT(($X$14+N36*$X$15+N36^2*$X$16)/$D$16+MMULT(MMULT($AA65:$AC65,COV),TRANSPOSE($AA65:$AC65))),"") -> 0.01352242509 | Q36: 0.8132406458 | R36: 0.870300292 | S36: 3.496089405 | T36: 1.657059243 | U36: =IF($N69<>0,-100*(O36-'Test of calibration function'!$B44)/(($C$10+2*N36*$C$11)*N36),"") -> -3.050949922 | W36: 1.603997881 | X36: 3.384139717 | AA36: 0 | AB36: 0 | AC36: 0 | AD36: 0 | AE36: 0 | AF36: 0 | AG36: 0 | AH36: 0 | AI36: 0 | AJ36: 0 | AK36: 0 | AL36: 0 | AM36: 0 | AN36: 0 | AO36: 0 | AP36: 0 | AQ36: 0 | AR36: 0 | AS36: 0 | AT36: 0 | AU36: =IF($N74<>"",$Q74,0) -> 0 | AV36: 0 | AW36: 0 | AX36: 0 | AY36: 0 | AZ36: 0 | BA36: 0 | BB36: 0 | BC36: 0 | BD36: 0
A37: 0.03039825246 | B37: 3.099263264 | C37: =IF($A37<>"",$I$12*SQRT(($X$14+B37*$X$15+B37^2*$X$16)/$D$16+MMULT(MMULT($AE67:$AG67,COV),TRANSPOSE($AE67:$AG67)))/($C$10+2*B37*$C$11),"") -> 0.29685704 | D37: 9.578309898 | E37: =IF(A37="","",IF(Input!M51>0,(B37*Input!M51-$M$7*Input!L51)*Input!$N$23,"na")) -> 4.100585501 | N37: 180.2144 | O37: 1.687685658 | P37: =IF($N70<>"",$I$12*SQRT(($X$14+N37*$X$15+N37^2*$X$16)/$D$16+MMULT(MMULT($AA66:$AC66,COV),TRANSPOSE($AA66:$AC66))),"") -> 0.01962361512 | Q37: 1.64628345 | R37: 1.729087867 | S37: 2.428277552 | T37: 1.150943039 | U37: =IF($N70<>0,-100*(O37-'Test of calibration function'!$B45)/(($C$10+2*N37*$C$11)*N37),"") -> 1.020134073 | W37: 1.155982258 | X37: 2.438909376 | AA37: 0 | AB37: 0 | AC37: 0 | AD37: 0 | AE37: 0 | AF37: 0 | AG37: 0 | AH37: 0 | AI37: 0 | AJ37: 0 | AK37: 0 | AL37: 0 | AM37: 0 | AN37: 0 | AO37: 0 | AP37: 0 | AQ37: 0 | AR37: 0 | AS37: 0 | AT37: 0 | AU37: 0 | AV37: =IF($N75<>"",$Q75,0) -> 0 | AW37: 0 | AX37: 0 | AY37: 0 | AZ37: 0 | BA37: 0 | BB37: 0 | BC37: 0 | BD37: 0
A38: 0.06227377558 | B38: 6.528316168 | C38: =IF($A38<>"",$I$12*SQRT(($X$14+B38*$X$15+B38^2*$X$16)/$D$16+MMULT(MMULT($AE68:$AG68,COV),TRANSPOSE($AE68:$AG68)))/($C$10+2*B38*$C$11),"") -> 0.4001776786 | D38: 6.129875887 | E38: =IF(A38="","",IF(Input!M52>0,(B38*Input!M52-$M$7*Input!L52)*Input!$N$23,"na")) -> 10.75202373 | N38: 270.3216 | O38: 2.539341083 | P38: =IF($N71<>"",$I$12*SQRT(($X$14+N38*$X$15+N38^2*$X$16)/$D$16+MMULT(MMULT($AA67:$AC67,COV),TRANSPOSE($AA67:$AC67))),"") -> 0.02430169513 | Q38: 2.488068988 | R38: 2.590613178 | S38: 1.994516807 | T38: 0.9453512564 | U38: =IF($N71<>0,-100*(O38-'Test of calibration function'!$B46)/(($C$10+2*N38*$C$11)*N38),"") -> 1.221393393 | W38: 0.9479605515 | X38: 2.000021939 | AA38: 0 | AB38: 0 | AC38: 0 | AD38: 0 | AE38: 0 | AF38: 0 | AG38: 0 | AH38: 0 | AI38: 0 | AJ38: 0 | AK38: 0 | AL38: 0 | AM38: 0 | AN38: 0 | AO38: 0 | AP38: 0 | AQ38: 0 | AR38: 0 | AS38: 0 | AT38: 0 | AU38: 0 | AV38: 0 | AW38: =IF($N76<>"",$Q76,0) -> 0 | AX38: 0 | AY38: 0 | AZ38: 0 | BA38: 0 | BB38: 0 | BC38: 0 | BD38: 0
B39: 0 | C39: =IF($A39<>"",$I$12*SQRT(($X$14+B39*$X$15+B39^2*$X$16)/$D$16+MMULT(MMULT($AE69:$AG69,COV),TRANSPOSE($AE69:$AG69)))/($C$10+2*B39*$C$11),"") ->  | E39: =IF(A39="","",IF(Input!M53>0,(B39*Input!M53-$M$7*Input!L53)*Input!$N$23,"na")) ->  | N39: 450.536 | O39: 4.259872638 | P39: =IF($N72<>"",$I$12*SQRT(($X$14+N39*$X$15+N39^2*$X$16)/$D$16+MMULT(MMULT($AA68:$AC68,COV),TRANSPOSE($AA68:$AC68))),"") -> 0.03160964446 | Q39: 4.193182117 | R39: 4.326563158 | S39: 1.545353035 | T39: 0.7324588229 | U39: =IF($N72<>0,-100*(O39-'Test of calibration function'!$B47)/(($C$10+2*N39*$C$11)*N39),"") -> 1.285898307 | W39: 0.7300098155 | X39: 1.540186081 | AA39: 0 | AB39: 0 | AC39: 0 | AD39: 0 | AE39: 0 | AF39: 0 | AG39: 0 | AH39: 0 | AI39: 0 | AJ39: 0 | AK39: 0 | AL39: 0 | AM39: 0 | AN39: 0 | AO39: 0 | AP39: 0 | AQ39: 0 | AR39: 0 | AS39: 0 | AT39: 0 | AU39: 0 | AV39: 0 | AW39: 0 | AX39: =IF($N77<>"",$Q77,0) -> 0 | AY39: 0 | AZ39: 0 | BA39: 0 | BB39: 0 | BC39: 0 | BD39: 0
B40: 0 | C40: =IF($A40<>"",$I$12*SQRT(($X$14+B40*$X$15+B40^2*$X$16)/$D$16+MMULT(MMULT($AE70:$AG70,COV),TRANSPOSE($AE70:$AG70)))/($C$10+2*B40*$C$11),"") ->  | E40: =IF(A40="","",IF(Input!M54>0,(B40*Input!M54-$M$7*Input!L54)*Input!$N$23,"na")) ->  | N40: 901.072 | O40: 8.661655637 | P40: =IF($N73<>"",$I$12*SQRT(($X$14+N40*$X$15+N40^2*$X$16)/$D$16+MMULT(MMULT($AA69:$AC69,COV),TRANSPOSE($AA69:$AC69))),"") -> 0.05599879426 | Q40: 8.543508509 | R40: 8.779802766 | S40: 1.369673606 | T40: 0.6491911524 | U40: =IF($N73<>0,-100*(O40-'Test of calibration function'!$B48)/(($C$10+2*N40*$C$11)*N40),"") -> -0.3992655215 | W40: 0.6258896211 | X40: 1.320511673 | AA40: 0 | AB40: 0 | AC40: 0 | AD40: 0 | AE40: 0 | AF40: 0 | AG40: 0 | AH40: 0 | AI40: 0 | AJ40: 0 | AK40: 0 | AL40: 0 | AM40: 0 | AN40: 0 | AO40: 0 | AP40: 0 | AQ40: 0 | AR40: 0 | AS40: 0 | AT40: 0 | AU40: 0 | AV40: 0 | AW40: 0 | AX40: 0 | AY40: =IF($N78<>"",$Q78,0) -> 0 | AZ40: 0 | BA40: 0 | BB40: 0 | BC40: 0 | BD40: 0
B41: 0 | C41: =IF($A41<>"",$I$12*SQRT(($X$14+B41*$X$15+B41^2*$X$16)/$D$16+MMULT(MMULT($AE71:$AG71,COV),TRANSPOSE($AE71:$AG71)))/($C$10+2*B41*$C$11),"") ->  | E41: =IF(A41="","",IF(Input!M55>0,(B41*Input!M55-$M$7*Input!L55)*Input!$N$23,"na")) ->  | P41: =IF($N74<>"",$I$12*SQRT(($X$14+N41*$X$15+N41^2*$X$16)/$D$16+MMULT(MMULT($AA70:$AC70,COV),TRANSPOSE($AA70:$AC70))),"") ->  | U41: =IF($N74<>0,-100*(O41-'Test of calibration function'!$B49)/(($C$10+2*N41*$C$11)*N41),"") ->  | AA41: 0 | AB41: 0 | AC41: 0 | AD41: 0 | AE41: 0 | AF41: 0 | AG41: 0 | AH41: 0 | AI41: 0 | AJ41: 0 | AK41: 0 | AL41: 0 | AM41: 0 | AN41: 0 | AO41: 0 | AP41: 0 | AQ41: 0 | AR41: 0 | AS41: 0 | AT41: 0 | AU41: 0 | AV41: 0 | AW41: 0 | AX41: 0 | AY41: 0 | AZ41: =IF($N79<>"",$Q79,0) -> 0 | BA41: 0 | BB41: 0 | BC41: 0 | BD41: 0
B42: 0 | C42: =IF($A42<>"",$I$12*SQRT(($X$14+B42*$X$15+B42^2*$X$16)/$D$16+MMULT(MMULT($AE72:$AG72,COV),TRANSPOSE($AE72:$AG72)))/($C$10+2*B42*$C$11),"") ->  | E42: =IF(A42="","",IF(Input!M56>0,(B42*Input!M56-$M$7*Input!L56)*Input!$N$23,"na")) ->  | P42: =IF($N75<>"",$I$12*SQRT(($X$14+N42*$X$15+N42^2*$X$16)/$D$16+MMULT(MMULT($AA71:$AC71,COV),TRANSPOSE($AA71:$AC71))),"") ->  | U42: =IF($N75<>0,-100*(O42-'Test of calibration function'!$B50)/(($C$10+2*N42*$C$11)*N42),"") ->  | AA42: 0 | AB42: 0 | AC42: 0 | AD42: 0 | AE42: 0 | AF42: 0 | AG42: 0 | AH42: 0 | AI42: 0 | AJ42: 0 | AK42: 0 | AL42: 0 | AM42: 0 | AN42: 0 | AO42: 0 | AP42: 0 | AQ42: 0 | AR42: 0 | AS42: 0 | AT42: 0 | AU42: 0 | AV42: 0 | AW42: 0 | AX42: 0 | AY42: 0 | AZ42: 0 | BA42: =IF($N80<>"",$Q80,0) -> 0 | BB42: 0 | BC42: 0 | BD42: 0
B43: 0 | C43: =IF($A43<>"",$I$12*SQRT(($X$14+B43*$X$15+B43^2*$X$16)/$D$16+MMULT(MMULT($AE73:$AG73,COV),TRANSPOSE($AE73:$AG73)))/($C$10+2*B43*$C$11),"") ->  | E43: =IF(A43="","",IF(Input!M57>0,(B43*Input!M57-$M$7*Input!L57)*Input!$N$23,"na")) ->  | P43: =IF($N76<>"",$I$12*SQRT(($X$14+N43*$X$15+N43^2*$X$16)/$D$16+MMULT(MMULT($AA72:$AC72,COV),TRANSPOSE($AA72:$AC72))),"") ->  | U43: =IF($N76<>0,-100*(O43-'Test of calibration function'!$B51)/(($C$10+2*N43*$C$11)*N43),"") ->  | AA43: 0 | AB43: 0 | AC43: 0 | AD43: 0 | AE43: 0 | AF43: 0 | AG43: 0 | AH43: 0 | AI43: 0 | AJ43: 0 | AK43: 0 | AL43: 0 | AM43: 0 | AN43: 0 | AO43: 0 | AP43: 0 | AQ43: 0 | AR43: 0 | AS43: 0 | AT43: 0 | AU43: 0 | AV43: 0 | AW43: 0 | AX43: 0 | AY43: 0 | AZ43: 0 | BA43: 0 | BB43: =IF($N81<>"",$Q81,0) -> 0 | BC43: 0 | BD43: 0
B44: 0 | C44: =IF($A44<>"",$I$12*SQRT(($X$14+B44*$X$15+B44^2*$X$16)/$D$16+MMULT(MMULT($AE74:$AG74,COV),TRANSPOSE($AE74:$AG74)))/($C$10+2*B44*$C$11),"") ->  | E44: =IF(A44="","",IF(Input!M58>0,(B44*Input!M58-$M$7*Input!L58)*Input!$N$23,"na")) ->  | P44: =IF($N77<>"",$I$12*SQRT(($X$14+N44*$X$15+N44^2*$X$16)/$D$16+MMULT(MMULT($AA73:$AC73,COV),TRANSPOSE($AA73:$AC73))),"") ->  | U44: =IF($N77<>0,-100*(O44-'Test of calibration function'!$B52)/(($C$10+2*N44*$C$11)*N44),"") ->  | AA44: 0 | AB44: 0 | AC44: 0 | AD44: 0 | AE44: 0 | AF44: 0 | AG44: 0 | AH44: 0 | AI44: 0 | AJ44: 0 | AK44: 0 | AL44: 0 | AM44: 0 | AN44: 0 | AO44: 0 | AP44: 0 | AQ44: 0 | AR44: 0 | AS44: 0 | AT44: 0 | AU44: 0 | AV44: 0 | AW44: 0 | AX44: 0 | AY44: 0 | AZ44: 0 | BA44: 0 | BB44: 0 | BC44: =IF($N82<>"",$Q82,0) -> 0 | BD44: 0
B45: 0 | C45: =IF($A45<>"",$I$12*SQRT(($X$14+B45*$X$15+B45^2*$X$16)/$D$16+MMULT(MMULT($AE75:$AG75,COV),TRANSPOSE($AE75:$AG75)))/($C$10+2*B45*$C$11),"") ->  | E45: =IF(A45="","",IF(Input!M59>0,(B45*Input!M59-$M$7*Input!L59)*Input!$N$23,"na")) ->  | P45: =IF($N78<>"",$I$12*SQRT(($X$14+N45*$X$15+N45^2*$X$16)/$D$16+MMULT(MMULT($AA74:$AC74,COV),TRANSPOSE($AA74:$AC74))),"") ->  | U45: =IF($N78<>0,-100*(O45-'Test of calibration function'!$B53)/(($C$10+2*N45*$C$11)*N45),"") ->  | AA45: 0 | AB45: 0 | AC45: 0 | AD45: 0 | AE45: 0 | AF45: 0 | AG45: 0 | AH45: 0 | AI45: 0 | AJ45: 0 | AK45: 0 | AL45: 0 | AM45: 0 | AN45: 0 | AO45: 0 | AP45: 0 | AQ45: 0 | AR45: 0 | AS45: 0 | AT45: 0 | AU45: 0 | AV45: 0 | AW45: 0 | AX45: 0 | AY45: 0 | AZ45: 0 | BA45: 0 | BB45: 0 | BC45: 0 | BD45: =IF($N83<>"",$Q83,0) -> 0
B46: 0 | C46: =IF($A46<>"",$I$12*SQRT(($X$14+B46*$X$15+B46^2*$X$16)/$D$16+MMULT(MMULT($AE76:$AG76,COV),TRANSPOSE($AE76:$AG76)))/($C$10+2*B46*$C$11),"") ->  | E46: =IF(A46="","",IF(Input!M60>0,(B46*Input!M60-$M$7*Input!L60)*Input!$N$23,"na")) ->  | P46: =IF($N79<>"",$I$12*SQRT(($X$14+N46*$X$15+N46^2*$X$16)/$D$16+MMULT(MMULT($AA75:$AC75,COV),TRANSPOSE($AA75:$AC75))),"") ->  | U46: =IF($N79<>0,-100*(O46-'Test of calibration function'!$B54)/(($C$10+2*N46*$C$11)*N46),"") -> 
B47: 0 | C47: =IF($A47<>"",$I$12*SQRT(($X$14+B47*$X$15+B47^2*$X$16)/$D$16+MMULT(MMULT($AE77:$AG77,COV),TRANSPOSE($AE77:$AG77)))/($C$10+2*B47*$C$11),"") ->  | E47: =IF(A47="","",IF(Input!M61>0,(B47*Input!M61-$M$7*Input!L61)*Input!$N$23,"na")) ->  | P47: =IF($N80<>"",$I$12*SQRT(($X$14+N47*$X$15+N47^2*$X$16)/$D$16+MMULT(MMULT($AA76:$AC76,COV),TRANSPOSE($AA76:$AC76))),"") ->  | U47: =IF($N80<>0,-100*(O47-'Test of calibration function'!$B55)/(($C$10+2*N47*$C$11)*N47),"") ->  | Z47: Values for calibration | AE47: Values for unknown | AJ47: Xmin | AK47: =MIN(X) -> 0.901072
B48: 0 | C48: =IF($A48<>"",$I$12*SQRT(($X$14+B48*$X$15+B48^2*$X$16)/$D$16+MMULT(MMULT($AE78:$AG78,COV),TRANSPOSE($AE78:$AG78)))/($C$10+2*B48*$C$11),"") ->  | D48: =IF(A48<>"",100*C48/B48,"") ->  | E48: =IF(A48="","",IF(Input!M62>0,(B48*Input!M62-$M$7*Input!L62)*Input!$N$23,"na")) ->  | P48: =IF($N81<>"",$I$12*SQRT(($X$14+N48*$X$15+N48^2*$X$16)/$D$16+MMULT(MMULT($AA77:$AC77,COV),TRANSPOSE($AA77:$AC77))),"") ->  | U48: =IF($N81<>0,-100*(O48-'Test of calibration function'!$B56)/(($C$10+2*N48*$C$11)*N48),"") ->  | Z48: Y | AA48: Q | AB48: X | AC48: X2 | AE48: Q | AF48: X | AG48: X2 | AJ48: Xmax | AK48: =MAX(X) -> 901.072
B49: 0 | C49: =IF($A49<>"",$I$12*SQRT(($X$14+B49*$X$15+B49^2*$X$16)/$D$16+MMULT(MMULT($AE79:$AG79,COV),TRANSPOSE($AE79:$AG79)))/($C$10+2*B49*$C$11),"") ->  | E49: =IF(A49="","",IF(Input!M63>0,(B49*Input!M63-$M$7*Input!L63)*Input!$N$23,"na")) ->  | P49: =IF($N82<>"",$I$12*SQRT(($X$14+N49*$X$15+N49^2*$X$16)/$D$16+MMULT(MMULT($AA78:$AC78,COV),TRANSPOSE($AA78:$AC78))),"") ->  | U49: =IF($N82<>0,-100*(O49-'Test of calibration function'!$B57)/(($C$10+2*N49*$C$11)*N49),"") ->  | Z49: na | AA49: 1 | AB49: 0 | AC49: =AB49^2 -> 0 | AE49: =IF(A19<>"",1,0) -> 1 | AF49: =IF(B19<>"",$B19^1,0) -> 3.457910087 | AG49: =AF49^2 -> 11.95714217 | AJ49: dX | AK49: =(AK48/AK47)^(1/20) -> 1.412537545
B50: 0 | C50: =IF($A50<>"",$I$12*SQRT(($X$14+B50*$X$15+B50^2*$X$16)/$D$16+MMULT(MMULT($AE80:$AG80,COV),TRANSPOSE($AE80:$AG80)))/($C$10+2*B50*$C$11),"") ->  | E50: =IF(A50="","",IF(Input!M64>0,(B50*Input!M64-$M$7*Input!L64)*Input!$N$23,"na")) ->  | P50: =IF($N83<>"",$I$12*SQRT(($X$14+N50*$X$15+N50^2*$X$16)/$D$16+MMULT(MMULT($AA79:$AC79,COV),TRANSPOSE($AA79:$AC79))),"") ->  | U50: =IF($N83<>0,-100*(O50-'Test of calibration function'!$B58)/(($C$10+2*N50*$C$11)*N50),"") ->  | Z50: =IF(N54<>"",O54,0) -> 0.01166200783 | AA50: =IF(N54<>"",1,0) -> 1 | AB50: =$N54^1 -> 0.901072 | AC50: =AB50^2 -> 0.8119307492 | AE50: 1 | AF50: 3.406396905 | AG50: =AF50^2 -> 11.60353987 | AJ50: Plot of line | AM50: Prediction intervals
B51: 0 | C51: =IF($A51<>"",$I$12*SQRT(($X$14+B51*$X$15+B51^2*$X$16)/$D$16+MMULT(MMULT($AE81:$AG81,COV),TRANSPOSE($AE81:$AG81)))/($C$10+2*B51*$C$11),"") ->  | E51: =IF(A51="","",IF(Input!M65>0,(B51*Input!M65-$M$7*Input!L65)*Input!$N$23,"na")) ->  | T51: MeanAbs | U51: =SUM(IF(U21:U50>0,U21:U50,-U21:U50))/COUNT(U21:U50) -> 3.217972642 | W51: =MIN(W21:W50) -> 0.6258896211 | X51: Min | Z51: 0.01016128507 | AA51: 1 | AB51: 0.901072 | AC51: 0.8119307492 | AE51: 1 | AF51: 2.751039721 | AG51: 7.568219544 | AJ51: X | AK51: X2 | AL51: Yo | AM51: sYo | AN51: Y- | AO51: Y+ | AP51: PI % | AQ51: RSD %
B52: 0 | C52: =IF($A52<>"",$I$12*SQRT(($X$14+B52*$X$15+B52^2*$X$16)/$D$16+MMULT(MMULT($AE82:$AG82,COV),TRANSPOSE($AE82:$AG82)))/($C$10+2*B52*$C$11),"") ->  | E52: =IF(A52="","",IF(Input!M66>0,(B52*Input!M66-$M$7*Input!L66)*Input!$N$23,"na")) ->  | N52: Calibration values | W52: =MAX(W21:W50) -> 22.83903344 | X52: Max | Z52: 0.01023730808 | AA52: 1 | AB52: 0.901072 | AC52: 0.8119307492 | AE52: 1 | AF52: 3.100529139 | AG52: 9.613280943 | AI52: 1 | AJ52: 0 | AK52: =AJ52^2 -> 0 | AL52: =$C$9+$AJ52*($C$10+$AJ52*$C$11) -> 0.001595514423 | AM52: =$I$12*SQRT(($X$14+AJ52*$X$15+AJ52^2*$X$16)/$D$16+MMULT(MMULT($AI52:$AK52,COV),TRANSPOSE($AI52:$AK52))) -> 0.001429942731 | AN52: =$C$9-$E$16*AM52 -> -0.001421401027 | AO52: =$C$9+$E$16*AM52 -> 0.004612429872
B53: 0 | C53: =IF($A53<>"",$I$12*SQRT(($X$14+B53*$X$15+B53^2*$X$16)/$D$16+MMULT(MMULT($AE83:$AG83,COV),TRANSPOSE($AE83:$AG83)))/($C$10+2*B53*$C$11),"") ->  | E53: =IF(A53="","",IF(Input!M67>0,(B53*Input!M67-$M$7*Input!L67)*Input!$N$23,"na")) ->  | N53: X | O53: Y | Q53: W | R53: s(i) | Z53: 0.009632461888 | AA53: 1 | AB53: 0.901072 | AC53: 0.8119307492 | AE53: 1 | AF53: 3.473419395 | AG53: 12.06464229 | AI53: 1 | AJ53: =AK47 -> 0.901072 | AK53: 0.8119307492 | AL53: 0.009968849804 | AM53: =$I$12*SQRT(($X$14+AJ53*$X$15+AJ53^2*$X$16)/$D$16+MMULT(MMULT($AI53:$AK53,COV),TRANSPOSE($AI53:$AK53))) -> 0.001912454419 | AN53: =$AL53-$E$16*$AM53 -> 0.00593392368 | AO53: =$AL53+$E$16*$AM53 -> 0.01400377593 | AP53: =100*AM53*$E$16/AL53 -> 40.47534273 | AQ53: =100*AM53/AL53 -> 19.18430367
B54: 0 | C54: =IF($A54<>"",$I$12*SQRT(($X$14+B54*$X$15+B54^2*$X$16)/$D$16+MMULT(MMULT($AE84:$AG84,COV),TRANSPOSE($AE84:$AG84)))/($C$10+2*B54*$C$11),"") ->  | E54: =IF(A54="","",IF(Input!M68>0,(B54*Input!M68-$M$7*Input!L68)*Input!$N$23,"na")) ->  | N54: 0.901072 | O54: 0.01166200783 | Q54: =IF(N54<>"",Z16*$X$11,"") -> 2.419019588 | R54: =IF(N54<>"",$I$12/SQRT(Q54),"") -> 0.001803354548 | Z54: 0.00973915424 | AA54: 1 | AB54: 0.901072 | AC54: 0.8119307492 | AE54: 1 | AF54: 3.748019335 | AG54: 14.04764894 | AI54: 1 | AJ54: =AJ53*$AK$49 -> 1.27279803 | AK54: 1.620014826 | AL54: 0.01342333227 | AM54: =$I$12*SQRT(($X$14+AJ54*$X$15+AJ54^2*$X$16)/$D$16+MMULT(MMULT($AI54:$AK54,COV),TRANSPOSE($AI54:$AK54))) -> 0.00207948745 | AN54: 0.009035997255 | AO54: 0.01781066729 | AP54: 32.68439556 | AQ54: 15.49158889
B55: 0 | C55: =IF($A55<>"",$I$12*SQRT(($X$14+B55*$X$15+B55^2*$X$16)/$D$16+MMULT(MMULT($AE85:$AG85,COV),TRANSPOSE($AE85:$AG85)))/($C$10+2*B55*$C$11),"") ->  | E55: =IF(A55="","",IF(Input!M69>0,(B55*Input!M69-$M$7*Input!L69)*Input!$N$23,"na")) ->  | N55: 0.901072 | O55: 0.01016128507 | Q55: 2.419019588 | R55: 0.001803354548 | T55: Values for CI Low | W55: Values for CI High | Z55: 0.009820539463 | AA55: 1 | AB55: 0.901072 | AC55: 0.8119307492 | AE55: 1 | AF55: 14.79370172 | AG55: 218.8536106 | AI55: 1 | AJ55: =AJ54*$AK$49 -> 1.797875005 | AK55: 3.232354532 | AL55: 0.01830308491 | AM55: =$I$12*SQRT(($X$14+AJ55*$X$15+AJ55^2*$X$16)/$D$16+MMULT(MMULT($AI55:$AK55,COV),TRANSPOSE($AI55:$AK55))) -> 0.00229512148 | AN55: 0.01346080186 | AO55: 0.02314536796 | AP55: 26.4561033 | AQ55: 12.53953359
B56: 0 | C56: =IF($A56<>"",$I$12*SQRT(($X$14+B56*$X$15+B56^2*$X$16)/$D$16+MMULT(MMULT($AE86:$AG86,COV),TRANSPOSE($AE86:$AG86)))/($C$10+2*B56*$C$11),"") ->  | E56: =IF(A56="","",IF(Input!M70>0,(B56*Input!M70-$M$7*Input!L70)*Input!$N$23,"na")) ->  | N56: 0.901072 | O56: 0.01023730808 | Q56: 2.419019588 | R56: 0.001803354548 | T56: Q | U56: X | V56: X2 | W56: Q | X56: X | Y56: X2 | Z56: 0.01072667925 | AA56: 1 | AB56: 0.901072 | AC56: 0.8119307492 | AE56: 1 | AF56: 5.283954962 | AG56: 27.92018004 | AI56: 1 | AJ56: 2.539565945 | AK56: 6.449395187 | AL56: 0.02519625085 | AM56: =$I$12*SQRT(($X$14+AJ56*$X$15+AJ56^2*$X$16)/$D$16+MMULT(MMULT($AI56:$AK56,COV),TRANSPOSE($AI56:$AK56))) -> 0.002569618342 | AN56: 0.01977483004 | AO56: 0.03061767165 | AP56: 21.51677581 | AQ56: 10.19841546
B57: 0 | C57: =IF($A57<>"",$I$12*SQRT(($X$14+B57*$X$15+B57^2*$X$16)/$D$16+MMULT(MMULT($AE87:$AG87,COV),TRANSPOSE($AE87:$AG87)))/($C$10+2*B57*$C$11),"") ->  | E57: =IF(A57="","",IF(Input!M71>0,(B57*Input!M71-$M$7*Input!L71)*Input!$N$23,"na")) ->  | N57: 0.901072 | O57: 0.009632461888 | Q57: 2.419019588 | R57: 0.001803354548 | T57: 1 | U57: 1.380648453 | V57: =IF(A19="","",U57^2) -> 1.90619015 | W57: 1 | X57: 5.456583492 | Y57: =IF(A19="","",X57^2) -> 29.7743034 | Z57: 0.02250464678 | AA57: 1 | AB57: 2.25268 | AC57: 5.074567182 | AE57: 1 | AF57: 7.086549571 | AG57: 50.21918482 | AI57: 1 | AJ57: 3.587232244 | AK57: 12.86823517 | AL57: 0.03493376921 | AM57: =$I$12*SQRT(($X$14+AJ57*$X$15+AJ57^2*$X$16)/$D$16+MMULT(MMULT($AI57:$AK57,COV),TRANSPOSE($AI57:$AK57))) -> 0.002914602301 | AN57: 0.02878449587 | AO57: 0.04108304255 | AP57: 17.60266206 | AQ57: 8.343223098
B58: 0 | C58: =IF($A58<>"",$I$12*SQRT(($X$14+B58*$X$15+B58^2*$X$16)/$D$16+MMULT(MMULT($AE88:$AG88,COV),TRANSPOSE($AE88:$AG88)))/($C$10+2*B58*$C$11),"") ->  | E58: =IF(A58="","",IF(Input!M72>0,(B58*Input!M72-$M$7*Input!L72)*Input!$N$23,"na")) ->  | N58: 0.901072 | O58: 0.00973915424 | Q58: 2.419019588 | R58: 0.001803354548 | T58: 1 | U58: -1.681512482 | V58: =IF(A20="","",U58^2) -> 2.827484228 | W58: 1 | X58: 3.858606266 | Y58: =IF(A20="","",X58^2) -> 14.88884232 | Z58: 0.04206173356 | AA58: 1 | AB58: 4.50536 | AC58: 20.29826873 | AE58: 1 | AF58: 3.014518155 | AG58: 9.087319704 | AI58: 1 | AJ58: 5.067100226 | AK58: 25.6755047 | AL58: 0.04868970169 | AM58: =$I$12*SQRT(($X$14+AJ58*$X$15+AJ58^2*$X$16)/$D$16+MMULT(MMULT($AI58:$AK58,COV),TRANSPOSE($AI58:$AK58))) -> 0.003343457997 | AN58: 0.04163562193 | AO58: 0.05574378146 | AP58: 14.48782704 | AQ58: 6.866868929
B59: 0 | C59: =IF($A59<>"",$I$12*SQRT(($X$14+B59*$X$15+B59^2*$X$16)/$D$16+MMULT(MMULT($AE89:$AG89,COV),TRANSPOSE($AE89:$AG89)))/($C$10+2*B59*$C$11),"") ->  | E59: =IF(A59="","",IF(Input!M73>0,(B59*Input!M73-$M$7*Input!L73)*Input!$N$23,"na")) ->  | N59: 0.901072 | O59: 0.009820539463 | Q59: 2.419019588 | R59: 0.001803354548 | T59: 1 | U59: -1.317452389 | V59: 1.735680796 | W59: 1 | X59: 3.509908824 | Y59: 12.31945996 | Z59: 0.1256339594 | AA59: 1 | AB59: 13.51608 | AC59: 182.6844186 | AE59: 1 | AF59: 513.2490534 | AG59: 263424.5908 | AI59: 1 | AJ59: 7.157469311 | AK59: 51.22936694 | AL59: 0.06812311095 | AM59: =$I$12*SQRT(($X$14+AJ59*$X$15+AJ59^2*$X$16)/$D$16+MMULT(MMULT($AI59:$AK59,COV),TRANSPOSE($AI59:$AK59))) -> 0.003871951702 | AN59: 0.05995400693 | AO59: 0.07629221497 | AP59: 11.99167787 | AQ59: 5.683756435
B60: 0 | C60: =IF($A60<>"",$I$12*SQRT(($X$14+B60*$X$15+B60^2*$X$16)/$D$16+MMULT(MMULT($AE90:$AG90,COV),TRANSPOSE($AE90:$AG90)))/($C$10+2*B60*$C$11),"") ->  | E60: =IF(A60="","",IF(Input!M74>0,(B60*Input!M74-$M$7*Input!L74)*Input!$N$23,"na")) ->  | N60: 0.901072 | O60: 0.01072667925 | Q60: 2.419019588 | R60: 0.001803354548 | T60: 1 | U60: -8.16995874 | V60: 66.74822581 | W60: 1 | X60: 7.262051261 | Y60: 52.73738851 | Z60: 0.2481236702 | AA60: 1 | AB60: 27.03216 | AC60: 730.7376743 | AE60: 1 | AF60: 520.7610145 | AG60: 271192.0342 | AI60: 1 | AJ60: 10.11019413 | AK60: 102.2160253 | AL60: 0.09557879496 | AM60: =$I$12*SQRT(($X$14+AJ60*$X$15+AJ60^2*$X$16)/$D$16+MMULT(MMULT($AI60:$AK60,COV),TRANSPOSE($AI60:$AK60))) -> 0.004519092214 | AN60: 0.08604434381 | AO60: 0.1051132461 | AP60: 9.975487926 | AQ60: 4.728132653
B61: 0 | C61: =IF($A61<>"",$I$12*SQRT(($X$14+B61*$X$15+B61^2*$X$16)/$D$16+MMULT(MMULT($AE91:$AG91,COV),TRANSPOSE($AE91:$AG91)))/($C$10+2*B61*$C$11),"") ->  | E61: =IF(A61="","",IF(Input!M75>0,(B61*Input!M75-$M$7*Input!L75)*Input!$N$23,"na")) ->  | N61: 2.25268 | O61: 0.02250464678 | Q61: 1.382296907 | R61: 0.00238561383 | T61: 1 | U61: -1.511323961 | V61: 2.284100116 | W61: 1 | X61: 2.738298216 | Y61: 7.498277121 | Z61: 0.49535092 | AA61: 1 | AB61: 54.06432 | AC61: 2922.950697 | AE61: 1 | AF61: 5.287267678 | AG61: 27.9551995 | AI61: 1 | AJ61: 14.28102879 | AK61: 203.9477832 | AL61: 0.1343714821 | AM61: =$I$12*SQRT(($X$14+AJ61*$X$15+AJ61^2*$X$16)/$D$16+MMULT(MMULT($AI61:$AK61,COV),TRANSPOSE($AI61:$AK61))) -> 0.005308262655 | AN61: 0.1231720269 | AO61: 0.1455709374 | AP61: 8.334696516 | AQ61: 3.950438419
B62: 0 | C62: =IF($A62<>"",$I$12*SQRT(($X$14+B62*$X$15+B62^2*$X$16)/$D$16+MMULT(MMULT($AE92:$AG92,COV),TRANSPOSE($AE92:$AG92)))/($C$10+2*B62*$C$11),"") ->  | E62: =IF(A62="","",IF(Input!M76>0,(B62*Input!M76-$M$7*Input!L76)*Input!$N$23,"na")) ->  | N62: 4.50536 | O62: 0.04206173356 | Q62: 0.8063398627 | R62: 0.003123501701 | T62: 1 | U62: 1.823257886 | V62: 3.324269321 | W62: 1 | X62: 6.176095928 | Y62: 38.14416091 | Z62: 0.4953812024 | AA62: 1 | AB62: 54.06432 | AC62: 2922.950697 | AE62: 1 | AF62: 4.89871513 | AG62: 23.99740993 | AI62: 1 | AJ62: 20.17248934 | AK62: =AJ62^2 -> 406.9293261 | AL62: 0.1891885648 | AM62: =$I$12*SQRT(($X$14+AJ62*$X$15+AJ62^2*$X$16)/$D$16+MMULT(MMULT($AI62:$AK62,COV),TRANSPOSE($AI62:$AK62))) -> 0.00626867481 | AN62: 0.1759628171 | AO62: 0.2024143126 | AP62: =100*AM62*$E$16/AL62 -> 6.990775461 | AQ62: =100*AM62/AL62 -> 3.313453334
B63: 0 | C63: =IF($A63<>"",$I$12*SQRT(($X$14+B63*$X$15+B63^2*$X$16)/$D$16+MMULT(MMULT($AE93:$AG93,COV),TRANSPOSE($AE93:$AG93)))/($C$10+2*B63*$C$11),"") ->  | E63: =IF(A63="","",IF(Input!M77>0,(B63*Input!M77-$M$7*Input!L77)*Input!$N$23,"na")) ->  | N63: 13.51608 | O63: 0.1256339594 | Q63: 0.3023774485 | R63: 0.005100656919 | T63: 1 | U63: 2.454721922 | V63: 6.025659714 | W63: 1 | X63: 7.167632988 | Y63: 51.37496265 | Z63: 0.4944612167 | AA63: 1 | AB63: 54.06432 | AC63: 2922.950697 | AE63: 1 | AF63: 1.531506834 | AG63: 2.345513184 | AI63: 1 | AJ63: 28.49439856 | AK63: 811.9307492 | AL63: 0.2666615642 | AM63: =$I$12*SQRT(($X$14+AJ63*$X$15+AJ63^2*$X$16)/$D$16+MMULT(MMULT($AI63:$AK63,COV),TRANSPOSE($AI63:$AK63))) -> 0.007437185567 | AN63: 0.2509704743 | AO63: 0.2823526542 | AP63: 5.884271327 | AQ63: 2.788997953
B64: 0 | C64: =IF($A64<>"",$I$12*SQRT(($X$14+B64*$X$15+B64^2*$X$16)/$D$16+MMULT(MMULT($AE94:$AG94,COV),TRANSPOSE($AE94:$AG94)))/($C$10+2*B64*$C$11),"") ->  | E64: =IF(A64="","",IF(Input!M78>0,(B64*Input!M78-$M$7*Input!L78)*Input!$N$23,"na")) ->  | N64: 27.03216 | O64: 0.2481236702 | Q64: 0.1560657799 | R64: 0.007099813955 | T64: 1 | U64: -1.87210208 | V64: 3.504766198 | W64: 1 | X64: 3.51261964 | Y64: 12.33849674 | Z64: 0.4977655751 | AA64: 1 | AB64: 54.06432 | AC64: 2922.950697 | AE64: 0 | AF64: 0 | AG64: 0 | AI64: 1 | AJ64: 40.24940777 | AK64: 1620.014826 | AL64: 0.3761785105 | AM64: =$I$12*SQRT(($X$14+AJ64*$X$15+AJ64^2*$X$16)/$D$16+MMULT(MMULT($AI64:$AK64,COV),TRANSPOSE($AI64:$AK64))) -> 0.008860402621 | AN64: 0.357484695 | AO64: 0.3948723259 | AP64: 4.969400153 | AQ64: 2.355371818
B65: 0 | C65: =IF($A65<>"",$I$12*SQRT(($X$14+B65*$X$15+B65^2*$X$16)/$D$16+MMULT(MMULT($AE95:$AG95,COV),TRANSPOSE($AE95:$AG95)))/($C$10+2*B65*$C$11),"") ->  | E65: =IF(A65="","",IF(Input!M79>0,(B65*Input!M79-$M$7*Input!L79)*Input!$N$23,"na")) ->  | N65: 54.06432 | O65: 0.49535092 | Q65: 0.07931211764 | R65: 0.009959351012 | T65: 1 | U65: -3.754486433 | V65: 14.09616837 | W65: 1 | X65: 6.56171197 | Y65: 43.05606397 | Z65: 0.816049586 | AA65: 1 | AB65: 90.1072 | AC65: 8119.307492 | AE65: 1 | AF65: 291.6493812 | AG65: 85059.36153 | AI65: 1 | AJ65: 56.85379963 | AK65: 3232.354532 | AL65: 0.5310417652 | AM65: =$I$12*SQRT(($X$14+AJ65*$X$15+AJ65^2*$X$16)/$D$16+MMULT(MMULT($AI65:$AK65,COV),TRANSPOSE($AI65:$AK65))) -> 0.01059666792 | AN65: 0.5086847502 | AO65: 0.5533987803 | AP65: 4.210029515 | AQ65: 1.995449062
B66: 0 | C66: =IF($A66<>"",$I$12*SQRT(($X$14+B66*$X$15+B66^2*$X$16)/$D$16+MMULT(MMULT($AE96:$AG96,COV),TRANSPOSE($AE96:$AG96)))/($C$10+2*B66*$C$11),"") ->  | E66: =IF(A66="","",IF(Input!M80>0,(B66*Input!M80-$M$7*Input!L80)*Input!$N$23,"na")) ->  | N66: 54.06432 | O66: 0.4953812024 | Q66: 0.07931211764 | R66: 0.009959351012 | T66: 1 | U66: 2.372462622 | V66: 5.628578895 | W66: 1 | X66: 7.040431623 | Y66: 49.56767744 | Z66: 1.705003155 | AA66: 1 | AB66: 180.2144 | AC66: 32477.22997 | AE66: 1 | AF66: 2.837231651 | AG66: 8.049883441 | AI66: 1 | AJ66: 80.30812653 | AK66: 6449.395187 | AL66: 0.7501240513 | AM66: =$I$12*SQRT(($X$14+AJ66*$X$15+AJ66^2*$X$16)/$D$16+MMULT(MMULT($AI66:$AK66,COV),TRANSPOSE($AI66:$AK66))) -> 0.012716735 | AN66: 0.7232940857 | AO66: 0.7769540169 | AP66: 3.576737149 | AQ66: 1.695284264
B67: 0 | C67: =IF($A67<>"",$I$12*SQRT(($X$14+B67*$X$15+B67^2*$X$16)/$D$16+MMULT(MMULT($AE97:$AG97,COV),TRANSPOSE($AE97:$AG97)))/($C$10+2*B67*$C$11),"") ->  | E67: =IF(A67="","",IF(Input!M81>0,(B67*Input!M81-$M$7*Input!L81)*Input!$N$23,"na")) ->  | N67: 54.06432 | O67: 0.4944612167 | Q67: 0.07931211764 | R67: 0.009959351012 | T67: 1 | U67: -1.365203189 | V67: 1.863779748 | W67: 1 | X67: 1.933275218 | Y67: 3.737553067 | Z67: 2.570652439 | AA67: 1 | AB67: 270.3216 | AC67: 73073.76743 | AE67: 1 | AF67: 3.099263264 | AG67: 9.60543278 | AI67: 1 | AJ67: 113.4382439 | AK67: 12868.23517 | AL67: 1.060248681 | AM67: =$I$12*SQRT(($X$14+AJ67*$X$15+AJ67^2*$X$16)/$D$16+MMULT(MMULT($AI67:$AK67,COV),TRANSPOSE($AI67:$AK67))) -> 0.01530055286 | AN67: 1.027967336 | AO67: 1.092530026 | AP67: 3.044695586 | AQ67: 1.443109823
B68: 0 | C68: =IF($A68<>"",$I$12*SQRT(($X$14+B68*$X$15+B68^2*$X$16)/$D$16+MMULT(MMULT($AE98:$AG98,COV),TRANSPOSE($AE98:$AG98)))/($C$10+2*B68*$C$11),"") ->  | E68: =IF(A68="","",IF(Input!M82>0,(B68*Input!M82-$M$7*Input!L82)*Input!$N$23,"na")) ->  | N68: 54.06432 | O68: 0.4977655751 | Q68: 0.07931211764 | R68: 0.009959351012 | T68: 1 | U68: 0.003067660424 | V68: 9.410540476e-06 | W68: 1 | X68: 0.2262288678 | Y68: 0.05117950062 | Z68: 4.315552421 | AA68: 1 | AB68: 450.536 | AC68: 202982.6873 | AE68: 1 | AF68: 6.528316168 | AG68: 42.61891199 | AI68: 1 | AJ68: 160.2357785 | AK68: 25675.5047 | AL68: 1.499633574 | AM68: =$I$12*SQRT(($X$14+AJ68*$X$15+AJ68^2*$X$16)/$D$16+MMULT(MMULT($AI68:$AK68,COV),TRANSPOSE($AI68:$AK68))) -> 0.01842600293 | AN68: 1.460758106 | AO68: 1.538509042 | AP68: 2.592331132 | AQ68: 1.228700347
B69: 0 | C69: =IF($A69<>"",$I$12*SQRT(($X$14+B69*$X$15+B69^2*$X$16)/$D$16+MMULT(MMULT($AE99:$AG99,COV),TRANSPOSE($AE99:$AG99)))/($C$10+2*B69*$C$11),"") ->  | E69: =IF(A69="","",IF(Input!M83>0,(B69*Input!M83-$M$7*Input!L83)*Input!$N$23,"na")) ->  | N69: 90.1072 | O69: 0.816049586 | Q69: 0.04790137798 | R69: 0.01281524191 | T69: 1 | U69: 0.005077874168 | V69: 2.578480607e-05 | W69: 1 | X69: 0.2335372366 | Y69: 0.05453964089 | Z69: 8.625933064 | AA69: 1 | AB69: 901.072 | AC69: 811930.7492 | AE69: 0 | AF69: 0 | AG69: 0 | AI69: 1 | AJ69: 226.3390531 | AK69: 51229.36694 | AL69: 2.122919391 | AM69: =$I$12*SQRT(($X$14+AJ69*$X$15+AJ69^2*$X$16)/$D$16+MMULT(MMULT($AI69:$AK69,COV),TRANSPOSE($AI69:$AK69))) -> 0.02214791521 | AN69: 2.076191374 | AO69: 2.169647407 | AP69: 2.201120624 | AQ69: 1.043276316
B70: 0 | C70: =IF($A70<>"",$I$12*SQRT(($X$14+B70*$X$15+B70^2*$X$16)/$D$16+MMULT(MMULT($AE100:$AG100,COV),TRANSPOSE($AE100:$AG100)))/($C$10+2*B70*$C$11),"") ->  | E70: =IF(A70="","",IF(Input!M84>0,(B70*Input!M84-$M$7*Input!L84)*Input!$N$23,"na")) ->  | N70: 180.2144 | O70: 1.705003155 | Q70: 0.02406984665 | R70: 0.01807857313 | T70: 1 | U70: 0.005990155304 | V70: 3.588196056e-05 | W70: 1 | X70: 0.2364858475 | Y70: 0.05592555608 | Z70: 0 | AA70: 0 | AB70: 0 | AC70: 0 | AE70: 0 | AF70: 0 | AG70: 0 | AI70: 1 | AJ70: 319.7124103 | AK70: 102216.0253 | AL70: 3.008597824 | AM70: =$I$12*SQRT(($X$14+AJ70*$X$15+AJ70^2*$X$16)/$D$16+MMULT(MMULT($AI70:$AK70,COV),TRANSPOSE($AI70:$AK70))) -> 0.02649359695 | AN70: 2.95270122 | AO70: 3.064494427 | AP70: 1.857895499 | AQ70: 0.8805961614
B71: 0 | C71: =IF($A71<>"",$I$12*SQRT(($X$14+B71*$X$15+B71^2*$X$16)/$D$16+MMULT(MMULT($AE101:$AG101,COV),TRANSPOSE($AE101:$AG101)))/($C$10+2*B71*$C$11),"") ->  | E71: =IF(A71="","",IF(Input!M85>0,(B71*Input!M85-$M$7*Input!L85)*Input!$N$23,"na")) ->  | N71: 270.3216 | O71: 2.570652439 | Q71: 0.01607321985 | R71: 0.02212327253 | T71: 1 | U71: 0.01541480747 | V71: 0.0002376162894 | W71: 1 | X71: 0.2603873111 | Y71: 0.0678015518 | Z71: 0 | AA71: 0 | AB71: 0 | AC71: 0 | AE71: 0 | AF71: 0 | AG71: 0 | AI71: 1 | AJ71: 451.605783 | AK71: 203947.7832 | AL71: 4.270154557 | AM71: =$I$12*SQRT(($X$14+AJ71*$X$15+AJ71^2*$X$16)/$D$16+MMULT(MMULT($AI71:$AK71,COV),TRANSPOSE($AI71:$AK71))) -> 0.03164956253 | AN71: 4.203379817 | AO71: 4.336929297 | AP71: 1.563754641 | AQ71: 0.7411807257
B72: 0 | C72: =IF($A72<>"",$I$12*SQRT(($X$14+B72*$X$15+B72^2*$X$16)/$D$16+MMULT(MMULT($AE102:$AG102,COV),TRANSPOSE($AE102:$AG102)))/($C$10+2*B72*$C$11),"") ->  | E72: =IF(A72="","",IF(Input!M86>0,(B72*Input!M86-$M$7*Input!L86)*Input!$N$23,"na")) ->  | N72: 450.536 | O72: 4.315552421 | Q72: 0.009656764822 | R72: 0.0285420383 | T72: 1 | U72: 0.02651673668 | W72: 1 | X72: 0.2815692443 | Z72: 0 | AA72: 0 | AB72: 0 | AC72: 0 | AE72: 0 | AF72: 0 | AG72: 0 | AI72: 1 | AJ72: 637.9101238 | AK72: =AJ72^2 -> 406929.3261 | AL72: 6.073106437 | AM72: =$I$12*SQRT(($X$14+AJ72*$X$15+AJ72^2*$X$16)/$D$16+MMULT(MMULT($AI72:$AK72,COV),TRANSPOSE($AI72:$AK72))) -> 0.03912717481 | AN72: 5.990555314 | AO72: 6.15565756 | AP72: =100*AM72*$E$16/AL72 -> 1.359289908 | AQ72: =100*AM72/AL72 -> 0.6442695384
B73: 0 | C73: =IF($A73<>"",$I$12*SQRT(($X$14+B73*$X$15+B73^2*$X$16)/$D$16+MMULT(MMULT($AE103:$AG103,COV),TRANSPOSE($AE103:$AG103)))/($C$10+2*B73*$C$11),"") ->  | E73: =IF(A73="","",IF(Input!M87>0,(B73*Input!M87-$M$7*Input!L87)*Input!$N$23,"na")) ->  | N73: 901.072 | O73: 8.625933064 | Q73: 0.00483320597 | R73: 0.04034439065 | T73: 1 | U73: 0.05439787207 | V73: 0.002959128485 | W73: 1 | X73: 0.3230812238 | Y73: 0.1043814772 | Z73: 0 | AA73: 0 | AB73: 0 | AC73: 0 | AE73: 0 | AF73: 0 | AG73: 0 | AI73: 1 | AJ73: 901.072 | AK73: =AJ73^2 -> 811930.7492 | AL73: 8.661655637 | AM73: =$I$12*SQRT(($X$14+AJ73*$X$15+AJ73^2*$X$16)/$D$16+MMULT(MMULT($AI73:$AK73,COV),TRANSPOSE($AI73:$AK73))) -> 0.05599879426 | AN73: 8.543508509 | AO73: 8.779802766 | AP73: =100*AM73*$E$16/AL73 -> 1.364024771 | AQ73: =100*AM73/AL73 -> 0.6465137453
B74: 0 | C74: =IF($A74<>"",$I$12*SQRT(($X$14+B74*$X$15+B74^2*$X$16)/$D$16+MMULT(MMULT($AE104:$AG104,COV),TRANSPOSE($AE104:$AG104)))/($C$10+2*B74*$C$11),"") ->  | E74: =IF(A74="","",IF(Input!M88>0,(B74*Input!M88-$M$7*Input!L88)*Input!$N$23,"na")) ->  | T74: 1 | U74: 0.1250601993 | V74: 0.01564005346 | W74: 1 | X74: 0.4045370883 | Y74: 0.1636502558 | Z74: 0 | AA74: 0 | AB74: 0 | AC74: 0 | AE74: 0 | AF74: 0 | AG74: 0
B75: 0 | C75: =IF($A75<>"",$I$12*SQRT(($X$14+B75*$X$15+B75^2*$X$16)/$D$16+MMULT(MMULT($AE105:$AG105,COV),TRANSPOSE($AE105:$AG105)))/($C$10+2*B75*$C$11),"") ->  | E75: =IF(A75="","",IF(Input!M89>0,(B75*Input!M89-$M$7*Input!L89)*Input!$N$23,"na")) ->  | T75: 1 | U75: 0.1757199412 | V75: 0.03087749775 | W75: 1 | X75: 0.4557548514 | Y75: 0.2077124846 | Z75: 0 | AA75: 0 | AB75: 0 | AC75: 0 | AE75: 0 | AF75: 0 | AG75: 0 | AI75: Values for plot of DL | AL75: Values for limits
B76: 0 | C76: =IF($A76<>"",$I$12*SQRT(($X$14+B76*$X$15+B76^2*$X$16)/$D$16+MMULT(MMULT($AE106:$AG106,COV),TRANSPOSE($AE106:$AG106)))/($C$10+2*B76*$C$11),"") ->  | E76: =IF(A76="","",IF(Input!M90>0,(B76*Input!M90-$M$7*Input!L90)*Input!$N$23,"na")) ->  | T76: 1 | U76: 0.1732718896 | V76: 0.03002314774 | W76: 1 | X76: 0.4533456517 | Y76: 0.2055222799 | Z76: 0 | AA76: 0 | AB76: 0 | AC76: 0 | AE76: 0 | AF76: 0 | AG76: 0 | AI76: X | AJ76: Y | AL76: Q | AM76: X | AN76: X2
B77: 0 | C77: =IF($A77<>"",$I$12*SQRT(($X$14+B77*$X$15+B77^2*$X$16)/$D$16+MMULT(MMULT($AE107:$AG107,COV),TRANSPOSE($AE107:$AG107)))/($C$10+2*B77*$C$11),"") ->  | E77: =IF(A77="","",IF(Input!M91>0,(B77*Input!M91-$M$7*Input!L91)*Input!$N$23,"na")) ->  | T77: 1 | U77: 0.5342289037 | W77: 1 | X77: 0.8030844966 | Z77: 0 | AA77: 0 | AB77: 0 | AC77: 0 | AE77: 0 | AF77: 0 | AG77: 0 | AI77: =IF($K$19<>"na",$K$19,$K$23) -> 0.3000967461 | AJ77: 0 | AL77: =IF(K19<>"",1,0) -> 1 | AM77: =IF(K19<>"na",$K19^1,0) -> 0.3000967461 | AN77: =AM77^2 -> 0.09005805703
B78: =IF(A79<>"",(-$C$10+SIGN($C$10)*SQRT($C$10^2-4*$C$11*($C$9-A79)))/(2*$C$11),0) -> 0 | C78: =IF($A79<>"",$I$12*SQRT(($X$14+B78*$X$15+B78^2*$X$16)/$D$16+MMULT(MMULT($AE108:$AG108,COV),TRANSPOSE($AE108:$AG108)))/($C$10+2*B78*$C$11),"") ->  | D78: =IF(A79<>"",100*C78/B78,"") ->  | E78: =IF(A78="","",IF(Input!M92>0,(B78*Input!M92-$M$7*Input!L92)*Input!$N$23,"na")) ->  | T78: 1 | U78: 0.8106844169 | W78: 1 | X78: 1.116219581 | Z78: 0 | AA78: 0 | AB78: 0 | AC78: 0 | AE78: 0 | AF78: 0 | AG78: =AF78^2 -> 0 | AI78: =IF($K$19<>"na",$K$19,$K$23) -> 0.3000967461 | AJ78: =$C$9+AI78*$C$10 -> 0.004384109087 | AL78: =IF(K20<>"",1,0) -> 1 | AM78: =IF(K20<>"na",$K20^1,0) -> 0.492164676 | AN78: =AM78^2 -> 0.2422260683
B79: =IF(A80<>"",(-$C$10+SIGN($C$10)*SQRT($C$10^2-4*$C$11*($C$9-A80)))/(2*$C$11),0) -> 0 | C79: =IF($A80<>"",$I$12*SQRT(($X$14+B79*$X$15+B79^2*$X$16)/$D$16+MMULT(MMULT($AE109:$AG109,COV),TRANSPOSE($AE109:$AG109)))/($C$10+2*B79*$C$11),"") ->  | D79: =IF(A80<>"",100*C79/B79,"") ->  | E79: =IF(A79="","",IF(Input!M93>0,(B79*Input!M93-$M$7*Input!L93)*Input!$N$23,"na")) ->  | T79: 1 | W79: 1 | Z79: 0 | AA79: 0 | AB79: 0 | AC79: 0 | AE79: 0 | AF79: 0 | AG79: 0 | AI79: 0 | AJ79: =$C$9+AI80*$C$10 -> 0.004384109087 | AL79: =IF(K23<>"",1,0) -> 1 | AM79: =IF(K23<>"",$K23^1,0) -> 0.3950051089 | AN79: =AM79^2 -> 0.156029036
B80: 0 | C80: =IF($A80<>"",$I$12*SQRT(($X$14+B80*$X$15+B80^2*$X$16)/$D$16+MMULT(MMULT($AE110:$AG110,COV),TRANSPOSE($AE110:$AG110)))/($C$10+2*B80*$C$11),"") ->  | E80: =IF(A80="","",IF(Input!M94>0,(B80*Input!M94-$M$7*Input!L94)*Input!$N$23,"na")) ->  | T80: 1 | W80: 1 | AE80: 0 | AF80: 0 | AG80: 0 | AI80: =IF($K$19<>"na",$K$19,$K$23) -> 0.3000967461 | AJ80: =$C$9+AI80*$C$10 -> 0.004384109087 | AL80: =IF(K24<>"",1,0) -> 1 | AM80: =IF(K24<>"",$K24^1,0) -> 0.5576486373 | AN80: =AM80^2 -> 0.3109720027
B81: 0 | C81: =IF($A81<>"",$I$12*SQRT(($X$14+B81*$X$15+B81^2*$X$16)/$D$16+MMULT(MMULT($AE111:$AG111,COV),TRANSPOSE($AE111:$AG111)))/($C$10+2*B81*$C$11),"") ->  | E81: =IF(A81="","",IF(Input!M95>0,(B81*Input!M95-$M$7*Input!L95)*Input!$N$23,"na")) ->  | T81: 1 | W81: 1 | AE81: 0 | AF81: 0 | AG81: 0 | AL81: 1 | AM81: =J28 -> 4.155044571 | AN81: =AM81^2 -> 17.26439539
B82: 0 | C82: =IF($A82<>"",$I$12*SQRT(($X$14+B82*$X$15+B82^2*$X$16)/$D$16+MMULT(MMULT($AE112:$AG112,COV),TRANSPOSE($AE112:$AG112)))/($C$10+2*B82*$C$11),"") ->  | E82: =IF(A82="","",IF(Input!M96>0,(B82*Input!M96-$M$7*Input!L96)*Input!$N$23,"na")) ->  | T82: 1 | W82: 1 | AE82: 0 | AF82: 0 | AG82: 0
B83: 0 | C83: =IF($A83<>"",$I$12*SQRT(($X$14+B83*$X$15+B83^2*$X$16)/$D$16+MMULT(MMULT($AE113:$AG113,COV),TRANSPOSE($AE113:$AG113)))/($C$10+2*B83*$C$11),"") ->  | E83: =IF(A83="","",IF(Input!M97>0,(B83*Input!M97-$M$7*Input!L97)*Input!$N$23,"na")) ->  | R83: =IF(N83<>"",$I$12/SQRT(Q83),"") ->  | T83: 1 | W83: 1 | AE83: 0 | AF83: 0 | AG83: 0
B84: =IF(A84<>"",(-$C$10+SIGN($C$10)*SQRT($C$10^2-4*$C$11*($C$9-A84)))/(2*$C$11),0) -> 0 | C84: =IF($A84<>"",$I$12*SQRT(($X$14+B84*$X$15+B84^2*$X$16)/$D$16+MMULT(MMULT($AE114:$AG114,COV),TRANSPOSE($AE114:$AG114)))/($C$10+2*B84*$C$11),"") ->  | E84: =IF(A84="","",IF(Input!M98>0,(B84*Input!M98-$M$7*Input!L98)*Input!$N$23,"na")) ->  | J84: CI from | K84: 0 | T84: 1 | W84: 1 | AE84: 0 | AF84: 0 | AG84: 0
B85: 0 | C85: =IF($A85<>"",$I$12*SQRT(($X$14+B85*$X$15+B85^2*$X$16)/$D$16+MMULT(MMULT($AE115:$AG115,COV),TRANSPOSE($AE115:$AG115)))/($C$10+2*B85*$C$11),"") ->  | E85: =IF(A85="","",IF(Input!M99>0,(B85*Input!M99-$M$7*Input!L99)*Input!$N$23,"na")) ->  | J85: 0: ±CI; 1: Low/High | T85: 1 | W85: 1 | AE85: 0 | AF85: 0 | AG85: 0
B86: 0 | C86: =IF($A86<>"",$I$12*SQRT(($X$14+B86*$X$15+B86^2*$X$16)/$D$16+MMULT(MMULT($AE116:$AG116,COV),TRANSPOSE($AE116:$AG116)))/($C$10+2*B86*$C$11),"") ->  | E86: =IF(A86="","",IF(Input!M100>0,(B86*Input!M100-$M$7*Input!L100)*Input!$N$23,"na")) ->  | T86: 1 | W86: 1 | AE86: 0 | AF86: 0 | AG86: 0
B87: 0 | C87: =IF($A87<>"",$I$12*SQRT(($X$14+B87*$X$15+B87^2*$X$16)/$D$16+MMULT(MMULT($AE117:$AG117,COV),TRANSPOSE($AE117:$AG117)))/($C$10+2*B87*$C$11),"") ->  | E87: =IF(A87="","",IF(Input!M101>0,(B87*Input!M101-$M$7*Input!L101)*Input!$N$23,"na")) ->  | G87: Limits for confidence interval: | T87: 1 | W87: 1 | AE87: 0 | AF87: 0 | AG87: 0
B88: 0 | C88: =IF($A88<>"",$I$12*SQRT(($X$14+B88*$X$15+B88^2*$X$16)/$D$16+MMULT(MMULT($AE118:$AG118,COV),TRANSPOSE($AE118:$AG118)))/($C$10+2*B88*$C$11),"") ->  | E88: =IF(A88="","",IF(Input!M102>0,(B88*Input!M102-$M$7*Input!L102)*Input!$N$23,"na")) ->  | G88: dY-Low | H88: dY-High | I88: CI Low | J88: CI High | L88: sXm | T88: 1 | W88: 1 | AE88: 0 | AF88: 0 | AG88: 0
B89: 0 | C89: =IF($A89<>"",$I$12*SQRT(($X$14+B89*$X$15+B89^2*$X$16)/$D$16+MMULT(MMULT($AE119:$AG119,COV),TRANSPOSE($AE119:$AG119)))/($C$10+2*B89*$C$11),"") ->  | E89: =IF(A89="","",IF(Input!M103>0,(B89*Input!M103-$M$7*Input!L103)*Input!$N$23,"na")) ->  | G89: =IF(A19="","",($C$9+U57*($C$10+U57*$C$11)+$I$12*SQRT(($X$14+U57*$X$15+U57^2*$X$16)/$D$16+MMULT(MMULT($T57:$V57,COV),TRANSPOSE($T57:$V57)))*E$16-A19)^2) -> 0.0002196813201 | H89: =IF(A19="","",($C$9+X57*($C$10+X57*$C$11)-$I$12*SQRT(($X$14+X57*$X$15+X57^2*$X$16)/$D$16+MMULT(MMULT($W57:$Y57,COV),TRANSPOSE($W57:$Y57)))*E$16-A19)^2) -> 0.0001277897183 | I89: =IF(A19="","",IF(K$84=0,C19*$E$16,B19-U57)) -> 0.6524129336 | J89: =IF(A19="","",IF(K$84=0,C19*$E$16,X57-B19)) -> 0.6524129336 | K89: =IF(ISNUMBER(G89),IF(AND(G89<0.001*A19,H89<0.001*A19),"Ok",""),"") ->  | L89: =IF(A19="","",IF(Input!M33>0,Input!$N$23*SQRT((Input!M33*C19)^2+(Input!L33*$AO$14)^2),"na")) -> 0.4182451802 | T89: 1 | W89: 1 | AE89: 0 | AF89: 0 | AG89: 0
B90: 0 | C90: =IF($A90<>"",$I$12*SQRT(($X$14+B90*$X$15+B90^2*$X$16)/$D$16+MMULT(MMULT($AE120:$AG120,COV),TRANSPOSE($AE120:$AG120)))/($C$10+2*B90*$C$11),"") ->  | E90: =IF(A90="","",IF(Input!M104>0,(B90*Input!M104-$M$7*Input!L104)*Input!$N$23,"na")) ->  | G90: =IF(A20="","",($C$9+U58*($C$10+U58*$C$11)+$I$12*SQRT(($X$14+U58*$X$15+U58^2*$X$16)/$D$16+MMULT(MMULT($T58:$V58,COV),TRANSPOSE($T58:$V58)))*E$16-A20)^2) ->  | H90: =IF(A20="","",($C$9+X58*($C$10+X58*$C$11)-$I$12*SQRT(($X$14+X58*$X$15+X58^2*$X$16)/$D$16+MMULT(MMULT($W58:$Y58,COV),TRANSPOSE($W58:$Y58)))*E$16-A20)^2) -> 4.499956137e-06 | I90: =IF(A20="","",IF(K$84=0,C20*$E$16,B20-U58)) -> 0.6487270771 | J90: =IF(A20="","",IF(K$84=0,C20*$E$16,X58-B20)) -> 0.6487270771 | K90: =IF(ISNUMBER(G90),IF(AND(G90<0.001*A20,H90<0.001*A20),"Ok",""),"") ->  | L90: =IF(A20="","",IF(Input!M34>0,Input!$N$23*SQRT((Input!M34*C20)^2+(Input!L34*$AO$14)^2),"na")) -> 0.4874856539 | T90: 1 | W90: 1 | AE90: 0 | AF90: 0 | AG90: 0
B91: 0 | C91: =IF($A91<>"",$I$12*SQRT(($X$14+B91*$X$15+B91^2*$X$16)/$D$16+MMULT(MMULT($AE121:$AG121,COV),TRANSPOSE($AE121:$AG121)))/($C$10+2*B91*$C$11),"") ->  | E91: =IF(A91="","",IF(Input!M105>0,(B91*Input!M105-$M$7*Input!L105)*Input!$N$23,"na")) ->  | G91: =IF(A21="","",($C$9+U59*($C$10+U59*$C$11)+$I$12*SQRT(($X$14+U59*$X$15+U59^2*$X$16)/$D$16+MMULT(MMULT($T59:$V59,COV),TRANSPOSE($T59:$V59)))*E$16-A21)^2) ->  | H91: =IF(A21="","",($C$9+X59*($C$10+X59*$C$11)-$I$12*SQRT(($X$14+X59*$X$15+X59^2*$X$16)/$D$16+MMULT(MMULT($W59:$Y59,COV),TRANSPOSE($W59:$Y59)))*E$16-A21)^2) -> 9.118202955e-07 | I91: 0.5999165767 | J91: 0.5999165767 | L91: =IF(A21="","",IF(Input!M35>0,Input!$N$23*SQRT((Input!M35*C21)^2+(Input!L35*$AO$14)^2),"na")) -> 0.573288748 | T91: 1 | W91: 1 | AE91: 0 | AF91: 0 | AG91: 0
B92: 0 | C92: =IF($A92<>"",$I$12*SQRT(($X$14+B92*$X$15+B92^2*$X$16)/$D$16+MMULT(MMULT($AE122:$AG122,COV),TRANSPOSE($AE122:$AG122)))/($C$10+2*B92*$C$11),"") ->  | E92: =IF(A92="","",IF(Input!M106>0,(B92*Input!M106-$M$7*Input!L106)*Input!$N$23,"na")) ->  | G92: =IF(A22="","",($C$9+U60*($C$10+U60*$C$11)+$I$12*SQRT(($X$14+U60*$X$15+U60^2*$X$16)/$D$16+MMULT(MMULT($T60:$V60,COV),TRANSPOSE($T60:$V60)))*E$16-A22)^2) ->  | H92: =IF(A22="","",($C$9+X60*($C$10+X60*$C$11)-$I$12*SQRT(($X$14+X60*$X$15+X60^2*$X$16)/$D$16+MMULT(MMULT($W60:$Y60,COV),TRANSPOSE($W60:$Y60)))*E$16-A22)^2) -> 0.0009280755856 | I92: 0.6264075881 | J92: 0.6264075881 | L92: =IF(A22="","",IF(Input!M36>0,Input!$N$23*SQRT((Input!M36*C22)^2+(Input!L36*$AO$14)^2),"na")) -> 0.8130964563 | T92: 1 | W92: 1 | AE92: 0 | AF92: 0 | AG92: 0
B93: 0 | C93: =IF($A93<>"",$I$12*SQRT(($X$14+B93*$X$15+B93^2*$X$16)/$D$16+MMULT(MMULT($AE123:$AG123,COV),TRANSPOSE($AE123:$AG123)))/($C$10+2*B93*$C$11),"") ->  | E93: =IF(A93="","",IF(Input!M107>0,(B93*Input!M107-$M$7*Input!L107)*Input!$N$23,"na")) ->  | G93: =IF(A23="","",($C$9+U61*($C$10+U61*$C$11)+$I$12*SQRT(($X$14+U61*$X$15+U61^2*$X$16)/$D$16+MMULT(MMULT($T61:$V61,COV),TRANSPOSE($T61:$V61)))*E$16-A23)^2) ->  | H93: =IF(A23="","",($C$9+X61*($C$10+X61*$C$11)-$I$12*SQRT(($X$14+X61*$X$15+X61^2*$X$16)/$D$16+MMULT(MMULT($W61:$Y61,COV),TRANSPOSE($W61:$Y61)))*E$16-A23)^2) -> 0.0001537400405 | I93: 0.6535186927 | J93: 0.6535186927 | L93: =IF(A23="","",IF(Input!M37>0,Input!$N$23*SQRT((Input!M37*C23)^2+(Input!L37*$AO$14)^2),"na")) -> 0.4504843526 | T93: 1 | W93: 1 | AE93: 0 | AF93: 0 | AG93: 0
B94: 0 | C94: =IF($A94<>"",$I$12*SQRT(($X$14+B94*$X$15+B94^2*$X$16)/$D$16+MMULT(MMULT($AE124:$AG124,COV),TRANSPOSE($AE124:$AG124)))/($C$10+2*B94*$C$11),"") ->  | E94: =IF(A94="","",IF(Input!M108>0,(B94*Input!M108-$M$7*Input!L108)*Input!$N$23,"na")) ->  | G94: =IF(A24="","",($C$9+U62*($C$10+U62*$C$11)+$I$12*SQRT(($X$14+U62*$X$15+U62^2*$X$16)/$D$16+MMULT(MMULT($T62:$V62,COV),TRANSPOSE($T62:$V62)))*E$16-A24)^2) -> 0.0001696785157 | H94: =IF(A24="","",($C$9+X62*($C$10+X62*$C$11)-$I$12*SQRT(($X$14+X62*$X$15+X62^2*$X$16)/$D$16+MMULT(MMULT($W62:$Y62,COV),TRANSPOSE($W62:$Y62)))*E$16-A24)^2) -> 0.0002221907736 | I94: 0.6728042392 | J94: 0.6728042392 | L94: =IF(A24="","",IF(Input!M38>0,Input!$N$23*SQRT((Input!M38*C24)^2+(Input!L38*$AO$14)^2),"na")) -> 0.5167753332 | T94: 1 | W94: 1 | AE94: 0 | AF94: 0 | AG94: 0
B95: 0 | C95: =IF($A95<>"",$I$12*SQRT(($X$14+B95*$X$15+B95^2*$X$16)/$D$16+MMULT(MMULT($AE125:$AG125,COV),TRANSPOSE($AE125:$AG125)))/($C$10+2*B95*$C$11),"") ->  | E95: =IF(A95="","",IF(Input!M109>0,(B95*Input!M109-$M$7*Input!L109)*Input!$N$23,"na")) ->  | G95: =IF(A25="","",($C$9+U63*($C$10+U63*$C$11)+$I$12*SQRT(($X$14+U63*$X$15+U63^2*$X$16)/$D$16+MMULT(MMULT($T63:$V63,COV),TRANSPOSE($T63:$V63)))*E$16-A25)^2) -> 0.01196282413 | H95: =IF(A25="","",($C$9+X63*($C$10+X63*$C$11)-$I$12*SQRT(($X$14+X63*$X$15+X63^2*$X$16)/$D$16+MMULT(MMULT($W63:$Y63,COV),TRANSPOSE($W63:$Y63)))*E$16-A25)^2) -> 0.006256372772 | I95: 1.224219514 | J95: 1.224219514 | L95: =IF(A25="","",IF(Input!M39>0,Input!$N$23*SQRT((Input!M39*C25)^2+(Input!L39*$AO$14)^2),"na")) -> 0.7846838863 | T95: 1 | W95: 1 | AE95: 0 | AF95: 0 | AG95: 0
B96: 0 | C96: =IF($A96<>"",$I$12*SQRT(($X$14+B96*$X$15+B96^2*$X$16)/$D$16+MMULT(MMULT($AE126:$AG126,COV),TRANSPOSE($AE126:$AG126)))/($C$10+2*B96*$C$11),"") ->  | E96: =IF(A96="","",IF(Input!M110>0,(B96*Input!M110-$M$7*Input!L110)*Input!$N$23,"na")) ->  | G96: =IF(A26="","",($C$9+U64*($C$10+U64*$C$11)+$I$12*SQRT(($X$14+U64*$X$15+U64^2*$X$16)/$D$16+MMULT(MMULT($T64:$V64,COV),TRANSPOSE($T64:$V64)))*E$16-A26)^2) ->  | H96: =IF(A26="","",($C$9+X64*($C$10+X64*$C$11)-$I$12*SQRT(($X$14+X64*$X$15+X64^2*$X$16)/$D$16+MMULT(MMULT($W64:$Y64,COV),TRANSPOSE($W64:$Y64)))*E$16-A26)^2) -> 0.0005092040541 | I96: 0.7720946658 | J96: 0.7720946658 | L96: =IF(A26="","",IF(Input!M40>0,Input!$N$23*SQRT((Input!M40*C26)^2+(Input!L40*$AO$14)^2),"na")) -> 0.440646784 | T96: 1 | W96: 1 | AE96: 0 | AF96: 0 | AG96: 0
B97: 0 | C97: =IF($A97<>"",$I$12*SQRT(($X$14+B97*$X$15+B97^2*$X$16)/$D$16+MMULT(MMULT($AE127:$AG127,COV),TRANSPOSE($AE127:$AG127)))/($C$10+2*B97*$C$11),"") ->  | E97: =IF(A97="","",IF(Input!M111>0,(B97*Input!M111-$M$7*Input!L111)*Input!$N$23,"na")) ->  | G97: =IF(A27="","",($C$9+U65*($C$10+U65*$C$11)+$I$12*SQRT(($X$14+U65*$X$15+U65^2*$X$16)/$D$16+MMULT(MMULT($T65:$V65,COV),TRANSPOSE($T65:$V65)))*E$16-A27)^2) ->  | H97: =IF(A27="","",($C$9+X65*($C$10+X65*$C$11)-$I$12*SQRT(($X$14+X65*$X$15+X65^2*$X$16)/$D$16+MMULT(MMULT($W65:$Y65,COV),TRANSPOSE($W65:$Y65)))*E$16-A27)^2) -> 0.0001624651469 | I97: 0.8748387788 | J97: 0.8748387788 | L97: =IF(A27="","",IF(Input!M41>0,Input!$N$23*SQRT((Input!M41*C27)^2+(Input!L41*$AO$14)^2),"na")) -> 0.6103382992 | T97: 1 | W97: 1 | AE97: 0 | AF97: 0 | AG97: 0
B98: 0 | C98: =IF($A98<>"",$I$12*SQRT(($X$14+B98*$X$15+B98^2*$X$16)/$D$16+MMULT(MMULT($AE128:$AG128,COV),TRANSPOSE($AE128:$AG128)))/($C$10+2*B98*$C$11),"") ->  | E98: =IF(A98="","",IF(Input!M112>0,(B98*Input!M112-$M$7*Input!L112)*Input!$N$23,"na")) ->  | G98: =IF(A28="","",($C$9+U66*($C$10+U66*$C$11)+$I$12*SQRT(($X$14+U66*$X$15+U66^2*$X$16)/$D$16+MMULT(MMULT($T66:$V66,COV),TRANSPOSE($T66:$V66)))*E$16-A28)^2) -> 4.503228517e-07 | H98: =IF(A28="","",($C$9+X66*($C$10+X66*$C$11)-$I$12*SQRT(($X$14+X66*$X$15+X66^2*$X$16)/$D$16+MMULT(MMULT($W66:$Y66,COV),TRANSPOSE($W66:$Y66)))*E$16-A28)^2) -> 0.0008593013449 | I98: 0.6199904285 | J98: 0.6199904285 | L98: =IF(A28="","",IF(Input!M42>0,Input!$N$23*SQRT((Input!M42*C28)^2+(Input!L42*$AO$14)^2),"na")) -> 1.776211693 | T98: 1 | W98: 1 | AE98: 0 | AF98: 0 | AG98: 0
B99: 0 | C99: =IF($A99<>"",$I$12*SQRT(($X$14+B99*$X$15+B99^2*$X$16)/$D$16+MMULT(MMULT($AE129:$AG129,COV),TRANSPOSE($AE129:$AG129)))/($C$10+2*B99*$C$11),"") ->  | E99: =IF(A99="","",IF(Input!M113>0,(B99*Input!M113-$M$7*Input!L113)*Input!$N$23,"na")) ->  | G99: =IF(A29="","",($C$9+U67*($C$10+U67*$C$11)+$I$12*SQRT(($X$14+U67*$X$15+U67^2*$X$16)/$D$16+MMULT(MMULT($T67:$V67,COV),TRANSPOSE($T67:$V67)))*E$16-A29)^2) ->  | H99: =IF(A29="","",($C$9+X67*($C$10+X67*$C$11)-$I$12*SQRT(($X$14+X67*$X$15+X67^2*$X$16)/$D$16+MMULT(MMULT($W67:$Y67,COV),TRANSPOSE($W67:$Y67)))*E$16-A29)^2) -> 23.51648266 | I99: 7.421613183 | J99: 7.421613183 | L99: =IF(A29="","",IF(Input!M43>0,Input!$N$23*SQRT((Input!M43*C29)^2+(Input!L43*$AO$14)^2),"na")) -> 0.01761659233 | T99: 1 | W99: 1 | AE99: 0 | AF99: 0 | AG99: 0
B100: 0 | C100: =IF($A100<>"",$I$12*SQRT(($X$14+B100*$X$15+B100^2*$X$16)/$D$16+MMULT(MMULT($AE130:$AG130,COV),TRANSPOSE($AE130:$AG130)))/($C$10+2*B100*$C$11),"") ->  | E100: =IF(A100="","",IF(Input!M114>0,(B100*Input!M114-$M$7*Input!L114)*Input!$N$23,"na")) ->  | G100: =IF(A30="","",($C$9+U68*($C$10+U68*$C$11)+$I$12*SQRT(($X$14+U68*$X$15+U68^2*$X$16)/$D$16+MMULT(MMULT($T68:$V68,COV),TRANSPOSE($T68:$V68)))*E$16-A30)^2) -> 24.32356273 | H100: =IF(A30="","",($C$9+X68*($C$10+X68*$C$11)-$I$12*SQRT(($X$14+X68*$X$15+X68^2*$X$16)/$D$16+MMULT(MMULT($W68:$Y68,COV),TRANSPOSE($W68:$Y68)))*E$16-A30)^2) -> 24.36549276 | I100: 7.480257129 | J100: 7.480257129 | L100: =IF(A30="","",IF(Input!M44>0,Input!$N$23*SQRT((Input!M44*C30)^2+(Input!L44*$AO$14)^2),"na")) -> 0.01775534971 | T100: 1 | W100: 1 | AE100: 0 | AF100: 0 | AG100: 0
B101: 0 | C101: =IF($A101<>"",$I$12*SQRT(($X$14+B101*$X$15+B101^2*$X$16)/$D$16+MMULT(MMULT($AE131:$AG131,COV),TRANSPOSE($AE131:$AG131)))/($C$10+2*B101*$C$11),"") ->  | E101: =IF(A101="","",IF(Input!M115>0,(B101*Input!M115-$M$7*Input!L115)*Input!$N$23,"na")) ->  | G101: =IF(A31="","",($C$9+U69*($C$10+U69*$C$11)+$I$12*SQRT(($X$14+U69*$X$15+U69^2*$X$16)/$D$16+MMULT(MMULT($T69:$V69,COV),TRANSPOSE($T69:$V69)))*E$16-A31)^2) -> 0.002122451507 | H101: =IF(A31="","",($C$9+X69*($C$10+X69*$C$11)-$I$12*SQRT(($X$14+X69*$X$15+X69^2*$X$16)/$D$16+MMULT(MMULT($W69:$Y69,COV),TRANSPOSE($W69:$Y69)))*E$16-A31)^2) -> 0.002528215048 | I101: 0.7722954841 | J101: 0.7722954841 | L101: =IF(A31="","",IF(Input!M45>0,Input!$N$23*SQRT((Input!M45*C31)^2+(Input!L45*$AO$14)^2),"na")) -> 0.002084677105 | T101: 1 | W101: 1 | AE101: 0 | AF101: 0 | AG101: 0
B102: 0 | C102: =IF($A102<>"",$I$12*SQRT(($X$14+B102*$X$15+B102^2*$X$16)/$D$16+MMULT(MMULT($AE132:$AG132,COV),TRANSPOSE($AE132:$AG132)))/($C$10+2*B102*$C$11),"") ->  | E102: =IF(A102="","",IF(Input!M116>0,(B102*Input!M116-$M$7*Input!L116)*Input!$N$23,"na")) ->  | G102: =IF(A32="","",($C$9+U70*($C$10+U70*$C$11)+$I$12*SQRT(($X$14+U70*$X$15+U70^2*$X$16)/$D$16+MMULT(MMULT($T70:$V70,COV),TRANSPOSE($T70:$V70)))*E$16-A32)^2) -> 0.001801870182 | H102: =IF(A32="","",($C$9+X70*($C$10+X70*$C$11)-$I$12*SQRT(($X$14+X70*$X$15+X70^2*$X$16)/$D$16+MMULT(MMULT($W70:$Y70,COV),TRANSPOSE($W70:$Y70)))*E$16-A32)^2) -> 0.002175807246 | I102: 0.7483878351 | J102: 0.7483878351 | L102: =IF(A32="","",IF(Input!M46>0,Input!$N$23*SQRT((Input!M46*C32)^2+(Input!L46*$AO$14)^2),"na")) -> 0.002035114812 | T102: 1 | W102: 1 | AE102: 0 | AF102: 0 | AG102: 0
B103: 0 | C103: =IF($A103<>"",$I$12*SQRT(($X$14+B103*$X$15+B103^2*$X$16)/$D$16+MMULT(MMULT($AE133:$AG133,COV),TRANSPOSE($AE133:$AG133)))/($C$10+2*B103*$C$11),"") ->  | E103: =IF(A103="","",IF(Input!M117>0,(B103*Input!M117-$M$7*Input!L117)*Input!$N$23,"na")) ->  | G103: =IF(A33="","",($C$9+U71*($C$10+U71*$C$11)+$I$12*SQRT(($X$14+U71*$X$15+U71^2*$X$16)/$D$16+MMULT(MMULT($T71:$V71,COV),TRANSPOSE($T71:$V71)))*E$16-A33)^2) -> 0.0001221394089 | H103: =IF(A33="","",($C$9+X71*($C$10+X71*$C$11)-$I$12*SQRT(($X$14+X71*$X$15+X71^2*$X$16)/$D$16+MMULT(MMULT($W71:$Y71,COV),TRANSPOSE($W71:$Y71)))*E$16-A33)^2) -> 0.0002296801787 | I103: 0.4968034729 | J103: 0.4968034729 | L103: =IF(A33="","",IF(Input!M47>0,Input!$N$23*SQRT((Input!M47*C33)^2+(Input!L47*$AO$14)^2),"na")) -> 0.001543459544 | T103: 1 | W103: 1 | AE103: 0 | AF103: 0 | AG103: 0
B104: 0 | C104: =IF($A104<>"",$I$12*SQRT(($X$14+B104*$X$15+B104^2*$X$16)/$D$16+MMULT(MMULT($AE134:$AG134,COV),TRANSPOSE($AE134:$AG134)))/($C$10+2*B104*$C$11),"") ->  | E104: =IF(A104="","",IF(Input!M118>0,(B104*Input!M118-$M$7*Input!L118)*Input!$N$23,"na")) ->  | G104: =IF(A34="","",($C$9+U72*($C$10+U72*$C$11)+$I$12*SQRT(($X$14+U72*$X$15+U72^2*$X$16)/$D$16+MMULT(MMULT($T72:$V72,COV),TRANSPOSE($T72:$V72)))*E$16-A34)^2) ->  | H104: =IF(A34="","",($C$9+X72*($C$10+X72*$C$11)-$I$12*SQRT(($X$14+X72*$X$15+X72^2*$X$16)/$D$16+MMULT(MMULT($W72:$Y72,COV),TRANSPOSE($W72:$Y72)))*E$16-A34)^2) ->  | L104: =IF(A34="","",IF(Input!M48>0,Input!$N$23*SQRT((Input!M48*C34)^2+(Input!L48*$AO$14)^2),"na")) ->  | T104: 1 | W104: 1 | AE104: 0 | AF104: 0 | AG104: 0
B105: 0 | C105: =IF($A105<>"",$I$12*SQRT(($X$14+B105*$X$15+B105^2*$X$16)/$D$16+MMULT(MMULT($AE135:$AG135,COV),TRANSPOSE($AE135:$AG135)))/($C$10+2*B105*$C$11),"") ->  | E105: =IF(A105="","",IF(Input!M119>0,(B105*Input!M119-$M$7*Input!L119)*Input!$N$23,"na")) ->  | G105: =IF(A35="","",($C$9+U73*($C$10+U73*$C$11)+$I$12*SQRT(($X$14+U73*$X$15+U73^2*$X$16)/$D$16+MMULT(MMULT($T73:$V73,COV),TRANSPOSE($T73:$V73)))*E$16-A35)^2) -> 7.488835332 | H105: =IF(A35="","",($C$9+X73*($C$10+X73*$C$11)-$I$12*SQRT(($X$14+X73*$X$15+X73^2*$X$16)/$D$16+MMULT(MMULT($W73:$Y73,COV),TRANSPOSE($W73:$Y73)))*E$16-A35)^2) -> 7.510786018 | I105: 5.613867428 | J105: 5.613867428 | L105: =IF(A35="","",IF(Input!M49>0,Input!$N$23*SQRT((Input!M49*C35)^2+(Input!L49*$AO$14)^2),"na")) -> 2668.309758 | T105: 1 | W105: 1 | AE105: 0 | AF105: 0 | AG105: 0
B106: 0 | C106: =IF($A106<>"",$I$12*SQRT(($X$14+B106*$X$15+B106^2*$X$16)/$D$16+MMULT(MMULT($AE136:$AG136,COV),TRANSPOSE($AE136:$AG136)))/($C$10+2*B106*$C$11),"") ->  | E106: =IF(A106="","",IF(Input!M120>0,(B106*Input!M120-$M$7*Input!L120)*Input!$N$23,"na")) ->  | G106: =IF(A36="","",($C$9+U74*($C$10+U74*$C$11)+$I$12*SQRT(($X$14+U74*$X$15+U74^2*$X$16)/$D$16+MMULT(MMULT($T74:$V74,COV),TRANSPOSE($T74:$V74)))*E$16-A36)^2) -> 0.0004852176894 | H106: =IF(A36="","",($C$9+X74*($C$10+X74*$C$11)-$I$12*SQRT(($X$14+X74*$X$15+X74^2*$X$16)/$D$16+MMULT(MMULT($W74:$Y74,COV),TRANSPOSE($W74:$Y74)))*E$16-A36)^2) -> 0.0006821721144 | I106: 0.6065546723 | J106: 0.6065546723 | L106: =IF(A36="","",IF(Input!M50>0,Input!$N$23*SQRT((Input!M50*C36)^2+(Input!L50*$AO$14)^2),"na")) -> 0.3828487725 | T106: 1 | W106: 1 | AE106: 0 | AF106: 0 | AG106: 0
B107: 0 | C107: =IF($A107<>"",$I$12*SQRT(($X$14+B107*$X$15+B107^2*$X$16)/$D$16+MMULT(MMULT($AE137:$AG137,COV),TRANSPOSE($AE137:$AG137)))/($C$10+2*B107*$C$11),"") ->  | E107: =IF(A107="","",IF(Input!M121>0,(B107*Input!M121-$M$7*Input!L121)*Input!$N$23,"na")) ->  | G107: =IF(A37="","",($C$9+U75*($C$10+U75*$C$11)+$I$12*SQRT(($X$14+U75*$X$15+U75^2*$X$16)/$D$16+MMULT(MMULT($T75:$V75,COV),TRANSPOSE($T75:$V75)))*E$16-A37)^2) -> 0.0005726216765 | H107: =IF(A37="","",($C$9+X75*($C$10+X75*$C$11)-$I$12*SQRT(($X$14+X75*$X$15+X75^2*$X$16)/$D$16+MMULT(MMULT($W75:$Y75,COV),TRANSPOSE($W75:$Y75)))*E$16-A37)^2) -> 0.0007916093993 | I107: 0.6263136074 | J107: 0.6263136074 | L107: =IF(A37="","",IF(Input!M51>0,Input!$N$23*SQRT((Input!M51*C37)^2+(Input!L51*$AO$14)^2),"na")) -> 0.3947579638 | T107: 1 | W107: 1 | AE107: 0 | AF107: 0 | AG107: 0
B108: 0 | C108: =IF($A108<>"",$I$12*SQRT(($X$14+B108*$X$15+B108^2*$X$16)/$D$16+MMULT(MMULT($AE138:$AG138,COV),TRANSPOSE($AE138:$AG138)))/($C$10+2*B108*$C$11),"") ->  | E108: =IF(A108="","",IF(Input!M122>0,(B108*Input!M122-$M$7*Input!L122)*Input!$N$23,"na")) ->  | G108: =IF(A38="","",($C$9+U76*($C$10+U76*$C$11)+$I$12*SQRT(($X$14+U76*$X$15+U76^2*$X$16)/$D$16+MMULT(MMULT($T76:$V76,COV),TRANSPOSE($T76:$V76)))*E$16-A38)^2) -> 0.003117077586 | H108: =IF(A38="","",($C$9+X76*($C$10+X76*$C$11)-$I$12*SQRT(($X$14+X76*$X$15+X76^2*$X$16)/$D$16+MMULT(MMULT($W76:$Y76,COV),TRANSPOSE($W76:$Y76)))*E$16-A38)^2) -> 0.003603693835 | I108: 0.8443011002 | J108: 0.8443011002 | L108: =IF(A38="","",IF(Input!M52>0,Input!$N$23*SQRT((Input!M52*C38)^2+(Input!L52*$AO$14)^2),"na")) -> 0.6603599598 | T108: 1 | W108: 1 | AE108: 0 | AF108: 0 | AG108: 0
B109: 0 | C109: =IF($A109<>"",$I$12*SQRT(($X$14+B109*$X$15+B109^2*$X$16)/$D$16+MMULT(MMULT($AE139:$AG139,COV),TRANSPOSE($AE139:$AG139)))/($C$10+2*B109*$C$11),"") ->  | E109: =IF(A109="","",IF(Input!M123>0,(B109*Input!M123-$M$7*Input!L123)*Input!$N$23,"na")) ->  | G109: =IF(A39="","",($C$9+U77*($C$10+U77*$C$11)+$I$12*SQRT(($X$14+U77*$X$15+U77^2*$X$16)/$D$16+MMULT(MMULT($T77:$V77,COV),TRANSPOSE($T77:$V77)))*E$16-A39)^2) ->  | H109: =IF(A39="","",($C$9+X77*($C$10+X77*$C$11)-$I$12*SQRT(($X$14+X77*$X$15+X77^2*$X$16)/$D$16+MMULT(MMULT($W77:$Y77,COV),TRANSPOSE($W77:$Y77)))*E$16-A39)^2) ->  | L109: =IF(A39="","",IF(Input!M53>0,Input!$N$23*SQRT((Input!M53*C39)^2+(Input!L53*$AO$14)^2),"na")) ->  | T109: 1 | W109: 1 | AE109: 0 | AF109: 0 | AG109: 0
B110: 0 | C110: =IF($A110<>"",$I$12*SQRT(($X$14+B110*$X$15+B110^2*$X$16)/$D$16+MMULT(MMULT($AE140:$AG140,COV),TRANSPOSE($AE140:$AG140)))/($C$10+2*B110*$C$11),"") ->  | E110: =IF(A110="","",IF(Input!M124>0,(B110*Input!M124-$M$7*Input!L124)*Input!$N$23,"na")) ->  | G110: =IF(A40="","",($C$9+U78*($C$10+U78*$C$11)+$I$12*SQRT(($X$14+U78*$X$15+U78^2*$X$16)/$D$16+MMULT(MMULT($T78:$V78,COV),TRANSPOSE($T78:$V78)))*E$16-A40)^2) ->  | H110: =IF(A40="","",($C$9+X78*($C$10+X78*$C$11)-$I$12*SQRT(($X$14+X78*$X$15+X78^2*$X$16)/$D$16+MMULT(MMULT($W78:$Y78,COV),TRANSPOSE($W78:$Y78)))*E$16-A40)^2) ->  | L110: =IF(A40="","",IF(Input!M54>0,Input!$N$23*SQRT((Input!M54*C40)^2+(Input!L54*$AO$14)^2),"na")) ->  | T110: 1 | W110: 1 | AE110: 0 | AF110: 0 | AG110: 0
B111: 0 | C111: =IF($A111<>"",$I$12*SQRT(($X$14+B111*$X$15+B111^2*$X$16)/$D$16+MMULT(MMULT($AE141:$AG141,COV),TRANSPOSE($AE141:$AG141)))/($C$10+2*B111*$C$11),"") ->  | E111: =IF(A111="","",IF(Input!M125>0,(B111*Input!M125-$M$7*Input!L125)*Input!$N$23,"na")) ->  | G111: =IF(A41="","",($C$9+U79*($C$10+U79*$C$11)+$I$12*SQRT(($X$14+U79*$X$15+U79^2*$X$16)/$D$16+MMULT(MMULT($T79:$V79,COV),TRANSPOSE($T79:$V79)))*E$16-A41)^2) ->  | H111: =IF(A41="","",($C$9+X79*($C$10+X79*$C$11)-$I$12*SQRT(($X$14+X79*$X$15+X79^2*$X$16)/$D$16+MMULT(MMULT($W79:$Y79,COV),TRANSPOSE($W79:$Y79)))*E$16-A41)^2) ->  | L111: =IF(A41="","",IF(Input!M55>0,Input!$N$23*SQRT((Input!M55*C41)^2+(Input!L55*$AO$14)^2),"na")) ->  | T111: 1 | W111: 1 | AE111: 0 | AF111: 0 | AG111: 0
B112: 0 | C112: =IF($A112<>"",$I$12*SQRT(($X$14+B112*$X$15+B112^2*$X$16)/$D$16+MMULT(MMULT($AE142:$AG142,COV),TRANSPOSE($AE142:$AG142)))/($C$10+2*B112*$C$11),"") ->  | D112: =IF(A112<>"",100*C112/B112,"") ->  | E112: =IF(A112="","",IF(Input!M126>0,(B112*Input!M126-$M$7*Input!L126)*Input!$N$23,"na")) ->  | G112: =IF(A42="","",($C$9+U80*($C$10+U80*$C$11)+$I$12*SQRT(($X$14+U80*$X$15+U80^2*$X$16)/$D$16+MMULT(MMULT($T80:$V80,COV),TRANSPOSE($T80:$V80)))*E$16-A42)^2) ->  | H112: =IF(A42="","",($C$9+X80*($C$10+X80*$C$11)-$I$12*SQRT(($X$14+X80*$X$15+X80^2*$X$16)/$D$16+MMULT(MMULT($W80:$Y80,COV),TRANSPOSE($W80:$Y80)))*E$16-A42)^2) ->  | L112: =IF(A42="","",IF(Input!M56>0,Input!$N$23*SQRT((Input!M56*C42)^2+(Input!L56*$AO$14)^2),"na")) ->  | T112: 1 | W112: 1 | AE112: 0 | AF112: 0 | AG112: 0
B113: 0 | C113: =IF($A113<>"",$I$12*SQRT(($X$14+B113*$X$15+B113^2*$X$16)/$D$16+MMULT(MMULT($AE143:$AG143,COV),TRANSPOSE($AE143:$AG143)))/($C$10+2*B113*$C$11),"") ->  | E113: =IF(A113="","",IF(Input!M127>0,(B113*Input!M127-$M$7*Input!L127)*Input!$N$23,"na")) ->  | G113: =IF(A43="","",($C$9+U81*($C$10+U81*$C$11)+$I$12*SQRT(($X$14+U81*$X$15+U81^2*$X$16)/$D$16+MMULT(MMULT($T81:$V81,COV),TRANSPOSE($T81:$V81)))*E$16-A43)^2) ->  | H113: =IF(A43="","",($C$9+X81*($C$10+X81*$C$11)-$I$12*SQRT(($X$14+X81*$X$15+X81^2*$X$16)/$D$16+MMULT(MMULT($W81:$Y81,COV),TRANSPOSE($W81:$Y81)))*E$16-A43)^2) ->  | L113: =IF(A43="","",IF(Input!M57>0,Input!$N$23*SQRT((Input!M57*C43)^2+(Input!L57*$AO$14)^2),"na")) ->  | T113: 1 | W113: 1 | AE113: =IF(A83<>"",1,0) -> 0 | AF113: =IF(B83<>"",$B83^1,0) -> 0 | AG113: 0
B114: 0 | C114: =IF($A114<>"",$I$12*SQRT(($X$14+B114*$X$15+B114^2*$X$16)/$D$16+MMULT(MMULT($AE144:$AG144,COV),TRANSPOSE($AE144:$AG144)))/($C$10+2*B114*$C$11),"") ->  | E114: =IF(A114="","",IF(Input!M128>0,(B114*Input!M128-$M$7*Input!L128)*Input!$N$23,"na")) ->  | G114: =IF(A44="","",($C$9+U82*($C$10+U82*$C$11)+$I$12*SQRT(($X$14+U82*$X$15+U82^2*$X$16)/$D$16+MMULT(MMULT($T82:$V82,COV),TRANSPOSE($T82:$V82)))*E$16-A44)^2) ->  | H114: =IF(A44="","",($C$9+X82*($C$10+X82*$C$11)-$I$12*SQRT(($X$14+X82*$X$15+X82^2*$X$16)/$D$16+MMULT(MMULT($W82:$Y82,COV),TRANSPOSE($W82:$Y82)))*E$16-A44)^2) ->  | L114: =IF(A44="","",IF(Input!M58>0,Input!$N$23*SQRT((Input!M58*C44)^2+(Input!L58*$AO$14)^2),"na")) ->  | T114: 1 | W114: 1 | AE114: 0 | AF114: 0 | AG114: 0
B115: 0 | C115: =IF($A115<>"",$I$12*SQRT(($X$14+B115*$X$15+B115^2*$X$16)/$D$16+MMULT(MMULT($AE145:$AG145,COV),TRANSPOSE($AE145:$AG145)))/($C$10+2*B115*$C$11),"") ->  | E115: =IF(A115="","",IF(Input!M129>0,(B115*Input!M129-$M$7*Input!L129)*Input!$N$23,"na")) ->  | G115: =IF(A45="","",($C$9+U83*($C$10+U83*$C$11)+$I$12*SQRT(($X$14+U83*$X$15+U83^2*$X$16)/$D$16+MMULT(MMULT($T83:$V83,COV),TRANSPOSE($T83:$V83)))*E$16-A45)^2) ->  | H115: =IF(A45="","",($C$9+X83*($C$10+X83*$C$11)-$I$12*SQRT(($X$14+X83*$X$15+X83^2*$X$16)/$D$16+MMULT(MMULT($W83:$Y83,COV),TRANSPOSE($W83:$Y83)))*E$16-A45)^2) ->  | L115: =IF(A45="","",IF(Input!M59>0,Input!$N$23*SQRT((Input!M59*C45)^2+(Input!L59*$AO$14)^2),"na")) ->  | T115: 1 | W115: 1 | AE115: 0 | AF115: 0 | AG115: 0
B116: 0 | C116: =IF($A116<>"",$I$12*SQRT(($X$14+B116*$X$15+B116^2*$X$16)/$D$16+MMULT(MMULT($AE146:$AG146,COV),TRANSPOSE($AE146:$AG146)))/($C$10+2*B116*$C$11),"") ->  | E116: =IF(A116="","",IF(Input!M130>0,(B116*Input!M130-$M$7*Input!L130)*Input!$N$23,"na")) ->  | G116: =IF(A46="","",($C$9+U84*($C$10+U84*$C$11)+$I$12*SQRT(($X$14+U84*$X$15+U84^2*$X$16)/$D$16+MMULT(MMULT($T84:$V84,COV),TRANSPOSE($T84:$V84)))*E$16-A46)^2) ->  | H116: =IF(A46="","",($C$9+X84*($C$10+X84*$C$11)-$I$12*SQRT(($X$14+X84*$X$15+X84^2*$X$16)/$D$16+MMULT(MMULT($W84:$Y84,COV),TRANSPOSE($W84:$Y84)))*E$16-A46)^2) ->  | L116: =IF(A46="","",IF(Input!M60>0,Input!$N$23*SQRT((Input!M60*C46)^2+(Input!L60*$AO$14)^2),"na")) ->  | T116: 1 | W116: 1 | AE116: 0 | AF116: 0 | AG116: 0
B117: 0 | C117: =IF($A117<>"",$I$12*SQRT(($X$14+B117*$X$15+B117^2*$X$16)/$D$16+MMULT(MMULT($AE147:$AG147,COV),TRANSPOSE($AE147:$AG147)))/($C$10+2*B117*$C$11),"") ->  | E117: =IF(A117="","",IF(Input!M131>0,(B117*Input!M131-$M$7*Input!L131)*Input!$N$23,"na")) ->  | G117: =IF(A47="","",($C$9+U85*($C$10+U85*$C$11)+$I$12*SQRT(($X$14+U85*$X$15+U85^2*$X$16)/$D$16+MMULT(MMULT($T85:$V85,COV),TRANSPOSE($T85:$V85)))*E$16-A47)^2) ->  | H117: =IF(A47="","",($C$9+X85*($C$10+X85*$C$11)-$I$12*SQRT(($X$14+X85*$X$15+X85^2*$X$16)/$D$16+MMULT(MMULT($W85:$Y85,COV),TRANSPOSE($W85:$Y85)))*E$16-A47)^2) ->  | L117: =IF(A47="","",IF(Input!M61>0,Input!$N$23*SQRT((Input!M61*C47)^2+(Input!L61*$AO$14)^2),"na")) ->  | T117: 1 | W117: 1 | AE117: 0 | AF117: 0 | AG117: 0
B118: 0 | C118: =IF($A118<>"",$I$12*SQRT(($X$14+B118*$X$15+B118^2*$X$16)/$D$16+MMULT(MMULT($AE148:$AG148,COV),TRANSPOSE($AE148:$AG148)))/($C$10+2*B118*$C$11),"") ->  | E118: =IF(A118="","",IF(Input!M132>0,(B118*Input!M132-$M$7*Input!L132)*Input!$N$23,"na")) ->  | G118: =IF(A48="","",($C$9+U86*($C$10+U86*$C$11)+$I$12*SQRT(($X$14+U86*$X$15+U86^2*$X$16)/$D$16+MMULT(MMULT($T86:$V86,COV),TRANSPOSE($T86:$V86)))*E$16-A48)^2) ->  | H118: =IF(A48="","",($C$9+X86*($C$10+X86*$C$11)-$I$12*SQRT(($X$14+X86*$X$15+X86^2*$X$16)/$D$16+MMULT(MMULT($W86:$Y86,COV),TRANSPOSE($W86:$Y86)))*E$16-A48)^2) ->  | L118: =IF(A48="","",IF(Input!M62>0,Input!$N$23*SQRT((Input!M62*C48)^2+(Input!L62*$AO$14)^2),"na")) ->  | T118: 1 | W118: 1 | AE118: 0 | AF118: 0 | AG118: 0
G119: =IF(A49="","",($C$9+U87*($C$10+U87*$C$11)+$I$12*SQRT(($X$14+U87*$X$15+U87^2*$X$16)/$D$16+MMULT(MMULT($T87:$V87,COV),TRANSPOSE($T87:$V87)))*E$16-A49)^2) ->  | H119: =IF(A49="","",($C$9+X87*($C$10+X87*$C$11)-$I$12*SQRT(($X$14+X87*$X$15+X87^2*$X$16)/$D$16+MMULT(MMULT($W87:$Y87,COV),TRANSPOSE($W87:$Y87)))*E$16-A49)^2) ->  | L119: =IF(A49="","",IF(Input!M63>0,Input!$N$23*SQRT((Input!M63*C49)^2+(Input!L63*$AO$14)^2),"na")) ->  | T119: 1 | W119: 1 | AE119: 0 | AF119: 0 | AG119: 0
G120: =IF(A50="","",($C$9+U88*($C$10+U88*$C$11)+$I$12*SQRT(($X$14+U88*$X$15+U88^2*$X$16)/$D$16+MMULT(MMULT($T88:$V88,COV),TRANSPOSE($T88:$V88)))*E$16-A50)^2) ->  | H120: =IF(A50="","",($C$9+X88*($C$10+X88*$C$11)-$I$12*SQRT(($X$14+X88*$X$15+X88^2*$X$16)/$D$16+MMULT(MMULT($W88:$Y88,COV),TRANSPOSE($W88:$Y88)))*E$16-A50)^2) ->  | L120: =IF(A50="","",IF(Input!M64>0,Input!$N$23*SQRT((Input!M64*C50)^2+(Input!L64*$AO$14)^2),"na")) ->  | T120: 1 | W120: 1 | AE120: 0 | AF120: 0 | AG120: 0
G121: =IF(A51="","",($C$9+U89*($C$10+U89*$C$11)+$I$12*SQRT(($X$14+U89*$X$15+U89^2*$X$16)/$D$16+MMULT(MMULT($T89:$V89,COV),TRANSPOSE($T89:$V89)))*E$16-A51)^2) ->  | H121: =IF(A51="","",($C$9+X89*($C$10+X89*$C$11)-$I$12*SQRT(($X$14+X89*$X$15+X89^2*$X$16)/$D$16+MMULT(MMULT($W89:$Y89,COV),TRANSPOSE($W89:$Y89)))*E$16-A51)^2) ->  | L121: =IF(A51="","",IF(Input!M65>0,Input!$N$23*SQRT((Input!M65*C51)^2+(Input!L65*$AO$14)^2),"na")) ->  | T121: 1 | W121: 1 | AE121: 0 | AF121: 0 | AG121: 0
G122: =IF(A52="","",($C$9+U90*($C$10+U90*$C$11)+$I$12*SQRT(($X$14+U90*$X$15+U90^2*$X$16)/$D$16+MMULT(MMULT($T90:$V90,COV),TRANSPOSE($T90:$V90)))*E$16-A52)^2) ->  | H122: =IF(A52="","",($C$9+X90*($C$10+X90*$C$11)-$I$12*SQRT(($X$14+X90*$X$15+X90^2*$X$16)/$D$16+MMULT(MMULT($W90:$Y90,COV),TRANSPOSE($W90:$Y90)))*E$16-A52)^2) ->  | L122: =IF(A52="","",IF(Input!M66>0,Input!$N$23*SQRT((Input!M66*C52)^2+(Input!L66*$AO$14)^2),"na")) ->  | T122: 1 | V122: =IF(A84="","",U122^2) ->  | W122: 1 | Y122: =IF(A84="","",X122^2) ->  | AE122: 0 | AF122: 0 | AG122: 0
G123: =IF(A53="","",($C$9+U91*($C$10+U91*$C$11)+$I$12*SQRT(($X$14+U91*$X$15+U91^2*$X$16)/$D$16+MMULT(MMULT($T91:$V91,COV),TRANSPOSE($T91:$V91)))*E$16-A53)^2) ->  | H123: =IF(A53="","",($C$9+X91*($C$10+X91*$C$11)-$I$12*SQRT(($X$14+X91*$X$15+X91^2*$X$16)/$D$16+MMULT(MMULT($W91:$Y91,COV),TRANSPOSE($W91:$Y91)))*E$16-A53)^2) ->  | L123: =IF(A53="","",IF(Input!M67>0,Input!$N$23*SQRT((Input!M67*C53)^2+(Input!L67*$AO$14)^2),"na")) ->  | T123: 1 | W123: 1 | AE123: 0 | AF123: 0 | AG123: 0
G124: =IF(A54="","",($C$9+U92*($C$10+U92*$C$11)+$I$12*SQRT(($X$14+U92*$X$15+U92^2*$X$16)/$D$16+MMULT(MMULT($T92:$V92,COV),TRANSPOSE($T92:$V92)))*E$16-A54)^2) ->  | H124: =IF(A54="","",($C$9+X92*($C$10+X92*$C$11)-$I$12*SQRT(($X$14+X92*$X$15+X92^2*$X$16)/$D$16+MMULT(MMULT($W92:$Y92,COV),TRANSPOSE($W92:$Y92)))*E$16-A54)^2) ->  | L124: =IF(A54="","",IF(Input!M68>0,Input!$N$23*SQRT((Input!M68*C54)^2+(Input!L68*$AO$14)^2),"na")) ->  | T124: 1 | W124: 1 | AE124: 0 | AF124: 0 | AG124: 0
G125: =IF(A55="","",($C$9+U93*($C$10+U93*$C$11)+$I$12*SQRT(($X$14+U93*$X$15+U93^2*$X$16)/$D$16+MMULT(MMULT($T93:$V93,COV),TRANSPOSE($T93:$V93)))*E$16-A55)^2) ->  | H125: =IF(A55="","",($C$9+X93*($C$10+X93*$C$11)-$I$12*SQRT(($X$14+X93*$X$15+X93^2*$X$16)/$D$16+MMULT(MMULT($W93:$Y93,COV),TRANSPOSE($W93:$Y93)))*E$16-A55)^2) ->  | L125: =IF(A55="","",IF(Input!M69>0,Input!$N$23*SQRT((Input!M69*C55)^2+(Input!L69*$AO$14)^2),"na")) ->  | T125: 1 | W125: 1 | AE125: 0 | AF125: 0 | AG125: 0
G126: =IF(A56="","",($C$9+U94*($C$10+U94*$C$11)+$I$12*SQRT(($X$14+U94*$X$15+U94^2*$X$16)/$D$16+MMULT(MMULT($T94:$V94,COV),TRANSPOSE($T94:$V94)))*E$16-A56)^2) ->  | H126: =IF(A56="","",($C$9+X94*($C$10+X94*$C$11)-$I$12*SQRT(($X$14+X94*$X$15+X94^2*$X$16)/$D$16+MMULT(MMULT($W94:$Y94,COV),TRANSPOSE($W94:$Y94)))*E$16-A56)^2) ->  | L126: =IF(A56="","",IF(Input!M70>0,Input!$N$23*SQRT((Input!M70*C56)^2+(Input!L70*$AO$14)^2),"na")) ->  | T126: 1 | W126: 1 | AE126: 0 | AF126: 0 | AG126: 0
G127: =IF(A57="","",($C$9+U95*($C$10+U95*$C$11)+$I$12*SQRT(($X$14+U95*$X$15+U95^2*$X$16)/$D$16+MMULT(MMULT($T95:$V95,COV),TRANSPOSE($T95:$V95)))*E$16-A57)^2) ->  | H127: =IF(A57="","",($C$9+X95*($C$10+X95*$C$11)-$I$12*SQRT(($X$14+X95*$X$15+X95^2*$X$16)/$D$16+MMULT(MMULT($W95:$Y95,COV),TRANSPOSE($W95:$Y95)))*E$16-A57)^2) ->  | L127: =IF(A57="","",IF(Input!M71>0,Input!$N$23*SQRT((Input!M71*C57)^2+(Input!L71*$AO$14)^2),"na")) ->  | T127: 1 | W127: 1 | AE127: 0 | AF127: 0 | AG127: 0
G128: =IF(A58="","",($C$9+U96*($C$10+U96*$C$11)+$I$12*SQRT(($X$14+U96*$X$15+U96^2*$X$16)/$D$16+MMULT(MMULT($T96:$V96,COV),TRANSPOSE($T96:$V96)))*E$16-A58)^2) ->  | H128: =IF(A58="","",($C$9+X96*($C$10+X96*$C$11)-$I$12*SQRT(($X$14+X96*$X$15+X96^2*$X$16)/$D$16+MMULT(MMULT($W96:$Y96,COV),TRANSPOSE($W96:$Y96)))*E$16-A58)^2) ->  | L128: =IF(A58="","",IF(Input!M72>0,Input!$N$23*SQRT((Input!M72*C58)^2+(Input!L72*$AO$14)^2),"na")) ->  | T128: 1 | W128: 1 | AE128: 0 | AF128: 0 | AG128: 0
G129: =IF(A59="","",($C$9+U97*($C$10+U97*$C$11)+$I$12*SQRT(($X$14+U97*$X$15+U97^2*$X$16)/$D$16+MMULT(MMULT($T97:$V97,COV),TRANSPOSE($T97:$V97)))*E$16-A59)^2) ->  | H129: =IF(A59="","",($C$9+X97*($C$10+X97*$C$11)-$I$12*SQRT(($X$14+X97*$X$15+X97^2*$X$16)/$D$16+MMULT(MMULT($W97:$Y97,COV),TRANSPOSE($W97:$Y97)))*E$16-A59)^2) ->  | L129: =IF(A59="","",IF(Input!M73>0,Input!$N$23*SQRT((Input!M73*C59)^2+(Input!L73*$AO$14)^2),"na")) ->  | T129: 1 | W129: 1 | AE129: 0 | AF129: 0 | AG129: 0
G130: =IF(A60="","",($C$9+U98*($C$10+U98*$C$11)+$I$12*SQRT(($X$14+U98*$X$15+U98^2*$X$16)/$D$16+MMULT(MMULT($T98:$V98,COV),TRANSPOSE($T98:$V98)))*E$16-A60)^2) ->  | H130: =IF(A60="","",($C$9+X98*($C$10+X98*$C$11)-$I$12*SQRT(($X$14+X98*$X$15+X98^2*$X$16)/$D$16+MMULT(MMULT($W98:$Y98,COV),TRANSPOSE($W98:$Y98)))*E$16-A60)^2) ->  | L130: =IF(A60="","",IF(Input!M74>0,Input!$N$23*SQRT((Input!M74*C60)^2+(Input!L74*$AO$14)^2),"na")) ->  | T130: 1 | W130: 1 | AE130: 0 | AF130: 0 | AG130: 0
G131: =IF(A61="","",($C$9+U99*($C$10+U99*$C$11)+$I$12*SQRT(($X$14+U99*$X$15+U99^2*$X$16)/$D$16+MMULT(MMULT($T99:$V99,COV),TRANSPOSE($T99:$V99)))*E$16-A61)^2) ->  | H131: =IF(A61="","",($C$9+X99*($C$10+X99*$C$11)-$I$12*SQRT(($X$14+X99*$X$15+X99^2*$X$16)/$D$16+MMULT(MMULT($W99:$Y99,COV),TRANSPOSE($W99:$Y99)))*E$16-A61)^2) ->  | L131: =IF(A61="","",IF(Input!M75>0,Input!$N$23*SQRT((Input!M75*C61)^2+(Input!L75*$AO$14)^2),"na")) ->  | T131: 1 | W131: 1 | AE131: 0 | AF131: 0 | AG131: 0
G132: =IF(A62="","",($C$9+U100*($C$10+U100*$C$11)+$I$12*SQRT(($X$14+U100*$X$15+U100^2*$X$16)/$D$16+MMULT(MMULT($T100:$V100,COV),TRANSPOSE($T100:$V100)))*E$16-A62)^2) ->  | H132: =IF(A62="","",($C$9+X100*($C$10+X100*$C$11)-$I$12*SQRT(($X$14+X100*$X$15+X100^2*$X$16)/$D$16+MMULT(MMULT($W100:$Y100,COV),TRANSPOSE($W100:$Y100)))*E$16-A62)^2) ->  | L132: =IF(A62="","",IF(Input!M76>0,Input!$N$23*SQRT((Input!M76*C62)^2+(Input!L76*$AO$14)^2),"na")) ->  | T132: 1 | W132: 1 | AE132: 0 | AF132: 0 | AG132: 0
G133: =IF(A63="","",($C$9+U101*($C$10+U101*$C$11)+$I$12*SQRT(($X$14+U101*$X$15+U101^2*$X$16)/$D$16+MMULT(MMULT($T101:$V101,COV),TRANSPOSE($T101:$V101)))*E$16-A63)^2) ->  | H133: =IF(A63="","",($C$9+X101*($C$10+X101*$C$11)-$I$12*SQRT(($X$14+X101*$X$15+X101^2*$X$16)/$D$16+MMULT(MMULT($W101:$Y101,COV),TRANSPOSE($W101:$Y101)))*E$16-A63)^2) ->  | L133: =IF(A63="","",IF(Input!M77>0,Input!$N$23*SQRT((Input!M77*C63)^2+(Input!L77*$AO$14)^2),"na")) ->  | T133: 1 | W133: 1 | AE133: 0 | AF133: 0 | AG133: 0
G134: =IF(A64="","",($C$9+U102*($C$10+U102*$C$11)+$I$12*SQRT(($X$14+U102*$X$15+U102^2*$X$16)/$D$16+MMULT(MMULT($T102:$V102,COV),TRANSPOSE($T102:$V102)))*E$16-A64)^2) ->  | H134: =IF(A64="","",($C$9+X102*($C$10+X102*$C$11)-$I$12*SQRT(($X$14+X102*$X$15+X102^2*$X$16)/$D$16+MMULT(MMULT($W102:$Y102,COV),TRANSPOSE($W102:$Y102)))*E$16-A64)^2) ->  | L134: =IF(A64="","",IF(Input!M78>0,Input!$N$23*SQRT((Input!M78*C64)^2+(Input!L78*$AO$14)^2),"na")) ->  | T134: 1 | W134: 1 | AE134: 0 | AF134: 0 | AG134: 0
G135: =IF(A65="","",($C$9+U103*($C$10+U103*$C$11)+$I$12*SQRT(($X$14+U103*$X$15+U103^2*$X$16)/$D$16+MMULT(MMULT($T103:$V103,COV),TRANSPOSE($T103:$V103)))*E$16-A65)^2) ->  | H135: =IF(A65="","",($C$9+X103*($C$10+X103*$C$11)-$I$12*SQRT(($X$14+X103*$X$15+X103^2*$X$16)/$D$16+MMULT(MMULT($W103:$Y103,COV),TRANSPOSE($W103:$Y103)))*E$16-A65)^2) ->  | L135: =IF(A65="","",IF(Input!M79>0,Input!$N$23*SQRT((Input!M79*C65)^2+(Input!L79*$AO$14)^2),"na")) ->  | T135: 1 | W135: 1 | AE135: 0 | AF135: 0 | AG135: 0
G136: =IF(A66="","",($C$9+U104*($C$10+U104*$C$11)+$I$12*SQRT(($X$14+U104*$X$15+U104^2*$X$16)/$D$16+MMULT(MMULT($T104:$V104,COV),TRANSPOSE($T104:$V104)))*E$16-A66)^2) ->  | H136: =IF(A66="","",($C$9+X104*($C$10+X104*$C$11)-$I$12*SQRT(($X$14+X104*$X$15+X104^2*$X$16)/$D$16+MMULT(MMULT($W104:$Y104,COV),TRANSPOSE($W104:$Y104)))*E$16-A66)^2) ->  | L136: =IF(A66="","",IF(Input!M80>0,Input!$N$23*SQRT((Input!M80*C66)^2+(Input!L80*$AO$14)^2),"na")) ->  | T136: 1 | W136: 1 | AE136: 0 | AF136: 0 | AG136: 0
G137: =IF(A67="","",($C$9+U105*($C$10+U105*$C$11)+$I$12*SQRT(($X$14+U105*$X$15+U105^2*$X$16)/$D$16+MMULT(MMULT($T105:$V105,COV),TRANSPOSE($T105:$V105)))*E$16-A67)^2) ->  | H137: =IF(A67="","",($C$9+X105*($C$10+X105*$C$11)-$I$12*SQRT(($X$14+X105*$X$15+X105^2*$X$16)/$D$16+MMULT(MMULT($W105:$Y105,COV),TRANSPOSE($W105:$Y105)))*E$16-A67)^2) ->  | L137: =IF(A67="","",IF(Input!M81>0,Input!$N$23*SQRT((Input!M81*C67)^2+(Input!L81*$AO$14)^2),"na")) ->  | T137: 1 | W137: 1 | AE137: 0 | AF137: 0 | AG137: 0
G138: =IF(A68="","",($C$9+U106*($C$10+U106*$C$11)+$I$12*SQRT(($X$14+U106*$X$15+U106^2*$X$16)/$D$16+MMULT(MMULT($T106:$V106,COV),TRANSPOSE($T106:$V106)))*E$16-A68)^2) ->  | H138: =IF(A68="","",($C$9+X106*($C$10+X106*$C$11)-$I$12*SQRT(($X$14+X106*$X$15+X106^2*$X$16)/$D$16+MMULT(MMULT($W106:$Y106,COV),TRANSPOSE($W106:$Y106)))*E$16-A68)^2) ->  | L138: =IF(A68="","",IF(Input!M82>0,Input!$N$23*SQRT((Input!M82*C68)^2+(Input!L82*$AO$14)^2),"na")) ->  | T138: 1 | W138: 1 | AE138: 0 | AF138: 0 | AG138: 0
G139: =IF(A69="","",($C$9+U107*($C$10+U107*$C$11)+$I$12*SQRT(($X$14+U107*$X$15+U107^2*$X$16)/$D$16+MMULT(MMULT($T107:$V107,COV),TRANSPOSE($T107:$V107)))*E$16-A69)^2) ->  | H139: =IF(A69="","",($C$9+X107*($C$10+X107*$C$11)-$I$12*SQRT(($X$14+X107*$X$15+X107^2*$X$16)/$D$16+MMULT(MMULT($W107:$Y107,COV),TRANSPOSE($W107:$Y107)))*E$16-A69)^2) ->  | L139: =IF(A69="","",IF(Input!M83>0,Input!$N$23*SQRT((Input!M83*C69)^2+(Input!L83*$AO$14)^2),"na")) ->  | T139: 1 | W139: 1 | AE139: 0 | AF139: 0 | AG139: 0
G140: =IF(A70="","",($C$9+U108*($C$10+U108*$C$11)+$I$12*SQRT(($X$14+U108*$X$15+U108^2*$X$16)/$D$16+MMULT(MMULT($T108:$V108,COV),TRANSPOSE($T108:$V108)))*E$16-A70)^2) ->  | H140: =IF(A70="","",($C$9+X108*($C$10+X108*$C$11)-$I$12*SQRT(($X$14+X108*$X$15+X108^2*$X$16)/$D$16+MMULT(MMULT($W108:$Y108,COV),TRANSPOSE($W108:$Y108)))*E$16-A70)^2) ->  | L140: =IF(A70="","",IF(Input!M84>0,Input!$N$23*SQRT((Input!M84*C70)^2+(Input!L84*$AO$14)^2),"na")) ->  | T140: 1 | W140: 1 | AE140: 0 | AF140: 0 | AG140: 0
G141: =IF(A71="","",($C$9+U109*($C$10+U109*$C$11)+$I$12*SQRT(($X$14+U109*$X$15+U109^2*$X$16)/$D$16+MMULT(MMULT($T109:$V109,COV),TRANSPOSE($T109:$V109)))*E$16-A71)^2) ->  | H141: =IF(A71="","",($C$9+X109*($C$10+X109*$C$11)-$I$12*SQRT(($X$14+X109*$X$15+X109^2*$X$16)/$D$16+MMULT(MMULT($W109:$Y109,COV),TRANSPOSE($W109:$Y109)))*E$16-A71)^2) ->  | L141: =IF(A71="","",IF(Input!M85>0,Input!$N$23*SQRT((Input!M85*C71)^2+(Input!L85*$AO$14)^2),"na")) ->  | T141: 1 | W141: 1 | AE141: 0 | AF141: 0 | AG141: 0
G142: =IF(A72="","",($C$9+U110*($C$10+U110*$C$11)+$I$12*SQRT(($X$14+U110*$X$15+U110^2*$X$16)/$D$16+MMULT(MMULT($T110:$V110,COV),TRANSPOSE($T110:$V110)))*E$16-A72)^2) ->  | H142: =IF(A72="","",($C$9+X110*($C$10+X110*$C$11)-$I$12*SQRT(($X$14+X110*$X$15+X110^2*$X$16)/$D$16+MMULT(MMULT($W110:$Y110,COV),TRANSPOSE($W110:$Y110)))*E$16-A72)^2) ->  | L142: =IF(A72="","",IF(Input!M86>0,Input!$N$23*SQRT((Input!M86*C72)^2+(Input!L86*$AO$14)^2),"na")) ->  | T142: 1 | W142: 1 | AE142: 0 | AF142: 0 | AG142: =AF142^2 -> 0
G143: =IF(A73="","",($C$9+U111*($C$10+U111*$C$11)+$I$12*SQRT(($X$14+U111*$X$15+U111^2*$X$16)/$D$16+MMULT(MMULT($T111:$V111,COV),TRANSPOSE($T111:$V111)))*E$16-A73)^2) ->  | H143: =IF(A73="","",($C$9+X111*($C$10+X111*$C$11)-$I$12*SQRT(($X$14+X111*$X$15+X111^2*$X$16)/$D$16+MMULT(MMULT($W111:$Y111,COV),TRANSPOSE($W111:$Y111)))*E$16-A73)^2) ->  | L143: =IF(A73="","",IF(Input!M87>0,Input!$N$23*SQRT((Input!M87*C73)^2+(Input!L87*$AO$14)^2),"na")) ->  | T143: 1 | W143: 1 | AE143: 0 | AF143: 0 | AG143: 0
G144: =IF(A74="","",($C$9+U112*($C$10+U112*$C$11)+$I$12*SQRT(($X$14+U112*$X$15+U112^2*$X$16)/$D$16+MMULT(MMULT($T112:$V112,COV),TRANSPOSE($T112:$V112)))*E$16-A74)^2) ->  | H144: =IF(A74="","",($C$9+X112*($C$10+X112*$C$11)-$I$12*SQRT(($X$14+X112*$X$15+X112^2*$X$16)/$D$16+MMULT(MMULT($W112:$Y112,COV),TRANSPOSE($W112:$Y112)))*E$16-A74)^2) ->  | L144: =IF(A74="","",IF(Input!M88>0,Input!$N$23*SQRT((Input!M88*C74)^2+(Input!L88*$AO$14)^2),"na")) ->  | T144: 1 | W144: 1 | AE144: 0 | AF144: 0 | AG144: 0
G145: =IF(A75="","",($C$9+U113*($C$10+U113*$C$11)+$I$12*SQRT(($X$14+U113*$X$15+U113^2*$X$16)/$D$16+MMULT(MMULT($T113:$V113,COV),TRANSPOSE($T113:$V113)))*E$16-A75)^2) ->  | H145: =IF(A75="","",($C$9+X113*($C$10+X113*$C$11)-$I$12*SQRT(($X$14+X113*$X$15+X113^2*$X$16)/$D$16+MMULT(MMULT($W113:$Y113,COV),TRANSPOSE($W113:$Y113)))*E$16-A75)^2) ->  | L145: =IF(A75="","",IF(Input!M89>0,Input!$N$23*SQRT((Input!M89*C75)^2+(Input!L89*$AO$14)^2),"na")) ->  | T145: 1 | W145: 1 | AE145: 0 | AF145: 0 | AG145: 0
G146: =IF(A76="","",($C$9+U114*($C$10+U114*$C$11)+$I$12*SQRT(($X$14+U114*$X$15+U114^2*$X$16)/$D$16+MMULT(MMULT($T114:$V114,COV),TRANSPOSE($T114:$V114)))*E$16-A76)^2) ->  | H146: =IF(A76="","",($C$9+X114*($C$10+X114*$C$11)-$I$12*SQRT(($X$14+X114*$X$15+X114^2*$X$16)/$D$16+MMULT(MMULT($W114:$Y114,COV),TRANSPOSE($W114:$Y114)))*E$16-A76)^2) ->  | L146: =IF(A76="","",IF(Input!M90>0,Input!$N$23*SQRT((Input!M90*C76)^2+(Input!L90*$AO$14)^2),"na")) ->  | T146: 1 | W146: 1 | AE146: 0 | AF146: 0 | AG146: 0
G147: =IF(A77="","",($C$9+U115*($C$10+U115*$C$11)+$I$12*SQRT(($X$14+U115*$X$15+U115^2*$X$16)/$D$16+MMULT(MMULT($T115:$V115,COV),TRANSPOSE($T115:$V115)))*E$16-A77)^2) ->  | H147: =IF(A77="","",($C$9+X115*($C$10+X115*$C$11)-$I$12*SQRT(($X$14+X115*$X$15+X115^2*$X$16)/$D$16+MMULT(MMULT($W115:$Y115,COV),TRANSPOSE($W115:$Y115)))*E$16-A77)^2) ->  | L147: =IF(A77="","",IF(Input!M91>0,Input!$N$23*SQRT((Input!M91*C77)^2+(Input!L91*$AO$14)^2),"na")) ->  | T147: 1 | W147: 1 | AE147: 0 | AF147: 0 | AG147: 0
G148: =IF(A78="","",($C$9+U116*($C$10+U116*$C$11)+$I$12*SQRT(($X$14+U116*$X$15+U116^2*$X$16)/$D$16+MMULT(MMULT($T116:$V116,COV),TRANSPOSE($T116:$V116)))*E$16-A78)^2) ->  | H148: =IF(A78="","",($C$9+X116*($C$10+X116*$C$11)-$I$12*SQRT(($X$14+X116*$X$15+X116^2*$X$16)/$D$16+MMULT(MMULT($W116:$Y116,COV),TRANSPOSE($W116:$Y116)))*E$16-A78)^2) ->  | L148: =IF(A78="","",IF(Input!M92>0,Input!$N$23*SQRT((Input!M92*C78)^2+(Input!L92*$AO$14)^2),"na")) ->  | T148: 1 | W148: 1 | AE148: 0 | AF148: 0 | AG148: 0
G149: =IF(A79="","",($C$9+U117*($C$10+U117*$C$11)+$I$12*SQRT(($X$14+U117*$X$15+U117^2*$X$16)/$D$16+MMULT(MMULT($T117:$V117,COV),TRANSPOSE($T117:$V117)))*E$16-A79)^2) ->  | H149: =IF(A79="","",($C$9+X117*($C$10+X117*$C$11)-$I$12*SQRT(($X$14+X117*$X$15+X117^2*$X$16)/$D$16+MMULT(MMULT($W117:$Y117,COV),TRANSPOSE($W117:$Y117)))*E$16-A79)^2) ->  | L149: =IF(A79="","",IF(Input!M93>0,Input!$N$23*SQRT((Input!M93*C79)^2+(Input!L93*$AO$14)^2),"na")) ->  | T149: 1 | W149: 1 | AE149: 0 | AF149: 0 | AG149: 0
G150: =IF(A80="","",($C$9+U118*($C$10+U118*$C$11)+$I$12*SQRT(($X$14+U118*$X$15+U118^2*$X$16)/$D$16+MMULT(MMULT($T118:$V118,COV),TRANSPOSE($T118:$V118)))*E$16-A80)^2) ->  | H150: =IF(A80="","",($C$9+X118*($C$10+X118*$C$11)-$I$12*SQRT(($X$14+X118*$X$15+X118^2*$X$16)/$D$16+MMULT(MMULT($W118:$Y118,COV),TRANSPOSE($W118:$Y118)))*E$16-A80)^2) ->  | L150: =IF(A80="","",IF(Input!M94>0,Input!$N$23*SQRT((Input!M94*C80)^2+(Input!L94*$AO$14)^2),"na")) ->  | T150: 1 | W150: 1
G151: =IF(A81="","",($C$9+U119*($C$10+U119*$C$11)+$I$12*SQRT(($X$14+U119*$X$15+U119^2*$X$16)/$D$16+MMULT(MMULT($T119:$V119,COV),TRANSPOSE($T119:$V119)))*E$16-A81)^2) ->  | H151: =IF(A81="","",($C$9+X119*($C$10+X119*$C$11)-$I$12*SQRT(($X$14+X119*$X$15+X119^2*$X$16)/$D$16+MMULT(MMULT($W119:$Y119,COV),TRANSPOSE($W119:$Y119)))*E$16-A81)^2) ->  | L151: =IF(A81="","",IF(Input!M95>0,Input!$N$23*SQRT((Input!M95*C81)^2+(Input!L95*$AO$14)^2),"na")) ->  | T151: 1 | W151: 1
G152: =IF(A82="","",($C$9+U120*($C$10+U120*$C$11)+$I$12*SQRT(($X$14+U120*$X$15+U120^2*$X$16)/$D$16+MMULT(MMULT($T120:$V120,COV),TRANSPOSE($T120:$V120)))*E$16-A82)^2) ->  | H152: =IF(A82="","",($C$9+X120*($C$10+X120*$C$11)-$I$12*SQRT(($X$14+X120*$X$15+X120^2*$X$16)/$D$16+MMULT(MMULT($W120:$Y120,COV),TRANSPOSE($W120:$Y120)))*E$16-A82)^2) ->  | L152: =IF(A82="","",IF(Input!M96>0,Input!$N$23*SQRT((Input!M96*C82)^2+(Input!L96*$AO$14)^2),"na")) ->  | T152: 1 | W152: 1
G153: =IF(A83="","",($C$9+U121*($C$10+U121*$C$11)+$I$12*SQRT(($X$14+U121*$X$15+U121^2*$X$16)/$D$16+MMULT(MMULT($T121:$V121,COV),TRANSPOSE($T121:$V121)))*E$16-A83)^2) ->  | H153: =IF(A83="","",($C$9+X121*($C$10+X121*$C$11)-$I$12*SQRT(($X$14+X121*$X$15+X121^2*$X$16)/$D$16+MMULT(MMULT($W121:$Y121,COV),TRANSPOSE($W121:$Y121)))*E$16-A83)^2) ->  | L153: =IF(A83="","",IF(Input!M97>0,Input!$N$23*SQRT((Input!M97*C83)^2+(Input!L97*$AO$14)^2),"na")) ->  | T153: 1 | W153: 1
G154: =IF(A84="","",($C$9+U122*($C$10+U122*$C$11)+$I$12*SQRT(($X$14+U122*$X$15+U122^2*$X$16)/$D$16+MMULT(MMULT($T122:$V122,COV),TRANSPOSE($T122:$V122)))*E$16-A84)^2) ->  | H154: =IF(A84="","",($C$9+X122*($C$10+X122*$C$11)-$I$12*SQRT(($X$14+X122*$X$15+X122^2*$X$16)/$D$16+MMULT(MMULT($W122:$Y122,COV),TRANSPOSE($W122:$Y122)))*E$16-A84)^2) ->  | I154: =IF(A84="","",IF(K$84=0,C84*$E$16,B84-U122)) ->  | J154: =IF(A84="","",IF(K$84=0,C84*$E$16,X122-B84)) ->  | K154: =IF(ISNUMBER(G154),IF(AND(G154<0.001*A84,H154<0.001*A84),"Ok",""),"") ->  | L154: =IF(A84="","",IF(Input!M98>0,Input!$N$23*SQRT((Input!M98*C84)^2+(Input!L98*$AO$14)^2),"na")) ->  | T154: 1 | W154: 1
G155: =IF(A85="","",($C$9+U123*($C$10+U123*$C$11)+$I$12*SQRT(($X$14+U123*$X$15+U123^2*$X$16)/$D$16+MMULT(MMULT($T123:$V123,COV),TRANSPOSE($T123:$V123)))*E$16-A85)^2) ->  | H155: =IF(A85="","",($C$9+X123*($C$10+X123*$C$11)-$I$12*SQRT(($X$14+X123*$X$15+X123^2*$X$16)/$D$16+MMULT(MMULT($W123:$Y123,COV),TRANSPOSE($W123:$Y123)))*E$16-A85)^2) ->  | L155: =IF(A85="","",IF(Input!M99>0,Input!$N$23*SQRT((Input!M99*C85)^2+(Input!L99*$AO$14)^2),"na")) ->  | T155: 1 | W155: 1
G156: =IF(A86="","",($C$9+U124*($C$10+U124*$C$11)+$I$12*SQRT(($X$14+U124*$X$15+U124^2*$X$16)/$D$16+MMULT(MMULT($T124:$V124,COV),TRANSPOSE($T124:$V124)))*E$16-A86)^2) ->  | H156: =IF(A86="","",($C$9+X124*($C$10+X124*$C$11)-$I$12*SQRT(($X$14+X124*$X$15+X124^2*$X$16)/$D$16+MMULT(MMULT($W124:$Y124,COV),TRANSPOSE($W124:$Y124)))*E$16-A86)^2) ->  | L156: =IF(A86="","",IF(Input!M100>0,Input!$N$23*SQRT((Input!M100*C86)^2+(Input!L100*$AO$14)^2),"na")) ->  | T156: 1 | W156: 1
G157: =IF(A87="","",($C$9+U125*($C$10+U125*$C$11)+$I$12*SQRT(($X$14+U125*$X$15+U125^2*$X$16)/$D$16+MMULT(MMULT($T125:$V125,COV),TRANSPOSE($T125:$V125)))*E$16-A87)^2) ->  | H157: =IF(A87="","",($C$9+X125*($C$10+X125*$C$11)-$I$12*SQRT(($X$14+X125*$X$15+X125^2*$X$16)/$D$16+MMULT(MMULT($W125:$Y125,COV),TRANSPOSE($W125:$Y125)))*E$16-A87)^2) ->  | L157: =IF(A87="","",IF(Input!M101>0,Input!$N$23*SQRT((Input!M101*C87)^2+(Input!L101*$AO$14)^2),"na")) -> 
G158: =IF(A88="","",($C$9+U126*($C$10+U126*$C$11)+$I$12*SQRT(($X$14+U126*$X$15+U126^2*$X$16)/$D$16+MMULT(MMULT($T126:$V126,COV),TRANSPOSE($T126:$V126)))*E$16-A88)^2) ->  | H158: =IF(A88="","",($C$9+X126*($C$10+X126*$C$11)-$I$12*SQRT(($X$14+X126*$X$15+X126^2*$X$16)/$D$16+MMULT(MMULT($W126:$Y126,COV),TRANSPOSE($W126:$Y126)))*E$16-A88)^2) ->  | L158: =IF(A88="","",IF(Input!M102>0,Input!$N$23*SQRT((Input!M102*C88)^2+(Input!L102*$AO$14)^2),"na")) -> 
G159: =IF(A89="","",($C$9+U127*($C$10+U127*$C$11)+$I$12*SQRT(($X$14+U127*$X$15+U127^2*$X$16)/$D$16+MMULT(MMULT($T127:$V127,COV),TRANSPOSE($T127:$V127)))*E$16-A89)^2) ->  | H159: =IF(A89="","",($C$9+X127*($C$10+X127*$C$11)-$I$12*SQRT(($X$14+X127*$X$15+X127^2*$X$16)/$D$16+MMULT(MMULT($W127:$Y127,COV),TRANSPOSE($W127:$Y127)))*E$16-A89)^2) ->  | L159: =IF(A89="","",IF(Input!M103>0,Input!$N$23*SQRT((Input!M103*C89)^2+(Input!L103*$AO$14)^2),"na")) -> 
G160: =IF(A90="","",($C$9+U128*($C$10+U128*$C$11)+$I$12*SQRT(($X$14+U128*$X$15+U128^2*$X$16)/$D$16+MMULT(MMULT($T128:$V128,COV),TRANSPOSE($T128:$V128)))*E$16-A90)^2) ->  | H160: =IF(A90="","",($C$9+X128*($C$10+X128*$C$11)-$I$12*SQRT(($X$14+X128*$X$15+X128^2*$X$16)/$D$16+MMULT(MMULT($W128:$Y128,COV),TRANSPOSE($W128:$Y128)))*E$16-A90)^2) ->  | L160: =IF(A90="","",IF(Input!M104>0,Input!$N$23*SQRT((Input!M104*C90)^2+(Input!L104*$AO$14)^2),"na")) -> 
G161: =IF(A91="","",($C$9+U129*($C$10+U129*$C$11)+$I$12*SQRT(($X$14+U129*$X$15+U129^2*$X$16)/$D$16+MMULT(MMULT($T129:$V129,COV),TRANSPOSE($T129:$V129)))*E$16-A91)^2) ->  | H161: =IF(A91="","",($C$9+X129*($C$10+X129*$C$11)-$I$12*SQRT(($X$14+X129*$X$15+X129^2*$X$16)/$D$16+MMULT(MMULT($W129:$Y129,COV),TRANSPOSE($W129:$Y129)))*E$16-A91)^2) ->  | L161: =IF(A91="","",IF(Input!M105>0,Input!$N$23*SQRT((Input!M105*C91)^2+(Input!L105*$AO$14)^2),"na")) -> 
G162: =IF(A92="","",($C$9+U130*($C$10+U130*$C$11)+$I$12*SQRT(($X$14+U130*$X$15+U130^2*$X$16)/$D$16+MMULT(MMULT($T130:$V130,COV),TRANSPOSE($T130:$V130)))*E$16-A92)^2) ->  | H162: =IF(A92="","",($C$9+X130*($C$10+X130*$C$11)-$I$12*SQRT(($X$14+X130*$X$15+X130^2*$X$16)/$D$16+MMULT(MMULT($W130:$Y130,COV),TRANSPOSE($W130:$Y130)))*E$16-A92)^2) ->  | L162: =IF(A92="","",IF(Input!M106>0,Input!$N$23*SQRT((Input!M106*C92)^2+(Input!L106*$AO$14)^2),"na")) -> 
G163: =IF(A93="","",($C$9+U131*($C$10+U131*$C$11)+$I$12*SQRT(($X$14+U131*$X$15+U131^2*$X$16)/$D$16+MMULT(MMULT($T131:$V131,COV),TRANSPOSE($T131:$V131)))*E$16-A93)^2) ->  | H163: =IF(A93="","",($C$9+X131*($C$10+X131*$C$11)-$I$12*SQRT(($X$14+X131*$X$15+X131^2*$X$16)/$D$16+MMULT(MMULT($W131:$Y131,COV),TRANSPOSE($W131:$Y131)))*E$16-A93)^2) ->  | L163: =IF(A93="","",IF(Input!M107>0,Input!$N$23*SQRT((Input!M107*C93)^2+(Input!L107*$AO$14)^2),"na")) -> 
G164: =IF(A94="","",($C$9+U132*($C$10+U132*$C$11)+$I$12*SQRT(($X$14+U132*$X$15+U132^2*$X$16)/$D$16+MMULT(MMULT($T132:$V132,COV),TRANSPOSE($T132:$V132)))*E$16-A94)^2) ->  | H164: =IF(A94="","",($C$9+X132*($C$10+X132*$C$11)-$I$12*SQRT(($X$14+X132*$X$15+X132^2*$X$16)/$D$16+MMULT(MMULT($W132:$Y132,COV),TRANSPOSE($W132:$Y132)))*E$16-A94)^2) ->  | L164: =IF(A94="","",IF(Input!M108>0,Input!$N$23*SQRT((Input!M108*C94)^2+(Input!L108*$AO$14)^2),"na")) -> 
G165: =IF(A95="","",($C$9+U133*($C$10+U133*$C$11)+$I$12*SQRT(($X$14+U133*$X$15+U133^2*$X$16)/$D$16+MMULT(MMULT($T133:$V133,COV),TRANSPOSE($T133:$V133)))*E$16-A95)^2) ->  | H165: =IF(A95="","",($C$9+X133*($C$10+X133*$C$11)-$I$12*SQRT(($X$14+X133*$X$15+X133^2*$X$16)/$D$16+MMULT(MMULT($W133:$Y133,COV),TRANSPOSE($W133:$Y133)))*E$16-A95)^2) ->  | L165: =IF(A95="","",IF(Input!M109>0,Input!$N$23*SQRT((Input!M109*C95)^2+(Input!L109*$AO$14)^2),"na")) -> 
G166: =IF(A96="","",($C$9+U134*($C$10+U134*$C$11)+$I$12*SQRT(($X$14+U134*$X$15+U134^2*$X$16)/$D$16+MMULT(MMULT($T134:$V134,COV),TRANSPOSE($T134:$V134)))*E$16-A96)^2) ->  | H166: =IF(A96="","",($C$9+X134*($C$10+X134*$C$11)-$I$12*SQRT(($X$14+X134*$X$15+X134^2*$X$16)/$D$16+MMULT(MMULT($W134:$Y134,COV),TRANSPOSE($W134:$Y134)))*E$16-A96)^2) ->  | L166: =IF(A96="","",IF(Input!M110>0,Input!$N$23*SQRT((Input!M110*C96)^2+(Input!L110*$AO$14)^2),"na")) -> 
G167: =IF(A97="","",($C$9+U135*($C$10+U135*$C$11)+$I$12*SQRT(($X$14+U135*$X$15+U135^2*$X$16)/$D$16+MMULT(MMULT($T135:$V135,COV),TRANSPOSE($T135:$V135)))*E$16-A97)^2) ->  | H167: =IF(A97="","",($C$9+X135*($C$10+X135*$C$11)-$I$12*SQRT(($X$14+X135*$X$15+X135^2*$X$16)/$D$16+MMULT(MMULT($W135:$Y135,COV),TRANSPOSE($W135:$Y135)))*E$16-A97)^2) ->  | L167: =IF(A97="","",IF(Input!M111>0,Input!$N$23*SQRT((Input!M111*C97)^2+(Input!L111*$AO$14)^2),"na")) -> 
G168: =IF(A98="","",($C$9+U136*($C$10+U136*$C$11)+$I$12*SQRT(($X$14+U136*$X$15+U136^2*$X$16)/$D$16+MMULT(MMULT($T136:$V136,COV),TRANSPOSE($T136:$V136)))*E$16-A98)^2) ->  | H168: =IF(A98="","",($C$9+X136*($C$10+X136*$C$11)-$I$12*SQRT(($X$14+X136*$X$15+X136^2*$X$16)/$D$16+MMULT(MMULT($W136:$Y136,COV),TRANSPOSE($W136:$Y136)))*E$16-A98)^2) ->  | L168: =IF(A98="","",IF(Input!M112>0,Input!$N$23*SQRT((Input!M112*C98)^2+(Input!L112*$AO$14)^2),"na")) -> 
G169: =IF(A99="","",($C$9+U137*($C$10+U137*$C$11)+$I$12*SQRT(($X$14+U137*$X$15+U137^2*$X$16)/$D$16+MMULT(MMULT($T137:$V137,COV),TRANSPOSE($T137:$V137)))*E$16-A99)^2) ->  | H169: =IF(A99="","",($C$9+X137*($C$10+X137*$C$11)-$I$12*SQRT(($X$14+X137*$X$15+X137^2*$X$16)/$D$16+MMULT(MMULT($W137:$Y137,COV),TRANSPOSE($W137:$Y137)))*E$16-A99)^2) ->  | L169: =IF(A99="","",IF(Input!M113>0,Input!$N$23*SQRT((Input!M113*C99)^2+(Input!L113*$AO$14)^2),"na")) -> 
G170: =IF(A100="","",($C$9+U138*($C$10+U138*$C$11)+$I$12*SQRT(($X$14+U138*$X$15+U138^2*$X$16)/$D$16+MMULT(MMULT($T138:$V138,COV),TRANSPOSE($T138:$V138)))*E$16-A100)^2) ->  | H170: =IF(A100="","",($C$9+X138*($C$10+X138*$C$11)-$I$12*SQRT(($X$14+X138*$X$15+X138^2*$X$16)/$D$16+MMULT(MMULT($W138:$Y138,COV),TRANSPOSE($W138:$Y138)))*E$16-A100)^2) ->  | L170: =IF(A100="","",IF(Input!M114>0,Input!$N$23*SQRT((Input!M114*C100)^2+(Input!L114*$AO$14)^2),"na")) -> 
G171: =IF(A101="","",($C$9+U139*($C$10+U139*$C$11)+$I$12*SQRT(($X$14+U139*$X$15+U139^2*$X$16)/$D$16+MMULT(MMULT($T139:$V139,COV),TRANSPOSE($T139:$V139)))*E$16-A101)^2) ->  | H171: =IF(A101="","",($C$9+X139*($C$10+X139*$C$11)-$I$12*SQRT(($X$14+X139*$X$15+X139^2*$X$16)/$D$16+MMULT(MMULT($W139:$Y139,COV),TRANSPOSE($W139:$Y139)))*E$16-A101)^2) ->  | L171: =IF(A101="","",IF(Input!M115>0,Input!$N$23*SQRT((Input!M115*C101)^2+(Input!L115*$AO$14)^2),"na")) -> 
G172: =IF(A102="","",($C$9+U140*($C$10+U140*$C$11)+$I$12*SQRT(($X$14+U140*$X$15+U140^2*$X$16)/$D$16+MMULT(MMULT($T140:$V140,COV),TRANSPOSE($T140:$V140)))*E$16-A102)^2) ->  | H172: =IF(A102="","",($C$9+X140*($C$10+X140*$C$11)-$I$12*SQRT(($X$14+X140*$X$15+X140^2*$X$16)/$D$16+MMULT(MMULT($W140:$Y140,COV),TRANSPOSE($W140:$Y140)))*E$16-A102)^2) ->  | L172: =IF(A102="","",IF(Input!M116>0,Input!$N$23*SQRT((Input!M116*C102)^2+(Input!L116*$AO$14)^2),"na")) -> 
G173: =IF(A103="","",($C$9+U141*($C$10+U141*$C$11)+$I$12*SQRT(($X$14+U141*$X$15+U141^2*$X$16)/$D$16+MMULT(MMULT($T141:$V141,COV),TRANSPOSE($T141:$V141)))*E$16-A103)^2) ->  | H173: =IF(A103="","",($C$9+X141*($C$10+X141*$C$11)-$I$12*SQRT(($X$14+X141*$X$15+X141^2*$X$16)/$D$16+MMULT(MMULT($W141:$Y141,COV),TRANSPOSE($W141:$Y141)))*E$16-A103)^2) ->  | L173: =IF(A103="","",IF(Input!M117>0,Input!$N$23*SQRT((Input!M117*C103)^2+(Input!L117*$AO$14)^2),"na")) -> 
G174: =IF(A104="","",($C$9+U142*($C$10+U142*$C$11)+$I$12*SQRT(($X$14+U142*$X$15+U142^2*$X$16)/$D$16+MMULT(MMULT($T142:$V142,COV),TRANSPOSE($T142:$V142)))*E$16-A104)^2) ->  | H174: =IF(A104="","",($C$9+X142*($C$10+X142*$C$11)-$I$12*SQRT(($X$14+X142*$X$15+X142^2*$X$16)/$D$16+MMULT(MMULT($W142:$Y142,COV),TRANSPOSE($W142:$Y142)))*E$16-A104)^2) ->  | L174: =IF(A104="","",IF(Input!M118>0,Input!$N$23*SQRT((Input!M118*C104)^2+(Input!L118*$AO$14)^2),"na")) -> 
G175: =IF(A105="","",($C$9+U143*($C$10+U143*$C$11)+$I$12*SQRT(($X$14+U143*$X$15+U143^2*$X$16)/$D$16+MMULT(MMULT($T143:$V143,COV),TRANSPOSE($T143:$V143)))*E$16-A105)^2) ->  | H175: =IF(A105="","",($C$9+X143*($C$10+X143*$C$11)-$I$12*SQRT(($X$14+X143*$X$15+X143^2*$X$16)/$D$16+MMULT(MMULT($W143:$Y143,COV),TRANSPOSE($W143:$Y143)))*E$16-A105)^2) ->  | L175: =IF(A105="","",IF(Input!M119>0,Input!$N$23*SQRT((Input!M119*C105)^2+(Input!L119*$AO$14)^2),"na")) -> 
G176: =IF(A106="","",($C$9+U144*($C$10+U144*$C$11)+$I$12*SQRT(($X$14+U144*$X$15+U144^2*$X$16)/$D$16+MMULT(MMULT($T144:$V144,COV),TRANSPOSE($T144:$V144)))*E$16-A106)^2) ->  | H176: =IF(A106="","",($C$9+X144*($C$10+X144*$C$11)-$I$12*SQRT(($X$14+X144*$X$15+X144^2*$X$16)/$D$16+MMULT(MMULT($W144:$Y144,COV),TRANSPOSE($W144:$Y144)))*E$16-A106)^2) ->  | L176: =IF(A106="","",IF(Input!M120>0,Input!$N$23*SQRT((Input!M120*C106)^2+(Input!L120*$AO$14)^2),"na")) -> 
G177: =IF(A107="","",($C$9+U145*($C$10+U145*$C$11)+$I$12*SQRT(($X$14+U145*$X$15+U145^2*$X$16)/$D$16+MMULT(MMULT($T145:$V145,COV),TRANSPOSE($T145:$V145)))*E$16-A107)^2) ->  | H177: =IF(A107="","",($C$9+X145*($C$10+X145*$C$11)-$I$12*SQRT(($X$14+X145*$X$15+X145^2*$X$16)/$D$16+MMULT(MMULT($W145:$Y145,COV),TRANSPOSE($W145:$Y145)))*E$16-A107)^2) ->  | L177: =IF(A107="","",IF(Input!M121>0,Input!$N$23*SQRT((Input!M121*C107)^2+(Input!L121*$AO$14)^2),"na")) -> 
G178: =IF(A108="","",($C$9+U146*($C$10+U146*$C$11)+$I$12*SQRT(($X$14+U146*$X$15+U146^2*$X$16)/$D$16+MMULT(MMULT($T146:$V146,COV),TRANSPOSE($T146:$V146)))*E$16-A108)^2) ->  | H178: =IF(A108="","",($C$9+X146*($C$10+X146*$C$11)-$I$12*SQRT(($X$14+X146*$X$15+X146^2*$X$16)/$D$16+MMULT(MMULT($W146:$Y146,COV),TRANSPOSE($W146:$Y146)))*E$16-A108)^2) ->  | L178: =IF(A108="","",IF(Input!M122>0,Input!$N$23*SQRT((Input!M122*C108)^2+(Input!L122*$AO$14)^2),"na")) -> 
G179: =IF(A109="","",($C$9+U147*($C$10+U147*$C$11)+$I$12*SQRT(($X$14+U147*$X$15+U147^2*$X$16)/$D$16+MMULT(MMULT($T147:$V147,COV),TRANSPOSE($T147:$V147)))*E$16-A109)^2) ->  | H179: =IF(A109="","",($C$9+X147*($C$10+X147*$C$11)-$I$12*SQRT(($X$14+X147*$X$15+X147^2*$X$16)/$D$16+MMULT(MMULT($W147:$Y147,COV),TRANSPOSE($W147:$Y147)))*E$16-A109)^2) ->  | L179: =IF(A109="","",IF(Input!M123>0,Input!$N$23*SQRT((Input!M123*C109)^2+(Input!L123*$AO$14)^2),"na")) -> 
G180: =IF(A110="","",($C$9+U148*($C$10+U148*$C$11)+$I$12*SQRT(($X$14+U148*$X$15+U148^2*$X$16)/$D$16+MMULT(MMULT($T148:$V148,COV),TRANSPOSE($T148:$V148)))*E$16-A110)^2) ->  | H180: =IF(A110="","",($C$9+X148*($C$10+X148*$C$11)-$I$12*SQRT(($X$14+X148*$X$15+X148^2*$X$16)/$D$16+MMULT(MMULT($W148:$Y148,COV),TRANSPOSE($W148:$Y148)))*E$16-A110)^2) ->  | L180: =IF(A110="","",IF(Input!M124>0,Input!$N$23*SQRT((Input!M124*C110)^2+(Input!L124*$AO$14)^2),"na")) -> 
G181: =IF(A111="","",($C$9+U149*($C$10+U149*$C$11)+$I$12*SQRT(($X$14+U149*$X$15+U149^2*$X$16)/$D$16+MMULT(MMULT($T149:$V149,COV),TRANSPOSE($T149:$V149)))*E$16-A111)^2) ->  | H181: =IF(A111="","",($C$9+X149*($C$10+X149*$C$11)-$I$12*SQRT(($X$14+X149*$X$15+X149^2*$X$16)/$D$16+MMULT(MMULT($W149:$Y149,COV),TRANSPOSE($W149:$Y149)))*E$16-A111)^2) ->  | L181: =IF(A111="","",IF(Input!M125>0,Input!$N$23*SQRT((Input!M125*C111)^2+(Input!L125*$AO$14)^2),"na")) -> 
G182: =IF(A112="","",($C$9+U150*($C$10+U150*$C$11)+$I$12*SQRT(($X$14+U150*$X$15+U150^2*$X$16)/$D$16+MMULT(MMULT($T150:$V150,COV),TRANSPOSE($T150:$V150)))*E$16-A112)^2) ->  | H182: =IF(A112="","",($C$9+X150*($C$10+X150*$C$11)-$I$12*SQRT(($X$14+X150*$X$15+X150^2*$X$16)/$D$16+MMULT(MMULT($W150:$Y150,COV),TRANSPOSE($W150:$Y150)))*E$16-A112)^2) ->  | L182: =IF(A112="","",IF(Input!M126>0,Input!$N$23*SQRT((Input!M126*C112)^2+(Input!L126*$AO$14)^2),"na")) -> 
G183: =IF(A113="","",($C$9+U151*($C$10+U151*$C$11)+$I$12*SQRT(($X$14+U151*$X$15+U151^2*$X$16)/$D$16+MMULT(MMULT($T151:$V151,COV),TRANSPOSE($T151:$V151)))*E$16-A113)^2) ->  | H183: =IF(A113="","",($C$9+X151*($C$10+X151*$C$11)-$I$12*SQRT(($X$14+X151*$X$15+X151^2*$X$16)/$D$16+MMULT(MMULT($W151:$Y151,COV),TRANSPOSE($W151:$Y151)))*E$16-A113)^2) ->  | L183: =IF(A113="","",IF(Input!M127>0,Input!$N$23*SQRT((Input!M127*C113)^2+(Input!L127*$AO$14)^2),"na")) -> 
G184: =IF(A114="","",($C$9+U152*($C$10+U152*$C$11)+$I$12*SQRT(($X$14+U152*$X$15+U152^2*$X$16)/$D$16+MMULT(MMULT($T152:$V152,COV),TRANSPOSE($T152:$V152)))*E$16-A114)^2) ->  | H184: =IF(A114="","",($C$9+X152*($C$10+X152*$C$11)-$I$12*SQRT(($X$14+X152*$X$15+X152^2*$X$16)/$D$16+MMULT(MMULT($W152:$Y152,COV),TRANSPOSE($W152:$Y152)))*E$16-A114)^2) ->  | L184: =IF(A114="","",IF(Input!M128>0,Input!$N$23*SQRT((Input!M128*C114)^2+(Input!L128*$AO$14)^2),"na")) -> 
G185: =IF(A115="","",($C$9+U153*($C$10+U153*$C$11)+$I$12*SQRT(($X$14+U153*$X$15+U153^2*$X$16)/$D$16+MMULT(MMULT($T153:$V153,COV),TRANSPOSE($T153:$V153)))*E$16-A115)^2) ->  | H185: =IF(A115="","",($C$9+X153*($C$10+X153*$C$11)-$I$12*SQRT(($X$14+X153*$X$15+X153^2*$X$16)/$D$16+MMULT(MMULT($W153:$Y153,COV),TRANSPOSE($W153:$Y153)))*E$16-A115)^2) ->  | L185: =IF(A115="","",IF(Input!M129>0,Input!$N$23*SQRT((Input!M129*C115)^2+(Input!L129*$AO$14)^2),"na")) -> 
G186: =IF(A116="","",($C$9+U154*($C$10+U154*$C$11)+$I$12*SQRT(($X$14+U154*$X$15+U154^2*$X$16)/$D$16+MMULT(MMULT($T154:$V154,COV),TRANSPOSE($T154:$V154)))*E$16-A116)^2) ->  | H186: =IF(A116="","",($C$9+X154*($C$10+X154*$C$11)-$I$12*SQRT(($X$14+X154*$X$15+X154^2*$X$16)/$D$16+MMULT(MMULT($W154:$Y154,COV),TRANSPOSE($W154:$Y154)))*E$16-A116)^2) ->  | L186: =IF(A116="","",IF(Input!M130>0,Input!$N$23*SQRT((Input!M130*C116)^2+(Input!L130*$AO$14)^2),"na")) -> 
G187: =IF(A117="","",($C$9+U155*($C$10+U155*$C$11)+$I$12*SQRT(($X$14+U155*$X$15+U155^2*$X$16)/$D$16+MMULT(MMULT($T155:$V155,COV),TRANSPOSE($T155:$V155)))*E$16-A117)^2) ->  | H187: =IF(A117="","",($C$9+X155*($C$10+X155*$C$11)-$I$12*SQRT(($X$14+X155*$X$15+X155^2*$X$16)/$D$16+MMULT(MMULT($W155:$Y155,COV),TRANSPOSE($W155:$Y155)))*E$16-A117)^2) ->  | L187: =IF(A117="","",IF(Input!M131>0,Input!$N$23*SQRT((Input!M131*C117)^2+(Input!L131*$AO$14)^2),"na")) -> 
G188: =IF(A118="","",($C$9+U156*($C$10+U156*$C$11)+$I$12*SQRT(($X$14+U156*$X$15+U156^2*$X$16)/$D$16+MMULT(MMULT($T156:$V156,COV),TRANSPOSE($T156:$V156)))*E$16-A118)^2) ->  | H188: =IF(A118="","",($C$9+X156*($C$10+X156*$C$11)-$I$12*SQRT(($X$14+X156*$X$15+X156^2*$X$16)/$D$16+MMULT(MMULT($W156:$Y156,COV),TRANSPOSE($W156:$Y156)))*E$16-A118)^2) ->  | L188: =IF(A118="","",IF(Input!M132>0,Input!$N$23*SQRT((Input!M132*C118)^2+(Input!L132*$AO$14)^2),"na")) -> 

Sheet 3rd degree
A1: =Info!$A$1 -> Calibration_Quant_8.15.xlsm | D1: 3rd degree polynomial regression | N1: ='Experimental data'!$J$1 -> Author: Bo Svensmark, svensmark@plen.ku.dk, Analytical Chemistry, PLEN, University of Copenhagen, 2017 - 2025
G2: =Input!I15 -> 1 | H2: =Input!B25 -> Naphthalene | W2: Statistical param | Z2: Covariance matrix
L3: 2 | W3: Ymean | X3: =SUM(W*Y)/I9 -> 0.0338970947 | Z3: =MINVERSE(MMULT(MMULT(TRANSPOSE(X_1),W),X_1)) -> 0.05569189265 | AA3: -0.002361462086 | AB3: 9.262296745e-06 | AC3: -7.495654117e-09
G4: =IF(G6=0,"Remember to save the results","") -> Remember to save the results | K4: Comments to output | W4: Xmean | X4: =SUM(W*X)/I9 -> 3.458349636 | Z4: -0.002361462086 | AA4: 0.001021775971 | AB4: -4.508488672e-06 | AC4: 3.779289615e-09
G5: =IF(G6=0,"","Results are saved") ->  | W5: SStotal | X5: =SUM(W*(Y-$X$3)^2) -> 0.820849565 | Z5: 9.262296745e-06 | AA5: -4.508488672e-06 | AB5: 2.623717695e-08 | AC5: -2.397470767e-11
G6: ='Test of calibration function'!C117 -> 0 | W6: SSreg | X6: =SUM(W*(MMULT(X_1,C9:C12)-X3)^2) -> 0.8208153657 | Z6: -7.495654117e-09 | AA6: 3.779289615e-09 | AB6: -2.397470767e-11 | AC6: 2.275043984e-14 | AG6: DL/LOD | AH6: Target | AI6: D | AJ6: Q | AK6: X | AL6: X2 | AM6: X3 | AN6: Detection limits to output:
A7: =IF('Test of calibration function'!$C$26=0,"Simple 3rd degr.","Weighted 3rd degr.") -> Weighted 3rd degr. | C7: Y = a0 + a1X + a2X^2 + a3X^3 | F7: Weigthts | H7: Statistics | K7: Subtract blank = | M7: =IF(Input!N22=1,IF(H28=0,0,J28),0) -> 0 | W7: SSres | X7: =X5-X6 -> 3.419935666e-05 | AG7: =MMULT(AJ7:AM7,$C$9:$C$12)-$C$9 -> 0.02462036722 | AH7: =SQRT((J19*TINV(J23/50,I19-1))^2+(D9*TINV(J23/50,I9-I10))^2) -> 0.002410835231 | AI7: =(AG7-AH7)/AH7 -> 9.212380715 | AJ7: 1 | AK7: =K19 -> 2.721203229 | AL7: =AK7^2 -> 7.404947013 | AM7: =AK7^3 -> 20.15036572 | AN7: LOQ-s | AO7: =IF(L15="Ok",K15,"na") -> na
A8: =IF('Test of calibration function'!$C$26=0,"3","W 3")&IF(J11=0,""," ZERO") -> W 3 | C8: Coeff | D8: s | E8: P | K8: Please check the predicted Xo | O8: This sheet is not protected, so take care only to change the white cells! | W8: Xmax | X8: =MAX(X) -> 901.072 | AG8: =MMULT(AJ8:AM8,$C$9:$C$12)-$C$9 -> 0.02957206415 | AH8: =AH7+SQRT((J19*TINV(J24/50,I19-1))^2+(D9*TINV(J24/50,I9-I10))^2) -> 0.00392119495 | AI8: =(AG8-AH8)/AH8 -> 6.541594979 | AJ8: 1 | AK8: =K20 -> 3.268115669 | AL8: =AK8^2 -> 10.68058003 | AM8: =AK8^3 -> 34.90537094 | AN8: LOQ-ci | AO8: =IF(L16="Ok",K16,"na") -> na
A9: a0 | C9: =MMULT(MMULT(COV,MMULT(TRANSPOSE(X_1),W)),Y) -> 0.00209131568 | D9: =SQRT(Z3)*$I$12 -> 0.0003450205519 | E9: =IF('Test of calibration function'!C26=1,'Test of calibration function'!AV14,'Test of calibration function'!AV13) -> 1.649623422e-05 | F9: s0 | G9: ='Test of calibration function'!$C$22 -> 1 | H9: N | I9: =COUNT(X)*Input!B18 -> 20 | K9: carefully. If they looks wrong | Z9: LOQ data | AA9: D | AB9: Q | AC9: X | AD9: X2 | AE9: X3 | AN9: DL | AO9: =IF(I19=0,"na",IF(L19="Ok",K19,"na")) -> na
A10: a1 | C10: 0.009042337169 | D10: =SQRT(AA4)*$I$12 -> 4.673333985e-05 | E10: =TDIST(ABS(C10/D10),$I$9-$I$10,2) -> 2.178684615e-28 | F10: s½ | G10: ='Test of calibration function'!$C$23 -> 1.053465343 | H10: k | I10: 4 | K10: enter resonable starting values | O10: · Many calculations are performed by Solver using macros: | W10: Sum | X10: =SUM(Z16:Z45) -> 4.13390617 | Z10: =IF(AC10>0,100*$I$12*SQRT(($X$14+AC10*$X$15+AC10^2*$X$16)/$D$16+MMULT(MMULT($AB10:$AE10,COV),TRANSPOSE($AB10:$AE10)))/(($C$10+AC10*(2*$C$11+$AC10*3*$C$12))*AC10),2*I15) -> 9.39624329 | AA10: =(Z10-I15)/I15 -> -0.06037567098 | AB10: 1 | AC10: =K15 -> 1.276388644 | AD10: =AC10^2 -> 1.629167972 | AE10: =AC10^3 -> 2.079451499 | AN10: LOD | AO10: =IF(I19=0,"na",IF(L20="Ok",K20,"na")) -> na
A11: a2 | C11: 1.939303824e-06 | D11: =SQRT(AB5)*$I$12 -> 2.368140848e-07 | E11: =TDIST(ABS(C11/D11),$I$9-$I$10,2) -> 4.08982354e-07 | F11: s | G11: ='Test of calibration function'!$C$24 -> 0 | H11: R2 | I11: =X6/X5 -> 0.9999583366 | J11: 0 | K11: in B19:B118 and Update Xo | O11: · Here Accuracy may be improved by repeating the updates | W11: Norm | X11: =I9/X10 -> 4.838039176 | Z11: =IF(AC11>0,100*TINV(J16/100,I9-I10)*$I$12*SQRT(($X$14+AC11*$X$15+AC11^2*$X$16)/$D$16+MMULT(MMULT($AB11:$AE11,COV),TRANSPOSE($AB11:$AE11)))/(($C$10+$AC$11*(2*$C$11+$AC11*3*$C$12))*AC11),2*I16) -> 2.644924008 | AA11: =(Z11-I16)/I16 -> -0.8677537996 | AB11: 1 | AC11: =K16 -> 42.37789109 | AD11: =AC11^2 -> 1795.885653 | AE11: =AC11^3 -> 76105.8466 | AG11: =MMULT(AJ11:AM11,$C$9:$C$12)-$C$9 -> 0.03025213479 | AH11: =P20*TINV(J23/50,I9-I10) -> 0.001934757826 | AI11: =(AG11-AH11)/AH11 -> 14.63613512 | AJ11: 1 | AK11: =K23 -> 3.343219196 | AL11: =AK11^2 -> 11.17711459 | AM11: =AK11^3 -> 37.36754407 | AN11: DL-cal | AO11: =IF(L23="Ok",K23,"na") -> na
A12: a3 | C12: -1.504831532e-09 | D12: =SQRT(AC6)*$I$12 -> 2.20517914e-10 | E12: =TDIST(ABS(C12/D12),$I$9-$I$10,2) -> 4.086998696e-06 | H12: s(y/x) | I12: =SQRT(X7/(I9-I10)) -> 0.0014620054 | O12: · White cells means that you may enter start values manually | AG12: =MMULT(AJ12:AM12,$C$9:$C$12)-$C$9 -> 0.03528417958 | AH12: =AH11+SQRT((I12*X14)^2/D16+D9^2)*TINV(J24/50,I9-I10) -> 0.002735503468 | AI12: =(AG12-AH12)/AH12 -> 11.89860532 | AJ12: 1 | AK12: =K24 -> 3.898858069 | AL12: =AK12^2 -> 15.20109424 | AM12: =AK12^3 -> 59.26690892 | AN12: LOD-ca, | AO12: =IF(ABS(AI12)>0.001,"na",K24) -> na
O13: "Please update" may mean that the target values are impossible | W13: weights | Z13: Update ok? | AA13: =IF(AND(A17="Ok",L15="Ok", L16="Ok",OR(L19="NA",L19="Ok"), OR(L20="NA",L20="Ok"),L23="Ok",L24="Ok"),"Yes","No") -> No | AG13: =MMULT(AJ13:AM13,$C$9:$C$12) -> 0.00209131568 | AH13: =IF(G28>1,$H$28+$I$28*TINV(J26/50,G28-1),IF(G28=0,0,$H$28)) -> 0.07631206793 | AI13: =IF(AH13=0,((AG13-AH13))^2,((AG13-AH13)/AH13)^2) -> 0.9459414557 | AJ13: 1 | AK13: =K28 -> 0 | AL13: =AK13^2 -> 0 | AM13: =AK13^3 -> 0 | AN13: Blank limit | AO13: =IF(G28=0,"na",IF(L28="Ok",K28,0)) -> 0
A14: Unknown samples (Predict Xo from Yo) | G14: LOQ | I14: Target ± | J14: a % | K14: LOQx | O14: Please look in Statistics for X in W37:X66 and enter a new: | W14: w0 | X14: =G9^2/$X$11 -> 0.2066953085 | AG14: =MMULT(AJ14:AM14,$C$9:$C$12) -> 0.00209131568 | AH14: =IF(G28=0,0,H28) -> 0.04021161644 | AI14: =((AG14-AH14)/AG14)^2 -> 332.2564722 | AJ14: 1 | AK14: =J28 -> 0 | AL14: =AK14^2 -> 0 | AM14: =AK14^3 -> 0 | AN14: sBlank | AO14: =IF(M7>0,$I$12*SQRT(($X$14+J28*$X$15+J28^2*$X$16)/$G$28+MMULT(MMULT(AQ81:AT81,COV),TRANSPOSE(AQ81:AT81)))/$C$10,0) -> 0
A15: Confidence | C15: a % | D15: m | E15: t | G15: LOQ from ±s % | I15: =Input!$B$13 -> 10 | K15: 1.276388644 | L15: =IF(ABS($AA$10)>0.001,"Please update","Ok") -> Please update | O15: 1) Reasonalbe start value in K15:K16 - then press Update LOQ again | W15: w1 | X15: =G10^2/$X$11 -> 0.229388227 | Z15: NN weights | AA15: Weight diagonal matrix
A16: interval | C16: =Input!$B$19 -> 95 | D16: =Input!$B$17 -> 1 | E16: =TINV((100-C16)/100,I9-I10) -> 2.119905299 | G16: LOQ from ±CI % | I16: =Input!$B$14 -> 20 | J16: =Input!$B$15 -> 5 | K16: 42.37789109 | L16: =IF(ABS($AA$11)>0.001,"Please update","Ok") -> Please update | O16: 2) Reasonable target value for LOQ - go to sheet Input and enter new values | W16: w2 | X16: =G11^2/$X$11 -> 0 | Z16: =IF(N54<>"",1/($G$9^2+N54*$G$10^2+(N54*$G$11)^2),"") -> 0.5 | AA16: =IF($N54<>"",$Q54,0) -> 2.419019588 | AB16: 0 | AC16: 0 | AD16: 0 | AE16: 0 | AF16: 0 | AG16: 0 | AH16: 0 | AI16: 0 | AJ16: 0 | AK16: 0 | AL16: 0 | AM16: 0 | AN16: 0 | AO16: 0 | AP16: 0 | AQ16: 0 | AR16: 0 | AS16: 0 | AT16: 0 | AU16: 0 | AV16: 0 | AW16: 0 | AX16: 0 | AY16: 0 | AZ16: 0 | BA16: 0 | BB16: 0 | BC16: 0 | BD16: 0
A17: =IF(OR(SUM(AL49:AL148)>0,B19=""),"Please Update Xo","Ok") -> Ok | Z17: 0.5 | AA17: 0 | AB17: =IF($N55<>"",$Q55,0) -> 2.419019588 | AC17: 0 | AD17: 0 | AE17: 0 | AF17: 0 | AG17: 0 | AH17: 0 | AI17: 0 | AJ17: 0 | AK17: 0 | AL17: 0 | AM17: 0 | AN17: 0 | AO17: 0 | AP17: 0 | AQ17: 0 | AR17: 0 | AS17: 0 | AT17: 0 | AU17: 0 | AV17: 0 | AW17: 0 | AX17: 0 | AY17: 0 | AZ17: 0 | BA17: 0 | BB17: 0 | BC17: 0 | BD17: 0
A18: Yo | B18: Xo | C18: sXo | D18: RSD % | E18: Xm | G18: DL From repeat exp | I18: n | J18: s | K18: DL/LOD | N18: Plot of line | P18: Prediction intervals | U18: Accuracy | W18: Statistics for X | Z18: 0.5 | AA18: 0 | AB18: 0 | AC18: =IF($N56<>"",$Q56,0) -> 2.419019588 | AD18: 0 | AE18: 0 | AF18: 0 | AG18: 0 | AH18: 0 | AI18: 0 | AJ18: 0 | AK18: 0 | AL18: 0 | AM18: 0 | AN18: 0 | AO18: 0 | AP18: 0 | AQ18: 0 | AR18: 0 | AS18: 0 | AT18: 0 | AU18: 0 | AV18: 0 | AW18: 0 | AX18: 0 | AY18: 0 | AZ18: 0 | BA18: 0 | BB18: 0 | BC18: 0 | BD18: 0
A19: 0.03373174442 | B19: -0.03288088846 | C19: =IF($A19<>"",$I$12*SQRT(($X$14+B19*$X$15+B19^2*$X$16)/$D$16+MMULT(MMULT($AF49:$AI49,COV),TRANSPOSE($AF49:$AI49)))/($C$10+B19*(2*$C$11+B19*3*$C$12)),"") -> 0.08164798274 | D19: =IF(A19<>"",100*C19/B19,"") -> -248.3144056 | E19: =IF(A19="","",IF(Input!M33>0,(B19*Input!M33-$M$7*Input!L33)*Input!$N$23,"na")) -> -0.03736464598 | F19: =IF(A19<>"",IF(ABS(AK49)>0.005*A19,IF(B19<=0,"Min",IF(B19>=$X$8,"Max","Update")),"Ok"),"") -> Min | G19: DL | I19: =Input!$B$26 -> 7 | J19: =Input!$B$27 -> 0.0007127708357 | K19: 2.721203229 | L19: =IF(I19>0,IF(ABS($AI7)>0.001,"Please update","Ok"),"na") -> Please update | N19: X | O19: Yo | P19: sYo | Q19: Y- | R19: Y+ | S19: PI % | T19: RSD % | U19: Error X % | W19: sX % | X19: ±CI % X | Z19: 0.5 | AA19: 0 | AB19: 0 | AC19: 0 | AD19: =IF($N57<>"",$Q57,0) -> 2.419019588 | AE19: 0 | AF19: 0 | AG19: 0 | AH19: 0 | AI19: 0 | AJ19: 0 | AK19: 0 | AL19: 0 | AM19: 0 | AN19: 0 | AO19: 0 | AP19: 0 | AQ19: 0 | AR19: 0 | AS19: 0 | AT19: 0 | AU19: 0 | AV19: 0 | AW19: 0 | AX19: 0 | AY19: 0 | AZ19: 0 | BA19: 0 | BB19: 0 | BC19: 0 | BD19: 0
